Workbook

Sheet README
C3: ANNUAL BORROWING PLAN TOOL
C5: About | D5: This analytical tool should be used in conjunction with the Medium-Term Debt Management Strategy Analytical Tool (MTDS AT), in particular the tailored version MTDS_ABPT.
D6: Users must read this worksheet and the Instructions worksheet before using the tool. Additional guidance is available in the accompanying manual (ABPT Manual).
D7: In addition, users are expected to be familiar with the Guidance Note on the MTDS framework, where cost-risk indicators are explained in detail.
C9: Terminology | D9: External debt, as in the MTDS framework and MTDS AT, means debt denominated in foreign currency and domestic means local currency (that is, debt is not defined based on residency of creditors).
C11: Important | D11: Enable the macro after opening the tool, by clicking on "Enable Content" box at the top below the ribbon.
D13: By default the worksheets that do not require inputs are hidden and protected, to unprotect sheets click the the relevant excel macro buttons below.
D14: To avoid inadvertent errors (e.g. accidentally overwriting formula) please protect sheets again by clicking on PROTECT button below.
D16: If the first FX instruments does not have payment profile similar to IDA small economy or African Development Fund, then the following adjustments need to be made.
D17: In worksheet A9.FX_New_DS cell R9, edit the formula by deleting " *(30%*2) ". Once removed copy the formula or R9 to BW9.
D19: Follow the Instructions worksheet to ensure all data requirement are met, and to be aware of what not to do.
D21: Do not delete or insert rows, particularly in the Input and calculation worksheets.
D22: Do not cut and paste cells in any of the workshets, instead use copy and paste, as vlookup and hlookup formulae are used throughout the tool.
C24: Excel Macros | D24: Three types of Excel Macros are used:
D25: To hide/unhide optional worksheets (these include worksheets for monthly interest and exchange rate inputs).
D26: To hide and protect calculation worksheets
D27: To reinstate conditional formatting
C30: Color Codes
D31: Inputs required
D32: Inputs need updating or new information required
D33: Optional cells left for the user of the model to include monthly market data, and update macro information.
D36: Worksheets | I36: Worksheets | N36: Worksheets
D38: Overview | F38: INSTRUCTIONS & OUTPUTS | I38: Auction Calendar | K38: OUTPUTS | N38: M1.MTDS | Q38: CALCULATION AREAS
D39: Workbook_Flowchart | I39: ALXB | N39: M2.Baseline
D40: Instructions | I40: ABP | N40: M3.ASC
D41: List of Outputs [to come] | I41: Summary | N41: M4.MTDS_IP
I42: Monitoring_Cost_Risk_DX | N42: M5.MTDS_IP_Uplift
D43: Input_1_(From_MTDS) | F43: DATA INPUTS | I43: Monitoring_Cost_Risk_FX | N43: M6.Baseline_IP
D44: Input_2 | I44: Monitoring_Cost_Risk | N44: M7.Baseline_IP_Uplift
D45: Input_3 | I45: Maturity_Profile | N45: M8.ASC_IP
D46: FX | N46: M9.ASC_IP_Uplift
D47: GFN | N47: M10.FX_Cashflow
D48: Instruments | N48: M11.FX_New
D49: Auction Parameters | N49: A1.PP_New_Debt
D50: Default MTDS Based | N50: A2.PP_Total_Debt
D51: Auction Design | N51: A3.Outstanding_Total_Debt
N52: A4.IP_Total_Debt
D53: Coupon_Yield_FX | F53: OPTIONAL INPUTS | N53: A5.MTDS_DS_ABPT_Categorgy
D54: Coupon_Yield_Indicies_DX | N54: A6.DX_New_PP
D55: FX_Macro | N55: A7.DX_New_Outstanding
N56: A8.DX_New_IP
N57: A9.FX_New_DS
N58: A10.FX_New_DS_DX
N59: M12.MTDS_IP2
N60: M13.Baseline_IP2
N61: M14.ASC_IP2
N64: Reset_Formatting | Q64: Reinstate conditional formatting

Sheet Overview
C3: ABP Tool
C4: Primary Objective: Assist with implementation of MTDS
C5: l from annual cashflow of MTDS to monthly cashflow for the first year of the strategy period
C8: Start with MTDS 1 | H8: From MTDS [Annual Cashflow]
H9: How much to finance? | J9: How to finance? | L9: At what price?
E10: Input_1_(From_MTDS) Worksheet | H10: Revenue | J10: Strategy | L10: Interest rate/exchange rate
H11: Expenditure
H12: Debt Service
H14: Gross Financing Need | J14: Foreign Currency vs Domestic Currency, Instruments | L14: Baseline
C16: Use the ABPT to move from annual cash flow to monthly.
C17: Plus calculate the in-year debt service payments for new debt contracted in the first year of the strategy period.
C24: How much to finance? | E24: Monthly Projections | H24: To note some similarities and differences in terms of inputs to that of the MTDS AT.
C25: Revenue | E25: Update GFN worksheet
C26: Primary Expenditure | E26: Update GFN worksheet | H26: 1. All inputs are in local currency as opposed to the option to enter in either local or foreign currency in MTDS AT.
C27: Debt Service | H27: However, for foreign currency disbursement in worksheet "FX" there is a working area to enter amount in foreign currency
C28: Existing Debt | H28: but data needs to be converted to local currency in cells: S11:AP30.
C29: Foreign Currency | H29: 2. The option to enter more than one foreign currency is available in FX_Macro worksheet to allow users to covert foreign currency
C30: Interest Payments | E30: Update GFN worksheet | H30: disbursements in different currencies into local currency in the FX worksheet.
C31: Principal Payments | E31: Update GFN worksheet | H31: However, the main major currency which is in cell L7 of the Existing_Debt worksheet in the MTDS AT is used for
C32: Domestic Currency | H32: calculating cashflows and converting to local currency.
C33: Interest Payments | E33: Update GFN worksheet | H33: So in the ABPT, the way Foreign Currency disbursments and their associated cash flow are calculated is as follows:
C34: Principal Payments | E34: Update GFN worksheet | H34: l take the entered disbursment information in local currency
H35: l convert all disbursements into one common foreign currency (e.g. USD or Euro) using average exchange rate
C36: How to finance? | E36: Monthly Projections | H36: l calculate principal payments, outstanding amount and interest payments
C37: Financing Strategy | H37: l convert the calculated principal payments and interest payments into local currency using average exchange rate
C38: Foreign Currency / Domestic Currency Composition 1 | E38: Input_1 and Input_3 | H38: l convert the calculated outstanding amount into local currency using end of period exchange rate
C39: Foreign Currency amount | E39: FX | H39: 3. For foreign currency instruments, the tool allows grace period of less than one year, but only for loans with maturity of greater than 1.
C40: Local Currency Residual | E40: Instruments, Auction Parameters and Auction Design | H40: Grace periods should be entered in years, so for grace period of 9 months, entry should be 9÷12.
H41: 4. For domestic currency instruments, the tool accomodates T-bills and loans of less than one year maturity.
C42: At what price? | E42: Monthly projections | H42: However, for such instruments it does not accommodate a grace period and interest payments are assumed to paid at the same
C43: Pricing of new debt | H43: time when the loan is due.
C44: Yield and Coupon | E44: FX, Instruments, Coupon_Yield | H44: 5. The tool is populated by default using information available in MTDS including macro and market data.
C45: Exchange Rate | E45: FX, FX_Macro | H45: Users are encouraged to obtain higher frequency data (e.g. monthly) and a more recent information.
C49: In-Year New Debt Service Payments
C50: Foreign Currency | E50: GFN input or calculated in ABPT based on entry in FX worksheet
C52: Domestic Currency | E52: Calculated in ABPT based on entry in Instruments, Auction Parameters and Auction Design
C55: Note:
C56: 1 Users can also enter all the required data in Inputs_3 worksheet in absence of MTDS.
C57: However, monitoring cost-risk worksheets will show errors in absence of cash flow.
C58: projections of existing debt and at the end of strategy period.

Sheet Instructions
D3: INPUT INSTRUCTIONS
D5: DO NOT: 1) Add or remove rows in the including in Input worksheets as the tool uses several vlookups and hlookups throughout.
D6: 2) Cut and paste values instead use copy and paste or overwrite.
D8: Note: The ABPT has two types of input cells:
D9: yellow cells require the user to enter information, bolded text below
D10: gray cells with blue fonts require the user to update links or confirm information pulled from MTDS, italicized below
D11: Also note that while the tool set up to allow two years of planning, users can ignore the second year of the strategy period if it is not needed or helpful.
D13: Types of Inputs | F13: File, Worksheets and Cell Areas
B15: Step 1 | D15: 1. Data from MTDS_ABPT | F15: MTDS_ABPT
D16: 1.1 Using the MTDS_ABPT version of the MTDS AT, select the chosen strategy in the "Strategy" worksheet cell A33. | F16: Strategy, A33
D17: 1.2 Go to cell A1 in worksheet "FOR_ABPT" and copy and paste the entire worksheet by presssing control A, copy and pasting in Input_1_(from_MTDS) in cell A1. | F17: FOR_ABPT (selecting all)
B19: Step 2 | D19: 2. Key Parameters | F19: Input_2
D20: 2.1 Confirm the base year of data | F20: E7
D21: 2.2 Enter the last month of the fiscal/calendar year use, for example, 12 for December and 6 for June | F21: E8
D22: 2.3 Confirm the domestic (local) currency three letter code | F22: E11
D23: 2.4 Confirm that the units remains the same as in MTDS | F23: E12
D25: 3. Representative Instruments | F25: Input_2
D26: 3.1 Confirm the representative instruments from MTDS | F26: D18: D37
D27: 3.2 Confirm the interest type of representative instruments from MTDS | F27: E18: E37
D28: 3.3 Confirm the currency type of representative instruments from MTDS | F28: F18: F37
D29: 3.4 Select the ABPT category for each representative instrument by referring to the list in area D40 : I49. | F29: G18: G37
B31: Step 3 | D31: 4. Representative Instruments of Domestic Instruments | F31: Input_3
D32: 4.1 Update the link to Input_1_(From_MTDS) worksheet to the first domestic instrument | F32: D6
D33: 4.2 Update the link to Input_1_(From_MTDS) worksheet to pick up the right percentage from for the first domestic instrument in the first and second year of the strategy period | F33: E6, F6
D34: 4.3 Update the link to Input_1_(From_MTDS) worksheet to pick up the right amount for the first domestic instrument in the first and second year of the strategy period | F34: G6, H6
D35: 4.4 If there any updates from '4.1 to 4.3 then update the rows below accordingly ensuring to pick up all representative domestic instruments | F35: D6 : H25
D36: 4.7 Update the link to Input_1_(From_MTDS) worksheet to pick up the right yield for the first domestic instrument in the first and second year of the strategy period | F36: E28, F28
D37: 4.8 If the links were updated in 4.7 then update the rows below accordingly ensuring to pick up all representative domestic instruments | F37: E28 : F47
D38: 4.9 Update the link to Input_1_(From_MTDS) worksheet to pick up the right interest type for the first domestic instrument | F38: E50
D39: 4.10 If the link in 4.9 was updated then update the rows below accordingly ensuring to pick up all representative domestic instruments | F39: E50: E69
D40: 4.11 Confirm or update principal payments of representative domestic instruments in the first and second year of the strategy period | F40: E73, F73
D41: 4.12 If the link in 4.11 was updated then update the rows below accordingly ensuring to pick up all representative domestic instruments | F41: E73 : F92
D42: 4.13 Confirm or update interest payments of representative domestic instruments in the first and second year of the strategy period | F42: I73, J73
D43: 4.14 If the link in 4.13 was updated then update the rows below accordingly ensuring to pick up all representative domestic instruments | F43: I73 : J92
D45: 5. Macro and Gross Financing | F45: Input_3
D46: 5.1 Confirm or update revenue, expenditure, primary deficit, foreign currency and domestic (local) currency interest and principal payments for the first and second year of the strategy period | F46: E123 : F129 E131: F132 E134: F135
D47: 5.2 Confirm gross foreign currency financing (converted into domestic currency) for first and second year of the strategy period | F47: E137 : F137
D48: 5.3 Confirm gross domestic financing for first and second year of the strategy period | F48: E141 : F141
D49: 5.4 Confirm the operational target for the first and second year of the strategy period | F49: E145 : F145
B51: Step 4 | D51: 6. Gross Financing Need | F51: GFN
D52: Please note that, in the absence of any updates, all required entries are sourced from the MTDS AT—specifically the 'Input_1_(From_MTDS)' worksheet—where annual figures are evenly distributed across 12 months.
D53: 6.1 Enter monthly revenue projections to replace the default entry from Input_1_(From_MTDS) | F53: J7 : AG7
D54: 6.2 Enter monthly expenditure projections to replace the default entry from Input_1_(From_MTDS) | F54: J8 : AG8
D55: 6.3 Select "Yes" if FX worksheet will be used for foreign currency borrowing; if the response is"No" rows 15, 22 and 28 will be highlighted demanding input | F55: G12
D56: 6.4 Enter monthly interest payments of existing domestic debt projections replacing the default entry from Input_1_(From_MTDS) | F56: J12 : AG12
D57: 6.5 Enter monthly interest payments of existing foreign currency debt projections replacing the default entry from Input_1_(From_MTDS) | F57: J13 : AG13
D58: ="6.6 Enter monthly interest payments of the foreign currency debt from the borrowing that will take place in year "&Input_2!$E$9&" and "&Input_2!$E$9+1&" (the latter if planning for 2 years)" -> 6.6 Enter monthly interest payments of the foreign currency debt from the borrowing that will take place in year 2025 and 2026 (the latter if planning for 2 years) | F58: J15 : AG15
D59: 6.7 Enter monthly principal payments of existing domestic debt projections replacing the default entry from Input_1_(From_MTDS) | F59: J19 : AG19
D60: 6.8 Enter monthly principal payments of existing foreign currency debt projections replacing the default entry from Input_1_(From_MTDS) | F60: J20 : AG20
D61: ="6.9 Enter monthly principal payments of the foreign currency debt from the borrowing that will take place in year "&Input_2!$E$9&" and "&Input_2!$E$9+1&" (the latter if planning for 2 years)" -> 6.9 Enter monthly principal payments of the foreign currency debt from the borrowing that will take place in year 2025 and 2026 (the latter if planning for 2 years) | F61: J22 : AG22
D62: ="6.10 Enter monthly foreign currency borrrowing that will take place in year "&Input_2!$E$9&" and "&Input_2!$E$9+1&" (the latter if planning for 2 years)" -> 6.10 Enter monthly foreign currency borrrowing that will take place in year 2025 and 2026 (the latter if planning for 2 years) | F62: J28 : AG28
D63: 6.10 Enter opening cash balance that is available for debt management operations in domestic currency | F63: J31
D64: 6.11 Enter the minimum cash balance that one wishes to maintain throughout the year in domestic currency | F64: J32
B66: Step 5 | D66: 7. Foreign Currency Financing | F66: FX
D67: Use this worksheet to specify borrowing by individual instruments as opposed to representative instruments. For example, instead of IDA/IFAD/EDF_Fixed, list each creditor separately - entering one line for IDA, one for IFAD and, one for EDF.EDF
D68: 7.1 Update the link or confirm the first instrument in cell C11 corresponds to the first foreign currency instrument from MTDS pulled from Input_1_(From_MTDS). | F68: C11
D69: 7.2 Update the link or confirm that all features for the first instrument in cell C11 are corresponding to the right information from MTDS pulled from Input_1_(From_MTDS) | F69: D11, E11, F11, G11, H11, I11, J11, K11
D70: 7.3 If links have updated in 7.1 and 7.2 then copy the formula to the rows below to capture all foreign currency instruments from MTDS | F70: D12 : K30
D71: 7.4 Update the link or confirm that the exchange rate depreciation / appreciation for the first and second year of the strategy period are corresponding to the right information from MTDS | F71: L11, M11
D72: 7.5 If the links in 7.4 were updated, fix the formula for each cell and copy those to all foreign currency instruments below | F72: L12 : M30
D73: 7.6 Enter the number of frequency of interest payments for each instrument | F73: N11 : N30
D74: 7.7 Confirm the categorization information in column O is accurate | F74: O11 : O30
D75: 7.8 Enter monthly disbursement from foreign currency instruments by replacing the default from Input_1_(From_MTDS) - entries in this area must be in domestic currency | F75: S11 : AP30
D76: Alternatively if disbursement information is only available in the original foreign currency, use the area provided in S60 : AP81 to enter that information and use formula to convert to domestic currency. Exchange rates can be found in Input_1_(From_MTDS) worksheet or FX_Macro worksheet
D77: 7.9 For securities (bonds and T-bills), enter the face value amount. The tool calculates cash proceeds based on the yield, coupon and frequency of coupon payments.
B79: Step 6 | D79: 8. Financing Allocation for Each Domestic Instruments | F79: Instruments
D80: Use this worksheet to disaggrepate representative instruments into individual instruments, e.g. T-bills disaggregated by their tenor, 3 months, 6 months, etc.
D81: 8.1 List the representative instruments, refering to Input_1_(from MTDS) if necessary. | F81: B7 : B26
D82: 8.2 Based on the representative instruments in 8.1 define the individual domestic instruments. | F82: C7 : C26
D83: For example, T-Bills can have tenors from 1 up to 12 months and T-Bonds can have different tenors from 2 years and above
D84: 8.3 From the dropdown menu select the appropriate category for each instrument in column D | F84: D7 : D26
D85: 8.4 In line with the strategy (from MTDS) allocate the percentage of financing for each domestic instrument for the first and second year of strategy. | F85: E7 : F26
D86: As a reminder the percentages for representative instruments from MTDS are pulled in area E28: F33. Ensure the links to Input_3 are accurate and obtaining all loccal currency instruments.
D87: 8.5 The average yield for each instrument should be entered for the first and second year of strategy. | F87: I7 : J26
D88: As a reminder the average yield for the representative instruments from MTDS are pulled in area I28: J33. Ensure the links to Input_3 are accurate and obtaining all domestic instruments.
D89: 8.6 Select the interest rate type from the dropdown menu by choosing either T-Bills, Fix or Var | F89: K7 : K26
D90: 8.7 Indicate if the instrument is indexed. Select "No" or leave empty if it is not. In addition to IDX (from MTDS), the ABPT offers a second index (INX) in case needed. | F90: L7 : L26
D91: Information on indices are entered in Coupon_Yield_Indices_LX worksheet (see below).
D92: 8.8 Enter the maturity of each instruments (enter number values only), for T-bills their months, bonds and other instruments in years. | F92: M7 : L26
D93: For non-T-bills with instruments with less than one year maturity, enter the maturity in years. For example, for 6 months maturity, =6/12 or 0.5.
D94: 8.9 Enter the grace period for each instruments (enter number values only) for bonds and other non-T-bills instruments in years. | F94: N7 : N26
D95: 8.10 Enter the frequency of coupon payments for each instrument, except for T-Bills (enter number values only) | F95: O7 : O26
D96: Enter the number of times a coupon is paid during the year (e.g. 4 for quarterly coupon payments, 2 for semi-annual payments, 1 for annual payments)
D97: 8.11 Enter the coupon rates for bonds, and interest rates for other non-T-bill instruments, and leave the cells empty for T-Bills (enter values in percentage) | F97: P7 : Q26
D98: For variable rate instruments, please enter the spread only and enter reference rates in Coupon_Yield_Indices_DX worksheet (cells E85:AB104)
B100: Step 7 | D100: 9, Auction Parameters for Domestic Instruments | F100: Auction Parameters
D101: This worksheet is used for issuance planing, where users enter issuance volumes and frequency, which should be based on market conditions (market capacity, investor base, etc.) and past experience.
D102: 9.1 Enter the minimum volume that should be offered at the auction for each individual domestic instrument (enter values in domestic currency) | F102: C7 : C26
D103: 9.2 Enter the maximum volume to be offered at the auction for each individual domstic instrument (enter values in domestic currency) | F103: D7 : D26
D104: 9.3 Enter the number of times the individual instrument should be issued during the year (enter number values only) | F104: E7 : E26
D105: 9.4 Enter the tolerance of deviation from MTDS volume as a percent of deviation for each instrument | F105: F7 : F26
D106: The MTDS % and volume of each instrument is available in columns G7: H26 and O7: P26, respectively.
B108: Step 8 | D108: 10. Auction Design Based on MTDS | F108: Default MTDS Based
D109: 10.1 For each instrument, one identifies the months of issuance, by selecting "Yes" in area L3: AI22.
D110: The Dropdown menu of all the yellow cells proposes two values (YES, NO), but user can leave blank the cells for the months without issuance
D111: Column AK compares the total number of "Yes" against the targets given in Auction Parameters worksheet, green font means less than target and red above target.
D112: Based on the annual gross financing for each instrument and whether the month has been identified as an issuance month, an auction designed is produced in L26 : AI45.
D113: Cells in red font mean that the auction size is larger than the maximum amount entered in Auction Parameters worksheet and green fonts are less than the minimum.
D114: Note: it is clear from the closing balance that financing based on MTDS will fall short of the amount required as in-year debt service payments are not taken into consideration in MTDS AT. Cells W55 and AI55 show the total shortfall for the first and second year. Explanation for the shortfall of year 1 is shown in area AK55:AO60.
B116: Step 9 | D116: 11. Auction Design | F116: Auction Design
D117: This worksheet allows for the formulation of two different auction calendars (Baseline and Alternative Scenario)
D118: 11.1 The Baseline scenario automatically duplicates the borrowing plan from the Default_MTDS_Based worksheet
D119: Users should replace these to design their own Baseline, entering monthly issuance for each instrument. | F119: J5 : AG24
D120: 11.2 The Alternative scenario contains random numbers to avoid tool from generating errors, they should be overwritten by the user. | F120: J39 : AG68
D122: Optional worksheets if no changes are made the average annual rates provided in MTDS are used.
B123: Step 10 | D123: 12. Domestic Instruments Borrowing Rates and Indices | F123: Coupon_Yield_Indices_DX
D124: 12.1 Enter monthly yield for each domestic instrument, the default uses the average given for the year from Instruments worksheet. | F124: E7 : AB26
D125: 12.2 Enter monthly fixed element part of coupon or interest rate for bonds and other instruments that are not T-bills, the default uses the average given for the year from Instruments worksheet. | F125: E59 : AB78
D126: 12.3 For variable instruments, enter the reference rates separately. | F126: E85 : AB104
D127: 12.4 Annual yields for each instrument at least for 10 years are helpful to generate interest payment cash flows for comparison of cost-risk indicators at end of strategy period from MTDS AT. | F127: AD7 : AM26
D128: 12.5 Similarly enter annual fixed element part of coupon or interest rate for 10 years and the reference rate for variable rates. | F128: AD59 : AM78 AD85 : AM104
D129: 12.6 Annual change in indices and the starting indicies should be provided from which monthly values are derived, alternatively monthly change or indices can be provided. | F129: B119 : C120, B128 : C129
D130: 12.7 Alternatively monthly change or indices can be provided. | F130: F119 : AB120 F128: AB129
B132: Step 11 | D132: 13. Foreign Currency Instruments Borrowing Rates | F132: Coupon_Yield_FX
D133: 13.1 Enter monthly yield for each domestic instrument, the default uses the average given for the year from Instruments worksheet. | F133: E9 : AB28
D134: 13.2 Enter monthly fixed element part of coupon or interest rate for bonds and other instruments that are not T-bills, the default uses the average given for the year from Instruments worksheet. | F134: E61 : AB80
D135: 13.3 For variable instruments, enter the reference rates separately. | F135: E87 : AB106
D136: 13.4 Annual yields for each instrument at least for 10 years are helpful to generate interest payment cash flows for comparison of cost-risk indicators at end of strategy period from MTDS AT. | F136: AD9 : AM28
D137: 13.5 Similarly enter annual fixed element part of coupon or interest rate for 10 years and the reference rate for variable rates. | F137: AD61 : AM80 AD87 : AM106
B139: Step 12 | D139: 14. Macro and Exchange Rate Projections | F139: FX_Macro
D140: The first four foreign currencies from the MTDS and their projected depreciation or appreciation from MTDS is obtained and used for both average and end of period of period.
D141: 14.1 Update the monthly or annual depreciation or appreciation rate for the foreign currency | F141: B12 : C15 F12 : AC15
D142: 14.2 Annual average exchange rates for 10 years are helpful for the main foreign currency to generate cash flows required for cost risk indicators | F142: AE21 : AN24
D143: While the ABPT uses only the main currency to generate the necessary cash flows, the other currencies are helpful for users that may want to convert disbursement of borrowing in original currency into domestic currency.
D144: 14.3 Update the monthly and annual depreciation or appreciation rate for end of period exchange rate | F144: B32 : C35 F32 : AC35
D145: 14.4 Annual end-of-period exchange rates for 10 years are helpful for the main foreign currency to generate projections of outstanding amount | F145: AE41 : AN44
D146: 14.5 Update GDP projections used for calculation of cost indicators | F146: C51 : D51
D147: ="14.6 Update the annual revenue projections, which is used to calculate cost indicators. Note that for the "&Input_2!E9&", it is obtained from GFN worksheet" -> 14.6 Update the annual revenue projections, which is used to calculate cost indicators. Note that for the 2025, it is obtained from GFN worksheet | F147: C57 : D57
D148: 14.7 Update International Reserves Projections in main foreign currency (used to calculate cost-risk indicators) | F148: C63 : D63

Sheet Input_1_(From_MTDS)
B1: DO NOT MAKE ANY CHANGES IN THIS WORKSHEET.
B3: PART 1 | F3: FROM EXISTING DEBT WORKSHEET
F5: Time horizon (years) | G5: 4 | H5: Instrument Nr. | I5: Instrument Type / Name | J5: Fix / Var/ T-bills | K5: For PV calculation, apply discount rate? | L5: Maturity (Years) | M5: Grace (years) | N5: Currency Type | O5: Currency (3-letter code)
F6: Base year of data | G6: 2024 | H6: USD_1 | I6: ADF_Fixed | J6: Fix | K6: Yes | L6: 40 | M6: 10 | N6: FX | O6: USD
F7: Start year of analysis | G7: 2025 | H7: USD_2 | I7: IDA/IFAD/EDF_Fixed | J7: Fix | K7: Yes | L7: 35 | M7: 7 | N7: FX | O7: USD
F8: Calendar/fiscal year | G8: Calendar | H8: USD_3 | I8: IBRD/ADB/IDB_Fixed | J8: Fix | K8: Yes | L8: 25 | M8: 5 | N8: FX | O8: USD
F9: Country | G9: Utopia | H9: USD_4 | I9: IBRD/ADB/IDB_Var | J9: Var | K9: Yes | L9: 25 | M9: 5 | N9: FX | O9: USD
F10: Local currency (name/3-letter code) | G10: UTP | H10: USD_5 | I10: Bilateral_Fixed | J10: Fix | K10: Yes | L10: 20 | M10: 5 | N10: FX | O10: USD
F11: units | G11: millions | H11: USD_6 | I11: Commercial Bank_Var | J11: Var | K11: No | L11: 5 | M11: 1 | N11: FX | O11: USD
F12: Debt Data Input in Local Currency | G12: No | H12: USD_7 | I12: 0 | J12: 0 | K12: 0 | L12: 0 | M12: 0 | N12: FX | O12: USD
F13: Debt Data Input in Local Currency | G13: FALSE | H13: USD_8 | I13: 0 | J13: 0 | K13: 0 | L13: 0 | M13: 0 | N13: FX | O13: USD
H14: USD_9 | I14: 0 | J14: 0 | K14: 0 | L14: 0 | M14: 0 | N14: FX | O14: USD
H15: USD_10 | I15: 0 | J15: 0 | K15: 0 | L15: 0 | M15: 0 | N15: FX | O15: USD
H16: UTP_11 | I16: T-Bills_Fixed | J16: T-bills | K16: No | L16: 1 | M16: 0 | N16: DX | O16: UTP
H17: UTP_12 | I17: T-Bonds 3 YR_Fixed | J17: Fix | K17: No | L17: 3 | M17: 2 | N17: DX | O17: UTP
H18: UTP_13 | I18: T-Bonds 5 YR_Fixed | J18: Fix | K18: No | L18: 5 | M18: 4 | N18: DX | O18: UTP
H19: UTP_14 | I19: T-Bonds 10 YR_Fixed | J19: Fix | K19: No | L19: 10 | M19: 9 | N19: DX | O19: UTP
H20: UTP_15 | I20: 0 | J20: 0 | K20: No | L20: 0 | M20: 0 | N20: DX | O20: UTP
H21: UTP_16 | I21: 0 | J21: 0 | K21: 0 | L21: 0 | M21: 0 | N21: DX | O21: UTP
H22: UTP_17 | I22: 0 | J22: 0 | K22: 0 | L22: 0 | M22: 0 | N22: DX | O22: UTP
H23: UTP_18 | I23: 0 | J23: 0 | K23: 0 | L23: 0 | M23: 0 | N23: DX | O23: UTP
H24: UTP_19 | I24: 0 | J24: 0 | K24: 0 | L24: 0 | M24: 0 | N24: DX | O24: UTP
H25: IDX_20 | I25: Indexed Instrument | J25: Var | K25: No | L25: 5 | M25: 4 | N25: DX | O25: IDX
F30: Risk Indicators | H30: External debt | I30: Domestic debt | J30: Total debt
F31: Amount (in millions of UTP) | H31: 17607.38533 | I31: 9738.849633 | J31: 27346.23496
F32: Amount (in millions of USD) | H32: 1173.825689 | I32: 649.2566422 | J32: 1823.082331
F33: Nominal debt as percent of GDP | H33: 28.32492423 | I33: 15.66684506 | J33: 43.99176929
F34: PV as percent of GDP1 | H34: 21.90468953 | I34: 15.66684506 | J34: 37.5715346
F35: Cost of debt2 | G35: Interest payment as percent of GDP3 | H35: 0.6826206345 | I35: 2.243336177 | J35: 2.925956812
G36: Weighted Av. IR (percent) | H36: 2.409964556 | I36: 14.31900404 | J36: 6.651146018
F37: Refinancing risk2 | G37: ATM (years) | H37: 9.340152706 | I37: 3.696906569 | J37: 7.632547227
G38: Debt maturing in 1yr (percent of total) | H38: 11.26286324 | I38: 39.34042337 | J38: 19.75892992
G39: Debt maturing in 1yr (percent of GDP) | H39: 4.066850971 | I39: 6.163403176 | J39: 10.23025415
F40: Interest rate risk2 | G40: ATR (years) | H40: 8.796309753 | I40: 3.696906569 | J40: 7.25326722
G41: Debt refixing in 1yr (percent of total) | H41: 28.99664954 | I41: 39.34042337 | J41: 32.12660071
G42: Fixed rate debt incl T-bills (percent of total) | H42: 77.99294795 | I42: 100 | J42: 84.65212278
G43: T-bills (percent of total) | H43: 0 | I43: 39.34042337 | J43: 11.90412767
F44: FX risk | G44: FX debt (percent of total debt) | J44: 64.3868721
G45: ST FX debt (percent of reserves) | J45: 6.597131869
G51: Principal Payments in Domestic Currency | I51: Sum principal repayment | J51: 2024 | K51: 2025 | L51: 2026 | M51: 2027 | N51: 2028 | O51: 2029 | P51: 2030 | Q51: 2031 | R51: 2032 | S51: 2033 | T51: 2034 | U51: 2035 | V51: 2036 | W51: 2037 | X51: 2038 | Y51: 2039 | Z51: 2040 | AA51: 2041 | AB51: 2042 | AC51: 2043 | AD51: 2044 | AE51: 2045 | AF51: 2046 | AG51: 2047 | AH51: 2048 | AI51: 2049 | AJ51: 2050 | AK51: 2051 | AL51: 2052 | AM51: 2053 | AN51: 2054 | AO51: 2055 | AP51: 2056 | AQ51: 2057 | AR51: 2058 | AS51: 2059 | AT51: 2060 | AU51: 2061 | AV51: 2062 | AW51: 2063 | AX51: 2064 | AY51: 2065 | AZ51: 2066 | BA51: 2067 | BB51: 2068 | BC51: 2069 | BD51: 2070 | BE51: 2071 | BF51: 2072 | BG51: 2073 | BH51: 2074 | BI51: 2075 | BJ51: 2076 | BK51: 2077 | BL51: 2078 | BM51: 2079 | BN51: 2080 | BO51: 2081 | BP51: 2082 | BQ51: 2083 | BR51: 2084
D52: ADF_Fixed | E52: FX | F52: Fix | G52: USD_1 | H52: USD | I52: 4358.401144 | J52: 0 | K52: 48.37515751 | L52: 53.86933415 | M52: 83.60573303 | N52: 102.1284709 | O52: 100.6514084 | P52: 106.0284999 | Q52: 130.6283363 | R52: 116.1131844 | S52: 118.1552543 | T52: 120.2010991 | U52: 129.0349485 | V52: 129.0357345 | W52: 129.0357345 | X52: 127.3600917 | Y52: 127.4604572 | Z52: 127.4604572 | AA52: 132.9895473 | AB52: 132.9857725 | AC52: 132.9857725 | AD52: 132.9857725 | AE52: 133.1136244 | AF52: 127.5845343 | AG52: 127.5845343 | AH52: 127.5845343 | AI52: 127.5845343 | AJ52: 127.5845343 | AK52: 127.5845343 | AL52: 120.4708996 | AM52: 110.9076894 | AN52: 104.2988763 | AO52: 104.9897462 | AP52: 104.2199611 | AQ52: 82.77426084 | AR52: 87.83157687 | AS52: 76.52425729 | AT52: 76.52425729 | AU52: 76.4786923 | AV52: 76.4786923 | AW52: 76.4786923 | AX52: 37.40694181 | AY52: 18.34178854 | AZ52: 18.34178854 | BA52: 6.621426671 | BB52: 0 | BC52: 0 | BD52: 0 | BE52: 0 | BF52: 0 | BG52: 0 | BH52: 0 | BI52: 0 | BJ52: 0 | BK52: 0 | BL52: 0 | BM52: 0 | BN52: 0 | BO52: 0 | BP52: 0 | BQ52: 0 | BR52: 0
D53: IDA/IFAD/EDF_Fixed | E53: FX | F53: Fix | G53: USD_2 | H53: USD | I53: 9379.21389 | J53: 0 | K53: 396.8332074 | L53: 382.6777792 | M53: 391.224529 | N53: 411.0944352 | O53: 432.3717202 | P53: 456.0450902 | Q53: 481.9492527 | R53: 482.1234206 | S53: 482.2105034 | T53: 482.384671 | U53: 482.8681255 | V53: 481.4131787 | W53: 481.5438036 | X53: 481.7179711 | Y53: 481.8921371 | Z53: 482.0663048 | AA53: 482.240473 | AB53: 482.4146385 | AC53: 482.5017233 | AD53: 74.18741533 | AE53: 65.7838424 | AF53: 65.7838424 | AG53: 65.7838424 | AH53: 65.7838424 | AI53: 85.53981651 | AJ53: 62.04642636 | AK53: 57.21775176 | AL53: 57.21775176 | AM53: 42.29639423 | AN53: 0 | AO53: 0 | AP53: 0 | AQ53: 0 | AR53: 0 | AS53: 0 | AT53: 0 | AU53: 0 | AV53: 0 | AW53: 0 | AX53: 0 | AY53: 0 | AZ53: 0 | BA53: 0 | BB53: 0 | BC53: 0 | BD53: 0 | BE53: 0 | BF53: 0 | BG53: 0 | BH53: 0 | BI53: 0 | BJ53: 0 | BK53: 0 | BL53: 0 | BM53: 0 | BN53: 0 | BO53: 0 | BP53: 0 | BQ53: 0 | BR53: 0
D54: IBRD/ADB/IDB_Fixed | E54: FX | F54: Fix | G54: USD_3 | H54: USD | I54: 642.5383258 | J54: 0 | K54: 461.8257905 | L54: 104.2591032 | M54: 0 | N54: 3.693909524 | O54: 3.884042008 | P54: 4.095589641 | Q54: 4.318659396 | R54: 4.318659396 | S54: 4.318659396 | T54: 4.318659396 | U54: 4.318659396 | V54: 4.318659396 | W54: 4.318659396 | X54: 4.318659396 | Y54: 4.318659396 | Z54: 4.318659396 | AA54: 4.318659396 | AB54: 4.318659396 | AC54: 4.318659396 | AD54: 4.318659396 | AE54: 4.318659396 | AF54: 0 | AG54: 0 | AH54: 0 | AI54: 0 | AJ54: 0 | AK54: 0 | AL54: 0 | AM54: 0 | AN54: 0 | AO54: 0 | AP54: 0 | AQ54: 0 | AR54: 0 | AS54: 0 | AT54: 0 | AU54: 0 | AV54: 0 | AW54: 0 | AX54: 0 | AY54: 0 | AZ54: 0 | BA54: 0 | BB54: 0 | BC54: 0 | BD54: 0 | BE54: 0 | BF54: 0 | BG54: 0 | BH54: 0 | BI54: 0 | BJ54: 0 | BK54: 0 | BL54: 0 | BM54: 0 | BN54: 0 | BO54: 0 | BP54: 0 | BQ54: 0 | BR54: 0
D55: IBRD/ADB/IDB_Var | E55: FX | F55: Var | G55: USD_4 | H55: USD | I55: 1339.123551 | J55: 0 | K55: 362.6989015 | L55: 238.3696407 | M55: 240.1746495 | N55: 174.6477806 | O55: 70.59933935 | P55: 58.62476682 | Q55: 47.9112019 | R55: 47.9112019 | S55: 47.9112019 | T55: 47.9112019 | U55: 2.363664761 | V55: 0 | W55: 0 | X55: 0 | Y55: 0 | Z55: 0 | AA55: 0 | AB55: 0 | AC55: 0 | AD55: 0 | AE55: 0 | AF55: 0 | AG55: 0 | AH55: 0 | AI55: 0 | AJ55: 0 | AK55: 0 | AL55: 0 | AM55: 0 | AN55: 0 | AO55: 0 | AP55: 0 | AQ55: 0 | AR55: 0 | AS55: 0 | AT55: 0 | AU55: 0 | AV55: 0 | AW55: 0 | AX55: 0 | AY55: 0 | AZ55: 0 | BA55: 0 | BB55: 0 | BC55: 0 | BD55: 0 | BE55: 0 | BF55: 0 | BG55: 0 | BH55: 0 | BI55: 0 | BJ55: 0 | BK55: 0 | BL55: 0 | BM55: 0 | BN55: 0 | BO55: 0 | BP55: 0 | BQ55: 0 | BR55: 0
D56: Bilateral_Fixed | E56: FX | F56: Fix | G56: USD_5 | H56: USD | I56: 3126.006718 | J56: 0 | K56: 661.8386184 | L56: 660.9180225 | M56: 692.847274 | N56: 727.7724755 | O56: 382.6175979 | P56: 0.003057621591 | Q56: 0.003224157538 | R56: 0.003224157538 | S56: 0.003224157538 | T56: 0 | U56: 0 | V56: 0 | W56: 0 | X56: 0 | Y56: 0 | Z56: 0 | AA56: 0 | AB56: 0 | AC56: 0 | AD56: 0 | AE56: 0 | AF56: 0 | AG56: 0 | AH56: 0 | AI56: 0 | AJ56: 0 | AK56: 0 | AL56: 0 | AM56: 0 | AN56: 0 | AO56: 0 | AP56: 0 | AQ56: 0 | AR56: 0 | AS56: 0 | AT56: 0 | AU56: 0 | AV56: 0 | AW56: 0 | AX56: 0 | AY56: 0 | AZ56: 0 | BA56: 0 | BB56: 0 | BC56: 0 | BD56: 0 | BE56: 0 | BF56: 0 | BG56: 0 | BH56: 0 | BI56: 0 | BJ56: 0 | BK56: 0 | BL56: 0 | BM56: 0 | BN56: 0 | BO56: 0 | BP56: 0 | BQ56: 0 | BR56: 0
D57: Commercial Bank_Var | E57: FX | F57: Var | G57: USD_6 | H57: USD | I57: 3600.54069 | J57: 0 | K57: 596.4708201 | L57: 848.6537968 | M57: 539.3761246 | N57: 557.4679963 | O57: 326.2140426 | P57: 370.9664547 | Q57: 361.3914544 | R57: 0 | S57: 0 | T57: 0 | U57: 0 | V57: 0 | W57: 0 | X57: 0 | Y57: 0 | Z57: 0 | AA57: 0 | AB57: 0 | AC57: 0 | AD57: 0 | AE57: 0 | AF57: 0 | AG57: 0 | AH57: 0 | AI57: 0 | AJ57: 0 | AK57: 0 | AL57: 0 | AM57: 0 | AN57: 0 | AO57: 0 | AP57: 0 | AQ57: 0 | AR57: 0 | AS57: 0 | AT57: 0 | AU57: 0 | AV57: 0 | AW57: 0 | AX57: 0 | AY57: 0 | AZ57: 0 | BA57: 0 | BB57: 0 | BC57: 0 | BD57: 0 | BE57: 0 | BF57: 0 | BG57: 0 | BH57: 0 | BI57: 0 | BJ57: 0 | BK57: 0 | BL57: 0 | BM57: 0 | BN57: 0 | BO57: 0 | BP57: 0 | BQ57: 0 | BR57: 0
D58: 0 | E58: FX | F58: 0 | G58: USD_7 | H58: USD | I58: 0 | J58: 0 | K58: 0 | L58: 0 | M58: 0 | N58: 0 | O58: 0 | P58: 0 | Q58: 0 | R58: 0 | S58: 0 | T58: 0 | U58: 0 | V58: 0 | W58: 0 | X58: 0 | Y58: 0 | Z58: 0 | AA58: 0 | AB58: 0 | AC58: 0 | AD58: 0 | AE58: 0 | AF58: 0 | AG58: 0 | AH58: 0 | AI58: 0 | AJ58: 0 | AK58: 0 | AL58: 0 | AM58: 0 | AN58: 0 | AO58: 0 | AP58: 0 | AQ58: 0 | AR58: 0 | AS58: 0 | AT58: 0 | AU58: 0 | AV58: 0 | AW58: 0 | AX58: 0 | AY58: 0 | AZ58: 0 | BA58: 0 | BB58: 0 | BC58: 0 | BD58: 0 | BE58: 0 | BF58: 0 | BG58: 0 | BH58: 0 | BI58: 0 | BJ58: 0 | BK58: 0 | BL58: 0 | BM58: 0 | BN58: 0 | BO58: 0 | BP58: 0 | BQ58: 0 | BR58: 0
D59: 0 | E59: FX | F59: 0 | G59: USD_8 | H59: USD | I59: 0 | J59: 0 | K59: 0 | L59: 0 | M59: 0 | N59: 0 | O59: 0 | P59: 0 | Q59: 0 | R59: 0 | S59: 0 | T59: 0 | U59: 0 | V59: 0 | W59: 0 | X59: 0 | Y59: 0 | Z59: 0 | AA59: 0 | AB59: 0 | AC59: 0 | AD59: 0 | AE59: 0 | AF59: 0 | AG59: 0 | AH59: 0 | AI59: 0 | AJ59: 0 | AK59: 0 | AL59: 0 | AM59: 0 | AN59: 0 | AO59: 0 | AP59: 0 | AQ59: 0 | AR59: 0 | AS59: 0 | AT59: 0 | AU59: 0 | AV59: 0 | AW59: 0 | AX59: 0 | AY59: 0 | AZ59: 0 | BA59: 0 | BB59: 0 | BC59: 0 | BD59: 0 | BE59: 0 | BF59: 0 | BG59: 0 | BH59: 0 | BI59: 0 | BJ59: 0 | BK59: 0 | BL59: 0 | BM59: 0 | BN59: 0 | BO59: 0 | BP59: 0 | BQ59: 0 | BR59: 0
D60: 0 | E60: FX | F60: 0 | G60: USD_9 | H60: USD | I60: 0 | J60: 0 | K60: 0 | L60: 0 | M60: 0 | N60: 0 | O60: 0 | P60: 0 | Q60: 0 | R60: 0 | S60: 0 | T60: 0 | U60: 0 | V60: 0 | W60: 0 | X60: 0 | Y60: 0 | Z60: 0 | AA60: 0 | AB60: 0 | AC60: 0 | AD60: 0 | AE60: 0 | AF60: 0 | AG60: 0 | AH60: 0 | AI60: 0 | AJ60: 0 | AK60: 0 | AL60: 0 | AM60: 0 | AN60: 0 | AO60: 0 | AP60: 0 | AQ60: 0 | AR60: 0 | AS60: 0 | AT60: 0 | AU60: 0 | AV60: 0 | AW60: 0 | AX60: 0 | AY60: 0 | AZ60: 0 | BA60: 0 | BB60: 0 | BC60: 0 | BD60: 0 | BE60: 0 | BF60: 0 | BG60: 0 | BH60: 0 | BI60: 0 | BJ60: 0 | BK60: 0 | BL60: 0 | BM60: 0 | BN60: 0 | BO60: 0 | BP60: 0 | BQ60: 0 | BR60: 0
D61: 0 | E61: FX | F61: 0 | G61: USD_10 | H61: USD | I61: 0 | J61: 0 | K61: 0 | L61: 0 | M61: 0 | N61: 0 | O61: 0 | P61: 0 | Q61: 0 | R61: 0 | S61: 0 | T61: 0 | U61: 0 | V61: 0 | W61: 0 | X61: 0 | Y61: 0 | Z61: 0 | AA61: 0 | AB61: 0 | AC61: 0 | AD61: 0 | AE61: 0 | AF61: 0 | AG61: 0 | AH61: 0 | AI61: 0 | AJ61: 0 | AK61: 0 | AL61: 0 | AM61: 0 | AN61: 0 | AO61: 0 | AP61: 0 | AQ61: 0 | AR61: 0 | AS61: 0 | AT61: 0 | AU61: 0 | AV61: 0 | AW61: 0 | AX61: 0 | AY61: 0 | AZ61: 0 | BA61: 0 | BB61: 0 | BC61: 0 | BD61: 0 | BE61: 0 | BF61: 0 | BG61: 0 | BH61: 0 | BI61: 0 | BJ61: 0 | BK61: 0 | BL61: 0 | BM61: 0 | BN61: 0 | BO61: 0 | BP61: 0 | BQ61: 0 | BR61: 0
D62: T-Bills_Fixed | E62: DX | F62: T-bills | G62: UTP_11 | H62: UTP | I62: 3831.304677 | J62: 0 | K62: 3831.304677 | L62: 0 | M62: 0 | N62: 0 | O62: 0 | P62: 0 | Q62: 0 | R62: 0 | S62: 0 | T62: 0 | U62: 0 | V62: 0 | W62: 0 | X62: 0 | Y62: 0 | Z62: 0 | AA62: 0 | AB62: 0 | AC62: 0 | AD62: 0 | AE62: 0 | AF62: 0 | AG62: 0 | AH62: 0 | AI62: 0 | AJ62: 0 | AK62: 0 | AL62: 0 | AM62: 0 | AN62: 0 | AO62: 0 | AP62: 0 | AQ62: 0 | AR62: 0 | AS62: 0 | AT62: 0 | AU62: 0 | AV62: 0 | AW62: 0 | AX62: 0 | AY62: 0 | AZ62: 0 | BA62: 0 | BB62: 0 | BC62: 0 | BD62: 0 | BE62: 0 | BF62: 0 | BG62: 0 | BH62: 0 | BI62: 0 | BJ62: 0 | BK62: 0 | BL62: 0 | BM62: 0 | BN62: 0 | BO62: 0 | BP62: 0 | BQ62: 0 | BR62: 0
D63: T-Bonds 3 YR_Fixed | E63: DX | F63: Fix | G63: UTP_12 | H63: UTP | I63: 225.68828 | J63: 0 | K63: 0 | L63: 100.37065 | M63: 125.31763 | N63: 0 | O63: 0 | P63: 0 | Q63: 0 | R63: 0 | S63: 0 | T63: 0 | U63: 0 | V63: 0 | W63: 0 | X63: 0 | Y63: 0 | Z63: 0 | AA63: 0 | AB63: 0 | AC63: 0 | AD63: 0 | AE63: 0 | AF63: 0 | AG63: 0 | AH63: 0 | AI63: 0 | AJ63: 0 | AK63: 0 | AL63: 0 | AM63: 0 | AN63: 0 | AO63: 0 | AP63: 0 | AQ63: 0 | AR63: 0 | AS63: 0 | AT63: 0 | AU63: 0 | AV63: 0 | AW63: 0 | AX63: 0 | AY63: 0 | AZ63: 0 | BA63: 0 | BB63: 0 | BC63: 0 | BD63: 0 | BE63: 0 | BF63: 0 | BG63: 0 | BH63: 0 | BI63: 0 | BJ63: 0 | BK63: 0 | BL63: 0 | BM63: 0 | BN63: 0 | BO63: 0 | BP63: 0 | BQ63: 0 | BR63: 0
D64: T-Bonds 5 YR_Fixed | E64: DX | F64: Fix | G64: UTP_13 | H64: UTP | I64: 5090.156676 | J64: 0 | K64: 0 | L64: 0 | M64: 0 | N64: 0 | O64: 2541.526802 | P64: 0 | Q64: 2548.629874 | R64: 0 | S64: 0 | T64: 0 | U64: 0 | V64: 0 | W64: 0 | X64: 0 | Y64: 0 | Z64: 0 | AA64: 0 | AB64: 0 | AC64: 0 | AD64: 0 | AE64: 0 | AF64: 0 | AG64: 0 | AH64: 0 | AI64: 0 | AJ64: 0 | AK64: 0 | AL64: 0 | AM64: 0 | AN64: 0 | AO64: 0 | AP64: 0 | AQ64: 0 | AR64: 0 | AS64: 0 | AT64: 0 | AU64: 0 | AV64: 0 | AW64: 0 | AX64: 0 | AY64: 0 | AZ64: 0 | BA64: 0 | BB64: 0 | BC64: 0 | BD64: 0 | BE64: 0 | BF64: 0 | BG64: 0 | BH64: 0 | BI64: 0 | BJ64: 0 | BK64: 0 | BL64: 0 | BM64: 0 | BN64: 0 | BO64: 0 | BP64: 0 | BQ64: 0 | BR64: 0
D65: T-Bonds 10 YR_Fixed | E65: DX | F65: Fix | G65: UTP_14 | H65: UTP | I65: 591.7 | J65: 0 | K65: 0 | L65: 0 | M65: 0 | N65: 0 | O65: 0 | P65: 0 | Q65: 0 | R65: 0 | S65: 0 | T65: 591.7 | U65: 0 | V65: 0 | W65: 0 | X65: 0 | Y65: 0 | Z65: 0 | AA65: 0 | AB65: 0 | AC65: 0 | AD65: 0 | AE65: 0 | AF65: 0 | AG65: 0 | AH65: 0 | AI65: 0 | AJ65: 0 | AK65: 0 | AL65: 0 | AM65: 0 | AN65: 0 | AO65: 0 | AP65: 0 | AQ65: 0 | AR65: 0 | AS65: 0 | AT65: 0 | AU65: 0 | AV65: 0 | AW65: 0 | AX65: 0 | AY65: 0 | AZ65: 0 | BA65: 0 | BB65: 0 | BC65: 0 | BD65: 0 | BE65: 0 | BF65: 0 | BG65: 0 | BH65: 0 | BI65: 0 | BJ65: 0 | BK65: 0 | BL65: 0 | BM65: 0 | BN65: 0 | BO65: 0 | BP65: 0 | BQ65: 0 | BR65: 0
D66: 0 | E66: DX | F66: 0 | G66: UTP_15 | H66: UTP | I66: 0 | J66: 0 | K66: 0 | L66: 0 | M66: 0 | N66: 0 | O66: 0 | P66: 0 | Q66: 0 | R66: 0 | S66: 0 | T66: 0 | U66: 0 | V66: 0 | W66: 0 | X66: 0 | Y66: 0 | Z66: 0 | AA66: 0 | AB66: 0 | AC66: 0 | AD66: 0 | AE66: 0 | AF66: 0 | AG66: 0 | AH66: 0 | AI66: 0 | AJ66: 0 | AK66: 0 | AL66: 0 | AM66: 0 | AN66: 0 | AO66: 0 | AP66: 0 | AQ66: 0 | AR66: 0 | AS66: 0 | AT66: 0 | AU66: 0 | AV66: 0 | AW66: 0 | AX66: 0 | AY66: 0 | AZ66: 0 | BA66: 0 | BB66: 0 | BC66: 0 | BD66: 0 | BE66: 0 | BF66: 0 | BG66: 0 | BH66: 0 | BI66: 0 | BJ66: 0 | BK66: 0 | BL66: 0 | BM66: 0 | BN66: 0 | BO66: 0 | BP66: 0 | BQ66: 0 | BR66: 0
D67: 0 | E67: DX | F67: 0 | G67: UTP_16 | H67: UTP | I67: 0 | J67: 0 | K67: 0 | L67: 0 | M67: 0 | N67: 0 | O67: 0 | P67: 0 | Q67: 0 | R67: 0 | S67: 0 | T67: 0 | U67: 0 | V67: 0 | W67: 0 | X67: 0 | Y67: 0 | Z67: 0 | AA67: 0 | AB67: 0 | AC67: 0 | AD67: 0 | AE67: 0 | AF67: 0 | AG67: 0 | AH67: 0 | AI67: 0 | AJ67: 0 | AK67: 0 | AL67: 0 | AM67: 0 | AN67: 0 | AO67: 0 | AP67: 0 | AQ67: 0 | AR67: 0 | AS67: 0 | AT67: 0 | AU67: 0 | AV67: 0 | AW67: 0 | AX67: 0 | AY67: 0 | AZ67: 0 | BA67: 0 | BB67: 0 | BC67: 0 | BD67: 0 | BE67: 0 | BF67: 0 | BG67: 0 | BH67: 0 | BI67: 0 | BJ67: 0 | BK67: 0 | BL67: 0 | BM67: 0 | BN67: 0 | BO67: 0 | BP67: 0 | BQ67: 0 | BR67: 0
D68: 0 | E68: DX | F68: 0 | G68: UTP_17 | H68: UTP | I68: 0 | J68: 0 | K68: 0 | L68: 0 | M68: 0 | N68: 0 | O68: 0 | P68: 0 | Q68: 0 | R68: 0 | S68: 0 | T68: 0 | U68: 0 | V68: 0 | W68: 0 | X68: 0 | Y68: 0 | Z68: 0 | AA68: 0 | AB68: 0 | AC68: 0 | AD68: 0 | AE68: 0 | AF68: 0 | AG68: 0 | AH68: 0 | AI68: 0 | AJ68: 0 | AK68: 0 | AL68: 0 | AM68: 0 | AN68: 0 | AO68: 0 | AP68: 0 | AQ68: 0 | AR68: 0 | AS68: 0 | AT68: 0 | AU68: 0 | AV68: 0 | AW68: 0 | AX68: 0 | AY68: 0 | AZ68: 0 | BA68: 0 | BB68: 0 | BC68: 0 | BD68: 0 | BE68: 0 | BF68: 0 | BG68: 0 | BH68: 0 | BI68: 0 | BJ68: 0 | BK68: 0 | BL68: 0 | BM68: 0 | BN68: 0 | BO68: 0 | BP68: 0 | BQ68: 0 | BR68: 0
D69: 0 | E69: DX | F69: 0 | G69: UTP_18 | H69: UTP | I69: 0 | J69: 0 | K69: 0 | L69: 0 | M69: 0 | N69: 0 | O69: 0 | P69: 0 | Q69: 0 | R69: 0 | S69: 0 | T69: 0 | U69: 0 | V69: 0 | W69: 0 | X69: 0 | Y69: 0 | Z69: 0 | AA69: 0 | AB69: 0 | AC69: 0 | AD69: 0 | AE69: 0 | AF69: 0 | AG69: 0 | AH69: 0 | AI69: 0 | AJ69: 0 | AK69: 0 | AL69: 0 | AM69: 0 | AN69: 0 | AO69: 0 | AP69: 0 | AQ69: 0 | AR69: 0 | AS69: 0 | AT69: 0 | AU69: 0 | AV69: 0 | AW69: 0 | AX69: 0 | AY69: 0 | AZ69: 0 | BA69: 0 | BB69: 0 | BC69: 0 | BD69: 0 | BE69: 0 | BF69: 0 | BG69: 0 | BH69: 0 | BI69: 0 | BJ69: 0 | BK69: 0 | BL69: 0 | BM69: 0 | BN69: 0 | BO69: 0 | BP69: 0 | BQ69: 0 | BR69: 0
D70: 0 | E70: DX | F70: 0 | G70: UTP_19 | H70: UTP | I70: 0 | J70: 0 | K70: 0 | L70: 0 | M70: 0 | N70: 0 | O70: 0 | P70: 0 | Q70: 0 | R70: 0 | S70: 0 | T70: 0 | U70: 0 | V70: 0 | W70: 0 | X70: 0 | Y70: 0 | Z70: 0 | AA70: 0 | AB70: 0 | AC70: 0 | AD70: 0 | AE70: 0 | AF70: 0 | AG70: 0 | AH70: 0 | AI70: 0 | AJ70: 0 | AK70: 0 | AL70: 0 | AM70: 0 | AN70: 0 | AO70: 0 | AP70: 0 | AQ70: 0 | AR70: 0 | AS70: 0 | AT70: 0 | AU70: 0 | AV70: 0 | AW70: 0 | AX70: 0 | AY70: 0 | AZ70: 0 | BA70: 0 | BB70: 0 | BC70: 0 | BD70: 0 | BE70: 0 | BF70: 0 | BG70: 0 | BH70: 0 | BI70: 0 | BJ70: 0 | BK70: 0 | BL70: 0 | BM70: 0 | BN70: 0 | BO70: 0 | BP70: 0 | BQ70: 0 | BR70: 0
D71: Indexed Instrument | E71: DX | F71: Var | G71: IDX_20 | H71: IDX | I71: 0 | J71: 0 | K71: 0 | L71: 0 | M71: 0 | N71: 0 | O71: 0 | P71: 0 | Q71: 0 | R71: 0 | S71: 0 | T71: 0 | U71: 0 | V71: 0 | W71: 0 | X71: 0 | Y71: 0 | Z71: 0 | AA71: 0 | AB71: 0 | AC71: 0 | AD71: 0 | AE71: 0 | AF71: 0 | AG71: 0 | AH71: 0 | AI71: 0 | AJ71: 0 | AK71: 0 | AL71: 0 | AM71: 0 | AN71: 0 | AO71: 0 | AP71: 0 | AQ71: 0 | AR71: 0 | AS71: 0 | AT71: 0 | AU71: 0 | AV71: 0 | AW71: 0 | AX71: 0 | AY71: 0 | AZ71: 0 | BA71: 0 | BB71: 0 | BC71: 0 | BD71: 0 | BE71: 0 | BF71: 0 | BG71: 0 | BH71: 0 | BI71: 0 | BJ71: 0 | BK71: 0 | BL71: 0 | BM71: 0 | BN71: 0 | BO71: 0 | BP71: 0 | BQ71: 0 | BR71: 0
D72: Total | I72: 32184.67395 | J72: 0 | K72: 6359.347172 | L72: 2389.118327 | M72: 2072.54594 | N72: 1976.805068 | O72: 3857.864952 | P72: 995.7634589 | Q72: 3574.832003 | R72: 650.4696905 | S72: 652.5988432 | T72: 1246.515631 | U72: 618.5853982 | V72: 614.7675726 | W72: 614.8981975 | X72: 613.3967222 | Y72: 613.6712538 | Z72: 613.8454214 | AA72: 619.5486797 | AB72: 619.7190704 | AC72: 619.8061552 | AD72: 211.4918472 | AE72: 203.2161262 | AF72: 193.3683767 | AG72: 193.3683767 | AH72: 193.3683767 | AI72: 213.1243509 | AJ72: 189.6309607 | AK72: 184.8022861 | AL72: 177.6886514 | AM72: 153.2040837 | AN72: 104.2988763 | AO72: 104.9897462 | AP72: 104.2199611 | AQ72: 82.77426084 | AR72: 87.83157687 | AS72: 76.52425729 | AT72: 76.52425729 | AU72: 76.4786923 | AV72: 76.4786923 | AW72: 76.4786923 | AX72: 37.40694181 | AY72: 18.34178854 | AZ72: 18.34178854 | BA72: 6.621426671 | BB72: 0 | BC72: 0 | BD72: 0 | BE72: 0 | BF72: 0 | BG72: 0 | BH72: 0 | BI72: 0 | BJ72: 0 | BK72: 0 | BL72: 0 | BM72: 0 | BN72: 0 | BO72: 0 | BP72: 0 | BQ72: 0 | BR72: 0
G74: Outstanding Stock in Domestic Currency | I74: implied IR on DX debt only | J74: 2024 | K74: 2025 | L74: 2026 | M74: 2027 | N74: 2028 | O74: 2029 | P74: 2030 | Q74: 2031 | R74: 2032 | S74: 2033 | T74: 2034 | U74: 2035 | V74: 2036 | W74: 2037 | X74: 2038 | Y74: 2039 | Z74: 2040 | AA74: 2041 | AB74: 2042 | AC74: 2043 | AD74: 2044 | AE74: 2045 | AF74: 2046 | AG74: 2047 | AH74: 2048 | AI74: 2049 | AJ74: 2050 | AK74: 2051 | AL74: 2052 | AM74: 2053 | AN74: 2054 | AO74: 2055 | AP74: 2056 | AQ74: 2057 | AR74: 2058 | AS74: 2059 | AT74: 2060 | AU74: 2061 | AV74: 2062 | AW74: 2063 | AX74: 2064 | AY74: 2065 | AZ74: 2066 | BA74: 2067 | BB74: 2068 | BC74: 2069 | BD74: 2070 | BE74: 2071 | BF74: 2072 | BG74: 2073 | BH74: 2074 | BI74: 2075 | BJ74: 2076 | BK74: 2077 | BL74: 2078 | BM74: 2079 | BN74: 2080 | BO74: 2081 | BP74: 2082 | BQ74: 2083 | BR74: 2084
D75: ADF_Fixed | E75: Fix | F75: FX | G75: USD_1 | H75: USD | J75: 3133.92418 | K75: 3243.062591 | L75: 3347.492771 | M75: 3425.605943 | N75: 3496.156188 | O75: 3575.458527 | P75: 3664.1704 | Q75: 3733.114204 | R75: 3617.00102 | S75: 3498.845766 | T75: 3378.644666 | U75: 3249.609718 | V75: 3120.573983 | W75: 2991.538249 | X75: 2864.178157 | Y75: 2736.7177 | Z75: 2609.257243 | AA75: 2476.267695 | AB75: 2343.281923 | AC75: 2210.29615 | AD75: 2077.310378 | AE75: 1944.196753 | AF75: 1816.612219 | AG75: 1689.027685 | AH75: 1561.44315 | AI75: 1433.858616 | AJ75: 1306.274082 | AK75: 1178.689547 | AL75: 1058.218648 | AM75: 947.3109583 | AN75: 843.0120821 | AO75: 738.0223359 | AP75: 633.8023748 | AQ75: 551.0281139 | AR75: 463.196537 | AS75: 386.6722798 | AT75: 310.1480225 | AU75: 233.6693302 | AV75: 157.1906379 | AW75: 80.71194557 | AX75: 43.30500375 | AY75: 24.96321521 | AZ75: 6.621426671 | BA75: -1.524414831e-12 | BB75: -1.524414831e-12 | BC75: -1.524414831e-12 | BD75: -1.524414831e-12 | BE75: -1.524414831e-12 | BF75: -1.524414831e-12 | BG75: -1.524414831e-12 | BH75: -1.524414831e-12 | BI75: -1.524414831e-12 | BJ75: -1.524414831e-12 | BK75: -1.524414831e-12 | BL75: -1.524414831e-12 | BM75: -1.524414831e-12 | BN75: -1.524414831e-12 | BO75: -1.524414831e-12 | BP75: -1.524414831e-12 | BQ75: -1.524414831e-12 | BR75: -1.524414831e-12
D76: IDA/IFAD/EDF_Fixed | E76: Fix | F76: FX | G76: USD_2 | H76: USD | J76: 6953.092932 | K76: 6905.727809 | L76: 6860.130592 | M76: 6800.322104 | N76: 6732.019838 | O76: 6646.157864 | P76: 6552.101384 | Q76: 6427.017876 | R76: 5944.894456 | S76: 5462.683952 | T76: 4980.299281 | U76: 4497.431156 | V76: 4016.017977 | W76: 3534.474173 | X76: 3052.756202 | Y76: 2570.864065 | Z76: 2088.79776 | AA76: 1606.557287 | AB76: 1124.142649 | AC76: 641.6409256 | AD76: 567.4535102 | AE76: 501.6696678 | AF76: 435.8858254 | AG76: 370.101983 | AH76: 304.3181406 | AI76: 218.7783241 | AJ76: 156.7318978 | AK76: 99.51414599 | AL76: 42.29639423 | AM76: 9.729804964e-13 | AN76: 9.729804964e-13 | AO76: 9.729804964e-13 | AP76: 9.729804964e-13 | AQ76: 9.729804964e-13 | AR76: 9.729804964e-13 | AS76: 9.729804964e-13 | AT76: 9.729804964e-13 | AU76: 9.729804964e-13 | AV76: 9.729804964e-13 | AW76: 9.729804964e-13 | AX76: 9.729804964e-13 | AY76: 9.729804964e-13 | AZ76: 9.729804964e-13 | BA76: 9.729804964e-13 | BB76: 9.729804964e-13 | BC76: 9.729804964e-13 | BD76: 9.729804964e-13 | BE76: 9.729804964e-13 | BF76: 9.729804964e-13 | BG76: 9.729804964e-13 | BH76: 9.729804964e-13 | BI76: 9.729804964e-13 | BJ76: 9.729804964e-13 | BK76: 9.729804964e-13 | BL76: 9.729804964e-13 | BM76: 9.729804964e-13 | BN76: 9.729804964e-13 | BO76: 9.729804964e-13 | BP76: 9.729804964e-13 | BQ76: 9.729804964e-13 | BR76: 9.729804964e-13
D77: IBRD/ADB/IDB_Fixed | E77: Fix | F77: FX | G77: USD_3 | H77: USD | J77: 589.1916688 | K77: 156.979129 | L77: 60.38244958 | M77: 63.29955329 | N77: 62.79646191 | O77: 62.14467213 | P77: 61.43384462 | Q77: 60.46123154 | R77: 56.14257215 | S77: 51.82391275 | T77: 47.50525336 | U77: 43.18659396 | V77: 38.86793456 | W77: 34.54927517 | X77: 30.23061577 | Y77: 25.91195638 | Z77: 21.59329698 | AA77: 17.27463758 | AB77: 12.95597819 | AC77: 8.637318792 | AD77: 4.318659396 | AE77: -7.397721857e-13 | AF77: -7.397721857e-13 | AG77: -7.397721857e-13 | AH77: -7.397721857e-13 | AI77: -7.397721857e-13 | AJ77: -7.397721857e-13 | AK77: -7.397721857e-13 | AL77: -7.397721857e-13 | AM77: -7.397721857e-13 | AN77: -7.397721857e-13 | AO77: -7.397721857e-13 | AP77: -7.397721857e-13 | AQ77: -7.397721857e-13 | AR77: -7.397721857e-13 | AS77: -7.397721857e-13 | AT77: -7.397721857e-13 | AU77: -7.397721857e-13 | AV77: -7.397721857e-13 | AW77: -7.397721857e-13 | AX77: -7.397721857e-13 | AY77: -7.397721857e-13 | AZ77: -7.397721857e-13 | BA77: -7.397721857e-13 | BB77: -7.397721857e-13 | BC77: -7.397721857e-13 | BD77: -7.397721857e-13 | BE77: -7.397721857e-13 | BF77: -7.397721857e-13 | BG77: -7.397721857e-13 | BH77: -7.397721857e-13 | BI77: -7.397721857e-13 | BJ77: -7.397721857e-13 | BK77: -7.397721857e-13 | BL77: -7.397721857e-13 | BM77: -7.397721857e-13 | BN77: -7.397721857e-13 | BO77: -7.397721857e-13 | BP77: -7.397721857e-13 | BQ77: -7.397721857e-13 | BR77: -7.397721857e-13
D78: IBRD/ADB/IDB_Var | E78: Var | F78: FX | G78: USD_4 | H78: USD | J78: 1149.474073 | K78: 844.5486695 | L78: 647.4029155 | M78: 438.5045965 | N78: 285.9610543 | O78: 230.0806693 | P78: 183.9874408 | Q78: 146.0972705 | R78: 98.18606856 | S78: 50.27486666 | T78: 2.363664761 | U78: -9.74161298e-15 | V78: -9.74161298e-15 | W78: -9.74161298e-15 | X78: -9.74161298e-15 | Y78: -9.74161298e-15 | Z78: -9.74161298e-15 | AA78: -9.74161298e-15 | AB78: -9.74161298e-15 | AC78: -9.74161298e-15 | AD78: -9.74161298e-15 | AE78: -9.74161298e-15 | AF78: -9.74161298e-15 | AG78: -9.74161298e-15 | AH78: -9.74161298e-15 | AI78: -9.74161298e-15 | AJ78: -9.74161298e-15 | AK78: -9.74161298e-15 | AL78: -9.74161298e-15 | AM78: -9.74161298e-15 | AN78: -9.74161298e-15 | AO78: -9.74161298e-15 | AP78: -9.74161298e-15 | AQ78: -9.74161298e-15 | AR78: -9.74161298e-15 | AS78: -9.74161298e-15 | AT78: -9.74161298e-15 | AU78: -9.74161298e-15 | AV78: -9.74161298e-15 | AW78: -9.74161298e-15 | AX78: -9.74161298e-15 | AY78: -9.74161298e-15 | AZ78: -9.74161298e-15 | BA78: -9.74161298e-15 | BB78: -9.74161298e-15 | BC78: -9.74161298e-15 | BD78: -9.74161298e-15 | BE78: -9.74161298e-15 | BF78: -9.74161298e-15 | BG78: -9.74161298e-15 | BH78: -9.74161298e-15 | BI78: -9.74161298e-15 | BJ78: -9.74161298e-15 | BK78: -9.74161298e-15 | BL78: -9.74161298e-15 | BM78: -9.74161298e-15 | BN78: -9.74161298e-15 | BO78: -9.74161298e-15 | BP78: -9.74161298e-15 | BQ78: -9.74161298e-15 | BR78: -9.74161298e-15
D79: Bilateral_Fixed | E79: Fix | F79: FX | G79: USD_5 | H79: USD | J79: 2730.184155 | K79: 2205.566804 | L79: 1652.306326 | M79: 1039.282725 | N79: 363.8986476 | O79: 0.0115987506 | P79: 0.009172864775 | Q79: 0.006448315077 | R79: 0.003224157539 | S79: 1.676434962e-12 | T79: 1.676434962e-12 | U79: 1.676434962e-12 | V79: 1.676434962e-12 | W79: 1.676434962e-12 | X79: 1.676434962e-12 | Y79: 1.676434962e-12 | Z79: 1.676434962e-12 | AA79: 1.676434962e-12 | AB79: 1.676434962e-12 | AC79: 1.676434962e-12 | AD79: 1.676434962e-12 | AE79: 1.676434962e-12 | AF79: 1.676434962e-12 | AG79: 1.676434962e-12 | AH79: 1.676434962e-12 | AI79: 1.676434962e-12 | AJ79: 1.676434962e-12 | AK79: 1.676434962e-12 | AL79: 1.676434962e-12 | AM79: 1.676434962e-12 | AN79: 1.676434962e-12 | AO79: 1.676434962e-12 | AP79: 1.676434962e-12 | AQ79: 1.676434962e-12 | AR79: 1.676434962e-12 | AS79: 1.676434962e-12 | AT79: 1.676434962e-12 | AU79: 1.676434962e-12 | AV79: 1.676434962e-12 | AW79: 1.676434962e-12 | AX79: 1.676434962e-12 | AY79: 1.676434962e-12 | AZ79: 1.676434962e-12 | BA79: 1.676434962e-12 | BB79: 1.676434962e-12 | BC79: 1.676434962e-12 | BD79: 1.676434962e-12 | BE79: 1.676434962e-12 | BF79: 1.676434962e-12 | BG79: 1.676434962e-12 | BH79: 1.676434962e-12 | BI79: 1.676434962e-12 | BJ79: 1.676434962e-12 | BK79: 1.676434962e-12 | BL79: 1.676434962e-12 | BM79: 1.676434962e-12 | BN79: 1.676434962e-12 | BO79: 1.676434962e-12 | BP79: 1.676434962e-12 | BQ79: 1.676434962e-12 | BR79: 1.676434962e-12
D80: Commercial Bank_Var | E80: Var | F80: FX | G80: USD_6 | H80: USD | J80: 3051.518323 | K80: 2608.419286 | L80: 1887.086963 | M80: 1438.876871 | N80: 953.9401044 | O80: 676.8271566 | P80: 342.7246655 | Q80: 0 | R80: 0 | S80: 0 | T80: 0 | U80: 0 | V80: 0 | W80: 0 | X80: 0 | Y80: 0 | Z80: 0 | AA80: 0 | AB80: 0 | AC80: 0 | AD80: 0 | AE80: 0 | AF80: 0 | AG80: 0 | AH80: 0 | AI80: 0 | AJ80: 0 | AK80: 0 | AL80: 0 | AM80: 0 | AN80: 0 | AO80: 0 | AP80: 0 | AQ80: 0 | AR80: 0 | AS80: 0 | AT80: 0 | AU80: 0 | AV80: 0 | AW80: 0 | AX80: 0 | AY80: 0 | AZ80: 0 | BA80: 0 | BB80: 0 | BC80: 0 | BD80: 0 | BE80: 0 | BF80: 0 | BG80: 0 | BH80: 0 | BI80: 0 | BJ80: 0 | BK80: 0 | BL80: 0 | BM80: 0 | BN80: 0 | BO80: 0 | BP80: 0 | BQ80: 0 | BR80: 0
D81: 0 | E81: 0 | F81: FX | G81: USD_7 | H81: USD | J81: 0 | K81: 0 | L81: 0 | M81: 0 | N81: 0 | O81: 0 | P81: 0 | Q81: 0 | R81: 0 | S81: 0 | T81: 0 | U81: 0 | V81: 0 | W81: 0 | X81: 0 | Y81: 0 | Z81: 0 | AA81: 0 | AB81: 0 | AC81: 0 | AD81: 0 | AE81: 0 | AF81: 0 | AG81: 0 | AH81: 0 | AI81: 0 | AJ81: 0 | AK81: 0 | AL81: 0 | AM81: 0 | AN81: 0 | AO81: 0 | AP81: 0 | AQ81: 0 | AR81: 0 | AS81: 0 | AT81: 0 | AU81: 0 | AV81: 0 | AW81: 0 | AX81: 0 | AY81: 0 | AZ81: 0 | BA81: 0 | BB81: 0 | BC81: 0 | BD81: 0 | BE81: 0 | BF81: 0 | BG81: 0 | BH81: 0 | BI81: 0 | BJ81: 0 | BK81: 0 | BL81: 0 | BM81: 0 | BN81: 0 | BO81: 0 | BP81: 0 | BQ81: 0 | BR81: 0
D82: 0 | E82: 0 | F82: FX | G82: USD_8 | H82: USD | J82: 0 | K82: 0 | L82: 0 | M82: 0 | N82: 0 | O82: 0 | P82: 0 | Q82: 0 | R82: 0 | S82: 0 | T82: 0 | U82: 0 | V82: 0 | W82: 0 | X82: 0 | Y82: 0 | Z82: 0 | AA82: 0 | AB82: 0 | AC82: 0 | AD82: 0 | AE82: 0 | AF82: 0 | AG82: 0 | AH82: 0 | AI82: 0 | AJ82: 0 | AK82: 0 | AL82: 0 | AM82: 0 | AN82: 0 | AO82: 0 | AP82: 0 | AQ82: 0 | AR82: 0 | AS82: 0 | AT82: 0 | AU82: 0 | AV82: 0 | AW82: 0 | AX82: 0 | AY82: 0 | AZ82: 0 | BA82: 0 | BB82: 0 | BC82: 0 | BD82: 0 | BE82: 0 | BF82: 0 | BG82: 0 | BH82: 0 | BI82: 0 | BJ82: 0 | BK82: 0 | BL82: 0 | BM82: 0 | BN82: 0 | BO82: 0 | BP82: 0 | BQ82: 0 | BR82: 0
D83: 0 | E83: 0 | F83: FX | G83: USD_9 | H83: USD | J83: 0 | K83: 0 | L83: 0 | M83: 0 | N83: 0 | O83: 0 | P83: 0 | Q83: 0 | R83: 0 | S83: 0 | T83: 0 | U83: 0 | V83: 0 | W83: 0 | X83: 0 | Y83: 0 | Z83: 0 | AA83: 0 | AB83: 0 | AC83: 0 | AD83: 0 | AE83: 0 | AF83: 0 | AG83: 0 | AH83: 0 | AI83: 0 | AJ83: 0 | AK83: 0 | AL83: 0 | AM83: 0 | AN83: 0 | AO83: 0 | AP83: 0 | AQ83: 0 | AR83: 0 | AS83: 0 | AT83: 0 | AU83: 0 | AV83: 0 | AW83: 0 | AX83: 0 | AY83: 0 | AZ83: 0 | BA83: 0 | BB83: 0 | BC83: 0 | BD83: 0 | BE83: 0 | BF83: 0 | BG83: 0 | BH83: 0 | BI83: 0 | BJ83: 0 | BK83: 0 | BL83: 0 | BM83: 0 | BN83: 0 | BO83: 0 | BP83: 0 | BQ83: 0 | BR83: 0
D84: 0 | E84: 0 | F84: FX | G84: USD_10 | H84: USD | J84: 0 | K84: 0 | L84: 0 | M84: 0 | N84: 0 | O84: 0 | P84: 0 | Q84: 0 | R84: 0 | S84: 0 | T84: 0 | U84: 0 | V84: 0 | W84: 0 | X84: 0 | Y84: 0 | Z84: 0 | AA84: 0 | AB84: 0 | AC84: 0 | AD84: 0 | AE84: 0 | AF84: 0 | AG84: 0 | AH84: 0 | AI84: 0 | AJ84: 0 | AK84: 0 | AL84: 0 | AM84: 0 | AN84: 0 | AO84: 0 | AP84: 0 | AQ84: 0 | AR84: 0 | AS84: 0 | AT84: 0 | AU84: 0 | AV84: 0 | AW84: 0 | AX84: 0 | AY84: 0 | AZ84: 0 | BA84: 0 | BB84: 0 | BC84: 0 | BD84: 0 | BE84: 0 | BF84: 0 | BG84: 0 | BH84: 0 | BI84: 0 | BJ84: 0 | BK84: 0 | BL84: 0 | BM84: 0 | BN84: 0 | BO84: 0 | BP84: 0 | BQ84: 0 | BR84: 0
D85: T-Bills_Fixed | E85: T-bills | F85: DX | G85: UTP_11 | H85: UTP | I85: 0.13 | J85: 3831.304677 | K85: 0 | L85: 0 | M85: 0 | N85: 0 | O85: 0 | P85: 0 | Q85: 0 | R85: 0 | S85: 0 | T85: 0 | U85: 0 | V85: 0 | W85: 0 | X85: 0 | Y85: 0 | Z85: 0 | AA85: 0 | AB85: 0 | AC85: 0 | AD85: 0 | AE85: 0 | AF85: 0 | AG85: 0 | AH85: 0 | AI85: 0 | AJ85: 0 | AK85: 0 | AL85: 0 | AM85: 0 | AN85: 0 | AO85: 0 | AP85: 0 | AQ85: 0 | AR85: 0 | AS85: 0 | AT85: 0 | AU85: 0 | AV85: 0 | AW85: 0 | AX85: 0 | AY85: 0 | AZ85: 0 | BA85: 0 | BB85: 0 | BC85: 0 | BD85: 0 | BE85: 0 | BF85: 0 | BG85: 0 | BH85: 0 | BI85: 0 | BJ85: 0 | BK85: 0 | BL85: 0 | BM85: 0 | BN85: 0 | BO85: 0 | BP85: 0 | BQ85: 0 | BR85: 0
D86: T-Bonds 3 YR_Fixed | E86: Fix | F86: DX | G86: UTP_12 | H86: UTP | I86: 0.139331612 | J86: 225.68828 | K86: 225.68828 | L86: 125.31763 | M86: 0 | N86: 0 | O86: 0 | P86: 0 | Q86: 0 | R86: 0 | S86: 0 | T86: 0 | U86: 0 | V86: 0 | W86: 0 | X86: 0 | Y86: 0 | Z86: 0 | AA86: 0 | AB86: 0 | AC86: 0 | AD86: 0 | AE86: 0 | AF86: 0 | AG86: 0 | AH86: 0 | AI86: 0 | AJ86: 0 | AK86: 0 | AL86: 0 | AM86: 0 | AN86: 0 | AO86: 0 | AP86: 0 | AQ86: 0 | AR86: 0 | AS86: 0 | AT86: 0 | AU86: 0 | AV86: 0 | AW86: 0 | AX86: 0 | AY86: 0 | AZ86: 0 | BA86: 0 | BB86: 0 | BC86: 0 | BD86: 0 | BE86: 0 | BF86: 0 | BG86: 0 | BH86: 0 | BI86: 0 | BJ86: 0 | BK86: 0 | BL86: 0 | BM86: 0 | BN86: 0 | BO86: 0 | BP86: 0 | BQ86: 0 | BR86: 0
D87: T-Bonds 5 YR_Fixed | E87: Fix | F87: DX | G87: UTP_13 | H87: UTP | I87: 0.1507538375 | J87: 5090.156676 | K87: 5090.156676 | L87: 5090.156676 | M87: 5090.156676 | N87: 5090.156676 | O87: 2548.629874 | P87: 2548.629874 | Q87: 0 | R87: 0 | S87: 0 | T87: 0 | U87: 0 | V87: 0 | W87: 0 | X87: 0 | Y87: 0 | Z87: 0 | AA87: 0 | AB87: 0 | AC87: 0 | AD87: 0 | AE87: 0 | AF87: 0 | AG87: 0 | AH87: 0 | AI87: 0 | AJ87: 0 | AK87: 0 | AL87: 0 | AM87: 0 | AN87: 0 | AO87: 0 | AP87: 0 | AQ87: 0 | AR87: 0 | AS87: 0 | AT87: 0 | AU87: 0 | AV87: 0 | AW87: 0 | AX87: 0 | AY87: 0 | AZ87: 0 | BA87: 0 | BB87: 0 | BC87: 0 | BD87: 0 | BE87: 0 | BF87: 0 | BG87: 0 | BH87: 0 | BI87: 0 | BJ87: 0 | BK87: 0 | BL87: 0 | BM87: 0 | BN87: 0 | BO87: 0 | BP87: 0 | BQ87: 0 | BR87: 0
D88: T-Bonds 10 YR_Fixed | E88: Fix | F88: DX | G88: UTP_14 | H88: UTP | I88: 0.165 | J88: 591.7 | K88: 591.7 | L88: 591.7 | M88: 591.7 | N88: 591.7 | O88: 591.7 | P88: 591.7 | Q88: 591.7 | R88: 591.7 | S88: 591.7 | T88: 0 | U88: 0 | V88: 0 | W88: 0 | X88: 0 | Y88: 0 | Z88: 0 | AA88: 0 | AB88: 0 | AC88: 0 | AD88: 0 | AE88: 0 | AF88: 0 | AG88: 0 | AH88: 0 | AI88: 0 | AJ88: 0 | AK88: 0 | AL88: 0 | AM88: 0 | AN88: 0 | AO88: 0 | AP88: 0 | AQ88: 0 | AR88: 0 | AS88: 0 | AT88: 0 | AU88: 0 | AV88: 0 | AW88: 0 | AX88: 0 | AY88: 0 | AZ88: 0 | BA88: 0 | BB88: 0 | BC88: 0 | BD88: 0 | BE88: 0 | BF88: 0 | BG88: 0 | BH88: 0 | BI88: 0 | BJ88: 0 | BK88: 0 | BL88: 0 | BM88: 0 | BN88: 0 | BO88: 0 | BP88: 0 | BQ88: 0 | BR88: 0
D89: 0 | E89: 0 | F89: DX | G89: UTP_15 | H89: UTP | I89: 0 | J89: 0 | K89: 0 | L89: 0 | M89: 0 | N89: 0 | O89: 0 | P89: 0 | Q89: 0 | R89: 0 | S89: 0 | T89: 0 | U89: 0 | V89: 0 | W89: 0 | X89: 0 | Y89: 0 | Z89: 0 | AA89: 0 | AB89: 0 | AC89: 0 | AD89: 0 | AE89: 0 | AF89: 0 | AG89: 0 | AH89: 0 | AI89: 0 | AJ89: 0 | AK89: 0 | AL89: 0 | AM89: 0 | AN89: 0 | AO89: 0 | AP89: 0 | AQ89: 0 | AR89: 0 | AS89: 0 | AT89: 0 | AU89: 0 | AV89: 0 | AW89: 0 | AX89: 0 | AY89: 0 | AZ89: 0 | BA89: 0 | BB89: 0 | BC89: 0 | BD89: 0 | BE89: 0 | BF89: 0 | BG89: 0 | BH89: 0 | BI89: 0 | BJ89: 0 | BK89: 0 | BL89: 0 | BM89: 0 | BN89: 0 | BO89: 0 | BP89: 0 | BQ89: 0 | BR89: 0
D90: 0 | E90: 0 | F90: DX | G90: UTP_16 | H90: UTP | I90: 0 | J90: 0 | K90: 0 | L90: 0 | M90: 0 | N90: 0 | O90: 0 | P90: 0 | Q90: 0 | R90: 0 | S90: 0 | T90: 0 | U90: 0 | V90: 0 | W90: 0 | X90: 0 | Y90: 0 | Z90: 0 | AA90: 0 | AB90: 0 | AC90: 0 | AD90: 0 | AE90: 0 | AF90: 0 | AG90: 0 | AH90: 0 | AI90: 0 | AJ90: 0 | AK90: 0 | AL90: 0 | AM90: 0 | AN90: 0 | AO90: 0 | AP90: 0 | AQ90: 0 | AR90: 0 | AS90: 0 | AT90: 0 | AU90: 0 | AV90: 0 | AW90: 0 | AX90: 0 | AY90: 0 | AZ90: 0 | BA90: 0 | BB90: 0 | BC90: 0 | BD90: 0 | BE90: 0 | BF90: 0 | BG90: 0 | BH90: 0 | BI90: 0 | BJ90: 0 | BK90: 0 | BL90: 0 | BM90: 0 | BN90: 0 | BO90: 0 | BP90: 0 | BQ90: 0 | BR90: 0
D91: 0 | E91: 0 | F91: DX | G91: UTP_17 | H91: UTP | I91: 0 | J91: 0 | K91: 0 | L91: 0 | M91: 0 | N91: 0 | O91: 0 | P91: 0 | Q91: 0 | R91: 0 | S91: 0 | T91: 0 | U91: 0 | V91: 0 | W91: 0 | X91: 0 | Y91: 0 | Z91: 0 | AA91: 0 | AB91: 0 | AC91: 0 | AD91: 0 | AE91: 0 | AF91: 0 | AG91: 0 | AH91: 0 | AI91: 0 | AJ91: 0 | AK91: 0 | AL91: 0 | AM91: 0 | AN91: 0 | AO91: 0 | AP91: 0 | AQ91: 0 | AR91: 0 | AS91: 0 | AT91: 0 | AU91: 0 | AV91: 0 | AW91: 0 | AX91: 0 | AY91: 0 | AZ91: 0 | BA91: 0 | BB91: 0 | BC91: 0 | BD91: 0 | BE91: 0 | BF91: 0 | BG91: 0 | BH91: 0 | BI91: 0 | BJ91: 0 | BK91: 0 | BL91: 0 | BM91: 0 | BN91: 0 | BO91: 0 | BP91: 0 | BQ91: 0 | BR91: 0
D92: 0 | E92: 0 | F92: DX | G92: UTP_18 | H92: UTP | I92: 0 | J92: 0 | K92: 0 | L92: 0 | M92: 0 | N92: 0 | O92: 0 | P92: 0 | Q92: 0 | R92: 0 | S92: 0 | T92: 0 | U92: 0 | V92: 0 | W92: 0 | X92: 0 | Y92: 0 | Z92: 0 | AA92: 0 | AB92: 0 | AC92: 0 | AD92: 0 | AE92: 0 | AF92: 0 | AG92: 0 | AH92: 0 | AI92: 0 | AJ92: 0 | AK92: 0 | AL92: 0 | AM92: 0 | AN92: 0 | AO92: 0 | AP92: 0 | AQ92: 0 | AR92: 0 | AS92: 0 | AT92: 0 | AU92: 0 | AV92: 0 | AW92: 0 | AX92: 0 | AY92: 0 | AZ92: 0 | BA92: 0 | BB92: 0 | BC92: 0 | BD92: 0 | BE92: 0 | BF92: 0 | BG92: 0 | BH92: 0 | BI92: 0 | BJ92: 0 | BK92: 0 | BL92: 0 | BM92: 0 | BN92: 0 | BO92: 0 | BP92: 0 | BQ92: 0 | BR92: 0
D93: 0 | E93: 0 | F93: DX | G93: UTP_19 | H93: UTP | I93: 0 | J93: 0 | K93: 0 | L93: 0 | M93: 0 | N93: 0 | O93: 0 | P93: 0 | Q93: 0 | R93: 0 | S93: 0 | T93: 0 | U93: 0 | V93: 0 | W93: 0 | X93: 0 | Y93: 0 | Z93: 0 | AA93: 0 | AB93: 0 | AC93: 0 | AD93: 0 | AE93: 0 | AF93: 0 | AG93: 0 | AH93: 0 | AI93: 0 | AJ93: 0 | AK93: 0 | AL93: 0 | AM93: 0 | AN93: 0 | AO93: 0 | AP93: 0 | AQ93: 0 | AR93: 0 | AS93: 0 | AT93: 0 | AU93: 0 | AV93: 0 | AW93: 0 | AX93: 0 | AY93: 0 | AZ93: 0 | BA93: 0 | BB93: 0 | BC93: 0 | BD93: 0 | BE93: 0 | BF93: 0 | BG93: 0 | BH93: 0 | BI93: 0 | BJ93: 0 | BK93: 0 | BL93: 0 | BM93: 0 | BN93: 0 | BO93: 0 | BP93: 0 | BQ93: 0 | BR93: 0
D94: Indexed Instrument | E94: Var | F94: DX | G94: IDX_20 | H94: IDX | I94: 0 | J94: 0 | K94: 0 | L94: 0 | M94: 0 | N94: 0 | O94: 0 | P94: 0 | Q94: 0 | R94: 0 | S94: 0 | T94: 0 | U94: 0 | V94: 0 | W94: 0 | X94: 0 | Y94: 0 | Z94: 0 | AA94: 0 | AB94: 0 | AC94: 0 | AD94: 0 | AE94: 0 | AF94: 0 | AG94: 0 | AH94: 0 | AI94: 0 | AJ94: 0 | AK94: 0 | AL94: 0 | AM94: 0 | AN94: 0 | AO94: 0 | AP94: 0 | AQ94: 0 | AR94: 0 | AS94: 0 | AT94: 0 | AU94: 0 | AV94: 0 | AW94: 0 | AX94: 0 | AY94: 0 | AZ94: 0 | BA94: 0 | BB94: 0 | BC94: 0 | BD94: 0 | BE94: 0 | BF94: 0 | BG94: 0 | BH94: 0 | BI94: 0 | BJ94: 0 | BK94: 0 | BL94: 0 | BM94: 0 | BN94: 0 | BO94: 0 | BP94: 0 | BQ94: 0 | BR94: 0
D95: Total | I95: 0 | J95: 27346.23496 | K95: 21871.84924 | L95: 20261.97632 | M95: 18887.74847 | N95: 17576.62897 | O95: 14331.01036 | P95: 13944.75678 | Q95: 10958.39703 | R95: 10307.92734 | S95: 9655.328497 | T95: 8408.812866 | U95: 7790.227468 | V95: 7175.459895 | W95: 6560.561698 | X95: 5947.164975 | Y95: 5333.493722 | Z95: 4719.6483 | AA95: 4100.09962 | AB95: 3480.38055 | AC95: 2860.574395 | AD95: 2649.082548 | AE95: 2445.866421 | AF95: 2252.498045 | AG95: 2059.129668 | AH95: 1865.761291 | AI95: 1652.63694 | AJ95: 1463.00598 | AK95: 1278.203693 | AL95: 1100.515042 | AM95: 947.3109583 | AN95: 843.0120821 | AO95: 738.0223359 | AP95: 633.8023748 | AQ95: 551.0281139 | AR95: 463.196537 | AS95: 386.6722798 | AT95: 310.1480225 | AU95: 233.6693302 | AV95: 157.1906379 | AW95: 80.71194557 | AX95: 43.30500375 | AY95: 24.96321521 | AZ95: 6.621426671 | BA95: 3.754868284e-13 | BB95: 3.754868284e-13 | BC95: 3.754868284e-13 | BD95: 3.754868284e-13 | BE95: 3.754868284e-13 | BF95: 3.754868284e-13 | BG95: 3.754868284e-13 | BH95: 3.754868284e-13 | BI95: 3.754868284e-13 | BJ95: 3.754868284e-13 | BK95: 3.754868284e-13 | BL95: 3.754868284e-13 | BM95: 3.754868284e-13 | BN95: 3.754868284e-13 | BO95: 3.754868284e-13 | BP95: 3.754868284e-13 | BQ95: 3.754868284e-13 | BR95: 3.754868284e-13
G97: Interest Payments in Domestic Currency | I97: implied IR on FX debt only | J97: Implied IR | K97: 2025 | L97: 2026 | M97: 2027 | N97: 2028 | O97: 2029 | P97: 2030 | Q97: 2031 | R97: 2032 | S97: 2033 | T97: 2034 | U97: 2035 | V97: 2036 | W97: 2037 | X97: 2038 | Y97: 2039 | Z97: 2040 | AA97: 2041 | AB97: 2042 | AC97: 2043 | AD97: 2044 | AE97: 2045 | AF97: 2046 | AG97: 2047 | AH97: 2048 | AI97: 2049 | AJ97: 2050 | AK97: 2051 | AL97: 2052 | AM97: 2053 | AN97: 2054 | AO97: 2055 | AP97: 2056 | AQ97: 2057 | AR97: 2058 | AS97: 2059 | AT97: 2060 | AU97: 2061 | AV97: 2062 | AW97: 2063 | AX97: 2064 | AY97: 2065 | AZ97: 2066 | BA97: 2067 | BB97: 2068 | BC97: 2069 | BD97: 2070 | BE97: 2071 | BF97: 2072 | BG97: 2073 | BH97: 2074 | BI97: 2075 | BJ97: 2076 | BK97: 2077 | BL97: 2078 | BM97: 2079 | BN97: 2080 | BO97: 2081 | BP97: 2082 | BQ97: 2083 | BR97: 2084
D98: ADF_Fixed | E98: Fix | F98: FX | G98: USD_1 | H98: USD | I98: 0.007876956095 | J98: 0.007876956095 | K98: 24.68578317 | L98: 25.51021585 | M98: 26.31908763 | N98: 26.98713501 | O98: 27.57082458 | P98: 28.27649182 | Q98: 28.97806913 | R98: 27.99835661 | S98: 27.12750773 | T98: 26.24134332 | U98: 25.33983508 | V98: 24.37207296 | W98: 23.40430495 | X98: 22.43653694 | Y98: 21.48133626 | Z98: 20.52538283 | AA98: 19.5694294 | AB98: 18.57200779 | AC98: 17.5746145 | AD98: 16.57722121 | AE98: 15.57982791 | AF98: 14.58147573 | AG98: 13.62459172 | AH98: 12.66770771 | AI98: 11.71082371 | AJ98: 10.7539397 | AK98: 9.79705569 | AL98: 8.840171683 | AM98: 7.936639936 | AN98: 7.104832265 | AO98: 6.322590693 | AP98: 5.535167596 | AQ98: 4.753517888 | AR98: 4.132710931 | AS98: 3.473974105 | AT98: 2.900042175 | AU98: 2.326110246 | AV98: 1.752520053 | AW98: 1.178929861 | AX98: 0.6053396688 | AY98: 0.3247876052 | AZ98: 0.1872241912 | BA98: 0.04966077713 | BB98: 7.709471831e-08 | BC98: 7.709471831e-08 | BD98: 7.709471831e-08 | BE98: 7.709471831e-08 | BF98: 7.709471831e-08 | BG98: 7.709471831e-08 | BH98: 7.709471831e-08 | BI98: 0 | BJ98: 0 | BK98: 0 | BL98: 0 | BM98: 0 | BN98: 0 | BO98: 0 | BP98: 0 | BQ98: 0 | BR98: 0
D99: IDA/IFAD/EDF_Fixed | E99: Fix | F99: FX | G99: USD_2 | H99: USD | I99: 0.007956217568 | J99: 0.007956217568 | K99: 55.32032013 | L99: 54.87210323 | M99: 54.48563076 | N99: 54.11980386 | O99: 53.63133634 | P99: 53.09873036 | Q99: 52.34770157 | R99: 48.69618049 | S99: 45.04291774 | T99: 41.38878415 | U99: 37.73290889 | V99: 34.0729723 | W99: 30.42362125 | X99: 26.77296395 | Y99: 23.12056497 | Z99: 19.46642433 | AA99: 15.81054202 | AB99: 12.15291802 | AC99: 8.493552373 | AD99: 4.833315874 | AE99: 4.255901327 | AF99: 3.762522509 | AG99: 3.269143691 | AH99: 2.775764873 | AI99: 2.282386055 | AJ99: 1.640837431 | AK99: 1.175489233 | AL99: 0.746356095 | AM99: 0.3172229568 | AN99: 3.698074949e-14 | AO99: 3.698074949e-14 | AP99: 3.698074949e-14 | AQ99: 3.698074949e-14 | AR99: 3.698074949e-14 | AS99: 3.698074949e-14 | AT99: 3.698074949e-14 | AU99: 3.698074949e-14 | AV99: 3.698074949e-14 | AW99: 3.698074949e-14 | AX99: 3.698074949e-14 | AY99: 3.698074949e-14 | AZ99: 3.698074949e-14 | BA99: 3.698074949e-14 | BB99: 3.698074949e-14 | BC99: 3.698074949e-14 | BD99: 3.698074949e-14 | BE99: 3.698074949e-14 | BF99: 3.698074949e-14 | BG99: 3.698074949e-14 | BH99: 3.698074949e-14 | BI99: 0 | BJ99: 0 | BK99: 0 | BL99: 0 | BM99: 0 | BN99: 0 | BO99: 0 | BP99: 0 | BQ99: 0 | BR99: 0
D100: IBRD/ADB/IDB_Fixed | E100: Fix | F100: FX | G100: USD_3 | H100: USD | I100: 0.05046914777 | J100: 0.05046914777 | K100: 29.7360014 | L100: 9.245582847 | M100: 4.741136541 | N100: 4.98012882 | O100: 4.945550689 | P100: 4.908154626 | Q100: 4.852013831 | R100: 4.528546243 | S100: 4.205078654 | T100: 3.881611065 | U100: 3.558143476 | V100: 3.234675888 | W100: 2.911208299 | X100: 2.58774071 | Y100: 2.264273121 | Z100: 1.940805533 | AA100: 1.617337944 | AB100: 1.293870355 | AC100: 0.9704027663 | AD100: 0.6469351775 | AE100: 0.3234675888 | AF100: 2.13297856e-15 | AG100: 2.13297856e-15 | AH100: 2.13297856e-15 | AI100: 2.13297856e-15 | AJ100: 2.13297856e-15 | AK100: 2.13297856e-15 | AL100: 2.13297856e-15 | AM100: 2.13297856e-15 | AN100: 2.13297856e-15 | AO100: 2.13297856e-15 | AP100: 2.13297856e-15 | AQ100: 2.13297856e-15 | AR100: 2.13297856e-15 | AS100: 2.13297856e-15 | AT100: 2.13297856e-15 | AU100: 2.13297856e-15 | AV100: 2.13297856e-15 | AW100: 2.13297856e-15 | AX100: 2.13297856e-15 | AY100: 2.13297856e-15 | AZ100: 2.13297856e-15 | BA100: 2.13297856e-15 | BB100: 2.13297856e-15 | BC100: 2.13297856e-15 | BD100: 2.13297856e-15 | BE100: 2.13297856e-15 | BF100: 2.13297856e-15 | BG100: 2.13297856e-15 | BH100: 2.13297856e-15 | BI100: 0 | BJ100: 0 | BK100: 0 | BL100: 0 | BM100: 0 | BN100: 0 | BO100: 0 | BP100: 0 | BQ100: 0 | BR100: 0
D101: IBRD/ADB/IDB_Var | E101: Var | F101: FX | G101: USD_4 | H101: USD | I101: 0.01092271243 | J101: 0.01092271243 | K101: 12.55537474 | L101: 14.71711102 | M101: 15.09586247 | N101: 12.07624243 | O101: 8.986122738 | P101: 7.940697554 | Q101: 6.349897301 | R101: 4.781763662 | S101: 3.213630024 | T101: 1.645496386 | U101: 0.07736274764 | V101: -2.175524169e-16 | W101: -2.175524169e-16 | X101: -2.175524169e-16 | Y101: -2.175524169e-16 | Z101: -2.175524169e-16 | AA101: -2.175524169e-16 | AB101: -2.175524169e-16 | AC101: -2.175524169e-16 | AD101: -2.175524169e-16 | AE101: -2.175524169e-16 | AF101: -2.175524169e-16 | AG101: -2.175524169e-16 | AH101: -2.175524169e-16 | AI101: -2.175524169e-16 | AJ101: -2.175524169e-16 | AK101: -2.175524169e-16 | AL101: -2.175524169e-16 | AM101: -2.175524169e-16 | AN101: -2.175524169e-16 | AO101: -2.175524169e-16 | AP101: -2.175524169e-16 | AQ101: -2.175524169e-16 | AR101: -2.175524169e-16 | AS101: -2.175524169e-16 | AT101: -2.175524169e-16 | AU101: -2.175524169e-16 | AV101: -2.175524169e-16 | AW101: -2.175524169e-16 | AX101: -2.175524169e-16 | AY101: -2.175524169e-16 | AZ101: -2.175524169e-16 | BA101: -2.175524169e-16 | BB101: -2.175524169e-16 | BC101: -2.175524169e-16 | BD101: -2.175524169e-16 | BE101: -2.175524169e-16 | BF101: -2.175524169e-16 | BG101: -2.175524169e-16 | BH101: -2.175524169e-16 | BI101: -2.701349279e-16 | BJ101: -2.701349279e-16 | BK101: -2.701349279e-16 | BL101: -2.701349279e-16 | BM101: -2.701349279e-16 | BN101: -2.701349279e-16 | BO101: -2.701349279e-16 | BP101: -2.701349279e-16 | BQ101: -2.701349279e-16 | BR101: -2.701349279e-16
D102: Bilateral_Fixed | E102: Fix | F102: FX | G102: USD_5 | H102: USD | I102: 0.03150786366 | J102: 0.03150786366 | K102: 86.02227013 | L102: 69.39683064 | M102: 51.96399187 | N102: 32.75021642 | O102: 11.47894839 | P102: 0.0004280670228 | Q102: 0.0003385365415 | R102: 0.0002256910276 | S102: 0.0001128455138 | T102: -1.692797135e-19 | U102: -1.692797135e-19 | V102: -1.692797135e-19 | W102: -1.692797135e-19 | X102: -1.692797135e-19 | Y102: -1.692797135e-19 | Z102: -1.692797135e-19 | AA102: -1.692797135e-19 | AB102: -1.692797135e-19 | AC102: -1.692797135e-19 | AD102: -1.692797135e-19 | AE102: -1.692797135e-19 | AF102: -1.692797135e-19 | AG102: -1.692797135e-19 | AH102: -1.692797135e-19 | AI102: -1.692797135e-19 | AJ102: -1.692797135e-19 | AK102: -1.692797135e-19 | AL102: -1.692797135e-19 | AM102: -1.692797135e-19 | AN102: -1.692797135e-19 | AO102: -1.692797135e-19 | AP102: -1.692797135e-19 | AQ102: -1.692797135e-19 | AR102: -1.692797135e-19 | AS102: -1.692797135e-19 | AT102: -1.692797135e-19 | AU102: -1.692797135e-19 | AV102: -1.692797135e-19 | AW102: -1.692797135e-19 | AX102: -1.692797135e-19 | AY102: -1.692797135e-19 | AZ102: -1.692797135e-19 | BA102: -1.692797135e-19 | BB102: -1.692797135e-19 | BC102: -1.692797135e-19 | BD102: -1.692797135e-19 | BE102: -1.692797135e-19 | BF102: -1.692797135e-19 | BG102: -1.692797135e-19 | BH102: -1.692797135e-19 | BI102: 0 | BJ102: 0 | BK102: 0 | BL102: 0 | BM102: 0 | BN102: 0 | BO102: 0 | BP102: 0 | BQ102: 0 | BR102: 0
D103: Commercial Bank_Var | E103: Var | F103: FX | G103: USD_6 | H103: USD | I103: 0.0707883661 | J103: 0.0707883661 | K103: 216.0119962 | L103: 194.5529027 | M103: 152.0621094 | N103: 122.1985098 | O103: 86.03485582 | P103: 62.12966678 | Q103: 31.46057167 | R103: 0 | S103: 0 | T103: 0 | U103: 0 | V103: 0 | W103: 0 | X103: 0 | Y103: 0 | Z103: 0 | AA103: 0 | AB103: 0 | AC103: 0 | AD103: 0 | AE103: 0 | AF103: 0 | AG103: 0 | AH103: 0 | AI103: 0 | AJ103: 0 | AK103: 0 | AL103: 0 | AM103: 0 | AN103: 0 | AO103: 0 | AP103: 0 | AQ103: 0 | AR103: 0 | AS103: 0 | AT103: 0 | AU103: 0 | AV103: 0 | AW103: 0 | AX103: 0 | AY103: 0 | AZ103: 0 | BA103: 0 | BB103: 0 | BC103: 0 | BD103: 0 | BE103: 0 | BF103: 0 | BG103: 0 | BH103: 0 | BI103: 0 | BJ103: 0 | BK103: 0 | BL103: 0 | BM103: 0 | BN103: 0 | BO103: 0 | BP103: 0 | BQ103: 0 | BR103: 0
D104: 0 | E104: 0 | F104: FX | G104: USD_7 | H104: USD | I104: 0 | J104: 0 | K104: 0 | L104: 0 | M104: 0 | N104: 0 | O104: 0 | P104: 0 | Q104: 0 | R104: 0 | S104: 0 | T104: 0 | U104: 0 | V104: 0 | W104: 0 | X104: 0 | Y104: 0 | Z104: 0 | AA104: 0 | AB104: 0 | AC104: 0 | AD104: 0 | AE104: 0 | AF104: 0 | AG104: 0 | AH104: 0 | AI104: 0 | AJ104: 0 | AK104: 0 | AL104: 0 | AM104: 0 | AN104: 0 | AO104: 0 | AP104: 0 | AQ104: 0 | AR104: 0 | AS104: 0 | AT104: 0 | AU104: 0 | AV104: 0 | AW104: 0 | AX104: 0 | AY104: 0 | AZ104: 0 | BA104: 0 | BB104: 0 | BC104: 0 | BD104: 0 | BE104: 0 | BF104: 0 | BG104: 0 | BH104: 0 | BI104: 0 | BJ104: 0 | BK104: 0 | BL104: 0 | BM104: 0 | BN104: 0 | BO104: 0 | BP104: 0 | BQ104: 0 | BR104: 0
D105: 0 | E105: 0 | F105: FX | G105: USD_8 | H105: USD | I105: 0 | J105: 0 | K105: 0 | L105: 0 | M105: 0 | N105: 0 | O105: 0 | P105: 0 | Q105: 0 | R105: 0 | S105: 0 | T105: 0 | U105: 0 | V105: 0 | W105: 0 | X105: 0 | Y105: 0 | Z105: 0 | AA105: 0 | AB105: 0 | AC105: 0 | AD105: 0 | AE105: 0 | AF105: 0 | AG105: 0 | AH105: 0 | AI105: 0 | AJ105: 0 | AK105: 0 | AL105: 0 | AM105: 0 | AN105: 0 | AO105: 0 | AP105: 0 | AQ105: 0 | AR105: 0 | AS105: 0 | AT105: 0 | AU105: 0 | AV105: 0 | AW105: 0 | AX105: 0 | AY105: 0 | AZ105: 0 | BA105: 0 | BB105: 0 | BC105: 0 | BD105: 0 | BE105: 0 | BF105: 0 | BG105: 0 | BH105: 0 | BI105: 0 | BJ105: 0 | BK105: 0 | BL105: 0 | BM105: 0 | BN105: 0 | BO105: 0 | BP105: 0 | BQ105: 0 | BR105: 0
D106: 0 | E106: 0 | F106: FX | G106: USD_9 | H106: USD | I106: 0 | J106: 0 | K106: 0 | L106: 0 | M106: 0 | N106: 0 | O106: 0 | P106: 0 | Q106: 0 | R106: 0 | S106: 0 | T106: 0 | U106: 0 | V106: 0 | W106: 0 | X106: 0 | Y106: 0 | Z106: 0 | AA106: 0 | AB106: 0 | AC106: 0 | AD106: 0 | AE106: 0 | AF106: 0 | AG106: 0 | AH106: 0 | AI106: 0 | AJ106: 0 | AK106: 0 | AL106: 0 | AM106: 0 | AN106: 0 | AO106: 0 | AP106: 0 | AQ106: 0 | AR106: 0 | AS106: 0 | AT106: 0 | AU106: 0 | AV106: 0 | AW106: 0 | AX106: 0 | AY106: 0 | AZ106: 0 | BA106: 0 | BB106: 0 | BC106: 0 | BD106: 0 | BE106: 0 | BF106: 0 | BG106: 0 | BH106: 0 | BI106: 0 | BJ106: 0 | BK106: 0 | BL106: 0 | BM106: 0 | BN106: 0 | BO106: 0 | BP106: 0 | BQ106: 0 | BR106: 0
D107: 0 | E107: 0 | F107: FX | G107: USD_10 | H107: USD | I107: 0 | J107: 0 | K107: 0 | L107: 0 | M107: 0 | N107: 0 | O107: 0 | P107: 0 | Q107: 0 | R107: 0 | S107: 0 | T107: 0 | U107: 0 | V107: 0 | W107: 0 | X107: 0 | Y107: 0 | Z107: 0 | AA107: 0 | AB107: 0 | AC107: 0 | AD107: 0 | AE107: 0 | AF107: 0 | AG107: 0 | AH107: 0 | AI107: 0 | AJ107: 0 | AK107: 0 | AL107: 0 | AM107: 0 | AN107: 0 | AO107: 0 | AP107: 0 | AQ107: 0 | AR107: 0 | AS107: 0 | AT107: 0 | AU107: 0 | AV107: 0 | AW107: 0 | AX107: 0 | AY107: 0 | AZ107: 0 | BA107: 0 | BB107: 0 | BC107: 0 | BD107: 0 | BE107: 0 | BF107: 0 | BG107: 0 | BH107: 0 | BI107: 0 | BJ107: 0 | BK107: 0 | BL107: 0 | BM107: 0 | BN107: 0 | BO107: 0 | BP107: 0 | BQ107: 0 | BR107: 0
D108: T-Bills_Fixed | E108: T-bills | F108: DX | G108: UTP_11 | H108: UTP | J108: 0.13 | K108: 498.069608 | L108: 0 | M108: 0 | N108: 0 | O108: 0 | P108: 0 | Q108: 0 | R108: 0 | S108: 0 | T108: 0 | U108: 0 | V108: 0 | W108: 0 | X108: 0 | Y108: 0 | Z108: 0 | AA108: 0 | AB108: 0 | AC108: 0 | AD108: 0 | AE108: 0 | AF108: 0 | AG108: 0 | AH108: 0 | AI108: 0 | AJ108: 0 | AK108: 0 | AL108: 0 | AM108: 0 | AN108: 0 | AO108: 0 | AP108: 0 | AQ108: 0 | AR108: 0 | AS108: 0 | AT108: 0 | AU108: 0 | AV108: 0 | AW108: 0 | AX108: 0 | AY108: 0 | AZ108: 0 | BA108: 0 | BB108: 0 | BC108: 0 | BD108: 0 | BE108: 0 | BF108: 0 | BG108: 0 | BH108: 0 | BI108: 0 | BJ108: 0 | BK108: 0 | BL108: 0 | BM108: 0 | BN108: 0 | BO108: 0 | BP108: 0 | BQ108: 0 | BR108: 0
D109: T-Bonds 3 YR_Fixed | E109: Fix | F109: DX | G109: UTP_12 | H109: UTP | J109: 0.139331612 | K109: 31.44551186 | L109: 31.44551186 | M109: 17.79510346 | N109: 0 | O109: 0 | P109: 0 | Q109: 0 | R109: 0 | S109: 0 | T109: 0 | U109: 0 | V109: 0 | W109: 0 | X109: 0 | Y109: 0 | Z109: 0 | AA109: 0 | AB109: 0 | AC109: 0 | AD109: 0 | AE109: 0 | AF109: 0 | AG109: 0 | AH109: 0 | AI109: 0 | AJ109: 0 | AK109: 0 | AL109: 0 | AM109: 0 | AN109: 0 | AO109: 0 | AP109: 0 | AQ109: 0 | AR109: 0 | AS109: 0 | AT109: 0 | AU109: 0 | AV109: 0 | AW109: 0 | AX109: 0 | AY109: 0 | AZ109: 0 | BA109: 0 | BB109: 0 | BC109: 0 | BD109: 0 | BE109: 0 | BF109: 0 | BG109: 0 | BH109: 0 | BI109: 0 | BJ109: 0 | BK109: 0 | BL109: 0 | BM109: 0 | BN109: 0 | BO109: 0 | BP109: 0 | BQ109: 0 | BR109: 0
D110: T-Bonds 5 YR_Fixed | E110: Fix | F110: DX | G110: UTP_13 | H110: UTP | J110: 0.1507538375 | K110: 767.3606524 | L110: 767.3606524 | M110: 767.3606524 | N110: 767.3606524 | O110: 767.3606524 | P110: 391.2146857 | Q110: 391.2146857 | R110: 0 | S110: 0 | T110: 0 | U110: 0 | V110: 0 | W110: 0 | X110: 0 | Y110: 0 | Z110: 0 | AA110: 0 | AB110: 0 | AC110: 0 | AD110: 0 | AE110: 0 | AF110: 0 | AG110: 0 | AH110: 0 | AI110: 0 | AJ110: 0 | AK110: 0 | AL110: 0 | AM110: 0 | AN110: 0 | AO110: 0 | AP110: 0 | AQ110: 0 | AR110: 0 | AS110: 0 | AT110: 0 | AU110: 0 | AV110: 0 | AW110: 0 | AX110: 0 | AY110: 0 | AZ110: 0 | BA110: 0 | BB110: 0 | BC110: 0 | BD110: 0 | BE110: 0 | BF110: 0 | BG110: 0 | BH110: 0 | BI110: 0 | BJ110: 0 | BK110: 0 | BL110: 0 | BM110: 0 | BN110: 0 | BO110: 0 | BP110: 0 | BQ110: 0 | BR110: 0
D111: T-Bonds 10 YR_Fixed | E111: Fix | F111: DX | G111: UTP_14 | H111: UTP | J111: 0.165 | K111: 97.6305 | L111: 97.6305 | M111: 97.6305 | N111: 97.6305 | O111: 97.6305 | P111: 97.6305 | Q111: 97.6305 | R111: 97.6305 | S111: 97.6305 | T111: 97.6305 | U111: 0 | V111: 0 | W111: 0 | X111: 0 | Y111: 0 | Z111: 0 | AA111: 0 | AB111: 0 | AC111: 0 | AD111: 0 | AE111: 0 | AF111: 0 | AG111: 0 | AH111: 0 | AI111: 0 | AJ111: 0 | AK111: 0 | AL111: 0 | AM111: 0 | AN111: 0 | AO111: 0 | AP111: 0 | AQ111: 0 | AR111: 0 | AS111: 0 | AT111: 0 | AU111: 0 | AV111: 0 | AW111: 0 | AX111: 0 | AY111: 0 | AZ111: 0 | BA111: 0 | BB111: 0 | BC111: 0 | BD111: 0 | BE111: 0 | BF111: 0 | BG111: 0 | BH111: 0 | BI111: 0 | BJ111: 0 | BK111: 0 | BL111: 0 | BM111: 0 | BN111: 0 | BO111: 0 | BP111: 0 | BQ111: 0 | BR111: 0
D112: 0 | E112: 0 | F112: DX | G112: UTP_15 | H112: UTP | J112: 0 | K112: 0 | L112: 0 | M112: 0 | N112: 0 | O112: 0 | P112: 0 | Q112: 0 | R112: 0 | S112: 0 | T112: 0 | U112: 0 | V112: 0 | W112: 0 | X112: 0 | Y112: 0 | Z112: 0 | AA112: 0 | AB112: 0 | AC112: 0 | AD112: 0 | AE112: 0 | AF112: 0 | AG112: 0 | AH112: 0 | AI112: 0 | AJ112: 0 | AK112: 0 | AL112: 0 | AM112: 0 | AN112: 0 | AO112: 0 | AP112: 0 | AQ112: 0 | AR112: 0 | AS112: 0 | AT112: 0 | AU112: 0 | AV112: 0 | AW112: 0 | AX112: 0 | AY112: 0 | AZ112: 0 | BA112: 0 | BB112: 0 | BC112: 0 | BD112: 0 | BE112: 0 | BF112: 0 | BG112: 0 | BH112: 0 | BI112: 0 | BJ112: 0 | BK112: 0 | BL112: 0 | BM112: 0 | BN112: 0 | BO112: 0 | BP112: 0 | BQ112: 0 | BR112: 0
D113: 0 | E113: 0 | F113: DX | G113: UTP_16 | H113: UTP | I113: 0 | J113: 0 | K113: 0 | L113: 0 | M113: 0 | N113: 0 | O113: 0 | P113: 0 | Q113: 0 | R113: 0 | S113: 0 | T113: 0 | U113: 0 | V113: 0 | W113: 0 | X113: 0 | Y113: 0 | Z113: 0 | AA113: 0 | AB113: 0 | AC113: 0 | AD113: 0 | AE113: 0 | AF113: 0 | AG113: 0 | AH113: 0 | AI113: 0 | AJ113: 0 | AK113: 0 | AL113: 0 | AM113: 0 | AN113: 0 | AO113: 0 | AP113: 0 | AQ113: 0 | AR113: 0 | AS113: 0 | AT113: 0 | AU113: 0 | AV113: 0 | AW113: 0 | AX113: 0 | AY113: 0 | AZ113: 0 | BA113: 0 | BB113: 0 | BC113: 0 | BD113: 0 | BE113: 0 | BF113: 0 | BG113: 0 | BH113: 0 | BI113: 0 | BJ113: 0 | BK113: 0 | BL113: 0 | BM113: 0 | BN113: 0 | BO113: 0 | BP113: 0 | BQ113: 0 | BR113: 0
D114: 0 | E114: 0 | F114: DX | G114: UTP_17 | H114: UTP | I114: 0 | J114: 0 | K114: 0 | L114: 0 | M114: 0 | N114: 0 | O114: 0 | P114: 0 | Q114: 0 | R114: 0 | S114: 0 | T114: 0 | U114: 0 | V114: 0 | W114: 0 | X114: 0 | Y114: 0 | Z114: 0 | AA114: 0 | AB114: 0 | AC114: 0 | AD114: 0 | AE114: 0 | AF114: 0 | AG114: 0 | AH114: 0 | AI114: 0 | AJ114: 0 | AK114: 0 | AL114: 0 | AM114: 0 | AN114: 0 | AO114: 0 | AP114: 0 | AQ114: 0 | AR114: 0 | AS114: 0 | AT114: 0 | AU114: 0 | AV114: 0 | AW114: 0 | AX114: 0 | AY114: 0 | AZ114: 0 | BA114: 0 | BB114: 0 | BC114: 0 | BD114: 0 | BE114: 0 | BF114: 0 | BG114: 0 | BH114: 0 | BI114: 0 | BJ114: 0 | BK114: 0 | BL114: 0 | BM114: 0 | BN114: 0 | BO114: 0 | BP114: 0 | BQ114: 0 | BR114: 0
D115: 0 | E115: 0 | F115: DX | G115: UTP_18 | H115: UTP | I115: 0 | J115: 0 | K115: 0 | L115: 0 | M115: 0 | N115: 0 | O115: 0 | P115: 0 | Q115: 0 | R115: 0 | S115: 0 | T115: 0 | U115: 0 | V115: 0 | W115: 0 | X115: 0 | Y115: 0 | Z115: 0 | AA115: 0 | AB115: 0 | AC115: 0 | AD115: 0 | AE115: 0 | AF115: 0 | AG115: 0 | AH115: 0 | AI115: 0 | AJ115: 0 | AK115: 0 | AL115: 0 | AM115: 0 | AN115: 0 | AO115: 0 | AP115: 0 | AQ115: 0 | AR115: 0 | AS115: 0 | AT115: 0 | AU115: 0 | AV115: 0 | AW115: 0 | AX115: 0 | AY115: 0 | AZ115: 0 | BA115: 0 | BB115: 0 | BC115: 0 | BD115: 0 | BE115: 0 | BF115: 0 | BG115: 0 | BH115: 0 | BI115: 0 | BJ115: 0 | BK115: 0 | BL115: 0 | BM115: 0 | BN115: 0 | BO115: 0 | BP115: 0 | BQ115: 0 | BR115: 0
D116: 0 | E116: 0 | F116: DX | G116: UTP_19 | H116: UTP | I116: 0 | J116: 0 | K116: 0 | L116: 0 | M116: 0 | N116: 0 | O116: 0 | P116: 0 | Q116: 0 | R116: 0 | S116: 0 | T116: 0 | U116: 0 | V116: 0 | W116: 0 | X116: 0 | Y116: 0 | Z116: 0 | AA116: 0 | AB116: 0 | AC116: 0 | AD116: 0 | AE116: 0 | AF116: 0 | AG116: 0 | AH116: 0 | AI116: 0 | AJ116: 0 | AK116: 0 | AL116: 0 | AM116: 0 | AN116: 0 | AO116: 0 | AP116: 0 | AQ116: 0 | AR116: 0 | AS116: 0 | AT116: 0 | AU116: 0 | AV116: 0 | AW116: 0 | AX116: 0 | AY116: 0 | AZ116: 0 | BA116: 0 | BB116: 0 | BC116: 0 | BD116: 0 | BE116: 0 | BF116: 0 | BG116: 0 | BH116: 0 | BI116: 0 | BJ116: 0 | BK116: 0 | BL116: 0 | BM116: 0 | BN116: 0 | BO116: 0 | BP116: 0 | BQ116: 0 | BR116: 0
D117: Indexed Instrument | E117: Var | F117: DX | G117: IDX_20 | H117: IDX | I117: 0 | J117: 0 | K117: 0 | L117: 0 | M117: 0 | N117: 0 | O117: 0 | P117: 0 | Q117: 0 | R117: 0 | S117: 0 | T117: 0 | U117: 0 | V117: 0 | W117: 0 | X117: 0 | Y117: 0 | Z117: 0 | AA117: 0 | AB117: 0 | AC117: 0 | AD117: 0 | AE117: 0 | AF117: 0 | AG117: 0 | AH117: 0 | AI117: 0 | AJ117: 0 | AK117: 0 | AL117: 0 | AM117: 0 | AN117: 0 | AO117: 0 | AP117: 0 | AQ117: 0 | AR117: 0 | AS117: 0 | AT117: 0 | AU117: 0 | AV117: 0 | AW117: 0 | AX117: 0 | AY117: 0 | AZ117: 0 | BA117: 0 | BB117: 0 | BC117: 0 | BD117: 0 | BE117: 0 | BF117: 0 | BG117: 0 | BH117: 0 | BI117: 0 | BJ117: 0 | BK117: 0 | BL117: 0 | BM117: 0 | BN117: 0 | BO117: 0 | BP117: 0 | BQ117: 0 | BR117: 0
D118: Total
F119: Total | K119: 1818.838018 | L119: 1264.73141 | M119: 1187.454075 | N119: 1118.103189 | O119: 1057.638791 | P119: 645.1993549 | Q119: 612.8337777 | R119: 183.6355727 | S119: 177.219747 | T119: 170.7877349 | U119: 66.70825019 | V119: 61.67972115 | W119: 56.7391345 | X119: 51.7972416 | Y119: 46.86617435 | Z119: 41.93261269 | AA119: 36.99730936 | AB119: 32.01879617 | AC119: 27.03856964 | AD119: 22.05747226 | AE119: 20.15919683 | AF119: 18.34399824 | AG119: 16.89373541 | AH119: 15.44347259 | AI119: 13.99320976 | AJ119: 12.39477713 | AK119: 10.97254492 | AL119: 9.586527778 | AM119: 8.253862892 | AN119: 7.104832265 | AO119: 6.322590693 | AP119: 5.535167596 | AQ119: 4.753517888 | AR119: 4.132710931 | AS119: 3.473974105 | AT119: 2.900042175 | AU119: 2.326110246 | AV119: 1.752520053 | AW119: 1.178929861 | AX119: 0.6053396688 | AY119: 0.3247876052 | AZ119: 0.1872241912 | BA119: 0.04966077713 | BB119: 7.709475721e-08 | BC119: 7.709475721e-08 | BD119: 7.709475721e-08 | BE119: 7.709475721e-08 | BF119: 7.709475721e-08 | BG119: 7.709475721e-08 | BH119: 7.709475721e-08 | BI119: -2.701349279e-16 | BJ119: -2.701349279e-16 | BK119: -2.701349279e-16 | BL119: -2.701349279e-16 | BM119: -2.701349279e-16 | BN119: -2.701349279e-16 | BO119: -2.701349279e-16 | BP119: -2.701349279e-16 | BQ119: -2.701349279e-16 | BR119: -2.701349279e-16
F123: Principal Payments | K123: 2025 | L123: 2026 | M123: 2027 | N123: 2028 | O123: 2029 | P123: 2030 | Q123: 2031 | R123: 2032 | S123: 2033 | T123: 2034 | U123: 2035 | V123: 2036 | W123: 2037 | X123: 2038 | Y123: 2039 | Z123: 2040 | AA123: 2041 | AB123: 2042 | AC123: 2043 | AD123: 2044 | AE123: 2045 | AF123: 2046 | AG123: 2047 | AH123: 2048 | AI123: 2049 | AJ123: 2050 | AK123: 2051 | AL123: 2052 | AM123: 2053 | AN123: 2054 | AO123: 2055 | AP123: 2056 | AQ123: 2057 | AR123: 2058 | AS123: 2059 | AT123: 2060 | AU123: 2061 | AV123: 2062 | AW123: 2063 | AX123: 2064 | AY123: 2065 | AZ123: 2066 | BA123: 2067 | BB123: 2068 | BC123: 2069 | BD123: 2070 | BE123: 2071 | BF123: 2072 | BG123: 2073 | BH123: 2074 | BI123: 2075 | BJ123: 2076 | BK123: 2077 | BL123: 2078 | BM123: 2079 | BN123: 2080 | BO123: 2081 | BP123: 2082 | BQ123: 2083 | BR123: 2084
F124: Using projected exchange and interest rates
F125: Domestic | K125: 3831.304677 | L125: 100.37065 | M125: 125.31763 | N125: 0 | O125: 2541.526802 | P125: 0 | Q125: 2548.629874 | R125: 0 | S125: 0 | T125: 591.7 | U125: 0 | V125: 0 | W125: 0 | X125: 0 | Y125: 0 | Z125: 0 | AA125: 0 | AB125: 0 | AC125: 0 | AD125: 0 | AE125: 0 | AF125: 0 | AG125: 0 | AH125: 0 | AI125: 0 | AJ125: 0 | AK125: 0 | AL125: 0 | AM125: 0 | AN125: 0 | AO125: 0 | AP125: 0 | AQ125: 0 | AR125: 0 | AS125: 0 | AT125: 0 | AU125: 0 | AV125: 0 | AW125: 0 | AX125: 0 | AY125: 0 | AZ125: 0 | BA125: 0 | BB125: 0 | BC125: 0 | BD125: 0 | BE125: 0 | BF125: 0 | BG125: 0 | BH125: 0 | BI125: 0 | BJ125: 0 | BK125: 0 | BL125: 0 | BM125: 0 | BN125: 0 | BO125: 0 | BP125: 0 | BQ125: 0 | BR125: 0
E126: 3831.304677 | F126: T-bills | K126: 3831.304677 | L126: 0 | M126: 0 | N126: 0 | O126: 0 | P126: 0 | Q126: 0 | R126: 0 | S126: 0 | T126: 0 | U126: 0 | V126: 0 | W126: 0 | X126: 0 | Y126: 0 | Z126: 0 | AA126: 0 | AB126: 0 | AC126: 0 | AD126: 0 | AE126: 0 | AF126: 0 | AG126: 0 | AH126: 0 | AI126: 0 | AJ126: 0 | AK126: 0 | AL126: 0 | AM126: 0 | AN126: 0 | AO126: 0 | AP126: 0 | AQ126: 0 | AR126: 0 | AS126: 0 | AT126: 0 | AU126: 0 | AV126: 0 | AW126: 0 | AX126: 0 | AY126: 0 | AZ126: 0 | BA126: 0 | BB126: 0 | BC126: 0 | BD126: 0 | BE126: 0 | BF126: 0 | BG126: 0 | BH126: 0 | BI126: 0 | BJ126: 0 | BK126: 0 | BL126: 0 | BM126: 0 | BN126: 0 | BO126: 0 | BP126: 0 | BQ126: 0 | BR126: 0
E127: 0 | F127: Var | K127: 0 | L127: 0 | M127: 0 | N127: 0 | O127: 0 | P127: 0 | Q127: 0 | R127: 0 | S127: 0 | T127: 0 | U127: 0 | V127: 0 | W127: 0 | X127: 0 | Y127: 0 | Z127: 0 | AA127: 0 | AB127: 0 | AC127: 0 | AD127: 0 | AE127: 0 | AF127: 0 | AG127: 0 | AH127: 0 | AI127: 0 | AJ127: 0 | AK127: 0 | AL127: 0 | AM127: 0 | AN127: 0 | AO127: 0 | AP127: 0 | AQ127: 0 | AR127: 0 | AS127: 0 | AT127: 0 | AU127: 0 | AV127: 0 | AW127: 0 | AX127: 0 | AY127: 0 | AZ127: 0 | BA127: 0 | BB127: 0 | BC127: 0 | BD127: 0 | BE127: 0 | BF127: 0 | BG127: 0 | BH127: 0 | BI127: 0 | BJ127: 0 | BK127: 0 | BL127: 0 | BM127: 0 | BN127: 0 | BO127: 0 | BP127: 0 | BQ127: 0 | BR127: 0
E128: 5907.544956 | F128: Fix | K128: 0 | L128: 100.37065 | M128: 125.31763 | N128: 0 | O128: 2541.526802 | P128: 0 | Q128: 2548.629874 | R128: 0 | S128: 0 | T128: 591.7 | U128: 0 | V128: 0 | W128: 0 | X128: 0 | Y128: 0 | Z128: 0 | AA128: 0 | AB128: 0 | AC128: 0 | AD128: 0 | AE128: 0 | AF128: 0 | AG128: 0 | AH128: 0 | AI128: 0 | AJ128: 0 | AK128: 0 | AL128: 0 | AM128: 0 | AN128: 0 | AO128: 0 | AP128: 0 | AQ128: 0 | AR128: 0 | AS128: 0 | AT128: 0 | AU128: 0 | AV128: 0 | AW128: 0 | AX128: 0 | AY128: 0 | AZ128: 0 | BA128: 0 | BB128: 0 | BC128: 0 | BD128: 0 | BE128: 0 | BF128: 0 | BG128: 0 | BH128: 0 | BI128: 0 | BJ128: 0 | BK128: 0 | BL128: 0 | BM128: 0 | BN128: 0 | BO128: 0 | BP128: 0 | BQ128: 0 | BR128: 0
F129: External | K129: 2528.042495 | L129: 2288.747677 | M129: 1947.22831 | N129: 1976.805068 | O129: 1316.33815 | P129: 995.7634589 | Q129: 1026.202129 | R129: 650.4696905 | S129: 652.5988432 | T129: 654.8156314 | U129: 618.5853982 | V129: 614.7675726 | W129: 614.8981975 | X129: 613.3967222 | Y129: 613.6712538 | Z129: 613.8454214 | AA129: 619.5486797 | AB129: 619.7190704 | AC129: 619.8061552 | AD129: 211.4918472 | AE129: 203.2161262 | AF129: 193.3683767 | AG129: 193.3683767 | AH129: 193.3683767 | AI129: 213.1243509 | AJ129: 189.6309607 | AK129: 184.8022861 | AL129: 177.6886514 | AM129: 153.2040837 | AN129: 104.2988763 | AO129: 104.9897462 | AP129: 104.2199611 | AQ129: 82.77426084 | AR129: 87.83157687 | AS129: 76.52425729 | AT129: 76.52425729 | AU129: 76.4786923 | AV129: 76.4786923 | AW129: 76.4786923 | AX129: 37.40694181 | AY129: 18.34178854 | AZ129: 18.34178854 | BA129: 6.621426671 | BB129: 0 | BC129: 0 | BD129: 0 | BE129: 0 | BF129: 0 | BG129: 0 | BH129: 0 | BI129: 0 | BJ129: 0 | BK129: 0 | BL129: 0 | BM129: 0 | BN129: 0 | BO129: 0 | BP129: 0 | BQ129: 0 | BR129: 0
E130: 0 | F130: T-bills | K130: 0 | L130: 0 | M130: 0 | N130: 0 | O130: 0 | P130: 0 | Q130: 0 | R130: 0 | S130: 0 | T130: 0 | U130: 0 | V130: 0 | W130: 0 | X130: 0 | Y130: 0 | Z130: 0 | AA130: 0 | AB130: 0 | AC130: 0 | AD130: 0 | AE130: 0 | AF130: 0 | AG130: 0 | AH130: 0 | AI130: 0 | AJ130: 0 | AK130: 0 | AL130: 0 | AM130: 0 | AN130: 0 | AO130: 0 | AP130: 0 | AQ130: 0 | AR130: 0 | AS130: 0 | AT130: 0 | AU130: 0 | AV130: 0 | AW130: 0 | AX130: 0 | AY130: 0 | AZ130: 0 | BA130: 0 | BB130: 0 | BC130: 0 | BD130: 0 | BE130: 0 | BF130: 0 | BG130: 0 | BH130: 0 | BI130: 0 | BJ130: 0 | BK130: 0 | BL130: 0 | BM130: 0 | BN130: 0 | BO130: 0 | BP130: 0 | BQ130: 0 | BR130: 0
E131: 4939.66424 | F131: Var | K131: 959.1697216 | L131: 1087.023437 | M131: 779.5507741 | N131: 732.115777 | O131: 396.8133819 | P131: 429.5912215 | Q131: 409.3026563 | R131: 47.9112019 | S131: 47.9112019 | T131: 47.9112019 | U131: 2.363664761 | V131: 0 | W131: 0 | X131: 0 | Y131: 0 | Z131: 0 | AA131: 0 | AB131: 0 | AC131: 0 | AD131: 0 | AE131: 0 | AF131: 0 | AG131: 0 | AH131: 0 | AI131: 0 | AJ131: 0 | AK131: 0 | AL131: 0 | AM131: 0 | AN131: 0 | AO131: 0 | AP131: 0 | AQ131: 0 | AR131: 0 | AS131: 0 | AT131: 0 | AU131: 0 | AV131: 0 | AW131: 0 | AX131: 0 | AY131: 0 | AZ131: 0 | BA131: 0 | BB131: 0 | BC131: 0 | BD131: 0 | BE131: 0 | BF131: 0 | BG131: 0 | BH131: 0 | BI131: 0 | BJ131: 0 | BK131: 0 | BL131: 0 | BM131: 0 | BN131: 0 | BO131: 0 | BP131: 0 | BQ131: 0 | BR131: 0
E132: 17506.16008 | F132: Fix | K132: 1568.872774 | L132: 1201.724239 | M132: 1167.677536 | N132: 1244.689291 | O132: 919.5247685 | P132: 566.1722373 | Q132: 616.8994725 | R132: 602.5584886 | S132: 604.6876413 | T132: 606.9044295 | U132: 616.2217335 | V132: 614.7675726 | W132: 614.8981975 | X132: 613.3967222 | Y132: 613.6712538 | Z132: 613.8454214 | AA132: 619.5486797 | AB132: 619.7190704 | AC132: 619.8061552 | AD132: 211.4918472 | AE132: 203.2161262 | AF132: 193.3683767 | AG132: 193.3683767 | AH132: 193.3683767 | AI132: 213.1243509 | AJ132: 189.6309607 | AK132: 184.8022861 | AL132: 177.6886514 | AM132: 153.2040837 | AN132: 104.2988763 | AO132: 104.9897462 | AP132: 104.2199611 | AQ132: 82.77426084 | AR132: 87.83157687 | AS132: 76.52425729 | AT132: 76.52425729 | AU132: 76.4786923 | AV132: 76.4786923 | AW132: 76.4786923 | AX132: 37.40694181 | AY132: 18.34178854 | AZ132: 18.34178854 | BA132: 6.621426671 | BB132: 0 | BC132: 0 | BD132: 0 | BE132: 0 | BF132: 0 | BG132: 0 | BH132: 0 | BI132: 0 | BJ132: 0 | BK132: 0 | BL132: 0 | BM132: 0 | BN132: 0 | BO132: 0 | BP132: 0 | BQ132: 0 | BR132: 0
F133: Total | K133: 6359.347172 | L133: 2389.118327 | M133: 2072.54594 | N133: 1976.805068 | O133: 3857.864952 | P133: 995.7634589 | Q133: 3574.832003 | R133: 650.4696905 | S133: 652.5988432 | T133: 1246.515631 | U133: 618.5853982 | V133: 614.7675726 | W133: 614.8981975 | X133: 613.3967222 | Y133: 613.6712538 | Z133: 613.8454214 | AA133: 619.5486797 | AB133: 619.7190704 | AC133: 619.8061552 | AD133: 211.4918472 | AE133: 203.2161262 | AF133: 193.3683767 | AG133: 193.3683767 | AH133: 193.3683767 | AI133: 213.1243509 | AJ133: 189.6309607 | AK133: 184.8022861 | AL133: 177.6886514 | AM133: 153.2040837 | AN133: 104.2988763 | AO133: 104.9897462 | AP133: 104.2199611 | AQ133: 82.77426084 | AR133: 87.83157687 | AS133: 76.52425729 | AT133: 76.52425729 | AU133: 76.4786923 | AV133: 76.4786923 | AW133: 76.4786923 | AX133: 37.40694181 | AY133: 18.34178854 | AZ133: 18.34178854 | BA133: 6.621426671 | BB133: 0 | BC133: 0 | BD133: 0 | BE133: 0 | BF133: 0 | BG133: 0 | BH133: 0 | BI133: 0 | BJ133: 0 | BK133: 0 | BL133: 0 | BM133: 0 | BN133: 0 | BO133: 0 | BP133: 0 | BQ133: 0 | BR133: 0
F134: CHECK | K134: 0 | L134: 0 | M134: 0 | N134: 0 | O134: 0 | P134: 0 | Q134: 0 | R134: 0 | S134: 0 | T134: 0 | U134: 0 | V134: 0 | W134: 0 | X134: 0 | Y134: 0 | Z134: 0 | AA134: 0 | AB134: 0 | AC134: 0 | AD134: 0 | AE134: 0 | AF134: 0 | AG134: 0 | AH134: 0 | AI134: 0 | AJ134: 0 | AK134: 0 | AL134: 0 | AM134: 0 | AN134: 0 | AO134: 0 | AP134: 0 | AQ134: 0 | AR134: 0 | AS134: 0 | AT134: 0 | AU134: 0 | AV134: 0 | AW134: 0 | AX134: 0 | AY134: 0 | AZ134: 0 | BA134: 0 | BB134: 0 | BC134: 0 | BD134: 0 | BE134: 0 | BF134: 0 | BG134: 0 | BH134: 0 | BI134: 0 | BJ134: 0 | BK134: 0 | BL134: 0 | BM134: 0 | BN134: 0 | BO134: 0 | BP134: 0 | BQ134: 0 | BR134: 0
F138: Interest Payments | K138: 2025 | L138: 2026 | M138: 2027 | N138: 2028 | O138: 2029 | P138: 2030 | Q138: 2031 | R138: 2032 | S138: 2033 | T138: 2034 | U138: 2035 | V138: 2036 | W138: 2037 | X138: 2038 | Y138: 2039 | Z138: 2040 | AA138: 2041 | AB138: 2042 | AC138: 2043 | AD138: 2044 | AE138: 2045 | AF138: 2046 | AG138: 2047 | AH138: 2048 | AI138: 2049 | AJ138: 2050 | AK138: 2051 | AL138: 2052 | AM138: 2053 | AN138: 2054 | AO138: 2055 | AP138: 2056 | AQ138: 2057 | AR138: 2058 | AS138: 2059 | AT138: 2060 | AU138: 2061 | AV138: 2062 | AW138: 2063 | AX138: 2064 | AY138: 2065 | AZ138: 2066 | BA138: 2067 | BB138: 2068 | BC138: 2069 | BD138: 2070 | BE138: 2071 | BF138: 2072 | BG138: 2073 | BH138: 2074 | BI138: 2075 | BJ138: 2076 | BK138: 2077 | BL138: 2078 | BM138: 2079 | BN138: 2080 | BO138: 2081 | BP138: 2082 | BQ138: 2083 | BR138: 2084
F139: Using projected exchange and interest rates
F140: Domestic | K140: 1394.506272 | L140: 896.4366642 | M140: 882.7862558 | N140: 864.9911524 | O140: 864.9911524 | P140: 488.8451857 | Q140: 488.8451857 | R140: 97.6305 | S140: 97.6305 | T140: 97.6305 | U140: 0 | V140: 0 | W140: 0 | X140: 0 | Y140: 0 | Z140: 0 | AA140: 0 | AB140: 0 | AC140: 0 | AD140: 0 | AE140: 0 | AF140: 0 | AG140: 0 | AH140: 0 | AI140: 0 | AJ140: 0 | AK140: 0 | AL140: 0 | AM140: 0 | AN140: 0 | AO140: 0 | AP140: 0 | AQ140: 0 | AR140: 0 | AS140: 0 | AT140: 0 | AU140: 0 | AV140: 0 | AW140: 0 | AX140: 0 | AY140: 0 | AZ140: 0 | BA140: 0 | BB140: 0 | BC140: 0 | BD140: 0 | BE140: 0 | BF140: 0 | BG140: 0 | BH140: 0 | BI140: 0 | BJ140: 0 | BK140: 0 | BL140: 0 | BM140: 0 | BN140: 0 | BO140: 0 | BP140: 0 | BQ140: 0 | BR140: 0
F141: T-bills | K141: 498.069608 | L141: 0 | M141: 0 | N141: 0 | O141: 0 | P141: 0 | Q141: 0 | R141: 0 | S141: 0 | T141: 0 | U141: 0 | V141: 0 | W141: 0 | X141: 0 | Y141: 0 | Z141: 0 | AA141: 0 | AB141: 0 | AC141: 0 | AD141: 0 | AE141: 0 | AF141: 0 | AG141: 0 | AH141: 0 | AI141: 0 | AJ141: 0 | AK141: 0 | AL141: 0 | AM141: 0 | AN141: 0 | AO141: 0 | AP141: 0 | AQ141: 0 | AR141: 0 | AS141: 0 | AT141: 0 | AU141: 0 | AV141: 0 | AW141: 0 | AX141: 0 | AY141: 0 | AZ141: 0 | BA141: 0 | BB141: 0 | BC141: 0 | BD141: 0 | BE141: 0 | BF141: 0 | BG141: 0 | BH141: 0 | BI141: 0 | BJ141: 0 | BK141: 0 | BL141: 0 | BM141: 0 | BN141: 0 | BO141: 0 | BP141: 0 | BQ141: 0 | BR141: 0
F142: Var | K142: 0 | L142: 0 | M142: 0 | N142: 0 | O142: 0 | P142: 0 | Q142: 0 | R142: 0 | S142: 0 | T142: 0 | U142: 0 | V142: 0 | W142: 0 | X142: 0 | Y142: 0 | Z142: 0 | AA142: 0 | AB142: 0 | AC142: 0 | AD142: 0 | AE142: 0 | AF142: 0 | AG142: 0 | AH142: 0 | AI142: 0 | AJ142: 0 | AK142: 0 | AL142: 0 | AM142: 0 | AN142: 0 | AO142: 0 | AP142: 0 | AQ142: 0 | AR142: 0 | AS142: 0 | AT142: 0 | AU142: 0 | AV142: 0 | AW142: 0 | AX142: 0 | AY142: 0 | AZ142: 0 | BA142: 0 | BB142: 0 | BC142: 0 | BD142: 0 | BE142: 0 | BF142: 0 | BG142: 0 | BH142: 0 | BI142: 0 | BJ142: 0 | BK142: 0 | BL142: 0 | BM142: 0 | BN142: 0 | BO142: 0 | BP142: 0 | BQ142: 0 | BR142: 0
F143: Fix | K143: 896.4366642 | L143: 896.4366642 | M143: 882.7862558 | N143: 864.9911524 | O143: 864.9911524 | P143: 488.8451857 | Q143: 488.8451857 | R143: 97.6305 | S143: 97.6305 | T143: 97.6305 | U143: 0 | V143: 0 | W143: 0 | X143: 0 | Y143: 0 | Z143: 0 | AA143: 0 | AB143: 0 | AC143: 0 | AD143: 0 | AE143: 0 | AF143: 0 | AG143: 0 | AH143: 0 | AI143: 0 | AJ143: 0 | AK143: 0 | AL143: 0 | AM143: 0 | AN143: 0 | AO143: 0 | AP143: 0 | AQ143: 0 | AR143: 0 | AS143: 0 | AT143: 0 | AU143: 0 | AV143: 0 | AW143: 0 | AX143: 0 | AY143: 0 | AZ143: 0 | BA143: 0 | BB143: 0 | BC143: 0 | BD143: 0 | BE143: 0 | BF143: 0 | BG143: 0 | BH143: 0 | BI143: 0 | BJ143: 0 | BK143: 0 | BL143: 0 | BM143: 0 | BN143: 0 | BO143: 0 | BP143: 0 | BQ143: 0 | BR143: 0
F144: External | K144: 424.3317458 | L144: 368.2947463 | M144: 304.6678187 | N144: 253.1120364 | O144: 192.6476386 | P144: 156.3541692 | Q144: 123.988592 | R144: 86.0050727 | S144: 79.58924699 | T144: 73.15723492 | U144: 66.70825019 | V144: 61.67972115 | W144: 56.7391345 | X144: 51.7972416 | Y144: 46.86617435 | Z144: 41.93261269 | AA144: 36.99730936 | AB144: 32.01879617 | AC144: 27.03856964 | AD144: 22.05747226 | AE144: 20.15919683 | AF144: 18.34399824 | AG144: 16.89373541 | AH144: 15.44347259 | AI144: 13.99320976 | AJ144: 12.39477713 | AK144: 10.97254492 | AL144: 9.586527778 | AM144: 8.253862892 | AN144: 7.104832265 | AO144: 6.322590693 | AP144: 5.535167596 | AQ144: 4.753517888 | AR144: 4.132710931 | AS144: 3.473974105 | AT144: 2.900042175 | AU144: 2.326110246 | AV144: 1.752520053 | AW144: 1.178929861 | AX144: 0.6053396688 | AY144: 0.3247876052 | AZ144: 0.1872241912 | BA144: 0.04966077713 | BB144: 7.709475721e-08 | BC144: 7.709475721e-08 | BD144: 7.709475721e-08 | BE144: 7.709475721e-08 | BF144: 7.709475721e-08 | BG144: 7.709475721e-08 | BH144: 7.709475721e-08 | BI144: -2.701349279e-16 | BJ144: -2.701349279e-16 | BK144: -2.701349279e-16 | BL144: -2.701349279e-16 | BM144: -2.701349279e-16 | BN144: -2.701349279e-16 | BO144: -2.701349279e-16 | BP144: -2.701349279e-16 | BQ144: -2.701349279e-16 | BR144: -2.701349279e-16
F145: T-bills | K145: 0 | L145: 0 | M145: 0 | N145: 0 | O145: 0 | P145: 0 | Q145: 0 | R145: 0 | S145: 0 | T145: 0 | U145: 0 | V145: 0 | W145: 0 | X145: 0 | Y145: 0 | Z145: 0 | AA145: 0 | AB145: 0 | AC145: 0 | AD145: 0 | AE145: 0 | AF145: 0 | AG145: 0 | AH145: 0 | AI145: 0 | AJ145: 0 | AK145: 0 | AL145: 0 | AM145: 0 | AN145: 0 | AO145: 0 | AP145: 0 | AQ145: 0 | AR145: 0 | AS145: 0 | AT145: 0 | AU145: 0 | AV145: 0 | AW145: 0 | AX145: 0 | AY145: 0 | AZ145: 0 | BA145: 0 | BB145: 0 | BC145: 0 | BD145: 0 | BE145: 0 | BF145: 0 | BG145: 0 | BH145: 0 | BI145: 0 | BJ145: 0 | BK145: 0 | BL145: 0 | BM145: 0 | BN145: 0 | BO145: 0 | BP145: 0 | BQ145: 0 | BR145: 0
F146: Var | K146: 228.567371 | L146: 209.2700137 | M146: 167.1579719 | N146: 134.2747523 | O146: 95.02097856 | P146: 70.07036434 | Q146: 37.81046897 | R146: 4.781763662 | S146: 3.213630024 | T146: 1.645496386 | U146: 0.07736274764 | V146: -2.175524169e-16 | W146: -2.175524169e-16 | X146: -2.175524169e-16 | Y146: -2.175524169e-16 | Z146: -2.175524169e-16 | AA146: -2.175524169e-16 | AB146: -2.175524169e-16 | AC146: -2.175524169e-16 | AD146: -2.175524169e-16 | AE146: -2.175524169e-16 | AF146: -2.175524169e-16 | AG146: -2.175524169e-16 | AH146: -2.175524169e-16 | AI146: -2.175524169e-16 | AJ146: -2.175524169e-16 | AK146: -2.175524169e-16 | AL146: -2.175524169e-16 | AM146: -2.175524169e-16 | AN146: -2.175524169e-16 | AO146: -2.175524169e-16 | AP146: -2.175524169e-16 | AQ146: -2.175524169e-16 | AR146: -2.175524169e-16 | AS146: -2.175524169e-16 | AT146: -2.175524169e-16 | AU146: -2.175524169e-16 | AV146: -2.175524169e-16 | AW146: -2.175524169e-16 | AX146: -2.175524169e-16 | AY146: -2.175524169e-16 | AZ146: -2.175524169e-16 | BA146: -2.175524169e-16 | BB146: -2.175524169e-16 | BC146: -2.175524169e-16 | BD146: -2.175524169e-16 | BE146: -2.175524169e-16 | BF146: -2.175524169e-16 | BG146: -2.175524169e-16 | BH146: -2.175524169e-16 | BI146: -2.701349279e-16 | BJ146: -2.701349279e-16 | BK146: -2.701349279e-16 | BL146: -2.701349279e-16 | BM146: -2.701349279e-16 | BN146: -2.701349279e-16 | BO146: -2.701349279e-16 | BP146: -2.701349279e-16 | BQ146: -2.701349279e-16 | BR146: -2.701349279e-16
F147: Fix | K147: 195.7643748 | L147: 159.0247326 | M147: 137.5098468 | N147: 118.8372841 | O147: 97.62666 | P147: 86.28380488 | Q147: 86.17812307 | R147: 81.22330904 | S147: 76.37561696 | T147: 71.51173854 | U147: 66.63088744 | V147: 61.67972115 | W147: 56.7391345 | X147: 51.7972416 | Y147: 46.86617435 | Z147: 41.93261269 | AA147: 36.99730936 | AB147: 32.01879617 | AC147: 27.03856964 | AD147: 22.05747226 | AE147: 20.15919683 | AF147: 18.34399824 | AG147: 16.89373541 | AH147: 15.44347259 | AI147: 13.99320976 | AJ147: 12.39477713 | AK147: 10.97254492 | AL147: 9.586527778 | AM147: 8.253862892 | AN147: 7.104832265 | AO147: 6.322590693 | AP147: 5.535167596 | AQ147: 4.753517888 | AR147: 4.132710931 | AS147: 3.473974105 | AT147: 2.900042175 | AU147: 2.326110246 | AV147: 1.752520053 | AW147: 1.178929861 | AX147: 0.6053396688 | AY147: 0.3247876052 | AZ147: 0.1872241912 | BA147: 0.04966077713 | BB147: 7.709475743e-08 | BC147: 7.709475743e-08 | BD147: 7.709475743e-08 | BE147: 7.709475743e-08 | BF147: 7.709475743e-08 | BG147: 7.709475743e-08 | BH147: 7.709475743e-08 | BI147: 0 | BJ147: 0 | BK147: 0 | BL147: 0 | BM147: 0 | BN147: 0 | BO147: 0 | BP147: 0 | BQ147: 0 | BR147: 0
F148: Total | K148: 1818.838018 | L148: 1264.73141 | M148: 1187.454075 | N148: 1118.103189 | O148: 1057.638791 | P148: 645.1993549 | Q148: 612.8337777 | R148: 183.6355727 | S148: 177.219747 | T148: 170.7877349 | U148: 66.70825019 | V148: 61.67972115 | W148: 56.7391345 | X148: 51.7972416 | Y148: 46.86617435 | Z148: 41.93261269 | AA148: 36.99730936 | AB148: 32.01879617 | AC148: 27.03856964 | AD148: 22.05747226 | AE148: 20.15919683 | AF148: 18.34399824 | AG148: 16.89373541 | AH148: 15.44347259 | AI148: 13.99320976 | AJ148: 12.39477713 | AK148: 10.97254492 | AL148: 9.586527778 | AM148: 8.253862892 | AN148: 7.104832265 | AO148: 6.322590693 | AP148: 5.535167596 | AQ148: 4.753517888 | AR148: 4.132710931 | AS148: 3.473974105 | AT148: 2.900042175 | AU148: 2.326110246 | AV148: 1.752520053 | AW148: 1.178929861 | AX148: 0.6053396688 | AY148: 0.3247876052 | AZ148: 0.1872241912 | BA148: 0.04966077713 | BB148: 7.709475721e-08 | BC148: 7.709475721e-08 | BD148: 7.709475721e-08 | BE148: 7.709475721e-08 | BF148: 7.709475721e-08 | BG148: 7.709475721e-08 | BH148: 7.709475721e-08 | BI148: -2.701349279e-16 | BJ148: -2.701349279e-16 | BK148: -2.701349279e-16 | BL148: -2.701349279e-16 | BM148: -2.701349279e-16 | BN148: -2.701349279e-16 | BO148: -2.701349279e-16 | BP148: -2.701349279e-16 | BQ148: -2.701349279e-16 | BR148: -2.701349279e-16
F149: CHECK | K149: 0 | L149: 0 | M149: 0 | N149: 0 | O149: 0 | P149: 0 | Q149: 0 | R149: 0 | S149: 0 | T149: 0 | U149: 0 | V149: 0 | W149: 0 | X149: 0 | Y149: 0 | Z149: 0 | AA149: 0 | AB149: 0 | AC149: 0 | AD149: 0 | AE149: 0 | AF149: 0 | AG149: 0 | AH149: 0 | AI149: 0 | AJ149: 0 | AK149: 0 | AL149: 0 | AM149: 0 | AN149: 0 | AO149: 0 | AP149: 0 | AQ149: 0 | AR149: 0 | AS149: 0 | AT149: 0 | AU149: 0 | AV149: 0 | AW149: 0 | AX149: 0 | AY149: 0 | AZ149: 0 | BA149: 0 | BB149: 0 | BC149: 0 | BD149: 0 | BE149: 0 | BF149: 0 | BG149: 0 | BH149: 0 | BI149: 0 | BJ149: 0 | BK149: 0 | BL149: 0 | BM149: 0 | BN149: 0 | BO149: 0 | BP149: 0 | BQ149: 0 | BR149: 0
B153: PART 2 | F153: FROM MACRO AND MARKET WORKSHEET
G155: 2024 | H155: 2025 | I155: 2026 | J155: 2027 | K155: 2028 | L155: 2029 | M155: 2030 | N155: 2031 | O155: 2032 | P155: 2033 | Q155: 2034
F156: UTP millions
F157: Budgeted Revenue and Grants | G157: 11351.35135 | H157: 12530.33812 | I157: 15930.75831 | J157: 17175.66174 | K157: 18120.11688 | L157: 19475.64644 | M157: 19475.64644 | N157: 19475.64644 | O157: 19475.64644 | P157: 19475.64644 | Q157: 19475.64644
F158: Budgeted Primary Expenditure | G158: 16123 | H158: 18276.55747 | I158: 19618.04109 | J158: 22442.65542 | K158: 23569.8786 | L158: 24045.25946 | M158: 24045.25946 | N158: 24045.25946 | O158: 24045.25946 | P158: 24045.25946 | Q158: 24045.25946
F159: Total Expenditures including budgeted interest payments | G159: 19906.78378 | H159: 25431.75645 | I159: 29084.65816 | J159: 34539.8637 | K159: 45247.22145 | L159: 49098.10605 | M159: 49098.10605 | N159: 49098.10605 | O159: 49098.10605 | P159: 49098.10605 | Q159: 49098.10605
F160: Budgeted interest payments | G160: 3783.783784 | H160: 7155.198976 | I160: 9466.617071 | J160: 12097.20828 | K160: 21677.34284 | L160: 25052.84659 | M160: 25052.84659 | N160: 25052.84659 | O160: 25052.84659 | P160: 25052.84659 | Q160: 25052.84659
F161: International reserves (USD million) | G161: 2432.432432 | H161: 2702.702703 | I161: 3243.243243 | J161: 4324.324324 | K161: 5664.864865 | L161: 6542.918919 | M161: 6542.918919 | N161: 6542.918919 | O161: 6542.918919 | P161: 6542.918919 | Q161: 6542.918919
F162: GDP | G162: 62162.16216 | H162: 72972.97297 | I162: 86486.48649 | J162: 102702.7027 | K162: 105783.7838 | L162: 108957.2973 | M162: 108957.2973 | N162: 108957.2973 | O162: 108957.2973 | P162: 108957.2973 | Q162: 108957.2973
F164: UTP millions | G164: 2024 | H164: 2025 | I164: 2026 | J164: 2027 | K164: 2028 | L164: 2029 | M164: 2030 | N164: 2031 | O164: 2032 | P164: 2033 | Q164: 2034
F165: Revenues, grants, & other items | G165: 11351.35135 | H165: 12530.33812 | I165: 15930.75831 | J165: 17175.66174 | K165: 18120.11688 | L165: 19475.64644 | M165: 19475.64644 | N165: 19475.64644 | O165: 19475.64644 | P165: 19475.64644 | Q165: 19475.64644
F166: Non-budgetary assets that reduce gross financing requirement | G166: 0 | H166: 0 | I166: 0 | J166: 0 | K166: 0 | L166: 0 | M166: 0 | N166: 0 | O166: 0 | P166: 0 | Q166: 0
F167: Total Cash-flow | G167: 0 | H167: 0 | I167: 0 | J167: 0 | K167: 0 | L167: 0 | M167: 0 | N167: 0 | O167: 0 | P167: 0 | Q167: 0
F168: Use of existing funds/deposits | G168: 0 | H168: 0 | I168: 0 | J168: 0 | K168: 0 | L168: 0 | M168: 0 | N168: 0 | O168: 0 | P168: 0 | Q168: 0
F169: Privatization proceeds/asset sales | G169: 0 | H169: 0 | I169: 0 | J169: 0 | K169: 0 | L169: 0 | M169: 0 | N169: 0 | O169: 0 | P169: 0 | Q169: 0
F170: Other | G170: 0 | H170: 0 | I170: 0 | J170: 0 | K170: 0 | L170: 0 | M170: 0 | N170: 0 | O170: 0 | P170: 0 | Q170: 0
F171: Available Amount (%) | G171: 0 | H171: 0 | I171: 0 | J171: 0 | K171: 0 | L171: 0 | M171: 0 | N171: 0 | O171: 0 | P171: 0 | Q171: 0
F172: Use of existing funds/deposits | G172: 0 | H172: 0 | I172: 0 | J172: 0 | K172: 0 | L172: 0 | M172: 0 | N172: 0 | O172: 0 | P172: 0 | Q172: 0
F173: Privatization proceeds/asset sales | G173: 0 | H173: 0 | I173: 0 | J173: 0 | K173: 0 | L173: 0 | M173: 0 | N173: 0 | O173: 0 | P173: 0 | Q173: 0
F174: Other | G174: 0 | H174: 0 | I174: 0 | J174: 0 | K174: 0 | L174: 0 | M174: 0 | N174: 0 | O174: 0 | P174: 0 | Q174: 0
F176: UTP millions | G176: 2024 | H176: 2025 | I176: 2026 | J176: 2027 | K176: 2028 | L176: 2029 | M176: 2030 | N176: 2031 | O176: 2032 | P176: 2033 | Q176: 2034
F177: Expenditure & other items | G177: 16123 | H177: 18276.55747 | I177: 19618.04109 | J177: 22442.65542 | K177: 23569.8786 | L177: 24045.25946 | M177: 24045.25946 | N177: 24045.25946 | O177: 24045.25946 | P177: 24045.25946 | Q177: 24045.25946
F178: Non-budgeted expenses that increase gross financing requirement | G178: 0 | H178: 0 | I178: 0 | J178: 0 | K178: 0 | L178: 0 | M178: 0 | N178: 0 | O178: 0 | P178: 0 | Q178: 0
F179: Total Cash-flow | G179: 0 | H179: 0 | I179: 0 | J179: 0 | K179: 0 | L179: 0 | M179: 0 | N179: 0 | O179: 0 | P179: 0 | Q179: 0
F180: Contingent Liabilities | G180: 0 | H180: 0 | I180: 0 | J180: 0 | K180: 0 | L180: 0 | M180: 0 | N180: 0 | O180: 0 | P180: 0 | Q180: 0
F181: Arrear clearance / Overdraft repayments/ Asset Acquisition | G181: 0 | H181: 0 | I181: 0 | J181: 0 | K181: 0 | L181: 0 | M181: 0 | N181: 0 | O181: 0 | P181: 0 | Q181: 0
F182: Other | G182: 0 | H182: 0 | I182: 0 | J182: 0 | K182: 0 | L182: 0 | M182: 0 | N182: 0 | O182: 0 | P182: 0 | Q182: 0
F183: Probability/Applicable Amount (%) | G183: 0 | H183: 0 | I183: 0 | J183: 0 | K183: 0 | L183: 0 | M183: 0 | N183: 0 | O183: 0 | P183: 0 | Q183: 0
F184: Contingent Liabilities | G184: 0 | H184: 0 | I184: 0 | J184: 0 | K184: 0 | L184: 0 | M184: 0 | N184: 0 | O184: 0 | P184: 0 | Q184: 0
F185: Arrear clearance / Overdraft repayments/ Asset Acquisition | G185: 0 | H185: 0 | I185: 0 | J185: 0 | K185: 0 | L185: 0 | M185: 0 | N185: 0 | O185: 0 | P185: 0 | Q185: 0
F186: Other | G186: 0 | H186: 0 | I186: 0 | J186: 0 | K186: 0 | L186: 0 | M186: 0 | N186: 0 | O186: 0 | P186: 0 | Q186: 0
G190: 2024 | H190: 2025 | I190: 2026 | J190: 2027 | K190: 2028 | L190: 2029 | M190: 2030 | N190: 2031 | O190: 2032 | P190: 2033 | Q190: 2034 | R190: 2035 | S190: 2036 | T190: 2037 | U190: 2038 | V190: 2039 | W190: 2040 | X190: 2041 | Y190: 2042 | Z190: 2043 | AA190: 2044 | AB190: 2045 | AC190: 2046 | AD190: 2047 | AE190: 2048 | AF190: 2049 | AG190: 2050 | AH190: 2051 | AI190: 2052 | AJ190: 2053 | AK190: 2054 | AL190: 2055 | AM190: 2056 | AN190: 2057 | AO190: 2058 | AP190: 2059 | AQ190: 2060 | AR190: 2061 | AS190: 2062 | AT190: 2063 | AU190: 2064 | AV190: 2065 | AW190: 2066 | AX190: 2067 | AY190: 2068 | AZ190: 2069 | BA190: 2070 | BB190: 2071 | BC190: 2072 | BD190: 2073 | BE190: 2074 | BF190: 2075 | BG190: 2076 | BH190: 2077 | BI190: 2078 | BJ190: 2079 | BK190: 2080 | BL190: 2081 | BM190: 2082 | BN190: 2083 | BO190: 2084
F192: USD | G192: 15 | H192: 15.75391215 | I192: 16.52288795 | J192: 17.32111622 | K192: 18.19424294 | L192: 19.13073491 | M192: 20.17270657 | N192: 21.2714301 | O192: 21.2714301 | P192: 21.2714301 | Q192: 21.2714301 | R192: 21.2714301 | S192: 21.2714301 | T192: 21.2714301 | U192: 21.2714301 | V192: 21.2714301 | W192: 21.2714301 | X192: 21.2714301 | Y192: 21.2714301 | Z192: 21.2714301 | AA192: 21.2714301 | AB192: 21.2714301 | AC192: 21.2714301 | AD192: 21.2714301 | AE192: 21.2714301 | AF192: 21.2714301 | AG192: 21.2714301 | AH192: 21.2714301 | AI192: 21.2714301 | AJ192: 21.2714301 | AK192: 21.2714301 | AL192: 21.2714301 | AM192: 21.2714301 | AN192: 21.2714301 | AO192: 21.2714301 | AP192: 21.2714301 | AQ192: 21.2714301 | AR192: 21.2714301 | AS192: 21.2714301 | AT192: 21.2714301 | AU192: 21.2714301 | AV192: 21.2714301 | AW192: 21.2714301 | AX192: 21.2714301 | AY192: 21.2714301 | AZ192: 21.2714301 | BA192: 21.2714301 | BB192: 21.2714301 | BC192: 21.2714301 | BD192: 21.2714301 | BE192: 21.2714301 | BF192: 21.2714301 | BG192: 21.2714301 | BH192: 21.2714301 | BI192: 21.2714301 | BJ192: 21.2714301 | BK192: 21.2714301 | BL192: 21.2714301 | BM192: 21.2714301 | BN192: 21.2714301 | BO192: 21.2714301
F193: EUR | G193: 15.57632399 | H193: 15.57632399 | I193: 15.57632399 | J193: 15.57632399 | K193: 15.57632399 | L193: 15.57632399 | M193: 15.57632399 | N193: 15.57632399 | O193: 15.57632399 | P193: 15.57632399 | Q193: 15.57632399 | R193: 15.57632399 | S193: 15.57632399 | T193: 15.57632399 | U193: 15.57632399 | V193: 15.57632399 | W193: 15.57632399 | X193: 15.57632399 | Y193: 15.57632399 | Z193: 15.57632399 | AA193: 15.57632399 | AB193: 15.57632399 | AC193: 15.57632399 | AD193: 15.57632399 | AE193: 15.57632399 | AF193: 15.57632399 | AG193: 15.57632399 | AH193: 15.57632399 | AI193: 15.57632399 | AJ193: 15.57632399 | AK193: 15.57632399 | AL193: 15.57632399 | AM193: 15.57632399 | AN193: 15.57632399 | AO193: 15.57632399 | AP193: 15.57632399 | AQ193: 15.57632399 | AR193: 15.57632399 | AS193: 15.57632399 | AT193: 15.57632399 | AU193: 15.57632399 | AV193: 15.57632399 | AW193: 15.57632399 | AX193: 15.57632399 | AY193: 15.57632399 | AZ193: 15.57632399 | BA193: 15.57632399 | BB193: 15.57632399 | BC193: 15.57632399 | BD193: 15.57632399 | BE193: 15.57632399 | BF193: 15.57632399 | BG193: 15.57632399 | BH193: 15.57632399 | BI193: 15.57632399 | BJ193: 15.57632399 | BK193: 15.57632399 | BL193: 15.57632399 | BM193: 15.57632399 | BN193: 15.57632399 | BO193: 15.57632399
F194: JPY | G194: 0.09567150233 | H194: 0.09567150233 | I194: 0.09567150233 | J194: 0.09567150233 | K194: 0.09567150233 | L194: 0.09567150233 | M194: 0.09567150233 | N194: 0.09567150233 | O194: 0.09567150233 | P194: 0.09567150233 | Q194: 0.09567150233 | R194: 0.09567150233 | S194: 0.09567150233 | T194: 0.09567150233 | U194: 0.09567150233 | V194: 0.09567150233 | W194: 0.09567150233 | X194: 0.09567150233 | Y194: 0.09567150233 | Z194: 0.09567150233 | AA194: 0.09567150233 | AB194: 0.09567150233 | AC194: 0.09567150233 | AD194: 0.09567150233 | AE194: 0.09567150233 | AF194: 0.09567150233 | AG194: 0.09567150233 | AH194: 0.09567150233 | AI194: 0.09567150233 | AJ194: 0.09567150233 | AK194: 0.09567150233 | AL194: 0.09567150233 | AM194: 0.09567150233 | AN194: 0.09567150233 | AO194: 0.09567150233 | AP194: 0.09567150233 | AQ194: 0.09567150233 | AR194: 0.09567150233 | AS194: 0.09567150233 | AT194: 0.09567150233 | AU194: 0.09567150233 | AV194: 0.09567150233 | AW194: 0.09567150233 | AX194: 0.09567150233 | AY194: 0.09567150233 | AZ194: 0.09567150233 | BA194: 0.09567150233 | BB194: 0.09567150233 | BC194: 0.09567150233 | BD194: 0.09567150233 | BE194: 0.09567150233 | BF194: 0.09567150233 | BG194: 0.09567150233 | BH194: 0.09567150233 | BI194: 0.09567150233 | BJ194: 0.09567150233 | BK194: 0.09567150233 | BL194: 0.09567150233 | BM194: 0.09567150233 | BN194: 0.09567150233 | BO194: 0.09567150233
F195: CNY | G195: 2.055582963 | H195: 2.055582963 | I195: 2.055582963 | J195: 2.055582963 | K195: 2.055582963 | L195: 2.055582963 | M195: 2.055582963 | N195: 2.055582963 | O195: 2.055582963 | P195: 2.055582963 | Q195: 2.055582963 | R195: 2.055582963 | S195: 2.055582963 | T195: 2.055582963 | U195: 2.055582963 | V195: 2.055582963 | W195: 2.055582963 | X195: 2.055582963 | Y195: 2.055582963 | Z195: 2.055582963 | AA195: 2.055582963 | AB195: 2.055582963 | AC195: 2.055582963 | AD195: 2.055582963 | AE195: 2.055582963 | AF195: 2.055582963 | AG195: 2.055582963 | AH195: 2.055582963 | AI195: 2.055582963 | AJ195: 2.055582963 | AK195: 2.055582963 | AL195: 2.055582963 | AM195: 2.055582963 | AN195: 2.055582963 | AO195: 2.055582963 | AP195: 2.055582963 | AQ195: 2.055582963 | AR195: 2.055582963 | AS195: 2.055582963 | AT195: 2.055582963 | AU195: 2.055582963 | AV195: 2.055582963 | AW195: 2.055582963 | AX195: 2.055582963 | AY195: 2.055582963 | AZ195: 2.055582963 | BA195: 2.055582963 | BB195: 2.055582963 | BC195: 2.055582963 | BD195: 2.055582963 | BE195: 2.055582963 | BF195: 2.055582963 | BG195: 2.055582963 | BH195: 2.055582963 | BI195: 2.055582963 | BJ195: 2.055582963 | BK195: 2.055582963 | BL195: 2.055582963 | BM195: 2.055582963 | BN195: 2.055582963 | BO195: 2.055582963
F196: IDX | G196: 1 | H196: 1 | I196: 1 | J196: 1 | K196: 1 | L196: 1 | M196: 1 | N196: 1 | O196: 1 | P196: 1 | Q196: 1 | R196: 1 | S196: 1 | T196: 1 | U196: 1 | V196: 1 | W196: 1 | X196: 1 | Y196: 1 | Z196: 1 | AA196: 1 | AB196: 1 | AC196: 1 | AD196: 1 | AE196: 1 | AF196: 1 | AG196: 1 | AH196: 1 | AI196: 1 | AJ196: 1 | AK196: 1 | AL196: 1 | AM196: 1 | AN196: 1 | AO196: 1 | AP196: 1 | AQ196: 1 | AR196: 1 | AS196: 1 | AT196: 1 | AU196: 1 | AV196: 1 | AW196: 1 | AX196: 1 | AY196: 1 | AZ196: 1 | BA196: 1 | BB196: 1 | BC196: 1 | BD196: 1 | BE196: 1 | BF196: 1 | BG196: 1 | BH196: 1 | BI196: 1 | BJ196: 1 | BK196: 1 | BL196: 1 | BM196: 1 | BN196: 1 | BO196: 1
F197: UTP | G197: 1 | H197: 1 | I197: 1 | J197: 1 | K197: 1 | L197: 1 | M197: 1 | N197: 1 | O197: 1 | P197: 1 | Q197: 1 | R197: 1 | S197: 1 | T197: 1 | U197: 1 | V197: 1 | W197: 1 | X197: 1 | Y197: 1 | Z197: 1 | AA197: 1 | AB197: 1 | AC197: 1 | AD197: 1 | AE197: 1 | AF197: 1 | AG197: 1 | AH197: 1 | AI197: 1 | AJ197: 1 | AK197: 1 | AL197: 1 | AM197: 1 | AN197: 1 | AO197: 1 | AP197: 1 | AQ197: 1 | AR197: 1 | AS197: 1 | AT197: 1 | AU197: 1 | AV197: 1 | AW197: 1 | AX197: 1 | AY197: 1 | AZ197: 1 | BA197: 1 | BB197: 1 | BC197: 1 | BD197: 1 | BE197: 1 | BF197: 1 | BG197: 1 | BH197: 1 | BI197: 1 | BJ197: 1 | BK197: 1 | BL197: 1 | BM197: 1 | BN197: 1 | BO197: 1
I200: INSTRUMENT INTEREST RATE PROJECTIONS | J200: 2024 | K200: 2025 | L200: 2026 | M200: 2027 | N200: 2028 | O200: 2029 | P200: 2030 | Q200: 2031 | R200: 2032 | S200: 2033 | T200: 2034 | U200: 2035 | V200: 2036 | W200: 2037 | X200: 2038 | Y200: 2039 | Z200: 2040 | AA200: 2041 | AB200: 2042 | AC200: 2043 | AD200: 2044 | AE200: 2045 | AF200: 2046 | AG200: 2047 | AH200: 2048 | AI200: 2049 | AJ200: 2050 | AK200: 2051 | AL200: 2052 | AM200: 2053 | AN200: 2054 | AO200: 2055 | AP200: 2056 | AQ200: 2057 | AR200: 2058 | AS200: 2059 | AT200: 2060 | AU200: 2061 | AV200: 2062 | AW200: 2063 | AX200: 2064 | AY200: 2065 | AZ200: 2066 | BA200: 2067 | BB200: 2068 | BC200: 2069 | BD200: 2070 | BE200: 2071 | BF200: 2072 | BG200: 2073 | BH200: 2074 | BI200: 2075 | BJ200: 2076 | BK200: 2077 | BL200: 2078 | BM200: 2079 | BN200: 2080 | BO200: 2081 | BP200: 2082 | BQ200: 2083 | BR200: 2084
F201: ADF_Fixed | I201: USD_1 | J201: 0.0075 | K201: 0.0075 | L201: 0.0075 | M201: 0.0075 | N201: 0.0075 | O201: 0.0075 | P201: 0.0075 | Q201: 0.0075 | R201: 0.0075 | S201: 0.0075 | T201: 0.0075 | U201: 0.0075 | V201: 0.0075 | W201: 0.0075 | X201: 0.0075 | Y201: 0.0075 | Z201: 0.0075 | AA201: 0.0075 | AB201: 0.0075 | AC201: 0.0075 | AD201: 0.0075 | AE201: 0.0075 | AF201: 0.0075 | AG201: 0.0075 | AH201: 0.0075 | AI201: 0.0075 | AJ201: 0.0075 | AK201: 0.0075 | AL201: 0.0075 | AM201: 0.0075 | AN201: 0.0075 | AO201: 0.0075 | AP201: 0.0075 | AQ201: 0.0075 | AR201: 0.0075 | AS201: 0.0075 | AT201: 0.0075 | AU201: 0.0075 | AV201: 0.0075 | AW201: 0.0075 | AX201: 0.0075 | AY201: 0.0075 | AZ201: 0.0075 | BA201: 0.0075 | BB201: 0.0075 | BC201: 0.0075 | BD201: 0.0075 | BE201: 0.0075 | BF201: 0.0075 | BG201: 0.0075 | BH201: 0.0075 | BI201: 0.0075 | BJ201: 0.0075 | BK201: 0.0075 | BL201: 0.0075 | BM201: 0.0075 | BN201: 0.0075 | BO201: 0.0075 | BP201: 0.0075 | BQ201: 0.0075 | BR201: 0.0075
F202: IDA/IFAD/EDF_Fixed | I202: USD_2 | J202: 0.02 | K202: 0.02 | L202: 0.02 | M202: 0.02 | N202: 0.02 | O202: 0.02 | P202: 0.02 | Q202: 0.02 | R202: 0.02 | S202: 0.02 | T202: 0.02 | U202: 0.02 | V202: 0.02 | W202: 0.02 | X202: 0.02 | Y202: 0.02 | Z202: 0.02 | AA202: 0.02 | AB202: 0.02 | AC202: 0.02 | AD202: 0.02 | AE202: 0.02 | AF202: 0.02 | AG202: 0.02 | AH202: 0.02 | AI202: 0.02 | AJ202: 0.02 | AK202: 0.02 | AL202: 0.02 | AM202: 0.02 | AN202: 0.02 | AO202: 0.02 | AP202: 0.02 | AQ202: 0.02 | AR202: 0.02 | AS202: 0.02 | AT202: 0.02 | AU202: 0.02 | AV202: 0.02 | AW202: 0.02 | AX202: 0.02 | AY202: 0.02 | AZ202: 0.02 | BA202: 0.02 | BB202: 0.02 | BC202: 0.02 | BD202: 0.02 | BE202: 0.02 | BF202: 0.02 | BG202: 0.02 | BH202: 0.02 | BI202: 0.02 | BJ202: 0.02 | BK202: 0.02 | BL202: 0.02 | BM202: 0.02 | BN202: 0.02 | BO202: 0.02 | BP202: 0.02 | BQ202: 0.02 | BR202: 0.02
F203: IBRD/ADB/IDB_Fixed | I203: USD_3 | J203: 0.0275 | K203: 0.0275 | L203: 0.0275 | M203: 0.0275 | N203: 0.0275 | O203: 0.0275 | P203: 0.0275 | Q203: 0.0275 | R203: 0.0275 | S203: 0.0275 | T203: 0.0275 | U203: 0.0275 | V203: 0.0275 | W203: 0.0275 | X203: 0.0275 | Y203: 0.0275 | Z203: 0.0275 | AA203: 0.0275 | AB203: 0.0275 | AC203: 0.0275 | AD203: 0.0275 | AE203: 0.0275 | AF203: 0.0275 | AG203: 0.0275 | AH203: 0.0275 | AI203: 0.0275 | AJ203: 0.0275 | AK203: 0.0275 | AL203: 0.0275 | AM203: 0.0275 | AN203: 0.0275 | AO203: 0.0275 | AP203: 0.0275 | AQ203: 0.0275 | AR203: 0.0275 | AS203: 0.0275 | AT203: 0.0275 | AU203: 0.0275 | AV203: 0.0275 | AW203: 0.0275 | AX203: 0.0275 | AY203: 0.0275 | AZ203: 0.0275 | BA203: 0.0275 | BB203: 0.0275 | BC203: 0.0275 | BD203: 0.0275 | BE203: 0.0275 | BF203: 0.0275 | BG203: 0.0275 | BH203: 0.0275 | BI203: 0.0275 | BJ203: 0.0275 | BK203: 0.0275 | BL203: 0.0275 | BM203: 0.0275 | BN203: 0.0275 | BO203: 0.0275 | BP203: 0.0275 | BQ203: 0.0275 | BR203: 0.0275
F204: IBRD/ADB/IDB_Var | I204: USD_4 | J204: 0.0104 | K204: 0.016615 | L204: 0.022243 | M204: 0.026218 | N204: 0.029886 | O204: 0.03273 | P204: 0.03273 | Q204: 0.03273 | R204: 0.03273 | S204: 0.03273 | T204: 0.03273 | U204: 0.03273 | V204: 0.03273 | W204: 0.03273 | X204: 0.03273 | Y204: 0.03273 | Z204: 0.03273 | AA204: 0.03273 | AB204: 0.03273 | AC204: 0.03273 | AD204: 0.03273 | AE204: 0.03273 | AF204: 0.03273 | AG204: 0.03273 | AH204: 0.03273 | AI204: 0.03273 | AJ204: 0.03273 | AK204: 0.03273 | AL204: 0.03273 | AM204: 0.03273 | AN204: 0.03273 | AO204: 0.03273 | AP204: 0.03273 | AQ204: 0.03273 | AR204: 0.03273 | AS204: 0.03273 | AT204: 0.03273 | AU204: 0.03273 | AV204: 0.03273 | AW204: 0.03273 | AX204: 0.03273 | AY204: 0.03273 | AZ204: 0.03273 | BA204: 0.03273 | BB204: 0.03273 | BC204: 0.03273 | BD204: 0.03273 | BE204: 0.03273 | BF204: 0.03273 | BG204: 0.03273 | BH204: 0.03273 | BI204: 0.03273 | BJ204: 0.03273 | BK204: 0.03273 | BL204: 0.03273 | BM204: 0.03273 | BN204: 0.03273 | BO204: 0.03273 | BP204: 0.03273 | BQ204: 0.03273 | BR204: 0.03273
F205: Bilateral_Fixed | I205: USD_5 | J205: 0.0300354148 | K205: 0.0300354148 | L205: 0.0300354148 | M205: 0.0300354148 | N205: 0.0300354148 | O205: 0.0300354148 | P205: 0.0300354148 | Q205: 0.0300354148 | R205: 0.0300354148 | S205: 0.0300354148 | T205: 0.0300354148 | U205: 0.0300354148 | V205: 0.0300354148 | W205: 0.0300354148 | X205: 0.0300354148 | Y205: 0.0300354148 | Z205: 0.0300354148 | AA205: 0.0300354148 | AB205: 0.0300354148 | AC205: 0.0300354148 | AD205: 0.0300354148 | AE205: 0.0300354148 | AF205: 0.0300354148 | AG205: 0.0300354148 | AH205: 0.0300354148 | AI205: 0.0300354148 | AJ205: 0.0300354148 | AK205: 0.0300354148 | AL205: 0.0300354148 | AM205: 0.0300354148 | AN205: 0.0300354148 | AO205: 0.0300354148 | AP205: 0.0300354148 | AQ205: 0.0300354148 | AR205: 0.0300354148 | AS205: 0.0300354148 | AT205: 0.0300354148 | AU205: 0.0300354148 | AV205: 0.0300354148 | AW205: 0.0300354148 | AX205: 0.0300354148 | AY205: 0.0300354148 | AZ205: 0.0300354148 | BA205: 0.0300354148 | BB205: 0.0300354148 | BC205: 0.0300354148 | BD205: 0.0300354148 | BE205: 0.0300354148 | BF205: 0.0300354148 | BG205: 0.0300354148 | BH205: 0.0300354148 | BI205: 0.0300354148 | BJ205: 0.0300354148 | BK205: 0.0300354148 | BL205: 0.0300354148 | BM205: 0.0300354148 | BN205: 0.0300354148 | BO205: 0.0300354148 | BP205: 0.0300354148 | BQ205: 0.0300354148 | BR205: 0.0300354148
F206: Commercial Bank_Var | I206: USD_6 | J206: 0.06740074981 | K206: 0.07243604981 | L206: 0.07623504981 | M206: 0.07861104981 | N206: 0.07999804981 | O206: 0.08127804981 | P206: 0.08127804981 | Q206: 0.08127804981 | R206: 0.08127804981 | S206: 0.08127804981 | T206: 0.08127804981 | U206: 0.08127804981 | V206: 0.08127804981 | W206: 0.08127804981 | X206: 0.08127804981 | Y206: 0.08127804981 | Z206: 0.08127804981 | AA206: 0.08127804981 | AB206: 0.08127804981 | AC206: 0.08127804981 | AD206: 0.08127804981 | AE206: 0.08127804981 | AF206: 0.08127804981 | AG206: 0.08127804981 | AH206: 0.08127804981 | AI206: 0.08127804981 | AJ206: 0.08127804981 | AK206: 0.08127804981 | AL206: 0.08127804981 | AM206: 0.08127804981 | AN206: 0.08127804981 | AO206: 0.08127804981 | AP206: 0.08127804981 | AQ206: 0.08127804981 | AR206: 0.08127804981 | AS206: 0.08127804981 | AT206: 0.08127804981 | AU206: 0.08127804981 | AV206: 0.08127804981 | AW206: 0.08127804981 | AX206: 0.08127804981 | AY206: 0.08127804981 | AZ206: 0.08127804981 | BA206: 0.08127804981 | BB206: 0.08127804981 | BC206: 0.08127804981 | BD206: 0.08127804981 | BE206: 0.08127804981 | BF206: 0.08127804981 | BG206: 0.08127804981 | BH206: 0.08127804981 | BI206: 0.08127804981 | BJ206: 0.08127804981 | BK206: 0.08127804981 | BL206: 0.08127804981 | BM206: 0.08127804981 | BN206: 0.08127804981 | BO206: 0.08127804981 | BP206: 0.08127804981 | BQ206: 0.08127804981 | BR206: 0.08127804981
F207: 0 | I207: USD_7 | J207: 0 | K207: 0 | L207: 0 | M207: 0 | N207: 0 | O207: 0 | P207: 0 | Q207: 0 | R207: 0 | S207: 0 | T207: 0 | U207: 0 | V207: 0 | W207: 0 | X207: 0 | Y207: 0 | Z207: 0 | AA207: 0 | AB207: 0 | AC207: 0 | AD207: 0 | AE207: 0 | AF207: 0 | AG207: 0 | AH207: 0 | AI207: 0 | AJ207: 0 | AK207: 0 | AL207: 0 | AM207: 0 | AN207: 0 | AO207: 0 | AP207: 0 | AQ207: 0 | AR207: 0 | AS207: 0 | AT207: 0 | AU207: 0 | AV207: 0 | AW207: 0 | AX207: 0 | AY207: 0 | AZ207: 0 | BA207: 0 | BB207: 0 | BC207: 0 | BD207: 0 | BE207: 0 | BF207: 0 | BG207: 0 | BH207: 0 | BI207: 0 | BJ207: 0 | BK207: 0 | BL207: 0 | BM207: 0 | BN207: 0 | BO207: 0 | BP207: 0 | BQ207: 0 | BR207: 0
F208: 0 | I208: USD_8 | J208: 0 | K208: 0 | L208: 0 | M208: 0 | N208: 0 | O208: 0 | P208: 0 | Q208: 0 | R208: 0 | S208: 0 | T208: 0 | U208: 0 | V208: 0 | W208: 0 | X208: 0 | Y208: 0 | Z208: 0 | AA208: 0 | AB208: 0 | AC208: 0 | AD208: 0 | AE208: 0 | AF208: 0 | AG208: 0 | AH208: 0 | AI208: 0 | AJ208: 0 | AK208: 0 | AL208: 0 | AM208: 0 | AN208: 0 | AO208: 0 | AP208: 0 | AQ208: 0 | AR208: 0 | AS208: 0 | AT208: 0 | AU208: 0 | AV208: 0 | AW208: 0 | AX208: 0 | AY208: 0 | AZ208: 0 | BA208: 0 | BB208: 0 | BC208: 0 | BD208: 0 | BE208: 0 | BF208: 0 | BG208: 0 | BH208: 0 | BI208: 0 | BJ208: 0 | BK208: 0 | BL208: 0 | BM208: 0 | BN208: 0 | BO208: 0 | BP208: 0 | BQ208: 0 | BR208: 0
F209: 0 | I209: USD_9 | J209: 0 | K209: 0 | L209: 0 | M209: 0 | N209: 0 | O209: 0 | P209: 0 | Q209: 0 | R209: 0 | S209: 0 | T209: 0 | U209: 0 | V209: 0 | W209: 0 | X209: 0 | Y209: 0 | Z209: 0 | AA209: 0 | AB209: 0 | AC209: 0 | AD209: 0 | AE209: 0 | AF209: 0 | AG209: 0 | AH209: 0 | AI209: 0 | AJ209: 0 | AK209: 0 | AL209: 0 | AM209: 0 | AN209: 0 | AO209: 0 | AP209: 0 | AQ209: 0 | AR209: 0 | AS209: 0 | AT209: 0 | AU209: 0 | AV209: 0 | AW209: 0 | AX209: 0 | AY209: 0 | AZ209: 0 | BA209: 0 | BB209: 0 | BC209: 0 | BD209: 0 | BE209: 0 | BF209: 0 | BG209: 0 | BH209: 0 | BI209: 0 | BJ209: 0 | BK209: 0 | BL209: 0 | BM209: 0 | BN209: 0 | BO209: 0 | BP209: 0 | BQ209: 0 | BR209: 0
F210: 0 | I210: USD_10 | J210: 0 | K210: 0 | L210: 0 | M210: 0 | N210: 0 | O210: 0 | P210: 0 | Q210: 0 | R210: 0 | S210: 0 | T210: 0 | U210: 0 | V210: 0 | W210: 0 | X210: 0 | Y210: 0 | Z210: 0 | AA210: 0 | AB210: 0 | AC210: 0 | AD210: 0 | AE210: 0 | AF210: 0 | AG210: 0 | AH210: 0 | AI210: 0 | AJ210: 0 | AK210: 0 | AL210: 0 | AM210: 0 | AN210: 0 | AO210: 0 | AP210: 0 | AQ210: 0 | AR210: 0 | AS210: 0 | AT210: 0 | AU210: 0 | AV210: 0 | AW210: 0 | AX210: 0 | AY210: 0 | AZ210: 0 | BA210: 0 | BB210: 0 | BC210: 0 | BD210: 0 | BE210: 0 | BF210: 0 | BG210: 0 | BH210: 0 | BI210: 0 | BJ210: 0 | BK210: 0 | BL210: 0 | BM210: 0 | BN210: 0 | BO210: 0 | BP210: 0 | BQ210: 0 | BR210: 0
F211: T-Bills_Fixed | I211: UTP_11 | J211: 0.13 | K211: 0.045 | L211: 0.0486 | M211: 0.0491 | N211: 0.05 | O211: 0.0521 | P211: 0.0521 | Q211: 0.0521 | R211: 0.0521 | S211: 0.0521 | T211: 0.0521 | U211: 0.0521 | V211: 0.0521 | W211: 0.0521 | X211: 0.0521 | Y211: 0.0521 | Z211: 0.0521 | AA211: 0.0521 | AB211: 0.0521 | AC211: 0.0521 | AD211: 0.0521 | AE211: 0.0521 | AF211: 0.0521 | AG211: 0.0521 | AH211: 0.0521 | AI211: 0.0521 | AJ211: 0.0521 | AK211: 0.0521 | AL211: 0.0521 | AM211: 0.0521 | AN211: 0.0521 | AO211: 0.0521 | AP211: 0.0521 | AQ211: 0.0521 | AR211: 0.0521 | AS211: 0.0521 | AT211: 0.0521 | AU211: 0.0521 | AV211: 0.0521 | AW211: 0.0521 | AX211: 0.0521 | AY211: 0.0521 | AZ211: 0.0521 | BA211: 0.0521 | BB211: 0.0521 | BC211: 0.0521 | BD211: 0.0521 | BE211: 0.0521 | BF211: 0.0521 | BG211: 0.0521 | BH211: 0.0521 | BI211: 0.0521 | BJ211: 0.0521 | BK211: 0.0521 | BL211: 0.0521 | BM211: 0.0521 | BN211: 0.0521 | BO211: 0.0521 | BP211: 0.0521 | BQ211: 0.0521 | BR211: 0.0521
F212: T-Bonds 3 YR_Fixed | I212: UTP_12 | J212: 0.139331612 | K212: 0.07277634333 | L212: 0.0733 | M212: 0.0735 | N212: 0.0745 | O212: 0.0747 | P212: 0.075 | Q212: 0.075 | R212: 0.075 | S212: 0.075 | T212: 0.075 | U212: 0.075 | V212: 0.075 | W212: 0.075 | X212: 0.075 | Y212: 0.075 | Z212: 0.075 | AA212: 0.075 | AB212: 0.075 | AC212: 0.075 | AD212: 0.075 | AE212: 0.075 | AF212: 0.075 | AG212: 0.075 | AH212: 0.075 | AI212: 0.075 | AJ212: 0.075 | AK212: 0.075 | AL212: 0.075 | AM212: 0.075 | AN212: 0.075 | AO212: 0.075 | AP212: 0.075 | AQ212: 0.075 | AR212: 0.075 | AS212: 0.075 | AT212: 0.075 | AU212: 0.075 | AV212: 0.075 | AW212: 0.075 | AX212: 0.075 | AY212: 0.075 | AZ212: 0.075 | BA212: 0.075 | BB212: 0.075 | BC212: 0.075 | BD212: 0.075 | BE212: 0.075 | BF212: 0.075 | BG212: 0.075 | BH212: 0.075 | BI212: 0.075 | BJ212: 0.075 | BK212: 0.075 | BL212: 0.075 | BM212: 0.075 | BN212: 0.075 | BO212: 0.075 | BP212: 0.075 | BQ212: 0.075 | BR212: 0.075
F213: T-Bonds 5 YR_Fixed | I213: UTP_13 | J213: 0.1507538375 | K213: 0.08500697726 | L213: 0.0875 | M213: 0.09 | N213: 0.0915 | O213: 0.0925 | P213: 0.0933 | Q213: 0.0933 | R213: 0.0933 | S213: 0.0933 | T213: 0.0933 | U213: 0.0933 | V213: 0.0933 | W213: 0.0933 | X213: 0.0933 | Y213: 0.0933 | Z213: 0.0933 | AA213: 0.0933 | AB213: 0.0933 | AC213: 0.0933 | AD213: 0.0933 | AE213: 0.0933 | AF213: 0.0933 | AG213: 0.0933 | AH213: 0.0933 | AI213: 0.0933 | AJ213: 0.0933 | AK213: 0.0933 | AL213: 0.0933 | AM213: 0.0933 | AN213: 0.0933 | AO213: 0.0933 | AP213: 0.0933 | AQ213: 0.0933 | AR213: 0.0933 | AS213: 0.0933 | AT213: 0.0933 | AU213: 0.0933 | AV213: 0.0933 | AW213: 0.0933 | AX213: 0.0933 | AY213: 0.0933 | AZ213: 0.0933 | BA213: 0.0933 | BB213: 0.0933 | BC213: 0.0933 | BD213: 0.0933 | BE213: 0.0933 | BF213: 0.0933 | BG213: 0.0933 | BH213: 0.0933 | BI213: 0.0933 | BJ213: 0.0933 | BK213: 0.0933 | BL213: 0.0933 | BM213: 0.0933 | BN213: 0.0933 | BO213: 0.0933 | BP213: 0.0933 | BQ213: 0.0933 | BR213: 0.0933
F214: T-Bonds 10 YR_Fixed | I214: UTP_14 | J214: 0.165 | K214: 0.1453 | L214: 0.145 | M214: 0.145 | N214: 0.145 | O214: 0.145 | P214: 0.145 | Q214: 0.145 | R214: 0.145 | S214: 0.145 | T214: 0.145 | U214: 0.145 | V214: 0.145 | W214: 0.145 | X214: 0.145 | Y214: 0.145 | Z214: 0.145 | AA214: 0.145 | AB214: 0.145 | AC214: 0.145 | AD214: 0.145 | AE214: 0.145 | AF214: 0.145 | AG214: 0.145 | AH214: 0.145 | AI214: 0.145 | AJ214: 0.145 | AK214: 0.145 | AL214: 0.145 | AM214: 0.145 | AN214: 0.145 | AO214: 0.145 | AP214: 0.145 | AQ214: 0.145 | AR214: 0.145 | AS214: 0.145 | AT214: 0.145 | AU214: 0.145 | AV214: 0.145 | AW214: 0.145 | AX214: 0.145 | AY214: 0.145 | AZ214: 0.145 | BA214: 0.145 | BB214: 0.145 | BC214: 0.145 | BD214: 0.145 | BE214: 0.145 | BF214: 0.145 | BG214: 0.145 | BH214: 0.145 | BI214: 0.145 | BJ214: 0.145 | BK214: 0.145 | BL214: 0.145 | BM214: 0.145 | BN214: 0.145 | BO214: 0.145 | BP214: 0.145 | BQ214: 0.145 | BR214: 0.145
F215: 0 | I215: UTP_15 | J215: 0 | K215: 0 | L215: 0 | M215: 0 | N215: 0 | O215: 0 | P215: 0 | Q215: 0 | R215: 0 | S215: 0 | T215: 0 | U215: 0 | V215: 0 | W215: 0 | X215: 0 | Y215: 0 | Z215: 0 | AA215: 0 | AB215: 0 | AC215: 0 | AD215: 0 | AE215: 0 | AF215: 0 | AG215: 0 | AH215: 0 | AI215: 0 | AJ215: 0 | AK215: 0 | AL215: 0 | AM215: 0 | AN215: 0 | AO215: 0 | AP215: 0 | AQ215: 0 | AR215: 0 | AS215: 0 | AT215: 0 | AU215: 0 | AV215: 0 | AW215: 0 | AX215: 0 | AY215: 0 | AZ215: 0 | BA215: 0 | BB215: 0 | BC215: 0 | BD215: 0 | BE215: 0 | BF215: 0 | BG215: 0 | BH215: 0 | BI215: 0 | BJ215: 0 | BK215: 0 | BL215: 0 | BM215: 0 | BN215: 0 | BO215: 0 | BP215: 0 | BQ215: 0 | BR215: 0
F216: 0 | I216: UTP_16 | J216: 0 | K216: 0 | L216: 0 | M216: 0 | N216: 0 | O216: 0 | P216: 0 | Q216: 0 | R216: 0 | S216: 0 | T216: 0 | U216: 0 | V216: 0 | W216: 0 | X216: 0 | Y216: 0 | Z216: 0 | AA216: 0 | AB216: 0 | AC216: 0 | AD216: 0 | AE216: 0 | AF216: 0 | AG216: 0 | AH216: 0 | AI216: 0 | AJ216: 0 | AK216: 0 | AL216: 0 | AM216: 0 | AN216: 0 | AO216: 0 | AP216: 0 | AQ216: 0 | AR216: 0 | AS216: 0 | AT216: 0 | AU216: 0 | AV216: 0 | AW216: 0 | AX216: 0 | AY216: 0 | AZ216: 0 | BA216: 0 | BB216: 0 | BC216: 0 | BD216: 0 | BE216: 0 | BF216: 0 | BG216: 0 | BH216: 0 | BI216: 0 | BJ216: 0 | BK216: 0 | BL216: 0 | BM216: 0 | BN216: 0 | BO216: 0 | BP216: 0 | BQ216: 0 | BR216: 0
F217: 0 | I217: UTP_17 | J217: 0 | K217: 0 | L217: 0 | M217: 0 | N217: 0 | O217: 0 | P217: 0 | Q217: 0 | R217: 0 | S217: 0 | T217: 0 | U217: 0 | V217: 0 | W217: 0 | X217: 0 | Y217: 0 | Z217: 0 | AA217: 0 | AB217: 0 | AC217: 0 | AD217: 0 | AE217: 0 | AF217: 0 | AG217: 0 | AH217: 0 | AI217: 0 | AJ217: 0 | AK217: 0 | AL217: 0 | AM217: 0 | AN217: 0 | AO217: 0 | AP217: 0 | AQ217: 0 | AR217: 0 | AS217: 0 | AT217: 0 | AU217: 0 | AV217: 0 | AW217: 0 | AX217: 0 | AY217: 0 | AZ217: 0 | BA217: 0 | BB217: 0 | BC217: 0 | BD217: 0 | BE217: 0 | BF217: 0 | BG217: 0 | BH217: 0 | BI217: 0 | BJ217: 0 | BK217: 0 | BL217: 0 | BM217: 0 | BN217: 0 | BO217: 0 | BP217: 0 | BQ217: 0 | BR217: 0
F218: 0 | I218: UTP_18 | J218: 0 | K218: 0 | L218: 0 | M218: 0 | N218: 0 | O218: 0 | P218: 0 | Q218: 0 | R218: 0 | S218: 0 | T218: 0 | U218: 0 | V218: 0 | W218: 0 | X218: 0 | Y218: 0 | Z218: 0 | AA218: 0 | AB218: 0 | AC218: 0 | AD218: 0 | AE218: 0 | AF218: 0 | AG218: 0 | AH218: 0 | AI218: 0 | AJ218: 0 | AK218: 0 | AL218: 0 | AM218: 0 | AN218: 0 | AO218: 0 | AP218: 0 | AQ218: 0 | AR218: 0 | AS218: 0 | AT218: 0 | AU218: 0 | AV218: 0 | AW218: 0 | AX218: 0 | AY218: 0 | AZ218: 0 | BA218: 0 | BB218: 0 | BC218: 0 | BD218: 0 | BE218: 0 | BF218: 0 | BG218: 0 | BH218: 0 | BI218: 0 | BJ218: 0 | BK218: 0 | BL218: 0 | BM218: 0 | BN218: 0 | BO218: 0 | BP218: 0 | BQ218: 0 | BR218: 0
F219: 0 | I219: UTP_19 | J219: 0 | K219: 0 | L219: 0 | M219: 0 | N219: 0 | O219: 0 | P219: 0 | Q219: 0 | R219: 0 | S219: 0 | T219: 0 | U219: 0 | V219: 0 | W219: 0 | X219: 0 | Y219: 0 | Z219: 0 | AA219: 0 | AB219: 0 | AC219: 0 | AD219: 0 | AE219: 0 | AF219: 0 | AG219: 0 | AH219: 0 | AI219: 0 | AJ219: 0 | AK219: 0 | AL219: 0 | AM219: 0 | AN219: 0 | AO219: 0 | AP219: 0 | AQ219: 0 | AR219: 0 | AS219: 0 | AT219: 0 | AU219: 0 | AV219: 0 | AW219: 0 | AX219: 0 | AY219: 0 | AZ219: 0 | BA219: 0 | BB219: 0 | BC219: 0 | BD219: 0 | BE219: 0 | BF219: 0 | BG219: 0 | BH219: 0 | BI219: 0 | BJ219: 0 | BK219: 0 | BL219: 0 | BM219: 0 | BN219: 0 | BO219: 0 | BP219: 0 | BQ219: 0 | BR219: 0
F220: Indexed Instrument | I220: IDX_20 | J220: 0 | K220: 0 | L220: 0 | M220: 0 | N220: 0 | O220: 0 | P220: 0 | Q220: 0 | R220: 0 | S220: 0 | T220: 0 | U220: 0 | V220: 0 | W220: 0 | X220: 0 | Y220: 0 | Z220: 0 | AA220: 0 | AB220: 0 | AC220: 0 | AD220: 0 | AE220: 0 | AF220: 0 | AG220: 0 | AH220: 0 | AI220: 0 | AJ220: 0 | AK220: 0 | AL220: 0 | AM220: 0 | AN220: 0 | AO220: 0 | AP220: 0 | AQ220: 0 | AR220: 0 | AS220: 0 | AT220: 0 | AU220: 0 | AV220: 0 | AW220: 0 | AX220: 0 | AY220: 0 | AZ220: 0 | BA220: 0 | BB220: 0 | BC220: 0 | BD220: 0 | BE220: 0 | BF220: 0 | BG220: 0 | BH220: 0 | BI220: 0 | BJ220: 0 | BK220: 0 | BL220: 0 | BM220: 0 | BN220: 0 | BO220: 0 | BP220: 0 | BQ220: 0 | BR220: 0
B223: PART 3 | F223: STRATEGY WORKSHEET
F225: FROM STRATEGY WORKSHEET [SELECTED STRATEGY]
F226: Strategy 2 | H226: 2025 | I226: 2026 | J226: 2027 | K226: 2028 | L226: 2029 | M226: 2030 | N226: 2031 | O226: 2032 | P226: 2033 | Q226: 2034
B227: ADF_Fixed | C227: Fix | D227: FX | F227: USD_1 | G227: External | H227: 0.2 | I227: 0.2 | J227: 0.2 | K227: 0.2 | L227: 0.2 | M227: 0.2 | N227: 0.2 | O227: 0.2 | P227: 0.2 | Q227: 0.2
B228: IDA/IFAD/EDF_Fixed | C228: Fix | D228: FX | F228: USD_2 | G228: External | H228: 0.2 | I228: 0.2 | J228: 0.2 | K228: 0.2 | L228: 0.2 | M228: 0.2 | N228: 0.2 | O228: 0.2 | P228: 0.2 | Q228: 0.2
B229: IBRD/ADB/IDB_Fixed | C229: Fix | D229: FX | F229: USD_3 | G229: External | H229: 0.2 | I229: 0.2 | J229: 0.2 | K229: 0.2 | L229: 0.2 | M229: 0.2 | N229: 0.2 | O229: 0.2 | P229: 0.2 | Q229: 0.2
B230: IBRD/ADB/IDB_Var | C230: Var | D230: FX | F230: USD_4 | G230: External | H230: 0.2 | I230: 0.2 | J230: 0.2 | K230: 0.2 | L230: 0.2 | M230: 0.2 | N230: 0.2 | O230: 0.2 | P230: 0.2 | Q230: 0.2
B231: Bilateral_Fixed | C231: Fix | D231: FX | F231: USD_5 | G231: External | H231: 0.1 | I231: 0.1 | J231: 0.1 | K231: 0.1 | L231: 0.1 | M231: 0.1 | N231: 0.1 | O231: 0.1 | P231: 0.1 | Q231: 0.1
B232: Commercial Bank_Var | C232: Var | D232: FX | F232: USD_6 | G232: External | H232: 0.1 | I232: 0.1 | J232: 0.1 | K232: 0.1 | L232: 0.1 | M232: 0.1 | N232: 0.1 | O232: 0.1 | P232: 0.1 | Q232: 0.1
B233: 0 | C233: 0 | D233: FX | F233: USD_7 | G233: External | H233: 0 | I233: 0 | J233: 0 | K233: 0 | L233: 0 | M233: 0 | N233: 0 | O233: 0 | P233: 0 | Q233: 0
B234: 0 | C234: 0 | D234: FX | F234: USD_8 | G234: External | H234: 0 | I234: 0 | J234: 0 | K234: 0 | L234: 0 | M234: 0 | N234: 0 | O234: 0 | P234: 0 | Q234: 0
... 239 more rows

Sheet Input_2
B2: Yellow cells must be updated by the user.
B3: Blue fonts are linked to "Input_1_(From_MTDS)" worksheet, users can overwrite those entries in this worksheet.
B4: If overwriting, Interest and Currency Type, columns E and F, must use the drop down menu options. Interest type: T-bills, Fix, Var and Currency Type: FX, LX
B6: STEP 1: FROM MTDS AT | C6: WORKSHEETS, ROWS | D6: Key Parameters
C7: Existing_Debt, B7 | D7: ='Input_1_(From_MTDS)'!$F$6 -> Base year of data | E7: ='Input_1_(From_MTDS)'!$G$6 -> 2024
D8: Last Month of the Fiscal/Calendar Year | E8: 12
D9: First Year of Analysis | E9: =E7+1 -> 2025
D10: First Month of Analysis Year | E10: =TEXT(IF($E$8=12,1,($E$8+1))*28,"mmm")&"-"&IF(E8=12,RIGHT($E$9,2),RIGHT(E7,2)) -> Jan-25
C11: Existing_Debt, B11 | D11: ='Input_1_(From_MTDS)'!$F$10 -> Local currency (name/3-letter code) | E11: ='Input_1_(From_MTDS)'!$G$10 -> UTP
C12: Existing_Debt, B12 | D12: ='Input_1_(From_MTDS)'!$F$11 -> units | E12: ='Input_1_(From_MTDS)'!$G$11 -> millions
B16: STEP 2: FROM MTDS AT | C16: WORKSHEETS, ROWS | D16: Representative Instruments
C17: Existing_Debt, | D17: Instrument Name | E17: Interest Type | F17: Curreny Type | G17: ABPT Category1 | H17: Currency Type | I17: Currency_Interest
D18: ='Input_1_(From_MTDS)'!$I6 -> ADF_Fixed | E18: ='Input_1_(From_MTDS)'!$J6 -> Fix | F18: ='Input_1_(From_MTDS)'!$N6 -> FX | G18: Multilateral | H18: =IF($F18="FX","Foreign","Domestic") -> Foreign | I18: =$H18&" "&$E18 -> Foreign Fix
D19: ='Input_1_(From_MTDS)'!$I7 -> IDA/IFAD/EDF_Fixed | E19: ='Input_1_(From_MTDS)'!$J7 -> Fix | F19: ='Input_1_(From_MTDS)'!$N7 -> FX | G19: Multilateral | H19: =IF($F19="FX","Foreign","Domestic") -> Foreign | I19: =$H19&" "&$E19 -> Foreign Fix
D20: ='Input_1_(From_MTDS)'!$I8 -> IBRD/ADB/IDB_Fixed | E20: ='Input_1_(From_MTDS)'!$J8 -> Fix | F20: ='Input_1_(From_MTDS)'!$N8 -> FX | G20: Multilateral | H20: Foreign | I20: Foreign Fix
D21: ='Input_1_(From_MTDS)'!$I9 -> IBRD/ADB/IDB_Var | E21: ='Input_1_(From_MTDS)'!$J9 -> Var | F21: ='Input_1_(From_MTDS)'!$N9 -> FX | G21: Multilateral | H21: Foreign | I21: Foreign Var
D22: ='Input_1_(From_MTDS)'!$I10 -> Bilateral_Fixed | E22: ='Input_1_(From_MTDS)'!$J10 -> Fix | F22: ='Input_1_(From_MTDS)'!$N10 -> FX | G22: Bilateral | H22: Foreign | I22: Foreign Fix
D23: ='Input_1_(From_MTDS)'!$I11 -> Commercial Bank_Var | E23: ='Input_1_(From_MTDS)'!$J11 -> Var | F23: ='Input_1_(From_MTDS)'!$N11 -> FX | G23: FX Commercial Loan | H23: Foreign | I23: Foreign Var
D24: ='Input_1_(From_MTDS)'!$I12 -> 0 | E24: ='Input_1_(From_MTDS)'!$J12 -> 0 | F24: ='Input_1_(From_MTDS)'!$N12 -> FX | H24: Foreign | I24: Foreign 0
D25: ='Input_1_(From_MTDS)'!$I13 -> 0 | E25: ='Input_1_(From_MTDS)'!$J13 -> 0 | F25: ='Input_1_(From_MTDS)'!$N13 -> FX | H25: Foreign | I25: Foreign 0
D26: ='Input_1_(From_MTDS)'!$I14 -> 0 | E26: ='Input_1_(From_MTDS)'!$J14 -> 0 | F26: ='Input_1_(From_MTDS)'!$N14 -> FX | H26: Foreign | I26: Foreign 0
D27: ='Input_1_(From_MTDS)'!$I15 -> 0 | E27: ='Input_1_(From_MTDS)'!$J15 -> 0 | F27: ='Input_1_(From_MTDS)'!$N15 -> FX | H27: Foreign | I27: Foreign 0
D28: ='Input_1_(From_MTDS)'!$I16 -> T-Bills_Fixed | E28: ='Input_1_(From_MTDS)'!$J16 -> T-bills | F28: ='Input_1_(From_MTDS)'!$N16 -> DX | G28: T-bills | H28: Domestic | I28: Domestic T-bills
D29: ='Input_1_(From_MTDS)'!$I17 -> T-Bonds 3 YR_Fixed | E29: ='Input_1_(From_MTDS)'!$J17 -> Fix | F29: ='Input_1_(From_MTDS)'!$N17 -> DX | G29: Bonds | H29: Domestic | I29: Domestic Fix
D30: ='Input_1_(From_MTDS)'!$I18 -> T-Bonds 5 YR_Fixed | E30: ='Input_1_(From_MTDS)'!$J18 -> Fix | F30: ='Input_1_(From_MTDS)'!$N18 -> DX | G30: Bonds | H30: Domestic | I30: Domestic Fix
D31: ='Input_1_(From_MTDS)'!$I19 -> T-Bonds 10 YR_Fixed | E31: ='Input_1_(From_MTDS)'!$J19 -> Fix | F31: ='Input_1_(From_MTDS)'!$N19 -> DX | G31: Bonds | H31: Domestic | I31: Domestic Fix
D32: ='Input_1_(From_MTDS)'!$I20 -> 0 | E32: ='Input_1_(From_MTDS)'!$J20 -> 0 | F32: ='Input_1_(From_MTDS)'!$N20 -> DX | H32: Domestic | I32: Domestic 0
D33: ='Input_1_(From_MTDS)'!$I21 -> 0 | E33: ='Input_1_(From_MTDS)'!$J21 -> 0 | F33: ='Input_1_(From_MTDS)'!$N21 -> DX | H33: Domestic | I33: Domestic 0
D34: ='Input_1_(From_MTDS)'!$I22 -> 0 | E34: ='Input_1_(From_MTDS)'!$J22 -> 0 | F34: ='Input_1_(From_MTDS)'!$N22 -> DX | H34: Domestic | I34: Domestic 0
D35: ='Input_1_(From_MTDS)'!$I23 -> 0 | E35: ='Input_1_(From_MTDS)'!$J23 -> 0 | F35: ='Input_1_(From_MTDS)'!$N23 -> DX | H35: Domestic | I35: Domestic 0
D36: ='Input_1_(From_MTDS)'!$I24 -> 0 | E36: ='Input_1_(From_MTDS)'!$J24 -> 0 | F36: ='Input_1_(From_MTDS)'!$N24 -> DX | H36: Domestic | I36: Domestic 0
D37: ='Input_1_(From_MTDS)'!$I25 -> Indexed Instrument | E37: ='Input_1_(From_MTDS)'!$J25 -> Var | F37: ='Input_1_(From_MTDS)'!$N25 -> DX | G37: Bonds | H37: Domestic | I37: Domestic Var
D40: 1/ Note:
D41: ABPT Category is used for ABP Calendar, Cost-Risk Indicator Tables, etc.
D42: Foreign currency (external) instruments are categorized as: | G42: Local currency (domestic) instruments are categorized as:
D43: Multilateral | G43: T-bills
D44: Bilateral | G44: Bonds
D45: FX Commercial Loan | G45: DX Commercial Loan
D46: International Bond | G46: Central Bank
D47: FX Security | G47: DX Other
D48: FX Other
D50: While users are permitted to create their own category, it is highly advisable to use the category T-bills for domestic currency discounted instruments.
D100: =$D$43 -> Multilateral
D101: =$D$44 -> Bilateral
D102: =$D$45 -> FX Commercial Loan
D103: =$D$46 -> International Bond
D104: =$D$47 -> FX Security
D105: =$D$48 -> FX Other
D106: =$D$49 -> 0
D107: =$G$43 -> T-bills
D108: =$G$44 -> Bonds
D109: =$G$45 -> DX Commercial Loan
D110: =$G$46 -> Central Bank
D111: =$G$47 -> DX Other
D112: =$G$48 -> 0
D113: =$G$49 -> 0

Sheet Input_3
B2: Enteries here are linked to "Input_1_(From_MTDS)" worksheet. However, users have the option to overwrite blue font entries.
B3: If users are not overwriting, ensure the right domestic instruments are picked up and bolded blue font area are populated appropriately.
B5: STEP 3: FROM MTDS AT | C5: Ensure only domestic instruments are picked up here WORKSHEETS, ROWS | D5: Representative Instruments of domestic Instruments | E5: ="Percentage from Strategy Worksheet Year "&Input_2!$E$7+1 -> Percentage from Strategy Worksheet Year 2025 | F5: ="Percentage from Strategy Worksheet Year "&Input_2!$E$7+2 -> Percentage from Strategy Worksheet Year 2026 | G5: ="Amount from Strategy Worksheet Year "&Input_2!$E$7+1 -> Amount from Strategy Worksheet Year 2025 | H5: ="Amount from Strategy Worksheet Year "&Input_2!$E$7+2 -> Amount from Strategy Worksheet Year 2026
C6: Strategy, 56: 75 & 84:103 | D6: ='Input_1_(From_MTDS)'!I16 -> T-Bills_Fixed | E6: ='Input_1_(From_MTDS)'!H237 -> 0.4 | F6: ='Input_1_(From_MTDS)'!I237 -> 0.4 | G6: ='Input_1_(From_MTDS)'!H262 -> 2784.880907 | H6: ='Input_1_(From_MTDS)'!I262 -> 2170.554144
C7: Select domestic instruments only | D7: ='Input_1_(From_MTDS)'!I17 -> T-Bonds 3 YR_Fixed | E7: ='Input_1_(From_MTDS)'!H238 -> 0.2 | F7: ='Input_1_(From_MTDS)'!I238 -> 0.2 | G7: ='Input_1_(From_MTDS)'!H263 -> 1392.440454 | H7: ='Input_1_(From_MTDS)'!I263 -> 1085.277072
C8: Columns = Chosen Strategy | D8: ='Input_1_(From_MTDS)'!I18 -> T-Bonds 5 YR_Fixed | E8: ='Input_1_(From_MTDS)'!H239 -> 0.2 | F8: ='Input_1_(From_MTDS)'!I239 -> 0.2 | G8: ='Input_1_(From_MTDS)'!H264 -> 1392.440454 | H8: ='Input_1_(From_MTDS)'!I264 -> 1085.277072
D9: ='Input_1_(From_MTDS)'!I19 -> T-Bonds 10 YR_Fixed | E9: ='Input_1_(From_MTDS)'!H240 -> 0.2 | F9: ='Input_1_(From_MTDS)'!I240 -> 0.2 | G9: ='Input_1_(From_MTDS)'!H265 -> 1392.440454 | H9: ='Input_1_(From_MTDS)'!I265 -> 1085.277072
D10: ='Input_1_(From_MTDS)'!I20 -> 0 | E10: ='Input_1_(From_MTDS)'!H241 -> 0 | F10: ='Input_1_(From_MTDS)'!I241 -> 0 | G10: ='Input_1_(From_MTDS)'!H266 -> 0 | H10: ='Input_1_(From_MTDS)'!I266 -> 0
A16: =A15+1 -> 1
A17: 2
A18: 3
A19: 4
A20: 5
A21: 6
A22: 7
A23: 8
A24: 9
A25: 10
B27: STEP 4: FROM MTDS AT | C27: WORKSHEETS, ROWS | D27: Representative Instruments | E27: ="Yield Year "&Input_2!$E$7+1 -> Yield Year 2025 | F27: ="Yield Year "&Input_2!$E$7+2 -> Yield Year 2026
C28: Macro and Market Data, 157:177 | D28: =$D$6 -> T-Bills_Fixed | E28: ='Input_1_(From_MTDS)'!K211 -> 0.045 | F28: ='Input_1_(From_MTDS)'!L211 -> 0.0486
C29: Select domestic instruments only | D29: =$D$7 -> T-Bonds 3 YR_Fixed | E29: ='Input_1_(From_MTDS)'!K212 -> 0.07277634333 | F29: ='Input_1_(From_MTDS)'!L212 -> 0.0733
D30: =$D$8 -> T-Bonds 5 YR_Fixed | E30: ='Input_1_(From_MTDS)'!K213 -> 0.08500697726 | F30: ='Input_1_(From_MTDS)'!L213 -> 0.0875
D31: =$D$9 -> T-Bonds 10 YR_Fixed | E31: ='Input_1_(From_MTDS)'!K214 -> 0.1453 | F31: ='Input_1_(From_MTDS)'!L214 -> 0.145
D32: =$D$10 -> 0 | E32: ='Input_1_(From_MTDS)'!K215 -> 0 | F32: ='Input_1_(From_MTDS)'!L215 -> 0
A38: =A37+1 -> 1
A39: 2
A40: 3
A41: 4
A42: 5
A43: 6
A44: 7
A45: 8
A46: 9
A47: 10
B49: STEP 5: FROM MTDS AT | C49: WORKSHEETS, ROWS | D49: Representative Instruments | E49: Fix /Var/ T--bills
C50: Existing_Debt, 7: 26 | D50: =$D$28 -> T-Bills_Fixed | E50: ='Input_1_(From_MTDS)'!J16 -> T-bills
C51: Select domestic instruments only | D51: =$D$29 -> T-Bonds 3 YR_Fixed | E51: ='Input_1_(From_MTDS)'!J17 -> Fix
D52: =$D$30 -> T-Bonds 5 YR_Fixed | E52: ='Input_1_(From_MTDS)'!J18 -> Fix
D53: =$D$31 -> T-Bonds 10 YR_Fixed | E53: ='Input_1_(From_MTDS)'!J19 -> Fix
D54: =$D$32 -> 0 | E54: ='Input_1_(From_MTDS)'!J20 -> 0
A60: =A59+1 -> 1
A61: 2
A62: 3
A63: 4
A64: 5
A65: 6
A66: 7
A67: 8
A68: 9
A69: 10
B71: STEP 6: FROM MTDS AT | C71: WORKSHEETS, ROWS | D71: Principal Payments Existing Debt | H71: Domestic Interest Payments Existing Debt
C72: Existing_Debt, 291: 311 | E72: ="Year "&Input_2!$E$7+1 -> Year 2025 | F72: ="Year "&Input_2!$E$7+2 -> Year 2026 | I72: ="Year "&Input_2!$E$7+1 -> Year 2025 | J72: ="Year "&Input_2!$E$7+2 -> Year 2026
C73: Existing_Debt, 338: 357 | D73: =$D$6 -> T-Bills_Fixed | E73: ='Input_1_(From_MTDS)'!$K$126 -> 3831.304677 | F73: ='Input_1_(From_MTDS)'!$L$126 -> 0 | H73: =$D$6 -> T-Bills_Fixed | I73: ='Input_1_(From_MTDS)'!K141 -> 498.069608 | J73: ='Input_1_(From_MTDS)'!L141 -> 0
C74: Select domestic instruments only | D74: =$D$7 -> T-Bonds 3 YR_Fixed | E74: ='Input_1_(From_MTDS)'!K63 -> 0 | F74: ='Input_1_(From_MTDS)'!L63 -> 100.37065 | H74: =$D$7 -> T-Bonds 3 YR_Fixed | I74: ='Input_1_(From_MTDS)'!K109 -> 31.44551186 | J74: ='Input_1_(From_MTDS)'!L109 -> 31.44551186
D75: =$D$8 -> T-Bonds 5 YR_Fixed | E75: ='Input_1_(From_MTDS)'!K64 -> 0 | F75: ='Input_1_(From_MTDS)'!L64 -> 0 | H75: =$D$8 -> T-Bonds 5 YR_Fixed | I75: ='Input_1_(From_MTDS)'!K110 -> 767.3606524 | J75: ='Input_1_(From_MTDS)'!L110 -> 767.3606524
D76: =$D$9 -> T-Bonds 10 YR_Fixed | E76: ='Input_1_(From_MTDS)'!K65 -> 0 | F76: ='Input_1_(From_MTDS)'!L65 -> 0 | H76: =$D$9 -> T-Bonds 10 YR_Fixed | I76: ='Input_1_(From_MTDS)'!K111 -> 97.6305 | J76: ='Input_1_(From_MTDS)'!L111 -> 97.6305
D77: =$D$10 -> 0 | E77: ='Input_1_(From_MTDS)'!K66 -> 0 | F77: ='Input_1_(From_MTDS)'!L66 -> 0 | H77: =$D$10 -> 0 | I77: ='Input_1_(From_MTDS)'!K112 -> 0 | J77: ='Input_1_(From_MTDS)'!L112 -> 0
E78: ='Input_1_(From_MTDS)'!K67 -> 0 | F78: ='Input_1_(From_MTDS)'!L67 -> 0
E79: ='Input_1_(From_MTDS)'!K68 -> 0 | F79: ='Input_1_(From_MTDS)'!L68 -> 0
E80: ='Input_1_(From_MTDS)'!K69 -> 0 | F80: ='Input_1_(From_MTDS)'!L69 -> 0
E81: ='Input_1_(From_MTDS)'!K70 -> 0 | F81: ='Input_1_(From_MTDS)'!L70 -> 0
E82: ='Input_1_(From_MTDS)'!K71 -> 0 | F82: ='Input_1_(From_MTDS)'!L71 -> 0
A83: =A82+1 -> 1
A84: 2
A85: 3
A86: 4
A87: 5
A88: 6
A89: 7
A90: 8
A91: 9
A92: 10
E93: =SUM(E73:E92) -> 3831.304677 | F93: =SUM(F73:F92) -> 100.37065 | I93: =SUM(I73:I92) -> 1394.506272 | J93: =SUM(J73:J92) -> 896.4366642
B95: STEP 7: FROM MTDS AT | C95: WORKSHEETS, ROWS | D95: Domestic Principal Payments | H95: Domestic Interest Payments
C96: Strategy 1/2/3/4, 49: 71 | E96: ="Year "&Input_2!$E$7+1 -> Year 2025 | F96: ="Year "&Input_2!$E$7+2 -> Year 2026 | I96: ="Year "&Input_2!$E$7+1 -> Year 2025 | J96: ="Year "&Input_2!$E$7+2 -> Year 2026
C97: Go to Chosen Strategy Worksheet | D97: =$D$6 -> T-Bills_Fixed | E97: ='Input_1_(From_MTDS)'!$K$322 -> 3831.304677 | F97: ='Input_1_(From_MTDS)'!$L$322 -> 2784.880907 | H97: =$D$6 -> T-Bills_Fixed | I97: ='Input_1_(From_MTDS)'!K402 -> 498.069608 | J97: ='Input_1_(From_MTDS)'!L402 -> 125.3196408
C98: Select domestic instruments only | D98: =$D$7 -> T-Bonds 3 YR_Fixed | E98: ='Input_1_(From_MTDS)'!K297 -> 0 | F98: ='Input_1_(From_MTDS)'!L297 -> 100.37065 | H98: =$D$7 -> T-Bonds 3 YR_Fixed | I98: ='Input_1_(From_MTDS)'!K378 -> 31.44551186 | J98: ='Input_1_(From_MTDS)'!L378 -> 132.7822364
D99: =$D$8 -> T-Bonds 5 YR_Fixed | E99: ='Input_1_(From_MTDS)'!K298 -> 0 | F99: ='Input_1_(From_MTDS)'!L298 -> 0 | H99: =$D$8 -> T-Bonds 5 YR_Fixed | I99: ='Input_1_(From_MTDS)'!K379 -> 767.3606524 | J99: ='Input_1_(From_MTDS)'!L379 -> 885.7278063
C100: Strategy 1/2/3/4, 135: 154 | D100: =$D$9 -> T-Bonds 10 YR_Fixed | E100: ='Input_1_(From_MTDS)'!K299 -> 0 | F100: ='Input_1_(From_MTDS)'!L299 -> 0 | H100: =$D$9 -> T-Bonds 10 YR_Fixed | I100: ='Input_1_(From_MTDS)'!K380 -> 97.6305 | J100: ='Input_1_(From_MTDS)'!L380 -> 299.9520979
C101: Go to Chosen Strategy Worksheet | D101: =$D$10 -> 0 | E101: ='Input_1_(From_MTDS)'!K300 -> 0 | F101: ='Input_1_(From_MTDS)'!L300 -> 0 | H101: =$D$10 -> 0 | I101: ='Input_1_(From_MTDS)'!K381 -> 0 | J101: ='Input_1_(From_MTDS)'!L381 -> 0
C102: Select domestic instruments only | E102: ='Input_1_(From_MTDS)'!K301 -> 0 | F102: ='Input_1_(From_MTDS)'!L301 -> 0
E103: ='Input_1_(From_MTDS)'!K302 -> 0 | F103: ='Input_1_(From_MTDS)'!L302 -> 0
E104: ='Input_1_(From_MTDS)'!K303 -> 0 | F104: ='Input_1_(From_MTDS)'!L303 -> 0
E105: ='Input_1_(From_MTDS)'!K304 -> 0 | F105: ='Input_1_(From_MTDS)'!L304 -> 0
E106: ='Input_1_(From_MTDS)'!K305 -> 0 | F106: ='Input_1_(From_MTDS)'!L305 -> 0
A107: =A106+1 -> 1
A108: 2
A109: 3
A110: 4
A111: 5
A112: 6
A113: 7
A114: 8
A115: 9
A116: 10
E117: =SUM(E97:E116) -> 3831.304677 | F117: =SUM(F97:F116) -> 2885.251557 | I117: =SUM(I97:I116) -> 1394.506272 | J117: 1443.781781
B120: STEP 8: FROM MTDS AT | C120: WORKSHEETS, ROWS | D120: Macro and Gross Financing | E120: ="in "&Input_2!$E$12&" of "&Input_2!$E$11 -> in millions of UTP
E121: ="Year "&Input_2!$E$7+1 -> Year 2025 | F121: ="Year "&Input_2!$E$7+2 -> Year 2026
C122: Strategy 1/2/3/4, Row 30 | D122: Gross financing | E122: =E129+E130+E133 -> 13924.40454 | F122: =F129+F130+F133 -> 10852.77072
C123: Macro and Market, Row 12 | D123: Revenues, grants, & other items | E123: ='Input_1_(From_MTDS)'!$H$165 -> 12530.33812 | F123: ='Input_1_(From_MTDS)'!$I$165 -> 15930.75831
C124: Macro and Market, Row 4 | D124: Budgeted Revenue and Grants | E124: ='Input_1_(From_MTDS)'!$H$157 -> 12530.33812 | F124: ='Input_1_(From_MTDS)'!$I$157 -> 15930.75831
C125: Macro and Market, Row 13 | D125: Non-budgetary assets that reduce gross financing requirement | E125: ='Input_1_(From_MTDS)'!$H$166 -> 0 | F125: ='Input_1_(From_MTDS)'!$I166 -> 0
C126: Macro and Market, Row 24 | D126: Expenditure & other items | E126: ='Input_1_(From_MTDS)'!$H$177 -> 18276.55747 | F126: ='Input_1_(From_MTDS)'!$I$177 -> 19618.04109
C127: Macro and Market, Row 5 | D127: Budgeted Primary Expenditure | E127: ='Input_1_(From_MTDS)'!$H$158 -> 18276.55747 | F127: ='Input_1_(From_MTDS)'!$I$158 -> 19618.04109
C128: Macro and Market, Row 25 | D128: Non-budgeted expenses that increase gross financing requirement | E128: ='Input_1_(From_MTDS)'!$H$178 -> 0 | F128: ='Input_1_(From_MTDS)'!$I$178 -> 0
C129: Macro and Market, Row 56 | D129: Primary Deficit | E129: =-('Input_1_(From_MTDS)'!$H$165-'Input_1_(From_MTDS)'!$H$177) -> 5746.219347 | F129: =-('Input_1_(From_MTDS)'!$I$165-'Input_1_(From_MTDS)'!$I$177) -> 3687.282777
D130: Interest payments | E130: =E131+E132 -> 1818.838018 | F130: =F131+F132 -> 1991.488706
C131: Strategy 1/2/3/4, Row 157 | D131: ="External debt (foreign currency) - "&D130 -> External debt (foreign currency) - Interest payments | E131: ='Input_1_(From_MTDS)'!$K$389 -> 424.3317458 | F131: ='Input_1_(From_MTDS)'!$L$389 -> 547.706925
C132: Strategy 1/2/3/4, Row 158 | D132: ="Domestic debt (local currency) - "&D130 -> Domestic debt (local currency) - Interest payments | E132: ='Input_1_(From_MTDS)'!$K$390 -> 1394.506272 | F132: ='Input_1_(From_MTDS)'!$L$390 -> 1443.781781
D133: Principal payments | E133: =E134+E135 -> 6359.347172 | F133: =F134+F135 -> 5173.999234
C134: Strategy 1/2/3/4, Row 74 | D134: ="External debt (foreign currency) - "&D133 -> External debt (foreign currency) - Principal payments | E134: ='Input_1_(From_MTDS)'!$K$309 -> 2528.042495 | F134: ='Input_1_(From_MTDS)'!$L$309 -> 2288.747677
C135: Strategy 1/2/3/4, Row 75 | D135: ="Domestic debt (local currency) - "&D133 -> Domestic debt (local currency) - Principal payments | E135: ='Input_1_(From_MTDS)'!$K$310 -> 3831.304677 | F135: ='Input_1_(From_MTDS)'!$L$310 -> 2885.251557
C137: Strategy 1/2/3/4, Row 32 | D137: Gross Extermal Financing (GEF) (foreign currency borrowing) (in local currency) | E137: ='Input_1_(From_MTDS)'!$H$279 -> 6962.202269 | F137: ='Input_1_(From_MTDS)'!$I$279 -> 5426.385359
B139: STEP 9: FROM MTDS AT | C139: WORKSHEETS, ROWS | D139: Gross Domestic Financing
E140: ="Year "&Input_2!$E$7+1 -> Year 2025 | F140: ="Year "&Input_2!$E$7+2 -> Year 2026
C141: Strategy 1/2/3/4, Row 33 | D141: Gross Domestic Financing (GDF) (in local currency) | E141: ='Input_1_(From_MTDS)'!$H$278 -> 6962.202269 | F141: ='Input_1_(From_MTDS)'!$I$278 -> 5426.385359
B143: STEP 10: FROM MTDS AT | C143: WORKSHEETS, ROWS | D143: Operational Target
C145: Strategy, Row 29 | D145: ='Input_1_(From_MTDS)'!$F$275 -> External (% of total gross financing) | E145: ='Input_1_(From_MTDS)'!$H$275 -> 50 | F145: ='Input_1_(From_MTDS)'!I275 -> 50

Sheet GFN
I2: Gross Financing Requirement
I3: [Yellow cells should be replaced with more accurate projections as opposed to dividing the annual information from MTDS equally by 12] | AI3: MTDS Validation
J6: =Input_2!E10 -> Jan-25 | K6: =TEXT(IF(MONTH(J6)=12,1,(MONTH(J6)+1))*28,"mmm")&"-"&IF(MONTH(J6)=12,RIGHT(J6,2)+1,RIGHT(J6,2)) -> Feb-25 | L6: Mar-25 | M6: Apr-25 | N6: May-25 | O6: Jun-25 | P6: Jul-25 | Q6: Aug-25 | R6: Sep-25 | S6: Oct-25 | T6: Nov-25 | U6: Dec-25 | V6: Jan-26 | W6: =TEXT(IF(MONTH(V6)=12,1,(MONTH(V6)+1))*28,"mmm")&"-"&IF(MONTH(V6)=12,RIGHT(V6,2)+1,RIGHT(V6,2)) -> Feb-26 | X6: Mar-26 | Y6: Apr-26 | Z6: May-26 | AA6: Jun-26 | AB6: Jul-26 | AC6: Aug-26 | AD6: Sep-26 | AE6: Oct-26 | AF6: Nov-26 | AG6: Dec-26 | AI6: =Input_2!$E$7+1 -> 2025 | AK6: =Input_2!$E$7+2 -> 2026
H7: =ROW() -> 7 | I7: Revenues, grants, & other items | J7: =Input_3!$E123/12 -> 1044.194844 | K7: =Input_3!$E123/12 -> 1044.194844 | L7: =Input_3!$E123/12 -> 1044.194844 | M7: =Input_3!$E123/12 -> 1044.194844 | N7: =Input_3!$E123/12 -> 1044.194844 | O7: =Input_3!$E123/12 -> 1044.194844 | P7: =Input_3!$E123/12 -> 1044.194844 | Q7: =Input_3!$E123/12 -> 1044.194844 | R7: =Input_3!$E123/12 -> 1044.194844 | S7: =Input_3!$E123/12 -> 1044.194844 | T7: =Input_3!$E123/12 -> 1044.194844 | U7: =Input_3!$E123/12 -> 1044.194844 | V7: =Input_3!$F123/12 -> 1327.563193 | W7: =Input_3!$F123/12 -> 1327.563193 | X7: =Input_3!$F123/12 -> 1327.563193 | Y7: =Input_3!$F123/12 -> 1327.563193 | Z7: =Input_3!$F123/12 -> 1327.563193 | AA7: =Input_3!$F123/12 -> 1327.563193 | AB7: =Input_3!$F123/12 -> 1327.563193 | AC7: =Input_3!$F123/12 -> 1327.563193 | AD7: =Input_3!$F123/12 -> 1327.563193 | AE7: =Input_3!$F123/12 -> 1327.563193 | AF7: =Input_3!$F123/12 -> 1327.563193 | AG7: =Input_3!$F123/12 -> 1327.563193 | AI7: =SUM($J7:$U7)-Input_3!$E$123 -> 0 | AK7: =Input_3!$F$123-SUM($V7:$AG7) -> 0
H8: =ROW() -> 8 | I8: Expenditure & other items | J8: =Input_3!$E126/12 -> 1523.046456 | K8: =Input_3!$E126/12 -> 1523.046456 | L8: =Input_3!$E126/12 -> 1523.046456 | M8: =Input_3!$E126/12 -> 1523.046456 | N8: =Input_3!$E126/12 -> 1523.046456 | O8: =Input_3!$E126/12 -> 1523.046456 | P8: =Input_3!$E126/12 -> 1523.046456 | Q8: =Input_3!$E126/12 -> 1523.046456 | R8: =Input_3!$E126/12 -> 1523.046456 | S8: =Input_3!$E126/12 -> 1523.046456 | T8: =Input_3!$E126/12 -> 1523.046456 | U8: =Input_3!$E126/12 -> 1523.046456 | V8: =Input_3!$F126/12 -> 1634.836758 | W8: =Input_3!$F126/12 -> 1634.836758 | X8: =Input_3!$F126/12 -> 1634.836758 | Y8: =Input_3!$F126/12 -> 1634.836758 | Z8: =Input_3!$F126/12 -> 1634.836758 | AA8: =Input_3!$F126/12 -> 1634.836758 | AB8: =Input_3!$F126/12 -> 1634.836758 | AC8: =Input_3!$F126/12 -> 1634.836758 | AD8: =Input_3!$F126/12 -> 1634.836758 | AE8: =Input_3!$F126/12 -> 1634.836758 | AF8: =Input_3!$F126/12 -> 1634.836758 | AG8: =Input_3!$F126/12 -> 1634.836758 | AI8: =SUM($J8:U$8)-Input_3!$E$126 -> 0 | AK8: =Input_3!$F$126-SUM($V8:$AG8) -> 0
H9: =ROW() -> 9 | I9: =Input_3!D129 -> Primary Deficit | J9: =J8-J7 -> 478.8516122 | K9: =K8-K7 -> 478.8516122 | L9: 478.8516122 | M9: 478.8516122 | N9: 478.8516122 | O9: 478.8516122 | P9: 478.8516122 | Q9: 478.8516122 | R9: 478.8516122 | S9: 478.8516122 | T9: 478.8516122 | U9: 478.8516122 | V9: 307.2735648 | W9: 307.2735648 | X9: 307.2735648 | Y9: 307.2735648 | Z9: 307.2735648 | AA9: 307.2735648 | AB9: 307.2735648 | AC9: 307.2735648 | AD9: 307.2735648 | AE9: 307.2735648 | AF9: 307.2735648 | AG9: 307.2735648 | AI9: 0
I10: =Input_3!$D$130 -> Interest payments | J10: =J11+J14 -> 151.5698348 | K10: =K11+K14 -> 151.5698348 | L10: 151.5698348 | M10: 151.5698348 | N10: 151.5698348 | O10: 151.5698348 | P10: 151.5698348 | Q10: 151.5698348 | R10: 151.5698348 | S10: 151.5698348 | T10: 151.5698348 | U10: 151.5698348 | V10: 120.3452991 | W10: 120.3452991 | X10: 120.3452991 | Y10: 120.3452991 | Z10: 120.3452991 | AA10: 120.3452991 | AB10: 120.3452991 | AC10: 120.3452991 | AD10: 120.3452991 | AE10: 120.3452991 | AF10: 120.3452991 | AG10: 120.3452991
I11: Existing Debt from MTDS | J11: =J12+J13 -> 151.5698348 | K11: =K12+K13 -> 151.5698348 | L11: 151.5698348 | M11: 151.5698348 | N11: 151.5698348 | O11: 151.5698348 | P11: 151.5698348 | Q11: 151.5698348 | R11: 151.5698348 | S11: 151.5698348 | T11: 151.5698348 | U11: 151.5698348 | V11: =V12+V13 -> 105.3942842 | W11: 105.3942842 | X11: 105.3942842 | Y11: 105.3942842 | Z11: 105.3942842 | AA11: 105.3942842 | AB11: 105.3942842 | AC11: 105.3942842 | AD11: 105.3942842 | AE11: 105.3942842 | AF11: 105.3942842 | AG11: 105.3942842
B12: Will the FX worksheet be used for new Foreign Currency debt? | G12: No | H12: =ROW() -> 12 | I12: Domestic Currency | J12: =Input_3!$I93/12 -> 116.208856 | K12: =Input_3!$I93/12 -> 116.208856 | L12: =Input_3!$I93/12 -> 116.208856 | M12: =Input_3!$I93/12 -> 116.208856 | N12: =Input_3!$I93/12 -> 116.208856 | O12: =Input_3!$I93/12 -> 116.208856 | P12: =Input_3!$I93/12 -> 116.208856 | Q12: =Input_3!$I93/12 -> 116.208856 | R12: =Input_3!$I93/12 -> 116.208856 | S12: =Input_3!$I93/12 -> 116.208856 | T12: =Input_3!$I93/12 -> 116.208856 | U12: =Input_3!$I93/12 -> 116.208856 | V12: =Input_3!$J93/12 -> 74.70305535 | W12: =Input_3!$J93/12 -> 74.70305535 | X12: =Input_3!$J93/12 -> 74.70305535 | Y12: =Input_3!$J93/12 -> 74.70305535 | Z12: =Input_3!$J93/12 -> 74.70305535 | AA12: =Input_3!$J93/12 -> 74.70305535 | AB12: =Input_3!$J93/12 -> 74.70305535 | AC12: =Input_3!$J93/12 -> 74.70305535 | AD12: =Input_3!$J93/12 -> 74.70305535 | AE12: =Input_3!$J93/12 -> 74.70305535 | AF12: =Input_3!$J93/12 -> 74.70305535 | AG12: =Input_3!$J93/12 -> 74.70305535 | AI12: =SUM($J12:$U12)-Input_3!$E$132 -> 0 | AK12: =Input_3!$J$93-SUM($V12:$AG12) -> 0
I13: Foreign Currency | J13: ='Input_1_(From_MTDS)'!$K$144/12 -> 35.36097882 | K13: ='Input_1_(From_MTDS)'!$K$144/12 -> 35.36097882 | L13: ='Input_1_(From_MTDS)'!$K$144/12 -> 35.36097882 | M13: ='Input_1_(From_MTDS)'!$K$144/12 -> 35.36097882 | N13: ='Input_1_(From_MTDS)'!$K$144/12 -> 35.36097882 | O13: ='Input_1_(From_MTDS)'!$K$144/12 -> 35.36097882 | P13: ='Input_1_(From_MTDS)'!$K$144/12 -> 35.36097882 | Q13: ='Input_1_(From_MTDS)'!$K$144/12 -> 35.36097882 | R13: ='Input_1_(From_MTDS)'!$K$144/12 -> 35.36097882 | S13: ='Input_1_(From_MTDS)'!$K$144/12 -> 35.36097882 | T13: ='Input_1_(From_MTDS)'!$K$144/12 -> 35.36097882 | U13: ='Input_1_(From_MTDS)'!$K$144/12 -> 35.36097882 | V13: ='Input_1_(From_MTDS)'!$L$144/12 -> 30.69122886 | W13: ='Input_1_(From_MTDS)'!$L$144/12 -> 30.69122886 | X13: ='Input_1_(From_MTDS)'!$L$144/12 -> 30.69122886 | Y13: ='Input_1_(From_MTDS)'!$L$144/12 -> 30.69122886 | Z13: ='Input_1_(From_MTDS)'!$L$144/12 -> 30.69122886 | AA13: ='Input_1_(From_MTDS)'!$L$144/12 -> 30.69122886 | AB13: ='Input_1_(From_MTDS)'!$L$144/12 -> 30.69122886 | AC13: ='Input_1_(From_MTDS)'!$L$144/12 -> 30.69122886 | AD13: ='Input_1_(From_MTDS)'!$L$144/12 -> 30.69122886 | AE13: ='Input_1_(From_MTDS)'!$L$144/12 -> 30.69122886 | AF13: ='Input_1_(From_MTDS)'!$L$144/12 -> 30.69122886 | AG13: ='Input_1_(From_MTDS)'!$L$144/12 -> 30.69122886 | AI13: =SUM(GFN!$J13:$U13)-'Input_1_(From_MTDS)'!$K$144 -> 0 | AK13: ='Input_1_(From_MTDS)'!$L$144-SUM(GFN!$V13:$AG13) -> 0
I14: New Debt | J14: =J15 -> 0 | K14: =K15 -> 0 | L14: 0 | M14: 0 | N14: 0 | O14: 0 | P14: 0 | Q14: 0 | R14: 0 | S14: 0 | T14: 0 | U14: 0 | V14: =IF($G$12="No",V$15,V$16) -> 14.95101489 | W14: 14.95101489 | X14: 14.95101489 | Y14: 14.95101489 | Z14: 14.95101489 | AA14: 14.95101489 | AB14: 14.95101489 | AC14: 14.95101489 | AD14: 14.95101489 | AE14: 14.95101489 | AF14: 14.95101489 | AG14: 14.95101489
I15: Foreign Currency from MTDS/ABPT | J15: =IF($G$12="No",('Input_1_(From_MTDS)'!$K$389-'Input_1_(From_MTDS)'!$K$144)/12,'M10.FX_Cashflow'!AF144) -> 0 | K15: =IF($G$12="No",('Input_1_(From_MTDS)'!$K$389-'Input_1_(From_MTDS)'!$K$144)/12,'M10.FX_Cashflow'!AG144) -> 0 | L15: =IF($G$12="No",('Input_1_(From_MTDS)'!$K$389-'Input_1_(From_MTDS)'!$K$144)/12,'M10.FX_Cashflow'!AH144) -> 0 | M15: =IF($G$12="No",('Input_1_(From_MTDS)'!$K$389-'Input_1_(From_MTDS)'!$K$144)/12,'M10.FX_Cashflow'!AI144) -> 0 | N15: =IF($G$12="No",('Input_1_(From_MTDS)'!$K$389-'Input_1_(From_MTDS)'!$K$144)/12,'M10.FX_Cashflow'!AJ144) -> 0 | O15: =IF($G$12="No",('Input_1_(From_MTDS)'!$K$389-'Input_1_(From_MTDS)'!$K$144)/12,'M10.FX_Cashflow'!AK144) -> 0 | P15: =IF($G$12="No",('Input_1_(From_MTDS)'!$K$389-'Input_1_(From_MTDS)'!$K$144)/12,'M10.FX_Cashflow'!AL144) -> 0 | Q15: =IF($G$12="No",('Input_1_(From_MTDS)'!$K$389-'Input_1_(From_MTDS)'!$K$144)/12,'M10.FX_Cashflow'!AM144) -> 0 | R15: =IF($G$12="No",('Input_1_(From_MTDS)'!$K$389-'Input_1_(From_MTDS)'!$K$144)/12,'M10.FX_Cashflow'!AN144) -> 0 | S15: =IF($G$12="No",('Input_1_(From_MTDS)'!$K$389-'Input_1_(From_MTDS)'!$K$144)/12,'M10.FX_Cashflow'!AO144) -> 0 | T15: =IF($G$12="No",('Input_1_(From_MTDS)'!$K$389-'Input_1_(From_MTDS)'!$K$144)/12,'M10.FX_Cashflow'!AP144) -> 0 | U15: =IF($G$12="No",('Input_1_(From_MTDS)'!$K$389-'Input_1_(From_MTDS)'!$K$144)/12,'M10.FX_Cashflow'!AQ144) -> 0 | V15: =IF($G$12="No",('Input_1_(From_MTDS)'!$L$389-'Input_1_(From_MTDS)'!$L$144)/12,'M10.FX_Cashflow'!AR144) -> 14.95101489 | W15: =IF($G$12="No",('Input_1_(From_MTDS)'!$L$389-'Input_1_(From_MTDS)'!$L$144)/12,'M10.FX_Cashflow'!AS144) -> 14.95101489 | X15: =IF($G$12="No",('Input_1_(From_MTDS)'!$L$389-'Input_1_(From_MTDS)'!$L$144)/12,'M10.FX_Cashflow'!AT144) -> 14.95101489 | Y15: =IF($G$12="No",('Input_1_(From_MTDS)'!$L$389-'Input_1_(From_MTDS)'!$L$144)/12,'M10.FX_Cashflow'!AU144) -> 14.95101489 | Z15: =IF($G$12="No",('Input_1_(From_MTDS)'!$L$389-'Input_1_(From_MTDS)'!$L$144)/12,'M10.FX_Cashflow'!AV144) -> 14.95101489 | AA15: =IF($G$12="No",('Input_1_(From_MTDS)'!$L$389-'Input_1_(From_MTDS)'!$L$144)/12,'M10.FX_Cashflow'!AW144) -> 14.95101489 | AB15: =IF($G$12="No",('Input_1_(From_MTDS)'!$L$389-'Input_1_(From_MTDS)'!$L$144)/12,'M10.FX_Cashflow'!AX144) -> 14.95101489 | AC15: =IF($G$12="No",('Input_1_(From_MTDS)'!$L$389-'Input_1_(From_MTDS)'!$L$144)/12,'M10.FX_Cashflow'!AY144) -> 14.95101489 | AD15: =IF($G$12="No",('Input_1_(From_MTDS)'!$L$389-'Input_1_(From_MTDS)'!$L$144)/12,'M10.FX_Cashflow'!AZ144) -> 14.95101489 | AE15: =IF($G$12="No",('Input_1_(From_MTDS)'!$L$389-'Input_1_(From_MTDS)'!$L$144)/12,'M10.FX_Cashflow'!BA144) -> 14.95101489 | AF15: =IF($G$12="No",('Input_1_(From_MTDS)'!$L$389-'Input_1_(From_MTDS)'!$L$144)/12,'M10.FX_Cashflow'!BB144) -> 14.95101489 | AG15: =IF($G$12="No",('Input_1_(From_MTDS)'!$L$389-'Input_1_(From_MTDS)'!$L$144)/12,'M10.FX_Cashflow'!BC144) -> 14.95101489 | AI15: =SUM(GFN!$J15:$U15)-('Input_1_(From_MTDS)'!$K$389-'Input_1_(From_MTDS)'!$K$144) -> 0 | AK15: =('Input_1_(From_MTDS)'!$L$389-'Input_1_(From_MTDS)'!$L$144)-SUM(GFN!$V15:$AG15) -> 0
AI16: =SUM(GFN!$J16:$U16)-('Input_1_(From_MTDS)'!$K$389-'Input_1_(From_MTDS)'!$K$144) -> 0 | AK16: =('Input_1_(From_MTDS)'!$L$389-'Input_1_(From_MTDS)'!$L$144)-SUM(GFN!$V16:$AG16) -> 179.4121787
H17: =ROW() -> 17 | I17: =Input_3!$D$133 -> Principal payments | J17: =J18+J21 -> 529.9455977 | K17: =K18+K21 -> 529.9455977 | L17: 529.9455977 | M17: 529.9455977 | N17: 529.9455977 | O17: 529.9455977 | P17: 529.9455977 | Q17: 529.9455977 | R17: 529.9455977 | S17: 529.9455977 | T17: 529.9455977 | U17: 529.9455977 | V17: 199.0931939 | W17: 199.0931939 | X17: 199.0931939 | Y17: 199.0931939 | Z17: 199.0931939 | AA17: 199.0931939 | AB17: 199.0931939 | AC17: 199.0931939 | AD17: 199.0931939 | AE17: 199.0931939 | AF17: 199.0931939 | AG17: 199.0931939
I18: Existing Debt from MTDS | J18: =J19+J20 -> 529.9455977 | K18: =K19+K20 -> 529.9455977 | L18: 529.9455977 | M18: 529.9455977 | N18: 529.9455977 | O18: 529.9455977 | P18: 529.9455977 | Q18: 529.9455977 | R18: 529.9455977 | S18: 529.9455977 | T18: 529.9455977 | U18: 529.9455977 | V18: 199.0931939 | W18: 199.0931939 | X18: 199.0931939 | Y18: 199.0931939 | Z18: 199.0931939 | AA18: 199.0931939 | AB18: 199.0931939 | AC18: 199.0931939 | AD18: 199.0931939 | AE18: 199.0931939 | AF18: 199.0931939 | AG18: 199.0931939
I19: Local Currency | J19: =Input_3!$E93/12 -> 319.2753897 | K19: =Input_3!$E93/12 -> 319.2753897 | L19: =Input_3!$E93/12 -> 319.2753897 | M19: =Input_3!$E93/12 -> 319.2753897 | N19: =Input_3!$E93/12 -> 319.2753897 | O19: =Input_3!$E93/12 -> 319.2753897 | P19: =Input_3!$E93/12 -> 319.2753897 | Q19: =Input_3!$E93/12 -> 319.2753897 | R19: =Input_3!$E93/12 -> 319.2753897 | S19: =Input_3!$E93/12 -> 319.2753897 | T19: =Input_3!$E93/12 -> 319.2753897 | U19: =Input_3!$E93/12 -> 319.2753897 | V19: =Input_3!$F93/12 -> 8.364220833 | W19: =Input_3!$F93/12 -> 8.364220833 | X19: =Input_3!$F93/12 -> 8.364220833 | Y19: =Input_3!$F93/12 -> 8.364220833 | Z19: =Input_3!$F93/12 -> 8.364220833 | AA19: =Input_3!$F93/12 -> 8.364220833 | AB19: =Input_3!$F93/12 -> 8.364220833 | AC19: =Input_3!$F93/12 -> 8.364220833 | AD19: =Input_3!$F93/12 -> 8.364220833 | AE19: =Input_3!$F93/12 -> 8.364220833 | AF19: =Input_3!$F93/12 -> 8.364220833 | AG19: =Input_3!$F93/12 -> 8.364220833 | AI19: =SUM($J19:$U19)-Input_3!$E$93 -> 0 | AK19: =Input_3!$F$93-SUM($V19:$AG19) -> 0
I20: Foreign Currency | J20: ='Input_1_(From_MTDS)'!$K$129/12 -> 210.6702079 | K20: ='Input_1_(From_MTDS)'!$K$129/12 -> 210.6702079 | L20: ='Input_1_(From_MTDS)'!$K$129/12 -> 210.6702079 | M20: ='Input_1_(From_MTDS)'!$K$129/12 -> 210.6702079 | N20: ='Input_1_(From_MTDS)'!$K$129/12 -> 210.6702079 | O20: ='Input_1_(From_MTDS)'!$K$129/12 -> 210.6702079 | P20: ='Input_1_(From_MTDS)'!$K$129/12 -> 210.6702079 | Q20: ='Input_1_(From_MTDS)'!$K$129/12 -> 210.6702079 | R20: ='Input_1_(From_MTDS)'!$K$129/12 -> 210.6702079 | S20: ='Input_1_(From_MTDS)'!$K$129/12 -> 210.6702079 | T20: ='Input_1_(From_MTDS)'!$K$129/12 -> 210.6702079 | U20: ='Input_1_(From_MTDS)'!$K$129/12 -> 210.6702079 | V20: ='Input_1_(From_MTDS)'!$L$129/12 -> 190.7289731 | W20: ='Input_1_(From_MTDS)'!$L$129/12 -> 190.7289731 | X20: ='Input_1_(From_MTDS)'!$L$129/12 -> 190.7289731 | Y20: ='Input_1_(From_MTDS)'!$L$129/12 -> 190.7289731 | Z20: ='Input_1_(From_MTDS)'!$L$129/12 -> 190.7289731 | AA20: ='Input_1_(From_MTDS)'!$L$129/12 -> 190.7289731 | AB20: ='Input_1_(From_MTDS)'!$L$129/12 -> 190.7289731 | AC20: ='Input_1_(From_MTDS)'!$L$129/12 -> 190.7289731 | AD20: ='Input_1_(From_MTDS)'!$L$129/12 -> 190.7289731 | AE20: ='Input_1_(From_MTDS)'!$L$129/12 -> 190.7289731 | AF20: ='Input_1_(From_MTDS)'!$L$129/12 -> 190.7289731 | AG20: ='Input_1_(From_MTDS)'!$L$129/12 -> 190.7289731 | AI20: =SUM(GFN!$J20:$U20)-'Input_1_(From_MTDS)'!$K$129 -> 0 | AK20: ='Input_1_(From_MTDS)'!$L$129-SUM(GFN!$V20:$AG20) -> 0
I21: New Debt | J21: =J22 -> 0 | K21: =K22 -> 0 | L21: 0 | M21: 0 | N21: 0 | O21: 0 | P21: 0 | Q21: 0 | R21: 0 | S21: 0 | T21: 0 | U21: 0 | V21: 0 | W21: 0 | X21: 0 | Y21: 0 | Z21: 0 | AA21: 0 | AB21: 0 | AC21: 0 | AD21: 0 | AE21: 0 | AF21: 0 | AG21: 0
I22: Foreign Currency from MTDS/ABPT | J22: =IF($G$12="No",('Input_1_(From_MTDS)'!$K$309-'Input_1_(From_MTDS)'!$K$129)/12,'M10.FX_Cashflow'!AF118) -> 0 | K22: =IF($G$12="No",('Input_1_(From_MTDS)'!$K$309-'Input_1_(From_MTDS)'!$K$129)/12,'M10.FX_Cashflow'!AG118) -> 0 | L22: =IF($G$12="No",('Input_1_(From_MTDS)'!$K$309-'Input_1_(From_MTDS)'!$K$129)/12,'M10.FX_Cashflow'!AH118) -> 0 | M22: =IF($G$12="No",('Input_1_(From_MTDS)'!$K$309-'Input_1_(From_MTDS)'!$K$129)/12,'M10.FX_Cashflow'!AI118) -> 0 | N22: =IF($G$12="No",('Input_1_(From_MTDS)'!$K$309-'Input_1_(From_MTDS)'!$K$129)/12,'M10.FX_Cashflow'!AJ118) -> 0 | O22: =IF($G$12="No",('Input_1_(From_MTDS)'!$K$309-'Input_1_(From_MTDS)'!$K$129)/12,'M10.FX_Cashflow'!AK118) -> 0 | P22: =IF($G$12="No",('Input_1_(From_MTDS)'!$K$309-'Input_1_(From_MTDS)'!$K$129)/12,'M10.FX_Cashflow'!AL118) -> 0 | Q22: =IF($G$12="No",('Input_1_(From_MTDS)'!$K$309-'Input_1_(From_MTDS)'!$K$129)/12,'M10.FX_Cashflow'!AM118) -> 0 | R22: =IF($G$12="No",('Input_1_(From_MTDS)'!$K$309-'Input_1_(From_MTDS)'!$K$129)/12,'M10.FX_Cashflow'!AN118) -> 0 | S22: =IF($G$12="No",('Input_1_(From_MTDS)'!$K$309-'Input_1_(From_MTDS)'!$K$129)/12,'M10.FX_Cashflow'!AO118) -> 0 | T22: =IF($G$12="No",('Input_1_(From_MTDS)'!$K$309-'Input_1_(From_MTDS)'!$K$129)/12,'M10.FX_Cashflow'!AP118) -> 0 | U22: =IF($G$12="No",('Input_1_(From_MTDS)'!$K$309-'Input_1_(From_MTDS)'!$K$129)/12,'M10.FX_Cashflow'!AQ118) -> 0 | V22: =IF($G$12="No",('Input_1_(From_MTDS)'!$K$309-'Input_1_(From_MTDS)'!$K$129)/12,'M10.FX_Cashflow'!AR118) -> 0 | W22: =IF($G$12="No",('Input_1_(From_MTDS)'!$K$309-'Input_1_(From_MTDS)'!$K$129)/12,'M10.FX_Cashflow'!AS118) -> 0 | X22: =IF($G$12="No",('Input_1_(From_MTDS)'!$K$309-'Input_1_(From_MTDS)'!$K$129)/12,'M10.FX_Cashflow'!AT118) -> 0 | Y22: =IF($G$12="No",('Input_1_(From_MTDS)'!$K$309-'Input_1_(From_MTDS)'!$K$129)/12,'M10.FX_Cashflow'!AU118) -> 0 | Z22: =IF($G$12="No",('Input_1_(From_MTDS)'!$K$309-'Input_1_(From_MTDS)'!$K$129)/12,'M10.FX_Cashflow'!AV118) -> 0 | AA22: =IF($G$12="No",('Input_1_(From_MTDS)'!$K$309-'Input_1_(From_MTDS)'!$K$129)/12,'M10.FX_Cashflow'!AW118) -> 0 | AB22: =IF($G$12="No",('Input_1_(From_MTDS)'!$K$309-'Input_1_(From_MTDS)'!$K$129)/12,'M10.FX_Cashflow'!AX118) -> 0 | AC22: =IF($G$12="No",('Input_1_(From_MTDS)'!$K$309-'Input_1_(From_MTDS)'!$K$129)/12,'M10.FX_Cashflow'!AY118) -> 0 | AD22: =IF($G$12="No",('Input_1_(From_MTDS)'!$K$309-'Input_1_(From_MTDS)'!$K$129)/12,'M10.FX_Cashflow'!AZ118) -> 0 | AE22: =IF($G$12="No",('Input_1_(From_MTDS)'!$K$309-'Input_1_(From_MTDS)'!$K$129)/12,'M10.FX_Cashflow'!BA118) -> 0 | AF22: =IF($G$12="No",('Input_1_(From_MTDS)'!$K$309-'Input_1_(From_MTDS)'!$K$129)/12,'M10.FX_Cashflow'!BB118) -> 0 | AG22: =IF($G$12="No",('Input_1_(From_MTDS)'!$K$309-'Input_1_(From_MTDS)'!$K$129)/12,'M10.FX_Cashflow'!BC118) -> 0 | AI22: =SUM(GFN!$J22:$U22)-('Input_1_(From_MTDS)'!$K$309-'Input_1_(From_MTDS)'!$K$129) -> 0 | AK22: =('Input_1_(From_MTDS)'!$L$309-'Input_1_(From_MTDS)'!$L$129)-SUM(GFN!$V22:$AG22) -> 0
H23: =ROW() -> 23 | AI23: =('Input_1_(From_MTDS)'!$K$309-'Input_1_(From_MTDS)'!$K$129)-SUM(GFN!$J23:$U23) -> 0 | AJ23: =SUM(AI9:AI23) -> 0 | AK23: =('Input_1_(From_MTDS)'!$L$309-'Input_1_(From_MTDS)'!$L$129)-SUM(GFN!$V23:$AG23) -> 0
H24: =ROW() -> 24 | I24: Gross Financing Requirement | J24: =J9+J10+J17 -> 1160.367045 | K24: 1160.367045 | L24: 1160.367045 | M24: 1160.367045 | N24: 1160.367045 | O24: 1160.367045 | P24: 1160.367045 | Q24: 1160.367045 | R24: 1160.367045 | S24: 1160.367045 | T24: 1160.367045 | U24: 1160.367045 | V24: 626.7120577 | W24: 626.7120577 | X24: 626.7120577 | Y24: 626.7120577 | Z24: 626.7120577 | AA24: 626.7120577 | AB24: 626.7120577 | AC24: 626.7120577 | AD24: 626.7120577 | AE24: 626.7120577 | AF24: 626.7120577 | AG24: 626.7120577
I25: Other adjustments | J25: =J39-J38 -> 0 | K25: =K39-K38 -> 0 | L25: 0 | M25: 0 | N25: 0 | O25: 0 | P25: 0 | Q25: 0 | R25: 0 | S25: 0 | T25: 0 | U25: 0 | V25: 0 | W25: 0 | X25: 0 | Y25: 0 | Z25: 0 | AA25: 0 | AB25: 0 | AC25: 0 | AD25: 0 | AE25: 0 | AF25: 0 | AG25: 0
I26: New Gross Financing Requirement | J26: =J24+J25 -> 1160.367045 | K26: =K24+K25 -> 1160.367045 | L26: 1160.367045 | M26: 1160.367045 | N26: 1160.367045 | O26: 1160.367045 | P26: 1160.367045 | Q26: 1160.367045 | R26: 1160.367045 | S26: 1160.367045 | T26: 1160.367045 | U26: 1160.367045 | V26: 626.7120577 | W26: 626.7120577 | X26: 626.7120577 | Y26: 626.7120577 | Z26: 626.7120577 | AA26: 626.7120577 | AB26: 626.7120577 | AC26: 626.7120577 | AD26: 626.7120577 | AE26: 626.7120577 | AF26: 626.7120577 | AG26: 626.7120577
H28: =ROW() -> 28 | I28: =Input_3!D137 -> Gross Extermal Financing (GEF) (foreign currency borrowing) (in local currency) | J28: =IF($G$12="No",Input_3!$E$137/12,'M10.FX_Cashflow'!AF$8) -> 580.1835224 | K28: =IF($G$12="No",Input_3!$E$137/12,'M10.FX_Cashflow'!AG$8) -> 580.1835224 | L28: =IF($G$12="No",Input_3!$E$137/12,'M10.FX_Cashflow'!AH$8) -> 580.1835224 | M28: =IF($G$12="No",Input_3!$E$137/12,'M10.FX_Cashflow'!AI$8) -> 580.1835224 | N28: =IF($G$12="No",Input_3!$E$137/12,'M10.FX_Cashflow'!AJ$8) -> 580.1835224 | O28: =IF($G$12="No",Input_3!$E$137/12,'M10.FX_Cashflow'!AK$8) -> 580.1835224 | P28: =IF($G$12="No",Input_3!$E$137/12,'M10.FX_Cashflow'!AL$8) -> 580.1835224 | Q28: =IF($G$12="No",Input_3!$E$137/12,'M10.FX_Cashflow'!AM$8) -> 580.1835224 | R28: =IF($G$12="No",Input_3!$E$137/12,'M10.FX_Cashflow'!AN$8) -> 580.1835224 | S28: =IF($G$12="No",Input_3!$E$137/12,'M10.FX_Cashflow'!AO$8) -> 580.1835224 | T28: =IF($G$12="No",Input_3!$E$137/12,'M10.FX_Cashflow'!AP$8) -> 580.1835224 | U28: =IF($G$12="No",Input_3!$E$137/12,'M10.FX_Cashflow'!AQ$8) -> 580.1835224 | V28: =IF($G$12="No",Input_3!$F$137/12,'M10.FX_Cashflow'!AR$8) -> 452.1987799 | W28: =IF($G$12="No",Input_3!$F$137/12,'M10.FX_Cashflow'!AS$8) -> 452.1987799 | X28: =IF($G$12="No",Input_3!$F$137/12,'M10.FX_Cashflow'!AT$8) -> 452.1987799 | Y28: =IF($G$12="No",Input_3!$F$137/12,'M10.FX_Cashflow'!AU$8) -> 452.1987799 | Z28: =IF($G$12="No",Input_3!$F$137/12,'M10.FX_Cashflow'!AV$8) -> 452.1987799 | AA28: =IF($G$12="No",Input_3!$F$137/12,'M10.FX_Cashflow'!AW$8) -> 452.1987799 | AB28: =IF($G$12="No",Input_3!$F$137/12,'M10.FX_Cashflow'!AX$8) -> 452.1987799 | AC28: =IF($G$12="No",Input_3!$F$137/12,'M10.FX_Cashflow'!AY$8) -> 452.1987799 | AD28: =IF($G$12="No",Input_3!$F$137/12,'M10.FX_Cashflow'!AZ$8) -> 452.1987799 | AE28: =IF($G$12="No",Input_3!$F$137/12,'M10.FX_Cashflow'!BA$8) -> 452.1987799 | AF28: =IF($G$12="No",Input_3!$F$137/12,'M10.FX_Cashflow'!BB$8) -> 452.1987799 | AG28: =IF($G$12="No",Input_3!$F$137/12,'M10.FX_Cashflow'!BC$8) -> 452.1987799 | AI28: =(SUM(J28:U28)-Input_3!E137) -> 9.094947018e-13 | AK28: =Input_3!F137-SUM(V28:AG28) -> 0
H29: =ROW() -> 29 | I29: Gross Domestic Financing (GDF) (in local currency) | J29: =J26-J28 -> 580.1835224 | K29: =K26-K28 -> 580.1835224 | L29: 580.1835224 | M29: 580.1835224 | N29: 580.1835224 | O29: 580.1835224 | P29: 580.1835224 | Q29: 580.1835224 | R29: 580.1835224 | S29: 580.1835224 | T29: 580.1835224 | U29: 580.1835224 | V29: 174.5132778 | W29: 174.5132778 | X29: 174.5132778 | Y29: 174.5132778 | Z29: 174.5132778 | AA29: 174.5132778 | AB29: 174.5132778 | AC29: 174.5132778 | AD29: 174.5132778 | AE29: 174.5132778 | AF29: 174.5132778 | AG29: 174.5132778 | AI29: =SUM(J29:U29)-Input_3!E141 -> 0 | AK29: =Input_3!$F$141-SUM($V29:$AG29) -> 3332.226025 | AM29: >>> Explained by New Debt Service Payments
H30: =ROW() -> 30 | AL30: =Input_3!$F$135-Input_3!$F$93 -> 2784.880907 | AM30: Principal Payments
H31: =ROW() -> 31 | I31: Cash Opening Balance | J31: 100 | AL31: =Input_3!$F$132-Input_3!$J$93 -> 547.3451173 | AM31: Interest Payments
H32: =ROW() -> 32 | I32: Minimum Cash Balance | J32: 50 | AL32: =AL30+AL31 -> 3332.226025
I36: Optional Area | J36: =J$6 -> Jan-25 | K36: =K$6 -> Feb-25 | L36: Mar-25 | M36: Apr-25 | N36: May-25 | O36: Jun-25 | P36: Jul-25 | Q36: Aug-25 | R36: Sep-25 | S36: Oct-25 | T36: Nov-25 | U36: Dec-25 | V36: Jan-26 | W36: Feb-26 | X36: Mar-26 | Y36: Apr-26 | Z36: May-26 | AA36: Jun-26 | AB36: Jul-26 | AC36: Aug-26 | AD36: Sep-26 | AE36: Oct-26 | AF36: Nov-26 | AG36: Dec-26
I38: Proceeds that reduce gross financing need
I39: Expenses that increase gross financing need
I41: Note: this area should be used to reflect items that
I42: a) that reduced gross financing requirement in the first year of strategy period in the MTDS analysis, the amount can be picked up from cell H274 in Input_1(from_MTDS) worksheet.
I43: b) cash buffer available to be used that was not part of the MTDS analysis.
I44: c) revenues and expenditures that were included as part of MTDS analysis. | W44: =169-148 -> 21 | AI44: =AJ23 -> 0 | AJ44: Difference in GFN before adjustments
AI45: =AI28 -> 9.094947018e-13 | AJ45: Difference in GEF before adjustments
I46: For example, consider the following scenario where | AI46: =AI44-AI45 -> -9.094947018e-13 | AJ46: Difference in GDF before adjustments
I47: 1) cash buffer of 150 was available and used during MTDS to reduce gross financing and planned to be used throughout the year as below.
I48: Note that cash buffer used at MTDS stage should be pulled from Input_1_(From_MTDS) worksheet (cell H274). | AI48: =SUM(J29:U29) -> 6962.202269 | AJ48: New GDF
I49: 2) new revenue stream of 200 not identified during MTDS has become available with income expected in April | AI49: =Input_3!E141 -> 6962.202269 | AJ49: Old GDF
I50: 3) new expenditure has been identified at the stage of ABP preparation which was not included in the MTDS | AI50: =AI48-AI49 -> 0 | AJ50: Difference
J52: =J36 -> Jan-25 | K52: Feb-25 | L52: Mar-25 | M52: Apr-25 | N52: May-25 | O52: Jun-25 | P52: Jul-25 | Q52: Aug-25 | R52: Sep-25 | S52: Oct-25 | T52: Nov-25 | U52: Dec-25 | AJ52: Explained by:
I53: Cash buffer draw down (1) | K53: 40 | L53: 10 | P53: 70 | S53: 30 | AI53: =AJ23 -> 0 | AJ53: Change in GFN
I54: New revenue stream (2) | M54: 200 | AI54: =AI28 -> 9.094947018e-13 | AJ54: Change in GEF
I55: New expenditure (3) | J55: 70 | L55: 60 | O55: 80 | Q55: 50 | R55: 90 | AJ55: New Items
AI56: =AI53-AI54+AI55 -> -9.094947018e-13
I58: Proceeds that reduce gross financing need (1) + (2) | J58: =J53+J54 -> 0 | K58: =K53+K54 -> 40 | L58: 10 | M58: 200 | N58: 0 | O58: 0 | P58: 70 | Q58: 0 | R58: 0 | S58: 30 | T58: 0 | U58: 0
I59: Expenses that increase gross financing need (3) | J59: =J55 -> 70 | K59: =K55 -> 0 | L59: 60 | M59: 0 | N59: 0 | O59: 80 | P59: 0 | Q59: 50 | R59: 90 | S59: 0 | T59: 0 | U59: 0
I61: New items in cell AI55 should only include (2) and (3) which were not part of the MTDS analysis.

Sheet FX
C2: Foreign Currency Borrowing
C3: Update monthly disbursement amounts in nominal/face value amount.
C4: Yellow cells should be updated by the user. | S4: Enteries below should be in local currency and in nominal/face value, cash proceeds will be derived based on yield and coupon.
C5: Entries here are linked to "Input_1_(From_MTDS)" worksheet. However, users have the option to overwrite blue font entries.
C6: If users are not overwriting, ensure the right Foreign Currency instruments are picked up.
AT7: From MTDS | AY7: From MTDS
S8: If monthly gross Foreign Currency financing is available, user should overwrite and enter the data below. | AR8: ="in "&Input_2!$E$12&" of "&'Input_1_(From_MTDS)'!$F$192 -> in millions of USD | AT8: ="in "&Input_2!$E$12&" of "&'Input_1_(From_MTDS)'!$F$192 -> in millions of USD | AY8: ="in "&Input_2!$E$12&" of "&'Input_1_(From_MTDS)'!$F$192 -> in millions of USD
C9: Instrument Name | D9: Currency | E9: Interest Rate Type | F9: Maturity in Years (except T-bills) | G9: Grace Period in Years (except T-bills) | H9: ="Average Yield "&Input_2!$E$9 -> Average Yield 2025 | I9: ="Average Yield "&Input_2!$E$9+1 -> Average Yield 2026 | J9: ="Average Interest / Coupon "&Input_2!$E$9 -> Average Interest / Coupon 2025 | K9: ="Average Interest / Coupon "&Input_2!$E$9+1 -> Average Interest / Coupon 2026 | L9: ="Average Depreciation Rate "&Input_2!$E$9 -> Average Depreciation Rate 2025 | M9: ="Average Depreciation Rate "&Input_2!$E$9+1 -> Average Depreciation Rate 2026 | N9: Frequency of Coupon Payments | O9: Type | AR9: =Input_2!$E$7+1 -> 2025 | AS9: =Input_2!$E$7+1 -> 2025 | AT9: =Input_2!$E$7+1 -> 2025 | AU9: =Input_2!$E$7+1 -> 2025 | AW9: =AR9+1 -> 2026 | AX9: =AS9+1 -> 2026 | AY9: =AT9+1 -> 2026 | AZ9: =AU9+1 -> 2026
P10: =Input_2!$E$7+1 -> 2025 | Q10: =Input_2!$E$7+2 -> 2026 | S10: =GFN!J$6 -> Jan-25 | T10: =GFN!K$6 -> Feb-25 | U10: =GFN!L$6 -> Mar-25 | V10: =GFN!M$6 -> Apr-25 | W10: =GFN!N$6 -> May-25 | X10: =GFN!O$6 -> Jun-25 | Y10: =GFN!P$6 -> Jul-25 | Z10: =GFN!Q$6 -> Aug-25 | AA10: =GFN!R$6 -> Sep-25 | AB10: =GFN!S$6 -> Oct-25 | AC10: =GFN!T$6 -> Nov-25 | AD10: =GFN!U$6 -> Dec-25 | AE10: =GFN!V$6 -> Jan-26 | AF10: =GFN!W$6 -> Feb-26 | AG10: =GFN!X$6 -> Mar-26 | AH10: =GFN!Y$6 -> Apr-26 | AI10: =GFN!Z$6 -> May-26 | AJ10: =GFN!AA$6 -> Jun-26 | AK10: =GFN!AB$6 -> Jul-26 | AL10: =GFN!AC$6 -> Aug-26 | AM10: =GFN!AD$6 -> Sep-26 | AN10: =GFN!AE$6 -> Oct-26 | AO10: =GFN!AF$6 -> Nov-26 | AP10: =GFN!AG$6 -> Dec-26 | AQ10: XD Rate | AR10: =HLOOKUP(AR$9,'Input_1_(From_MTDS)'!$G$190:$BO$197,3,FALSE) -> 15.75391215 | AT10: =HLOOKUP(AT$9,'Input_1_(From_MTDS)'!$G$190:$BO$197,3,FALSE) -> 15.75391215 | AW10: =HLOOKUP(AW$9,'Input_1_(From_MTDS)'!$G$190:$BO$197,3,FALSE) -> 16.52288795 | AY10: =HLOOKUP(AY$9,'Input_1_(From_MTDS)'!$G$190:$BO$197,3,FALSE) -> 16.52288795
C11: ='Input_1_(From_MTDS)'!$C286 -> ADF_Fixed | D11: =IF('Input_1_(From_MTDS)'!$G286<>" ",(IF('Input_1_(From_MTDS)'!$G286="External","Foreign","Domestic"))," ") -> Foreign | E11: ='Input_1_(From_MTDS)'!$H286 -> Fix | F11: ='Input_1_(From_MTDS)'!$D286 -> 40 | G11: ='Input_1_(From_MTDS)'!$E286 -> 10 | H11: ='Input_1_(From_MTDS)'!$K201 -> 0.0075 | I11: ='Input_1_(From_MTDS)'!$L201 -> 0.0075 | J11: =H11 -> 0.0075 | K11: =I11 -> 0.0075 | L11: ='Input_1_(From_MTDS)'!$H$192/'Input_1_(From_MTDS)'!$G$192-1 -> 0.05026081022 | M11: ='Input_1_(From_MTDS)'!$I$192/'Input_1_(From_MTDS)'!$H$192-1 -> 0.04881173594 | N11: 1 | O11: =Input_2!G18 -> Multilateral | P11: =SUM(S11:AD11) -> 1392.440454 | Q11: =SUM(AE11:AP11) -> 1085.277072 | S11: =IF($D11="Foreign",'Input_1_(From_MTDS)'!H252/12,0) -> 116.0367045 | T11: =S11 -> 116.0367045 | U11: =T11 -> 116.0367045 | V11: 116.0367045 | W11: 116.0367045 | X11: 116.0367045 | Y11: 116.0367045 | Z11: 116.0367045 | AA11: 116.0367045 | AB11: 116.0367045 | AC11: 116.0367045 | AD11: 116.0367045 | AE11: =IF($D11="Foreign",'Input_1_(From_MTDS)'!I252/12,0) -> 90.43975598 | AF11: =AE11 -> 90.43975598 | AG11: =AF11 -> 90.43975598 | AH11: 90.43975598 | AI11: 90.43975598 | AJ11: 90.43975598 | AK11: 90.43975598 | AL11: 90.43975598 | AM11: 90.43975598 | AN11: 90.43975598 | AO11: 90.43975598 | AP11: 90.43975598 | AR11: =SUM($S11:$AD11)/AR$10 -> 88.3869632 | AS11: =$AR11/AR$31 -> 0.2 | AT11: ='Input_1_(From_MTDS)'!$H252/AT$10 -> 88.3869632 | AU11: =$AT11/AT$31 -> 0.2 | AW11: =SUM($AE11:$AP11)/AW$10 -> 65.68325554 | AX11: =$AW11/AW$31 -> 0.2 | AY11: ='Input_1_(From_MTDS)'!$I252/AY$10 -> 65.68325554 | AZ11: =$AY11/AY$31 -> 0.2
C12: ='Input_1_(From_MTDS)'!$C287 -> IDA/IFAD/EDF_Fixed | D12: =IF('Input_1_(From_MTDS)'!$G287<>" ",(IF('Input_1_(From_MTDS)'!$G287="External","Foreign","Domestic"))," ") -> Foreign | E12: ='Input_1_(From_MTDS)'!$H287 -> Fix | F12: ='Input_1_(From_MTDS)'!$D287 -> 35 | G12: ='Input_1_(From_MTDS)'!$E287 -> 7 | H12: ='Input_1_(From_MTDS)'!$K202 -> 0.02 | I12: ='Input_1_(From_MTDS)'!$L202 -> 0.02 | J12: =H12 -> 0.02 | K12: =I12 -> 0.02 | L12: ='Input_1_(From_MTDS)'!$H$192/'Input_1_(From_MTDS)'!$G$192-1 -> 0.05026081022 | M12: ='Input_1_(From_MTDS)'!$I$192/'Input_1_(From_MTDS)'!$H$192-1 -> 0.04881173594 | N12: 1 | O12: =Input_2!G19 -> Multilateral | P12: =SUM(S12:AD12) -> 1392.440454 | Q12: =SUM(AE12:AP12) -> 1085.277072 | S12: =IF($D12="Foreign",'Input_1_(From_MTDS)'!H253/12,0) -> 116.0367045 | T12: =S12 -> 116.0367045 | U12: =T12 -> 116.0367045 | V12: =U12 -> 116.0367045 | W12: =V12 -> 116.0367045 | X12: =W12 -> 116.0367045 | Y12: =X12 -> 116.0367045 | Z12: =Y12 -> 116.0367045 | AA12: =Z12 -> 116.0367045 | AB12: =AA12 -> 116.0367045 | AC12: =AB12 -> 116.0367045 | AD12: =AC12 -> 116.0367045 | AE12: =IF($D12="Foreign",'Input_1_(From_MTDS)'!I253/12,0) -> 90.43975598 | AF12: =AE12 -> 90.43975598 | AG12: =AF12 -> 90.43975598 | AH12: =AG12 -> 90.43975598 | AI12: =AH12 -> 90.43975598 | AJ12: =AI12 -> 90.43975598 | AK12: =AJ12 -> 90.43975598 | AL12: =AK12 -> 90.43975598 | AM12: =AL12 -> 90.43975598 | AN12: =AM12 -> 90.43975598 | AO12: =AN12 -> 90.43975598 | AP12: =AO12 -> 90.43975598 | AR12: =SUM($S12:$AD12)/AR$10 -> 88.3869632 | AS12: 0.2 | AT12: ='Input_1_(From_MTDS)'!$H253/AT$10 -> 88.3869632 | AU12: 0.2 | AW12: =SUM($AE12:$AP12)/AW$10 -> 65.68325554 | AX12: 0.2 | AY12: ='Input_1_(From_MTDS)'!$I253/AY$10 -> 65.68325554 | AZ12: =$AY12/AY$31 -> 0.2
C13: ='Input_1_(From_MTDS)'!$C288 -> IBRD/ADB/IDB_Fixed | D13: =IF('Input_1_(From_MTDS)'!$G288<>" ",(IF('Input_1_(From_MTDS)'!$G288="External","Foreign","Domestic"))," ") -> Foreign | E13: ='Input_1_(From_MTDS)'!$H288 -> Fix | F13: ='Input_1_(From_MTDS)'!$D288 -> 25 | G13: ='Input_1_(From_MTDS)'!$E288 -> 5 | H13: ='Input_1_(From_MTDS)'!$K203 -> 0.0275 | I13: ='Input_1_(From_MTDS)'!$L203 -> 0.0275 | J13: 0.0275 | K13: 0.0275 | L13: ='Input_1_(From_MTDS)'!$H$192/'Input_1_(From_MTDS)'!$G$192-1 -> 0.05026081022 | M13: ='Input_1_(From_MTDS)'!$I$192/'Input_1_(From_MTDS)'!$H$192-1 -> 0.04881173594 | N13: 1 | O13: =Input_2!G20 -> Multilateral | P13: 1392.440454 | Q13: 1085.277072 | S13: =IF($D13="Foreign",'Input_1_(From_MTDS)'!H254/12,0) -> 116.0367045 | T13: 116.0367045 | U13: 116.0367045 | V13: 116.0367045 | W13: 116.0367045 | X13: 116.0367045 | Y13: 116.0367045 | Z13: 116.0367045 | AA13: 116.0367045 | AB13: 116.0367045 | AC13: 116.0367045 | AD13: 116.0367045 | AE13: =IF($D13="Foreign",'Input_1_(From_MTDS)'!I254/12,0) -> 90.43975598 | AF13: 90.43975598 | AG13: 90.43975598 | AH13: 90.43975598 | AI13: 90.43975598 | AJ13: 90.43975598 | AK13: 90.43975598 | AL13: 90.43975598 | AM13: 90.43975598 | AN13: 90.43975598 | AO13: 90.43975598 | AP13: 90.43975598 | AR13: 88.3869632 | AS13: 0.2 | AT13: ='Input_1_(From_MTDS)'!$H254/AT$10 -> 88.3869632 | AU13: 0.2 | AW13: 65.68325554 | AX13: 0.2 | AY13: ='Input_1_(From_MTDS)'!$I254/AY$10 -> 65.68325554 | AZ13: 0.2
C14: ='Input_1_(From_MTDS)'!$C289 -> IBRD/ADB/IDB_Var | D14: =IF('Input_1_(From_MTDS)'!$G289<>" ",(IF('Input_1_(From_MTDS)'!$G289="External","Foreign","Domestic"))," ") -> Foreign | E14: ='Input_1_(From_MTDS)'!$H289 -> Var | F14: ='Input_1_(From_MTDS)'!$D289 -> 25 | G14: ='Input_1_(From_MTDS)'!$E289 -> 5 | H14: ='Input_1_(From_MTDS)'!$K204 -> 0.016615 | I14: ='Input_1_(From_MTDS)'!$L204 -> 0.022243 | J14: 0.016615 | K14: 0.022243 | L14: ='Input_1_(From_MTDS)'!$H$192/'Input_1_(From_MTDS)'!$G$192-1 -> 0.05026081022 | M14: ='Input_1_(From_MTDS)'!$I$192/'Input_1_(From_MTDS)'!$H$192-1 -> 0.04881173594 | N14: 1 | O14: =Input_2!G21 -> Multilateral | P14: 1392.440454 | Q14: 1085.277072 | S14: =IF($D14="Foreign",'Input_1_(From_MTDS)'!H255/12,0) -> 116.0367045 | T14: 116.0367045 | U14: 116.0367045 | V14: 116.0367045 | W14: 116.0367045 | X14: 116.0367045 | Y14: 116.0367045 | Z14: 116.0367045 | AA14: 116.0367045 | AB14: 116.0367045 | AC14: 116.0367045 | AD14: 116.0367045 | AE14: =IF($D14="Foreign",'Input_1_(From_MTDS)'!I255/12,0) -> 90.43975598 | AF14: 90.43975598 | AG14: 90.43975598 | AH14: 90.43975598 | AI14: 90.43975598 | AJ14: 90.43975598 | AK14: 90.43975598 | AL14: 90.43975598 | AM14: 90.43975598 | AN14: 90.43975598 | AO14: 90.43975598 | AP14: 90.43975598 | AR14: 88.3869632 | AS14: 0.2 | AT14: ='Input_1_(From_MTDS)'!$H255/AT$10 -> 88.3869632 | AU14: 0.2 | AW14: 65.68325554 | AX14: 0.2 | AY14: ='Input_1_(From_MTDS)'!$I255/AY$10 -> 65.68325554 | AZ14: 0.2
C15: ='Input_1_(From_MTDS)'!$C290 -> Bilateral_Fixed | D15: =IF('Input_1_(From_MTDS)'!$G290<>" ",(IF('Input_1_(From_MTDS)'!$G290="External","Foreign","Domestic"))," ") -> Foreign | E15: ='Input_1_(From_MTDS)'!$H290 -> Fix | F15: ='Input_1_(From_MTDS)'!$D290 -> 20 | G15: ='Input_1_(From_MTDS)'!$E290 -> 5 | H15: ='Input_1_(From_MTDS)'!$K205 -> 0.0300354148 | I15: ='Input_1_(From_MTDS)'!$L205 -> 0.0300354148 | J15: 0.0300354148 | K15: 0.0300354148 | L15: ='Input_1_(From_MTDS)'!$H$192/'Input_1_(From_MTDS)'!$G$192-1 -> 0.05026081022 | M15: ='Input_1_(From_MTDS)'!$I$192/'Input_1_(From_MTDS)'!$H$192-1 -> 0.04881173594 | N15: 1 | O15: =Input_2!G22 -> Bilateral | P15: 696.2202269 | Q15: 542.6385359 | S15: =IF($D15="Foreign",'Input_1_(From_MTDS)'!H256/12,0) -> 58.01835224 | T15: 58.01835224 | U15: 58.01835224 | V15: 58.01835224 | W15: 58.01835224 | X15: 58.01835224 | Y15: 58.01835224 | Z15: 58.01835224 | AA15: 58.01835224 | AB15: 58.01835224 | AC15: 58.01835224 | AD15: 58.01835224 | AE15: =IF($D15="Foreign",'Input_1_(From_MTDS)'!I256/12,0) -> 45.21987799 | AF15: 45.21987799 | AG15: 45.21987799 | AH15: 45.21987799 | AI15: 45.21987799 | AJ15: 45.21987799 | AK15: 45.21987799 | AL15: 45.21987799 | AM15: 45.21987799 | AN15: 45.21987799 | AO15: 45.21987799 | AP15: 45.21987799 | AR15: 44.1934816 | AS15: 0.1 | AT15: ='Input_1_(From_MTDS)'!$H256/AT$10 -> 44.1934816 | AU15: 0.1 | AW15: 32.84162777 | AX15: 0.1 | AY15: ='Input_1_(From_MTDS)'!$I256/AY$10 -> 32.84162777 | AZ15: 0.1
C16: ='Input_1_(From_MTDS)'!$C291 -> Commercial Bank_Var | D16: =IF('Input_1_(From_MTDS)'!$G291<>" ",(IF('Input_1_(From_MTDS)'!$G291="External","Foreign","Domestic"))," ") -> Foreign | E16: ='Input_1_(From_MTDS)'!$H291 -> Var | F16: ='Input_1_(From_MTDS)'!$D291 -> 5 | G16: ='Input_1_(From_MTDS)'!$E291 -> 1 | H16: ='Input_1_(From_MTDS)'!$K206 -> 0.07243604981 | I16: ='Input_1_(From_MTDS)'!$L206 -> 0.07623504981 | J16: 0.07243604981 | K16: 0.07623504981 | L16: ='Input_1_(From_MTDS)'!$H$192/'Input_1_(From_MTDS)'!$G$192-1 -> 0.05026081022 | M16: ='Input_1_(From_MTDS)'!$I$192/'Input_1_(From_MTDS)'!$H$192-1 -> 0.04881173594 | N16: 1 | O16: =Input_2!G23 -> FX Commercial Loan | P16: 696.2202269 | Q16: 542.6385359 | S16: =IF($D16="Foreign",'Input_1_(From_MTDS)'!H257/12,0) -> 58.01835224 | T16: 58.01835224 | U16: 58.01835224 | V16: 58.01835224 | W16: 58.01835224 | X16: 58.01835224 | Y16: 58.01835224 | Z16: 58.01835224 | AA16: 58.01835224 | AB16: 58.01835224 | AC16: 58.01835224 | AD16: 58.01835224 | AE16: =IF($D16="Foreign",'Input_1_(From_MTDS)'!I257/12,0) -> 45.21987799 | AF16: 45.21987799 | AG16: 45.21987799 | AH16: 45.21987799 | AI16: 45.21987799 | AJ16: 45.21987799 | AK16: 45.21987799 | AL16: 45.21987799 | AM16: 45.21987799 | AN16: 45.21987799 | AO16: 45.21987799 | AP16: 45.21987799 | AR16: 44.1934816 | AS16: 0.1 | AT16: ='Input_1_(From_MTDS)'!$H257/AT$10 -> 44.1934816 | AU16: 0.1 | AW16: 32.84162777 | AX16: 0.1 | AY16: ='Input_1_(From_MTDS)'!$I257/AY$10 -> 32.84162777 | AZ16: 0.1
C17: ='Input_1_(From_MTDS)'!$C292 -> 0 | D17: =IF('Input_1_(From_MTDS)'!$G292<>" ",(IF('Input_1_(From_MTDS)'!$G292="External","Foreign","Domestic"))," ") -> Foreign | E17: ='Input_1_(From_MTDS)'!$H292 -> 0 | F17: ='Input_1_(From_MTDS)'!$D292 -> 0 | G17: ='Input_1_(From_MTDS)'!$E292 -> 0 | H17: ='Input_1_(From_MTDS)'!$K207 -> 0 | I17: ='Input_1_(From_MTDS)'!$L207 -> 0 | J17: =H17 -> 0 | K17: =I17 -> 0 | L17: ='Input_1_(From_MTDS)'!$H$192/'Input_1_(From_MTDS)'!$G$192-1 -> 0.05026081022 | M17: ='Input_1_(From_MTDS)'!$I$192/'Input_1_(From_MTDS)'!$H$192-1 -> 0.04881173594 | N17: 1 | O17: =Input_2!G24 -> 0 | P17: 0 | Q17: 0 | AR17: 0 | AS17: 0 | AU17: 0 | AW17: 0 | AX17: 0 | AZ17: 0
C18: ='Input_1_(From_MTDS)'!$C293 -> 0 | D18: =IF('Input_1_(From_MTDS)'!$G293<>" ",(IF('Input_1_(From_MTDS)'!$G293="External","Foreign","Domestic"))," ") -> Foreign | E18: ='Input_1_(From_MTDS)'!$H293 -> 0 | F18: ='Input_1_(From_MTDS)'!$D293 -> 0 | G18: ='Input_1_(From_MTDS)'!$E293 -> 0 | H18: ='Input_1_(From_MTDS)'!$K208 -> 0 | I18: ='Input_1_(From_MTDS)'!$L208 -> 0 | J18: 0 | K18: 0 | L18: ='Input_1_(From_MTDS)'!$H$192/'Input_1_(From_MTDS)'!$G$192-1 -> 0.05026081022 | M18: ='Input_1_(From_MTDS)'!$I$192/'Input_1_(From_MTDS)'!$H$192-1 -> 0.04881173594 | N18: 1 | O18: =Input_2!G25 -> 0 | P18: =SUM(S18:AD18) -> 0 | Q18: =SUM(AE18:AP18) -> 0 | AR18: 0 | AS18: 0 | AU18: 0 | AW18: 0 | AX18: 0 | AZ18: 0
C19: ='Input_1_(From_MTDS)'!$C294 -> 0 | D19: =IF('Input_1_(From_MTDS)'!$G294<>" ",(IF('Input_1_(From_MTDS)'!$G294="External","Foreign","Domestic"))," ") -> Foreign | E19: ='Input_1_(From_MTDS)'!$H294 -> 0 | F19: ='Input_1_(From_MTDS)'!$D294 -> 0 | G19: ='Input_1_(From_MTDS)'!$E294 -> 0 | H19: ='Input_1_(From_MTDS)'!$K209 -> 0 | I19: ='Input_1_(From_MTDS)'!$L209 -> 0 | J19: 0 | K19: 0 | L19: ='Input_1_(From_MTDS)'!$H$192/'Input_1_(From_MTDS)'!$G$192-1 -> 0.05026081022 | M19: ='Input_1_(From_MTDS)'!$I$192/'Input_1_(From_MTDS)'!$H$192-1 -> 0.04881173594 | N19: 1 | O19: =Input_2!G26 -> 0 | P19: =SUM(S19:AD19) -> 0 | Q19: 0 | AR19: 0 | AS19: 0 | AU19: 0 | AW19: 0 | AX19: 0 | AZ19: 0
C20: ='Input_1_(From_MTDS)'!$C295 -> 0 | D20: =IF('Input_1_(From_MTDS)'!$G295<>" ",(IF('Input_1_(From_MTDS)'!$G295="External","Foreign","Domestic"))," ") -> Foreign | E20: ='Input_1_(From_MTDS)'!$H295 -> 0 | F20: ='Input_1_(From_MTDS)'!$D295 -> 0 | G20: ='Input_1_(From_MTDS)'!$E295 -> 0 | H20: ='Input_1_(From_MTDS)'!$K210 -> 0 | I20: ='Input_1_(From_MTDS)'!$L210 -> 0 | J20: 0 | K20: 0 | L20: ='Input_1_(From_MTDS)'!$H$192/'Input_1_(From_MTDS)'!$G$192-1 -> 0.05026081022 | M20: ='Input_1_(From_MTDS)'!$I$192/'Input_1_(From_MTDS)'!$H$192-1 -> 0.04881173594 | N20: 1 | O20: =Input_2!G27 -> 0 | P20: 0 | Q20: 0 | AR20: 0 | AS20: 0 | AU20: 0 | AW20: 0 | AX20: 0 | AZ20: 0
Q21: 0 | AR21: 0 | AS21: 0 | AU21: 0 | AW21: 0 | AX21: 0 | AZ21: 0
Q22: 0 | AR22: 0 | AS22: 0 | AU22: 0 | AW22: 0 | AX22: 0 | AZ22: 0
Q23: 0 | AR23: 0 | AS23: 0 | AU23: 0 | AW23: 0 | AX23: 0 | AZ23: 0
Q24: 0 | AR24: 0 | AS24: 0 | AU24: 0 | AW24: 0 | AX24: 0 | AZ24: 0
Q25: 0 | AR25: 0 | AS25: 0 | AU25: 0 | AW25: 0 | AX25: 0 | AZ25: 0
Q26: 0 | AR26: 0 | AS26: 0 | AU26: 0 | AW26: 0 | AX26: 0 | AZ26: 0
Q27: 0 | AR27: 0 | AS27: 0 | AU27: 0 | AW27: 0 | AX27: 0 | AZ27: 0
Q28: =SUM(AE28:AP28) -> 0 | AR28: 0 | AS28: 0 | AU28: 0 | AW28: 0 | AX28: 0 | AZ28: 0
Q29: =SUM(AE29:AP29) -> 0 | AR29: 0 | AS29: 0 | AU29: 0 | AW29: 0 | AX29: 0 | AZ29: 0
Q30: =SUM(AE30:AP30) -> 0 | AR30: 0 | AS30: 0 | AU30: 0 | AW30: 0 | AX30: 0 | AZ30: 0
P31: =SUMIFS($P$11:$P$30,$D$11:$D$30,"Foreign") -> 6962.202269 | Q31: =SUMIFS($Q$11:$Q$30,$D$11:$D$30,"Foreign") -> 5426.385359 | S31: =SUM(S11:S30) -> 580.1835224 | T31: 580.1835224 | U31: 580.1835224 | V31: 580.1835224 | W31: 580.1835224 | X31: 580.1835224 | Y31: 580.1835224 | Z31: 580.1835224 | AA31: 580.1835224 | AB31: 580.1835224 | AC31: =SUM(AC11:AC30) -> 580.1835224 | AD31: =SUM(AD11:AD30) -> 580.1835224 | AE31: =SUM(AE11:AE30) -> 452.1987799 | AF31: =SUM(AF11:AF30) -> 452.1987799 | AG31: =SUM(AG11:AG30) -> 452.1987799 | AH31: 452.1987799 | AI31: 452.1987799 | AJ31: 452.1987799 | AK31: 452.1987799 | AL31: 452.1987799 | AM31: 452.1987799 | AN31: 452.1987799 | AO31: 452.1987799 | AP31: 452.1987799 | AR31: 441.934816 | AT31: =SUM(AT11:AT30) -> 441.934816 | AW31: 328.4162777 | AY31: =SUM(AY11:AY30) -> 328.4162777
O32: DEVIATION FROM MTDS | P32: =P31-Input_3!E137 -> 0 | Q32: =Q31-Input_3!F137 -> 0
O34: DO NOT OVERWRITE THIS AREA
O35: Multilateral | P35: =SUMIFS(P$11:P$30,$O$11:$O$30,$O35) -> 5569.761815 | Q35: =SUMIFS(Q$11:Q$30,$O$11:$O$30,$O35) -> 4341.108287 | S35: =SUMIFS(S$11:S$30,$O$11:$O$30,$O35) -> 464.1468179 | T35: =SUMIFS(T$11:T$30,$O$11:$O$30,$O35) -> 464.1468179 | U35: 464.1468179 | V35: 464.1468179 | W35: 464.1468179 | X35: 464.1468179 | Y35: 464.1468179 | Z35: 464.1468179 | AA35: 464.1468179 | AB35: 464.1468179 | AC35: 464.1468179 | AD35: 464.1468179 | AE35: 361.7590239 | AF35: 361.7590239 | AG35: 361.7590239 | AH35: 361.7590239 | AI35: 361.7590239 | AJ35: 361.7590239 | AK35: 361.7590239 | AL35: 361.7590239 | AM35: 361.7590239 | AN35: 361.7590239 | AO35: 361.7590239 | AP35: 361.7590239
O36: Bilateral | P36: 696.2202269 | Q36: 542.6385359 | S36: =SUMIFS(S$11:S$30,$O$11:$O$30,$O36) -> 58.01835224 | T36: 58.01835224 | U36: 58.01835224 | V36: 58.01835224 | W36: 58.01835224 | X36: 58.01835224 | Y36: 58.01835224 | Z36: 58.01835224 | AA36: 58.01835224 | AB36: 58.01835224 | AC36: 58.01835224 | AD36: 58.01835224 | AE36: 45.21987799 | AF36: 45.21987799 | AG36: 45.21987799 | AH36: 45.21987799 | AI36: 45.21987799 | AJ36: 45.21987799 | AK36: 45.21987799 | AL36: 45.21987799 | AM36: 45.21987799 | AN36: 45.21987799 | AO36: 45.21987799 | AP36: 45.21987799
O37: FX Commercial Loan | P37: 696.2202269 | Q37: 542.6385359 | S37: 58.01835224 | T37: 58.01835224 | U37: 58.01835224 | V37: 58.01835224 | W37: 58.01835224 | X37: 58.01835224 | Y37: 58.01835224 | Z37: 58.01835224 | AA37: 58.01835224 | AB37: 58.01835224 | AC37: 58.01835224 | AD37: 58.01835224 | AE37: 45.21987799 | AF37: 45.21987799 | AG37: 45.21987799 | AH37: 45.21987799 | AI37: 45.21987799 | AJ37: 45.21987799 | AK37: 45.21987799 | AL37: 45.21987799 | AM37: 45.21987799 | AN37: 45.21987799 | AO37: 45.21987799 | AP37: 45.21987799
O38: International Bond | P38: 0 | Q38: 0 | S38: 0 | T38: 0 | U38: 0 | V38: 0 | W38: 0 | X38: 0 | Y38: 0 | Z38: 0 | AA38: 0 | AB38: 0 | AC38: 0 | AD38: 0 | AE38: 0 | AF38: 0 | AG38: 0 | AH38: 0 | AI38: 0 | AJ38: 0 | AK38: 0 | AL38: 0 | AM38: 0 | AN38: 0 | AO38: 0 | AP38: 0
O39: FX Security | P39: 0 | Q39: 0 | S39: 0 | T39: 0 | U39: 0 | V39: 0 | W39: 0 | X39: 0 | Y39: 0 | Z39: 0 | AA39: 0 | AB39: 0 | AC39: 0 | AD39: 0 | AE39: 0 | AF39: 0 | AG39: 0 | AH39: 0 | AI39: 0 | AJ39: 0 | AK39: 0 | AL39: 0 | AM39: 0 | AN39: 0 | AO39: 0 | AP39: 0
O40: FX Other | P40: 0 | Q40: 0 | S40: 0 | T40: 0 | U40: 0 | V40: 0 | W40: 0 | X40: 0 | Y40: 0 | Z40: 0 | AA40: 0 | AB40: 0 | AC40: 0 | AD40: 0 | AE40: 0 | AF40: 0 | AG40: 0 | AH40: 0 | AI40: 0 | AJ40: 0 | AK40: 0 | AL40: 0 | AM40: 0 | AN40: 0 | AO40: 0 | AP40: 0
P41: =SUM(P35:P40) -> 6962.202269 | Q41: =SUM(Q35:Q40) -> 5426.385359 | S41: =SUM(S35:S40) -> 580.1835224 | T41: 580.1835224 | U41: 580.1835224 | V41: 580.1835224 | W41: 580.1835224 | X41: 580.1835224 | Y41: 580.1835224 | Z41: 580.1835224 | AA41: 580.1835224 | AB41: 580.1835224 | AC41: 580.1835224 | AD41: 580.1835224 | AE41: 452.1987799 | AF41: 452.1987799 | AG41: 452.1987799 | AH41: 452.1987799 | AI41: 452.1987799 | AJ41: 452.1987799 | AK41: 452.1987799 | AL41: 452.1987799 | AM41: 452.1987799 | AN41: 452.1987799 | AO41: 452.1987799 | AP41: 452.1987799
O58: NOTE: | S58: Working Area: in case FX disbursement in foreign currency, it can be entered here and converted to local currency above
S60: =Input_2!$E$9 -> 2025 | T60: =S60 -> 2025 | U60: =T60 -> 2025 | V60: =U60 -> 2025 | W60: =V60 -> 2025 | X60: =W60 -> 2025 | Y60: =X60 -> 2025 | Z60: =Y60 -> 2025 | AA60: =Z60 -> 2025 | AB60: =AA60 -> 2025 | AC60: =AB60 -> 2025 | AD60: =AC60 -> 2025 | AE60: =Input_2!$E$9+1 -> 2026 | AF60: =Input_2!$E$9+1 -> 2026 | AG60: =Input_2!$E$9+1 -> 2026 | AH60: =Input_2!$E$9+1 -> 2026 | AI60: =Input_2!$E$9+1 -> 2026 | AJ60: =Input_2!$E$9+1 -> 2026 | AK60: =Input_2!$E$9+1 -> 2026 | AL60: =Input_2!$E$9+1 -> 2026 | AM60: =Input_2!$E$9+1 -> 2026 | AN60: =Input_2!$E$9+1 -> 2026 | AO60: =Input_2!$E$9+1 -> 2026 | AP60: =Input_2!$E$9+1 -> 2026
S61: =GFN!J$6 -> Jan-25 | T61: =GFN!K$6 -> Feb-25 | U61: =GFN!L$6 -> Mar-25 | V61: =GFN!M$6 -> Apr-25 | W61: =GFN!N$6 -> May-25 | X61: =GFN!O$6 -> Jun-25 | Y61: =GFN!P$6 -> Jul-25 | Z61: =GFN!Q$6 -> Aug-25 | AA61: =GFN!R$6 -> Sep-25 | AB61: =GFN!S$6 -> Oct-25 | AC61: =GFN!T$6 -> Nov-25 | AD61: =GFN!U$6 -> Dec-25 | AE61: =GFN!V$6 -> Jan-26 | AF61: =GFN!W$6 -> Feb-26 | AG61: =GFN!X$6 -> Mar-26 | AH61: =GFN!Y$6 -> Apr-26 | AI61: =GFN!Z$6 -> May-26 | AJ61: =GFN!AA$6 -> Jun-26 | AK61: =GFN!AB$6 -> Jul-26 | AL61: =GFN!AC$6 -> Aug-26 | AM61: =GFN!AD$6 -> Sep-26 | AN61: =GFN!AE$6 -> Oct-26 | AO61: =GFN!AF$6 -> Nov-26 | AP61: =GFN!AG$6 -> Dec-26
S82: =SUM(S62:S81) -> 0 | T82: 0 | U82: 0 | V82: 0 | W82: 0 | X82: 0 | Y82: 0 | Z82: 0 | AA82: 0 | AB82: 0 | AC82: =SUM(AC62:AC81) -> 0 | AD82: =SUM(AD62:AD81) -> 0 | AE82: =SUM(AE62:AE81) -> 0 | AF82: =SUM(AF62:AF81) -> 0 | AG82: =SUM(AG62:AG81) -> 0 | AH82: 0 | AI82: 0 | AJ82: 0 | AK82: 0 | AL82: 0 | AM82: 0 | AN82: 0 | AO82: 0 | AP82: 0

Sheet Instruments
B2: From Representative to Individual Types of Instruments
B4: Financing Allocation for Each Domestic Instruments
B6: Representative Instruments | C6: Instrument Name | D6: Type | E6: ="Percentage Based on Strategy Worksheet Year "&Input_2!$E$7+1 -> Percentage Based on Strategy Worksheet Year 2025 | F6: ="Percentage Based on Strategy Worksheet Year "&Input_2!$E$7+2 -> Percentage Based on Strategy Worksheet Year 2026 | G6: ="Amount Based on Strategy Allocation Year "&Input_2!$E$7+1&" "&Input_2!$E$11&" "&Input_2!$E$12 -> Amount Based on Strategy Allocation Year 2025 UTP millions | H6: ="Amount Based on Strategy Allocation Year "&Input_2!$E$7+2&" "&Input_2!$E$11&" "&Input_2!$E$12 -> Amount Based on Strategy Allocation Year 2026 UTP millions | I6: ="Average Yield Year "&Input_2!$E$7+1 -> Average Yield Year 2025 | J6: ="Average Yield Year "&Input_2!$E$7+2 -> Average Yield Year 2026 | K6: Fix / Var / T-bill | L6: Indexation | M6: Maturity (months/years) | N6: Grace Period (Years) | O6: Frequency of Coupon Payments | P6: ="Average Coupon Rate Year "&Input_2!$E$7+1 -> Average Coupon Rate Year 2025 | Q6: ="Average Coupon Rate Year "&Input_2!$E$7+2 -> Average Coupon Rate Year 2026
B7: T-bills | C7: T-bills 3m | D7: T-bills | E7: 0.1 | F7: 0.1 | G7: =$E7*Input_3!$E$141 -> 696.2202269 | H7: =$E7*Input_3!$F$141 -> 542.6385359 | I7: 0.03 | J7: 0.03 | K7: T-bills | L7: No | M7: 3 | N7: 0
B8: T-bills | C8: T-bills 6m | D8: T-bills | E8: 0.1 | F8: 0.1 | G8: =$E8*Input_3!$E$141 -> 696.2202269 | H8: =$E8*Input_3!$F$141 -> 542.6385359 | I8: 0.04 | J8: 0.04 | K8: T-bills | L8: No | M8: 6 | N8: 0
B9: T-bills | C9: T-bills 12m | D9: T-bills | E9: 0.2 | F9: 0.2 | G9: =$E9*Input_3!$E$141 -> 1392.440454 | H9: =$E9*Input_3!$F$141 -> 1085.277072 | I9: 0.06 | J9: 0.0625 | K9: T-bills | L9: No | M9: 12 | N9: 0
B10: 2yr - 3yr | C10: 2yr | D10: Bonds | E10: 0.1 | F10: 0.1 | G10: =$E10*Input_3!$E$141 -> 696.2202269 | H10: =$E10*Input_3!$F$141 -> 542.6385359 | I10: 0.0703 | J10: 0.071 | K10: Var | L10: No | M10: 2 | N10: 1 | O10: 4 | P10: =I10 -> 0.0703 | Q10: =J10 -> 0.071
B11: 2yr - 3yr | C11: 3yr | D11: Bonds | E11: 0.1 | F11: 0.1 | G11: =$E11*Input_3!$E$141 -> 696.2202269 | H11: =$E11*Input_3!$F$141 -> 542.6385359 | I11: 0.0752 | J11: 0.0755 | K11: Var | L11: No | M11: 3 | N11: 2 | O11: 4 | P11: 0.0752 | Q11: 0.0755
B12: 5yr - 7yr | C12: 5yr | D12: Bonds | E12: 0.1 | F12: 0.1 | G12: =$E12*Input_3!$E$141 -> 696.2202269 | H12: =$E12*Input_3!$F$141 -> 542.6385359 | I12: 0.083 | J12: 0.086 | K12: Fix | L12: No | M12: 5 | N12: 3 | O12: 2 | P12: 0.083 | Q12: 0.086
B13: 5yr - 7yr | C13: 7yr | D13: Bonds | E13: 0.1 | F13: 0.1 | G13: =$E13*Input_3!$E$141 -> 696.2202269 | H13: =$E13*Input_3!$F$141 -> 542.6385359 | I13: 0.087 | J13: 0.089 | K13: Fix | L13: No | M13: 7 | N13: 6 | O13: 2 | P13: 0.087 | Q13: 0.089
B14: 10yr | C14: 10yr | D14: Bonds | E14: 0.2 | F14: 0.2 | G14: =$E14*Input_3!$E$141 -> 1392.440454 | H14: =$E14*Input_3!$F$141 -> 1085.277072 | I14: 0.1453 | J14: 0.145 | K14: Fix | L14: No | M14: 10 | N14: 9 | O14: 2 | P14: 0.1453 | Q14: 0.145
E15: 0 | F15: 0 | G15: =$E15*Input_3!$E$141 -> 0 | H15: =$E15*Input_3!$F$141 -> 0 | P15: 0 | Q15: 0
E16: 0 | F16: 0 | G16: =$E16*Input_3!$E$141 -> 0 | H16: =$E16*Input_3!$F$141 -> 0 | P16: 0 | Q16: 0
A17: 1 | E17: 0 | F17: 0 | G17: =$E17*Input_3!$E$141 -> 0 | H17: =$E17*Input_3!$F$141 -> 0 | P17: 0 | Q17: 0
A18: =A17+1 -> 2 | E18: 0 | F18: 0 | G18: =$E18*Input_3!$E$141 -> 0 | H18: =$E18*Input_3!$F$141 -> 0 | P18: 0 | Q18: 0
A19: =A18+1 -> 3 | E19: 0 | F19: 0 | G19: =$E19*Input_3!$E$141 -> 0 | H19: =$E19*Input_3!$F$141 -> 0 | P19: 0 | Q19: 0
A20: 4 | E20: 0 | F20: 0 | G20: =$E20*Input_3!$E$141 -> 0 | H20: =$E20*Input_3!$F$141 -> 0 | P20: 0 | Q20: 0
A21: 5 | E21: 0 | F21: 0 | G21: =$E21*Input_3!$E$141 -> 0 | H21: =$E21*Input_3!$F$141 -> 0 | P21: 0 | Q21: 0
A22: 6 | E22: 0 | F22: 0 | G22: =$E22*Input_3!$E$141 -> 0 | H22: =$E22*Input_3!$F$141 -> 0 | P22: 0 | Q22: 0
A23: 7 | E23: 0 | F23: 0 | G23: =$E23*Input_3!$E$141 -> 0 | H23: =$E23*Input_3!$F$141 -> 0 | P23: 0 | Q23: 0
A24: 8 | E24: 0 | F24: 0 | G24: =$E24*Input_3!$E$141 -> 0 | H24: =$E24*Input_3!$F$141 -> 0 | P24: 0 | Q24: 0
A25: 9 | E25: 0 | F25: 0 | G25: =$E25*Input_3!$E$141 -> 0 | H25: =$E25*Input_3!$F$141 -> 0 | P25: 0 | Q25: 0
A26: 10 | E26: 0 | F26: 0 | G26: =$E26*Input_3!$E$141 -> 0 | H26: =$E26*Input_3!$F$141 -> 0 | P26: 0 | Q26: 0
C28: COMPARISON | I28: COMPARISON
C29: =Input_3!D6 -> T-Bills_Fixed | E29: =Input_3!E6 -> 0.4 | F29: =Input_3!F6 -> 0.4 | I29: =Input_3!E28 -> 0.045 | J29: =Input_3!F28 -> 0.0486
C30: =Input_3!D7 -> T-Bonds 3 YR_Fixed | E30: =Input_3!E7 -> 0.2 | F30: =Input_3!F7 -> 0.2 | I30: =Input_3!E29 -> 0.07277634333 | J30: =Input_3!F29 -> 0.0733
C31: =Input_3!D8 -> T-Bonds 5 YR_Fixed | E31: =Input_3!E8 -> 0.2 | F31: =Input_3!F8 -> 0.2 | I31: =Input_3!E30 -> 0.08500697726 | J31: =Input_3!F30 -> 0.0875
C32: =Input_3!D9 -> T-Bonds 10 YR_Fixed | E32: =Input_3!E9 -> 0.2 | F32: =Input_3!F9 -> 0.2 | I32: =Input_3!E31 -> 0.1453 | J32: =Input_3!F31 -> 0.145
C33: =Input_3!D10 -> 0 | E33: =Input_3!E10 -> 0 | F33: =Input_3!F10 -> 0 | I33: =Input_3!E32 -> 0 | J33: =Input_3!F32 -> 0
C34: =Input_3!D11 -> 0 | E34: =Input_3!E11 -> 0 | F34: =Input_3!F11 -> 0 | I34: =Input_3!E33 -> 0 | J34: =Input_3!F33 -> 0
C35: =Input_3!D12 -> 0 | E35: =Input_3!E12 -> 0 | F35: =Input_3!F12 -> 0 | I35: =Input_3!E34 -> 0 | J35: =Input_3!F34 -> 0
C36: =Input_3!D13 -> 0 | E36: =Input_3!E13 -> 0 | F36: =Input_3!F13 -> 0 | I36: =Input_3!E35 -> 0 | J36: =Input_3!F35 -> 0
C37: =Input_3!D14 -> 0 | E37: =Input_3!E14 -> 0 | F37: =Input_3!F14 -> 0 | I37: =Input_3!E36 -> 0 | J37: =Input_3!F36 -> 0
C38: =Input_3!D15 -> 0 | E38: =Input_3!E15 -> 0 | F38: =Input_3!F15 -> 0 | I38: =Input_3!E37 -> 0 | J38: =Input_3!F37 -> 0
B39: 1 | C39: =Input_3!D16 -> 0 | E39: =Input_3!E16 -> 0 | F39: =Input_3!F16 -> 0 | I39: =Input_3!E38 -> 0 | J39: =Input_3!F38 -> 0
B40: =B39+1 -> 2 | C40: =Input_3!D17 -> 0 | E40: =Input_3!E17 -> 0 | F40: =Input_3!F17 -> 0 | I40: =Input_3!E39 -> 0 | J40: =Input_3!F39 -> 0
B41: 3 | C41: =Input_3!D18 -> 0 | E41: =Input_3!E18 -> 0 | F41: =Input_3!F18 -> 0 | I41: =Input_3!E40 -> 0 | J41: =Input_3!F40 -> 0
B42: 4 | C42: =Input_3!D19 -> 0 | E42: =Input_3!E19 -> 0 | F42: =Input_3!F19 -> 0 | I42: =Input_3!E41 -> 0 | J42: =Input_3!F41 -> 0
B43: 5 | C43: =Input_3!D20 -> 0 | E43: =Input_3!E20 -> 0 | F43: =Input_3!F20 -> 0 | I43: =Input_3!E42 -> 0 | J43: =Input_3!F42 -> 0
B44: 6 | C44: =Input_3!D21 -> 0 | E44: =Input_3!E21 -> 0 | F44: =Input_3!F21 -> 0 | I44: =Input_3!E43 -> 0 | J44: =Input_3!F43 -> 0
B45: 7 | C45: =Input_3!D22 -> 0 | E45: =Input_3!E22 -> 0 | F45: =Input_3!F22 -> 0 | I45: =Input_3!E44 -> 0 | J45: =Input_3!F44 -> 0
B46: 8 | C46: =Input_3!D23 -> 0 | E46: =Input_3!E23 -> 0 | F46: =Input_3!F23 -> 0 | I46: =Input_3!E45 -> 0 | J46: =Input_3!F45 -> 0
B47: 9 | C47: =Input_3!D24 -> 0 | E47: =Input_3!E24 -> 0 | F47: =Input_3!F24 -> 0 | I47: =Input_3!E46 -> 0 | J47: =Input_3!F46 -> 0
B48: 10 | C48: =Input_3!D25 -> 0 | E48: =Input_3!E25 -> 0 | F48: =Input_3!F25 -> 0 | I48: =Input_3!E47 -> 0 | J48: =Input_3!F47 -> 0

Sheet Auction Parameters
B2: Auction Parameters
B4: Populate Based on Past Experience / Target
B6: All Instruments | C6: ="Volume at Auction Min Offer "&Input_2!$E$11&" "&Input_2!$E$12 -> Volume at Auction Min Offer UTP millions | D6: ="Volume at Auction Max Offer "&Input_2!$E$11&" "&Input_2!$E$12 -> Volume at Auction Max Offer UTP millions | E6: Frequency Times Per Year | F6: ±Tolerance Against MTDS Volume and Financing Composition (%) | G6: ="Percentage Based on Strategy Worksheet Year "&Input_2!$E$7+1 -> Percentage Based on Strategy Worksheet Year 2025 | H6: ="Percentage Based on Strategy Worksheet Year "&Input_2!$E$7+2 -> Percentage Based on Strategy Worksheet Year 2026 | I6: Type | J6: Fix / Var / T-bill | K6: Frequency of Coupon Payments | L6: Maturity (months/years) | M6: Maturity (Years for bonds) | N6: Maturity (months) | O6: ="MTDS Volume "&Input_2!$E$7+1&" "&Input_2!$E$11&" "&Input_2!$E$12 -> MTDS Volume 2025 UTP millions | P6: ="MTDS Volume "&Input_2!$E$7+2&" "&Input_2!$E$11&" "&Input_2!$E$12 -> MTDS Volume 2026 UTP millions
B7: =Instruments!$C$7 -> T-bills 3m | C7: 100 | D7: 250 | E7: 12 | F7: 0.02 | G7: =Instruments!$E$7 -> 0.1 | H7: =Instruments!$F$7 -> 0.1 | I7: =IF($J7="T-bills",$J7,Instruments!$D7) -> T-bills | J7: =Instruments!$K$7 -> T-bills | K7: =Instruments!$O$7 -> 0 | L7: =Instruments!M7 -> 3 | M7: =IF(I7="T-bills",0,Instruments!$M$7) -> 0 | N7: =IF(I7="T-bills",Instruments!$M$7,Instruments!$M$7*12) -> 3 | O7: =IF(Instruments!$G7>0,(Instruments!$E7*Input_3!$E$141)/$E7,0)*IF($E7>0,IF($I7="T-bills",12/$N7,1),0) -> 232.073409 | P7: =IF(Instruments!$H7>0,(Instruments!$E7*Input_3!$F$141)/$E7,0)*IF($E7>0,IF($I7="T-bills",12/$N7,1),0) -> 180.879512
B8: =Instruments!$C$8 -> T-bills 6m | C8: 100 | D8: 200 | E8: 12 | F8: 0.02 | G8: =Instruments!$E$8 -> 0.1 | H8: =Instruments!$F$8 -> 0.1 | I8: =IF($J8="T-bills",$J8,Instruments!$D8) -> T-bills | J8: =Instruments!$K$8 -> T-bills | K8: =Instruments!$O$8 -> 0 | L8: =Instruments!M8 -> 6 | M8: =IF(I8="T-bills",0,Instruments!$M$8) -> 0 | N8: =IF(I8="T-bills",Instruments!$M$8,Instruments!$M$8*12) -> 6 | O8: =IF(Instruments!$G8>0,(Instruments!$E8*Input_3!$E$141)/$E8,0)*IF($E8>0,IF($I8="T-bills",12/$N8,1),0) -> 116.0367045 | P8: =IF(Instruments!$H8>0,(Instruments!$E8*Input_3!$F$141)/$E8,0)*IF($E8>0,IF($I8="T-bills",12/$N8,1),0) -> 90.43975598
B9: =Instruments!$C$9 -> T-bills 12m | C9: 100 | D9: 200 | E9: 12 | F9: 0.02 | G9: =Instruments!$E$9 -> 0.2 | H9: =Instruments!$F$9 -> 0.2 | I9: =IF($J9="T-bills",$J9,Instruments!$D9) -> T-bills | J9: =Instruments!$K$9 -> T-bills | K9: =Instruments!$O$9 -> 0 | L9: =Instruments!M9 -> 12 | M9: =IF(I9="T-bills",0,Instruments!$M$9) -> 0 | N9: =IF(I9="T-bills",Instruments!M9,Instruments!M9*12) -> 12 | O9: =IF(Instruments!$G9>0,(Instruments!$E9*Input_3!$E$141)/$E9,0)*IF($E9>0,IF($I9="T-bills",12/$N9,1),0) -> 116.0367045 | P9: =IF(Instruments!$H9>0,(Instruments!$E9*Input_3!$F$141)/$E9,0)*IF($E9>0,IF($I9="T-bills",12/$N9,1),0) -> 90.43975598
B10: =Instruments!$C$10 -> 2yr | C10: 100 | D10: 200 | E10: 6 | F10: 0.02 | G10: =Instruments!$E$10 -> 0.1 | H10: =Instruments!$F$10 -> 0.1 | I10: =IF($J10="T-bills",$J10,Instruments!$D10) -> Bonds | J10: =Instruments!$K$10 -> Var | K10: =Instruments!$O$10 -> 4 | L10: =Instruments!M10 -> 2 | M10: =IF(I10="T-bills",0,Instruments!$M$10) -> 2 | N10: =IF(I10="T-bills",Instruments!M10,Instruments!M10*12) -> 24 | O10: =IF(Instruments!$G10>0,(Instruments!$E10*Input_3!$E$141)/$E10,0)*IF($E10>0,IF($I10="T-bills",12/$N10,1),0) -> 116.0367045 | P10: =IF(Instruments!$H10>0,(Instruments!$E10*Input_3!$F$141)/$E10,0)*IF($E10>0,IF($I10="T-bills",12/$N10,1),0) -> 90.43975598
B11: =Instruments!$C$11 -> 3yr | C11: 100 | D11: 200 | E11: 6 | F11: 0.02 | G11: =Instruments!$E$11 -> 0.1 | H11: =Instruments!$F$11 -> 0.1 | I11: =IF($J11="T-bills",$J11,Instruments!$D11) -> Bonds | J11: =Instruments!$K$11 -> Var | K11: =Instruments!$O$11 -> 4 | L11: =Instruments!M11 -> 3 | M11: =IF(I11="T-bills",0,Instruments!$M$11) -> 3 | N11: =IF(I11="T-bills",Instruments!M11,Instruments!M11*12) -> 36 | O11: =IF(Instruments!$G11>0,(Instruments!$E11*Input_3!$E$141)/$E11,0)*IF($E11>0,IF($I11="T-bills",12/$N11,1),0) -> 116.0367045 | P11: =IF(Instruments!$H11>0,(Instruments!$E11*Input_3!$F$141)/$E11,0)*IF($E11>0,IF($I11="T-bills",12/$N11,1),0) -> 90.43975598
B12: =Instruments!$C$12 -> 5yr | C12: 100 | D12: 200 | E12: 4 | F12: 0.02 | G12: =Instruments!$E$12 -> 0.1 | H12: =Instruments!$F$12 -> 0.1 | I12: =IF($J12="T-bills",$J12,Instruments!$D12) -> Bonds | J12: =Instruments!$K$12 -> Fix | K12: =Instruments!$O$12 -> 2 | L12: =Instruments!M12 -> 5 | M12: =IF(I12="T-bills",0,Instruments!$M$12) -> 5 | N12: =IF(I12="T-bills",Instruments!M12,Instruments!M12*12) -> 60 | O12: =IF(Instruments!$G12>0,(Instruments!$E12*Input_3!$E$141)/$E12,0)*IF($E12>0,IF($I12="T-bills",12/$N12,1),0) -> 174.0550567 | P12: =IF(Instruments!$H12>0,(Instruments!$E12*Input_3!$F$141)/$E12,0)*IF($E12>0,IF($I12="T-bills",12/$N12,1),0) -> 135.659634
B13: =Instruments!$C$13 -> 7yr | C13: 100 | D13: 200 | E13: 4 | F13: 0.02 | G13: =Instruments!$E$13 -> 0.1 | H13: =Instruments!$F$13 -> 0.1 | I13: =IF($J13="T-bills",$J13,Instruments!$D13) -> Bonds | J13: =Instruments!$K$13 -> Fix | K13: =Instruments!$O$13 -> 2 | L13: =Instruments!M13 -> 7 | M13: =IF(I13="T-bills",0,Instruments!$M$13) -> 7 | N13: =IF(I13="T-bills",Instruments!M13,Instruments!M13*12) -> 84 | O13: =IF(Instruments!$G13>0,(Instruments!$E13*Input_3!$E$141)/$E13,0)*IF($E13>0,IF($I13="T-bills",12/$N13,1),0) -> 174.0550567 | P13: =IF(Instruments!$H13>0,(Instruments!$E13*Input_3!$F$141)/$E13,0)*IF($E13>0,IF($I13="T-bills",12/$N13,1),0) -> 135.659634
B14: =Instruments!$C$14 -> 10yr | C14: 100 | D14: 200 | E14: 4 | F14: 0.02 | G14: =Instruments!$E$14 -> 0.2 | H14: =Instruments!$F$14 -> 0.2 | I14: =IF($J14="T-bills",$J14,Instruments!$D14) -> Bonds | J14: =Instruments!$K$14 -> Fix | K14: =Instruments!$O$14 -> 2 | L14: =Instruments!M14 -> 10 | M14: =IF(I14="T-bills",0,Instruments!$M$14) -> 10 | N14: =IF(I14="T-bills",Instruments!M14,Instruments!M14*12) -> 120 | O14: =IF(Instruments!$G14>0,(Instruments!$E14*Input_3!$E$141)/$E14,0)*IF($E14>0,IF($I14="T-bills",12/$N14,1),0) -> 348.1101134 | P14: =IF(Instruments!$H14>0,(Instruments!$E14*Input_3!$F$141)/$E14,0)*IF($E14>0,IF($I14="T-bills",12/$N14,1),0) -> 271.3192679
B15: =Instruments!$C$15 -> 0 | C15: 100 | D15: 200 | F15: 0.02 | G15: =Instruments!$E$15 -> 0 | H15: =Instruments!$F$15 -> 0 | I15: =IF($J15="T-bills",$J15,Instruments!$D15) -> 0 | J15: =Instruments!$K$15 -> 0 | K15: =Instruments!$O$15 -> 0 | L15: =Instruments!M15 -> 0 | M15: =IF(I15="T-bills",0,Instruments!$M$15) -> 0 | N15: =IF(I15="T-bills",Instruments!M15,Instruments!M15*12) -> 0 | O15: =IF(Instruments!$G15>0,(Instruments!$E15*Input_3!$E$141)/$E15,0)*IF($E15>0,IF($I15="T-bills",12/$N15,1),0) -> 0 | P15: =IF(Instruments!$H15>0,(Instruments!$E15*Input_3!$F$141)/$E15,0)*IF($E15>0,IF($I15="T-bills",12/$N15,1),0) -> 0
B16: =Instruments!$C$16 -> 0 | C16: 100 | D16: 200 | G16: =Instruments!$E$16 -> 0 | H16: =Instruments!$F$16 -> 0 | I16: =IF($J16="T-bills",$J16,Instruments!$D16) -> 0 | J16: =Instruments!$K$16 -> 0 | K16: =Instruments!$O$16 -> 0 | L16: =Instruments!M16 -> 0 | M16: =IF(I16="T-bills",0,Instruments!$M$16) -> 0 | N16: =IF(I16="T-bills",Instruments!M16,Instruments!M16*12) -> 0 | O16: =IF(Instruments!$G16>0,(Instruments!$E16*Input_3!$E$141)/$E16,0)*IF($E16>0,IF($I16="T-bills",12/$N16,1),0) -> 0 | P16: =IF(Instruments!$H16>0,(Instruments!$E16*Input_3!$F$141)/$E16,0)*IF($E16>0,IF($I16="T-bills",12/$N16,1),0) -> 0
B17: =Instruments!$C$17 -> 0 | C17: 100 | D17: 200 | G17: =Instruments!$E$17 -> 0 | H17: =Instruments!$F$17 -> 0 | I17: =IF($J17="T-bills",$J17,Instruments!$D17) -> 0 | J17: =Instruments!$K$17 -> 0 | K17: =Instruments!$O$17 -> 0 | L17: =Instruments!M17 -> 0 | M17: =IF(I17="T-bills",0,Instruments!$M$17) -> 0 | N17: =IF(I17="T-bills",Instruments!M17,Instruments!M17*12) -> 0 | O17: =IF(Instruments!$G17>0,(Instruments!$E17*Input_3!$E$141)/$E17,0)*IF($E17>0,IF($I17="T-bills",12/$N17,1),0) -> 0 | P17: =IF(Instruments!$H17>0,(Instruments!$E17*Input_3!$F$141)/$E17,0)*IF($E17>0,IF($I17="T-bills",12/$N17,1),0) -> 0
B18: =Instruments!$C$18 -> 0 | C18: 100 | D18: 200 | G18: =Instruments!$E$18 -> 0 | H18: =Instruments!$F$18 -> 0 | I18: =IF($J18="T-bills",$J18,Instruments!$D18) -> 0 | J18: =Instruments!$K$18 -> 0 | K18: =Instruments!$O$18 -> 0 | L18: =Instruments!M18 -> 0 | M18: =IF(I18="T-bills",0,Instruments!$M$18) -> 0 | N18: =IF(I18="T-bills",Instruments!M18,Instruments!M18*12) -> 0 | O18: =IF(Instruments!$G18>0,(Instruments!$E18*Input_3!$E$141)/$E18,0)*IF($E18>0,IF($I18="T-bills",12/$N18,1),0) -> 0 | P18: =IF(Instruments!$H18>0,(Instruments!$E18*Input_3!$F$141)/$E18,0)*IF($E18>0,IF($I18="T-bills",12/$N18,1),0) -> 0
B19: =Instruments!$C$19 -> 0 | C19: 100 | D19: 200 | G19: =Instruments!$E$19 -> 0 | H19: =Instruments!$F$19 -> 0 | I19: =IF($J19="T-bills",$J19,Instruments!$D19) -> 0 | J19: =Instruments!$K$19 -> 0 | K19: =Instruments!$O$19 -> 0 | L19: =Instruments!M19 -> 0 | M19: =IF(I19="T-bills",0,Instruments!$M$19) -> 0 | N19: =IF(I19="T-bills",Instruments!M19,Instruments!M19*12) -> 0 | O19: =IF(Instruments!$G19>0,(Instruments!$E19*Input_3!$E$141)/$E19,0)*IF($E19>0,IF($I19="T-bills",12/$N19,1),0) -> 0 | P19: =IF(Instruments!$H19>0,(Instruments!$E19*Input_3!$F$141)/$E19,0)*IF($E19>0,IF($I19="T-bills",12/$N19,1),0) -> 0
B20: =Instruments!$C$20 -> 0 | C20: 100 | D20: 200 | G20: =Instruments!$E$20 -> 0 | H20: =Instruments!$F$20 -> 0 | I20: =IF($J20="T-bills",$J20,Instruments!$D20) -> 0 | J20: =Instruments!$K$20 -> 0 | K20: =Instruments!$O$20 -> 0 | L20: =Instruments!M20 -> 0 | M20: =IF(I20="T-bills",0,Instruments!$M$20) -> 0 | N20: =IF(I20="T-bills",Instruments!M20,Instruments!M20*12) -> 0 | O20: =IF(Instruments!$G20>0,(Instruments!$E20*Input_3!$E$141)/$E20,0)*IF($E20>0,IF($I20="T-bills",12/$N20,1),0) -> 0 | P20: =IF(Instruments!$H20>0,(Instruments!$E20*Input_3!$F$141)/$E20,0)*IF($E20>0,IF($I20="T-bills",12/$N20,1),0) -> 0
B21: =Instruments!$C$21 -> 0 | C21: 100 | D21: 200 | G21: =Instruments!$E$21 -> 0 | H21: =Instruments!$F$21 -> 0 | I21: =IF($J21="T-bills",$J21,Instruments!$D21) -> 0 | J21: =Instruments!$K$21 -> 0 | K21: =Instruments!$O$21 -> 0 | L21: =Instruments!M21 -> 0 | M21: =IF(I21="T-bills",0,Instruments!$M$21) -> 0 | N21: =IF(I21="T-bills",Instruments!M21,Instruments!M21*12) -> 0 | O21: =IF(Instruments!$G21>0,(Instruments!$E21*Input_3!$E$141)/$E21,0)*IF($E21>0,IF($I21="T-bills",12/$N21,1),0) -> 0 | P21: =IF(Instruments!$H21>0,(Instruments!$E21*Input_3!$F$141)/$E21,0)*IF($E21>0,IF($I21="T-bills",12/$N21,1),0) -> 0
B22: =Instruments!$C$22 -> 0 | C22: 100 | D22: 200 | G22: =Instruments!$E$22 -> 0 | H22: =Instruments!$F$22 -> 0 | I22: =IF($J22="T-bills",$J22,Instruments!$D22) -> 0 | J22: =Instruments!$K$22 -> 0 | K22: =Instruments!$O$22 -> 0 | L22: =Instruments!M22 -> 0 | M22: =IF(I22="T-bills",0,Instruments!$M$22) -> 0 | N22: =IF(I22="T-bills",Instruments!M22,Instruments!M22*12) -> 0 | O22: =IF(Instruments!$G22>0,(Instruments!$E22*Input_3!$E$141)/$E22,0)*IF($E22>0,IF($I22="T-bills",12/$N22,1),0) -> 0 | P22: =IF(Instruments!$H22>0,(Instruments!$E22*Input_3!$F$141)/$E22,0)*IF($E22>0,IF($I22="T-bills",12/$N22,1),0) -> 0
B23: =Instruments!$C$23 -> 0 | C23: 100 | D23: 200 | G23: =Instruments!$E$23 -> 0 | H23: =Instruments!$F$23 -> 0 | I23: =IF($J23="T-bills",$J23,Instruments!$D23) -> 0 | J23: =Instruments!$K$23 -> 0 | K23: =Instruments!$O$23 -> 0 | L23: =Instruments!M23 -> 0 | M23: =IF(I23="T-bills",0,Instruments!$M$23) -> 0 | N23: =IF(I23="T-bills",Instruments!M23,Instruments!M23*12) -> 0 | O23: =IF(Instruments!$G23>0,(Instruments!$E23*Input_3!$E$141)/$E23,0)*IF($E23>0,IF($I23="T-bills",12/$N23,1),0) -> 0 | P23: =IF(Instruments!$H23>0,(Instruments!$E23*Input_3!$F$141)/$E23,0)*IF($E23>0,IF($I23="T-bills",12/$N23,1),0) -> 0
B24: =Instruments!$C$24 -> 0 | C24: 100 | D24: 200 | G24: =Instruments!$E$24 -> 0 | H24: =Instruments!$F$24 -> 0 | I24: =IF($J24="T-bills",$J24,Instruments!$D24) -> 0 | J24: =Instruments!$K$24 -> 0 | K24: =Instruments!$O$24 -> 0 | L24: =Instruments!M24 -> 0 | M24: =IF(I24="T-bills",0,Instruments!$M$24) -> 0 | N24: =IF(I24="T-bills",Instruments!M24,Instruments!M24*12) -> 0 | O24: =IF(Instruments!$G24>0,(Instruments!$E24*Input_3!$E$141)/$E24,0)*IF($E24>0,IF($I24="T-bills",12/$N24,1),0) -> 0 | P24: =IF(Instruments!$H24>0,(Instruments!$E24*Input_3!$F$141)/$E24,0)*IF($E24>0,IF($I24="T-bills",12/$N24,1),0) -> 0
B25: =Instruments!$C$25 -> 0 | C25: 100 | D25: 200 | G25: =Instruments!$E$25 -> 0 | H25: =Instruments!$F$25 -> 0 | I25: =IF($J25="T-bills",$J25,Instruments!$D25) -> 0 | J25: =Instruments!$K$25 -> 0 | K25: =Instruments!$O$25 -> 0 | L25: =Instruments!M25 -> 0 | M25: =IF(I25="T-bills",0,Instruments!$M$25) -> 0 | N25: =IF(I25="T-bills",Instruments!M25,Instruments!M25*12) -> 0 | O25: =IF(Instruments!$G25>0,(Instruments!$E25*Input_3!$E$141)/$E25,0)*IF($E25>0,IF($I25="T-bills",12/$N25,1),0) -> 0 | P25: =IF(Instruments!$H25>0,(Instruments!$E25*Input_3!$F$141)/$E25,0)*IF($E25>0,IF($I25="T-bills",12/$N25,1),0) -> 0
B26: =Instruments!$C$26 -> 0 | C26: 100 | D26: 200 | G26: =Instruments!$E$26 -> 0 | H26: =Instruments!$F$26 -> 0 | I26: =IF($J26="T-bills",$J26,Instruments!$D26) -> 0 | J26: =Instruments!$K$26 -> 0 | K26: =Instruments!$O$26 -> 0 | L26: =Instruments!M26 -> 0 | M26: =IF(I26="T-bills",0,Instruments!$M$26) -> 0 | N26: =IF(I26="T-bills",Instruments!M26,Instruments!M26*12) -> 0 | O26: =IF(Instruments!$G26>0,(Instruments!$E26*Input_3!$E$141)/$E26,0)*IF($E26>0,IF($I26="T-bills",12/$N26,1),0) -> 0 | P26: =IF(Instruments!$H26>0,(Instruments!$E26*Input_3!$F$141)/$E26,0)*IF($E26>0,IF($I26="T-bills",12/$N26,1),0) -> 0

Sheet Default MTDS Based
K2: MTDS Based | L2: =GFN!J$6 -> Jan-25 | M2: =GFN!K$6 -> Feb-25 | N2: =GFN!L$6 -> Mar-25 | O2: =GFN!M$6 -> Apr-25 | P2: =GFN!N$6 -> May-25 | Q2: =GFN!O$6 -> Jun-25 | R2: =GFN!P$6 -> Jul-25 | S2: =GFN!Q$6 -> Aug-25 | T2: =GFN!R$6 -> Sep-25 | U2: =GFN!S$6 -> Oct-25 | V2: =GFN!T$6 -> Nov-25 | W2: =GFN!U$6 -> Dec-25 | X2: =GFN!V$6 -> Jan-26 | Y2: =GFN!W$6 -> Feb-26 | Z2: =GFN!X$6 -> Mar-26 | AA2: =GFN!Y$6 -> Apr-26 | AB2: =GFN!Z$6 -> May-26 | AC2: =GFN!AA$6 -> Jun-26 | AD2: =GFN!AB$6 -> Jul-26 | AE2: =GFN!AC$6 -> Aug-26 | AF2: =GFN!AD$6 -> Sep-26 | AG2: =GFN!AE$6 -> Oct-26 | AH2: =GFN!AF$6 -> Nov-26 | AI2: =GFN!AG$6 -> Dec-26 | AK2: # Issuance
K3: ='Auction Parameters'!$B$7 -> T-bills 3m | L3: Yes | M3: Yes | N3: Yes | O3: Yes | P3: Yes | Q3: Yes | R3: Yes | S3: Yes | T3: Yes | U3: Yes | V3: Yes | W3: Yes | X3: Yes | Y3: Yes | Z3: Yes | AA3: Yes | AB3: Yes | AC3: Yes | AD3: Yes | AE3: Yes | AF3: Yes | AG3: Yes | AH3: Yes | AI3: Yes | AK3: =COUNTIF($L26:$W26,">0") -> 12
K4: ='Auction Parameters'!$B$8 -> T-bills 6m | L4: Yes | M4: Yes | N4: Yes | O4: Yes | P4: Yes | Q4: Yes | R4: Yes | S4: Yes | T4: Yes | U4: Yes | V4: Yes | W4: Yes | X4: Yes | Y4: Yes | Z4: Yes | AA4: Yes | AB4: Yes | AC4: Yes | AD4: Yes | AE4: Yes | AF4: Yes | AG4: Yes | AH4: Yes | AI4: Yes | AK4: 12
K5: ='Auction Parameters'!$B$9 -> T-bills 12m | L5: Yes | M5: Yes | N5: Yes | O5: Yes | P5: Yes | Q5: Yes | R5: Yes | S5: Yes | T5: Yes | U5: Yes | V5: Yes | W5: Yes | X5: Yes | Y5: Yes | Z5: Yes | AA5: Yes | AB5: Yes | AC5: Yes | AD5: Yes | AE5: Yes | AF5: Yes | AG5: Yes | AH5: Yes | AI5: Yes | AK5: 12
K6: ='Auction Parameters'!$B$10 -> 2yr | M6: Yes | O6: Yes | Q6: Yes | S6: Yes | U6: Yes | W6: Yes | Y6: Yes | AA6: Yes | AC6: Yes | AE6: Yes | AG6: Yes | AI6: Yes | AK6: 6
K7: ='Auction Parameters'!$B$11 -> 3yr | L7: Yes | N7: Yes | P7: Yes | R7: Yes | T7: Yes | V7: Yes | X7: Yes | Z7: Yes | AB7: Yes | AD7: Yes | AF7: Yes | AH7: Yes | AK7: 6
K8: ='Auction Parameters'!$B$12 -> 5yr | M8: Yes | O8: Yes | Q8: Yes | S8: Yes | Y8: Yes | AA8: Yes | AC8: Yes | AE8: Yes | AK8: 4
K9: ='Auction Parameters'!$B$13 -> 7yr | L9: Yes | P9: Yes | U9: Yes | W9: Yes | X9: Yes | AB9: Yes | AG9: Yes | AI9: Yes | AK9: 4
K10: ='Auction Parameters'!$B$14 -> 10yr | M10: Yes | Q10: Yes | S10: Yes | V10: Yes | Y10: Yes | AC10: Yes | AE10: Yes | AH10: Yes | AK10: 4
K11: ='Auction Parameters'!$B$15 -> 0 | AK11: 0
K12: ='Auction Parameters'!$B$16 -> 0 | AK12: 0
J13: 1 | K13: ='Auction Parameters'!$B$17 -> 0 | AK13: 0
J14: =J13+1 -> 2 | K14: ='Auction Parameters'!$B$18 -> 0 | AK14: 0
J15: =J14+1 -> 3 | K15: ='Auction Parameters'!$B$19 -> 0 | AK15: 0
J16: 4 | K16: ='Auction Parameters'!$B$20 -> 0 | AK16: 0
J17: 5 | K17: ='Auction Parameters'!$B$21 -> 0 | AK17: 0
J18: 6 | K18: ='Auction Parameters'!$B$22 -> 0 | AK18: 0
J19: 7 | K19: ='Auction Parameters'!$B$23 -> 0 | AK19: 0
J20: 8 | K20: ='Auction Parameters'!$B$24 -> 0 | AK20: 0
J21: 9 | K21: ='Auction Parameters'!$B$25 -> 0 | AK21: 0
J22: 10 | K22: ='Auction Parameters'!$B$26 -> 0 | AK22: 0
K24: MTDS Based | L24: =GFN!J$6 -> Jan-25 | M24: =GFN!K$6 -> Feb-25 | N24: =GFN!L$6 -> Mar-25 | O24: =GFN!M$6 -> Apr-25 | P24: =GFN!N$6 -> May-25 | Q24: =GFN!O$6 -> Jun-25 | R24: =GFN!P$6 -> Jul-25 | S24: =GFN!Q$6 -> Aug-25 | T24: =GFN!R$6 -> Sep-25 | U24: =GFN!S$6 -> Oct-25 | V24: =GFN!T$6 -> Nov-25 | W24: =GFN!U$6 -> Dec-25 | X24: =GFN!V$6 -> Jan-26 | Y24: =GFN!W$6 -> Feb-26 | Z24: =GFN!X$6 -> Mar-26 | AA24: =GFN!Y$6 -> Apr-26 | AB24: =GFN!Z$6 -> May-26 | AC24: =GFN!AA$6 -> Jun-26 | AD24: =GFN!AB$6 -> Jul-26 | AE24: =GFN!AC$6 -> Aug-26 | AF24: =GFN!AD$6 -> Sep-26 | AG24: =GFN!AE$6 -> Oct-26 | AH24: =GFN!AF$6 -> Nov-26 | AI24: =GFN!AG$6 -> Dec-26 | AK24: MTDS Based | AL24: MTDS Volume | AM24: MTDS Based | AN24: MTDS Target %
K25: =Input_2!$E$11&" "&Input_2!$E$12 -> UTP millions
K26: ='Auction Parameters'!$B$7 -> T-bills 3m | L26: =IF(L3="Yes",'Auction Parameters'!$O7," ") -> 232.073409 | M26: =IF(M3="Yes",'Auction Parameters'!$O7," ") -> 232.073409 | N26: =IF(N3="Yes",'Auction Parameters'!$O7," ") -> 232.073409 | O26: =IF(O3="Yes",'Auction Parameters'!$O7," ") -> 232.073409 | P26: =IF(P3="Yes",'Auction Parameters'!$O7," ") -> 232.073409 | Q26: =IF(Q3="Yes",'Auction Parameters'!$O7," ") -> 232.073409 | R26: =IF(R3="Yes",'Auction Parameters'!$O7," ") -> 232.073409 | S26: =IF(S3="Yes",'Auction Parameters'!$O7," ") -> 232.073409 | T26: =IF(T3="Yes",'Auction Parameters'!$O7," ") -> 232.073409 | U26: =IF(U3="Yes",'Auction Parameters'!$O7," ") -> 232.073409 | V26: =IF(V3="Yes",'Auction Parameters'!$O7," ") -> 232.073409 | W26: =IF(W3="Yes",'Auction Parameters'!$O7," ") -> 232.073409 | X26: =IF(X3="Yes",'Auction Parameters'!$P7," ") -> 180.879512 | Y26: =IF(Y3="Yes",'Auction Parameters'!$P7," ") -> 180.879512 | Z26: =IF(Z3="Yes",'Auction Parameters'!$P7," ") -> 180.879512 | AA26: =IF(AA3="Yes",'Auction Parameters'!$P7," ") -> 180.879512 | AB26: =IF(AB3="Yes",'Auction Parameters'!$P7," ") -> 180.879512 | AC26: =IF(AC3="Yes",'Auction Parameters'!$P7," ") -> 180.879512 | AD26: =IF(AD3="Yes",'Auction Parameters'!$P7," ") -> 180.879512 | AE26: =IF(AE3="Yes",'Auction Parameters'!$P7," ") -> 180.879512 | AF26: =IF(AF3="Yes",'Auction Parameters'!$P7," ") -> 180.879512 | AG26: =IF(AG3="Yes",'Auction Parameters'!$P7," ") -> 180.879512 | AH26: =IF(AH3="Yes",'Auction Parameters'!$P7," ") -> 180.879512 | AI26: =IF(AI3="Yes",'Auction Parameters'!$P7," ") -> 180.879512 | AK26: =SUM(L26:W26) -> 2784.880907 | AL26: =Instruments!$G7*IF('Auction Parameters'!$I7="T-bills",12/Instruments!$M7,1) -> 2784.880907 | AM26: =(SUM('M1.MTDS'!$E20:$P20)-SUM('M1.MTDS'!$E98:$P98))/Input_3!$E$141 -> 0.1 | AN26: =Instruments!$E7 -> 0.1 | AP26: ='Auction Parameters'!$I$7 -> T-bills
K27: ='Auction Parameters'!$B$8 -> T-bills 6m | L27: =IF(L4="Yes",'Auction Parameters'!$O8," ") -> 116.0367045 | M27: =IF(M4="Yes",'Auction Parameters'!$O8," ") -> 116.0367045 | N27: =IF(N4="Yes",'Auction Parameters'!$O8," ") -> 116.0367045 | O27: =IF(O4="Yes",'Auction Parameters'!$O8," ") -> 116.0367045 | P27: =IF(P4="Yes",'Auction Parameters'!$O8," ") -> 116.0367045 | Q27: =IF(Q4="Yes",'Auction Parameters'!$O8," ") -> 116.0367045 | R27: =IF(R4="Yes",'Auction Parameters'!$O8," ") -> 116.0367045 | S27: =IF(S4="Yes",'Auction Parameters'!$O8," ") -> 116.0367045 | T27: =IF(T4="Yes",'Auction Parameters'!$O8," ") -> 116.0367045 | U27: =IF(U4="Yes",'Auction Parameters'!$O8," ") -> 116.0367045 | V27: =IF(V4="Yes",'Auction Parameters'!$O8," ") -> 116.0367045 | W27: =IF(W4="Yes",'Auction Parameters'!$O8," ") -> 116.0367045 | X27: =IF(X4="Yes",'Auction Parameters'!$P8," ") -> 90.43975598 | Y27: =IF(Y4="Yes",'Auction Parameters'!$P8," ") -> 90.43975598 | Z27: =IF(Z4="Yes",'Auction Parameters'!$P8," ") -> 90.43975598 | AA27: =IF(AA4="Yes",'Auction Parameters'!$P8," ") -> 90.43975598 | AB27: =IF(AB4="Yes",'Auction Parameters'!$P8," ") -> 90.43975598 | AC27: =IF(AC4="Yes",'Auction Parameters'!$P8," ") -> 90.43975598 | AD27: =IF(AD4="Yes",'Auction Parameters'!$P8," ") -> 90.43975598 | AE27: =IF(AE4="Yes",'Auction Parameters'!$P8," ") -> 90.43975598 | AF27: =IF(AF4="Yes",'Auction Parameters'!$P8," ") -> 90.43975598 | AG27: =IF(AG4="Yes",'Auction Parameters'!$P8," ") -> 90.43975598 | AH27: =IF(AH4="Yes",'Auction Parameters'!$P8," ") -> 90.43975598 | AI27: =IF(AI4="Yes",'Auction Parameters'!$P8," ") -> 90.43975598 | AK27: =SUM(L27:W27) -> 1392.440454 | AL27: =Instruments!$G8*IF('Auction Parameters'!$I8="T-bills",12/Instruments!$M8,1) -> 1392.440454 | AM27: =(SUM('M1.MTDS'!$E21:$P21)-SUM('M1.MTDS'!$E99:$P99))/Input_3!$E$141 -> 0.1 | AN27: =Instruments!$E8 -> 0.1 | AP27: ='Auction Parameters'!$I$8 -> T-bills
K28: ='Auction Parameters'!$B$9 -> T-bills 12m | L28: =IF(L5="Yes",'Auction Parameters'!$O9," ") -> 116.0367045 | M28: =IF(M5="Yes",'Auction Parameters'!$O9," ") -> 116.0367045 | N28: =IF(N5="Yes",'Auction Parameters'!$O9," ") -> 116.0367045 | O28: =IF(O5="Yes",'Auction Parameters'!$O9," ") -> 116.0367045 | P28: =IF(P5="Yes",'Auction Parameters'!$O9," ") -> 116.0367045 | Q28: =IF(Q5="Yes",'Auction Parameters'!$O9," ") -> 116.0367045 | R28: =IF(R5="Yes",'Auction Parameters'!$O9," ") -> 116.0367045 | S28: =IF(S5="Yes",'Auction Parameters'!$O9," ") -> 116.0367045 | T28: =IF(T5="Yes",'Auction Parameters'!$O9," ") -> 116.0367045 | U28: =IF(U5="Yes",'Auction Parameters'!$O9," ") -> 116.0367045 | V28: =IF(V5="Yes",'Auction Parameters'!$O9," ") -> 116.0367045 | W28: =IF(W5="Yes",'Auction Parameters'!$O9," ") -> 116.0367045 | X28: =IF(X5="Yes",'Auction Parameters'!$P9," ") -> 90.43975598 | Y28: =IF(Y5="Yes",'Auction Parameters'!$P9," ") -> 90.43975598 | Z28: =IF(Z5="Yes",'Auction Parameters'!$P9," ") -> 90.43975598 | AA28: =IF(AA5="Yes",'Auction Parameters'!$P9," ") -> 90.43975598 | AB28: =IF(AB5="Yes",'Auction Parameters'!$P9," ") -> 90.43975598 | AC28: =IF(AC5="Yes",'Auction Parameters'!$P9," ") -> 90.43975598 | AD28: =IF(AD5="Yes",'Auction Parameters'!$P9," ") -> 90.43975598 | AE28: =IF(AE5="Yes",'Auction Parameters'!$P9," ") -> 90.43975598 | AF28: =IF(AF5="Yes",'Auction Parameters'!$P9," ") -> 90.43975598 | AG28: =IF(AG5="Yes",'Auction Parameters'!$P9," ") -> 90.43975598 | AH28: =IF(AH5="Yes",'Auction Parameters'!$P9," ") -> 90.43975598 | AI28: =IF(AI5="Yes",'Auction Parameters'!$P9," ") -> 90.43975598 | AK28: =SUM(L28:W28) -> 1392.440454 | AL28: =Instruments!$G9*IF('Auction Parameters'!$I9="T-bills",12/Instruments!$M9,1) -> 1392.440454 | AM28: =(SUM('M1.MTDS'!$E22:$P22)-SUM('M1.MTDS'!$E100:$P100))/Input_3!$E$141 -> 0.2 | AN28: =Instruments!$E9 -> 0.2 | AP28: ='Auction Parameters'!$I$9 -> T-bills
K29: ='Auction Parameters'!$B$10 -> 2yr | L29: =IF(L6="Yes",'Auction Parameters'!$O10," ") ->  | M29: =IF(M6="Yes",'Auction Parameters'!$O10," ") -> 116.0367045 | N29: =IF(N6="Yes",'Auction Parameters'!$O10," ") ->  | O29: =IF(O6="Yes",'Auction Parameters'!$O10," ") -> 116.0367045 | P29: =IF(P6="Yes",'Auction Parameters'!$O10," ") ->  | Q29: =IF(Q6="Yes",'Auction Parameters'!$O10," ") -> 116.0367045 | R29: =IF(R6="Yes",'Auction Parameters'!$O10," ") ->  | S29: =IF(S6="Yes",'Auction Parameters'!$O10," ") -> 116.0367045 | T29: =IF(T6="Yes",'Auction Parameters'!$O10," ") ->  | U29: =IF(U6="Yes",'Auction Parameters'!$O10," ") -> 116.0367045 | V29: =IF(V6="Yes",'Auction Parameters'!$O10," ") ->  | W29: =IF(W6="Yes",'Auction Parameters'!$O10," ") -> 116.0367045 | X29: =IF(X6="Yes",'Auction Parameters'!$P10," ") ->  | Y29: =IF(Y6="Yes",'Auction Parameters'!$P10," ") -> 90.43975598 | Z29: =IF(Z6="Yes",'Auction Parameters'!$P10," ") ->  | AA29: =IF(AA6="Yes",'Auction Parameters'!$P10," ") -> 90.43975598 | AB29: =IF(AB6="Yes",'Auction Parameters'!$P10," ") ->  | AC29: =IF(AC6="Yes",'Auction Parameters'!$P10," ") -> 90.43975598 | AD29: =IF(AD6="Yes",'Auction Parameters'!$P10," ") ->  | AE29: =IF(AE6="Yes",'Auction Parameters'!$P10," ") -> 90.43975598 | AF29: =IF(AF6="Yes",'Auction Parameters'!$P10," ") ->  | AG29: =IF(AG6="Yes",'Auction Parameters'!$P10," ") -> 90.43975598 | AH29: =IF(AH6="Yes",'Auction Parameters'!$P10," ") ->  | AI29: =IF(AI6="Yes",'Auction Parameters'!$P10," ") -> 90.43975598 | AK29: =SUM(L29:W29) -> 696.2202269 | AL29: =Instruments!$G10*IF('Auction Parameters'!$I10="T-bills",12/Instruments!$M10,1) -> 696.2202269 | AM29: =(SUM('M1.MTDS'!$E23:$P23)-SUM('M1.MTDS'!$E101:$P101))/Input_3!$E$141 -> 0.1 | AN29: =Instruments!$E10 -> 0.1 | AP29: ='Auction Parameters'!$I$10 -> Bonds
K30: ='Auction Parameters'!$B$11 -> 3yr | L30: =IF(L7="Yes",'Auction Parameters'!$O11," ") -> 116.0367045 | M30: =IF(M7="Yes",'Auction Parameters'!$O11," ") ->  | N30: =IF(N7="Yes",'Auction Parameters'!$O11," ") -> 116.0367045 | O30: =IF(O7="Yes",'Auction Parameters'!$O11," ") ->  | P30: =IF(P7="Yes",'Auction Parameters'!$O11," ") -> 116.0367045 | Q30: =IF(Q7="Yes",'Auction Parameters'!$O11," ") ->  | R30: =IF(R7="Yes",'Auction Parameters'!$O11," ") -> 116.0367045 | S30: =IF(S7="Yes",'Auction Parameters'!$O11," ") ->  | T30: =IF(T7="Yes",'Auction Parameters'!$O11," ") -> 116.0367045 | U30: =IF(U7="Yes",'Auction Parameters'!$O11," ") ->  | V30: =IF(V7="Yes",'Auction Parameters'!$O11," ") -> 116.0367045 | W30: =IF(W7="Yes",'Auction Parameters'!$O11," ") ->  | X30: =IF(X7="Yes",'Auction Parameters'!$P11," ") -> 90.43975598 | Y30: =IF(Y7="Yes",'Auction Parameters'!$P11," ") ->  | Z30: =IF(Z7="Yes",'Auction Parameters'!$P11," ") -> 90.43975598 | AA30: =IF(AA7="Yes",'Auction Parameters'!$P11," ") ->  | AB30: =IF(AB7="Yes",'Auction Parameters'!$P11," ") -> 90.43975598 | AC30: =IF(AC7="Yes",'Auction Parameters'!$P11," ") ->  | AD30: =IF(AD7="Yes",'Auction Parameters'!$P11," ") -> 90.43975598 | AE30: =IF(AE7="Yes",'Auction Parameters'!$P11," ") ->  | AF30: =IF(AF7="Yes",'Auction Parameters'!$P11," ") -> 90.43975598 | AG30: =IF(AG7="Yes",'Auction Parameters'!$P11," ") ->  | AH30: =IF(AH7="Yes",'Auction Parameters'!$P11," ") -> 90.43975598 | AI30: =IF(AI7="Yes",'Auction Parameters'!$P11," ") ->  | AK30: =SUM(L30:W30) -> 696.2202269 | AL30: =Instruments!$G11*IF('Auction Parameters'!$I11="T-bills",12/Instruments!$M11,1) -> 696.2202269 | AM30: =(SUM('M1.MTDS'!$E24:$P24)-SUM('M1.MTDS'!$E102:$P102))/Input_3!$E$141 -> 0.1 | AN30: =Instruments!$E11 -> 0.1 | AP30: ='Auction Parameters'!$I$11 -> Bonds
K31: ='Auction Parameters'!$B$12 -> 5yr | L31: =IF(L8="Yes",'Auction Parameters'!$O12," ") ->  | M31: =IF(M8="Yes",'Auction Parameters'!$O12," ") -> 174.0550567 | N31: =IF(N8="Yes",'Auction Parameters'!$O12," ") ->  | O31: =IF(O8="Yes",'Auction Parameters'!$O12," ") -> 174.0550567 | P31: =IF(P8="Yes",'Auction Parameters'!$O12," ") ->  | Q31: =IF(Q8="Yes",'Auction Parameters'!$O12," ") -> 174.0550567 | R31: =IF(R8="Yes",'Auction Parameters'!$O12," ") ->  | S31: =IF(S8="Yes",'Auction Parameters'!$O12," ") -> 174.0550567 | T31: =IF(T8="Yes",'Auction Parameters'!$O12," ") ->  | U31: =IF(U8="Yes",'Auction Parameters'!$O12," ") ->  | V31: =IF(V8="Yes",'Auction Parameters'!$O12," ") ->  | W31: =IF(W8="Yes",'Auction Parameters'!$O12," ") ->  | X31: =IF(X8="Yes",'Auction Parameters'!$P12," ") ->  | Y31: =IF(Y8="Yes",'Auction Parameters'!$P12," ") -> 135.659634 | Z31: =IF(Z8="Yes",'Auction Parameters'!$P12," ") ->  | AA31: =IF(AA8="Yes",'Auction Parameters'!$P12," ") -> 135.659634 | AB31: =IF(AB8="Yes",'Auction Parameters'!$P12," ") ->  | AC31: =IF(AC8="Yes",'Auction Parameters'!$P12," ") -> 135.659634 | AD31: =IF(AD8="Yes",'Auction Parameters'!$P12," ") ->  | AE31: =IF(AE8="Yes",'Auction Parameters'!$P12," ") -> 135.659634 | AF31: =IF(AF8="Yes",'Auction Parameters'!$P12," ") ->  | AG31: =IF(AG8="Yes",'Auction Parameters'!$P12," ") ->  | AH31: =IF(AH8="Yes",'Auction Parameters'!$P12," ") ->  | AI31: =IF(AI8="Yes",'Auction Parameters'!$P12," ") ->  | AK31: 696.2202269 | AL31: =Instruments!$G12*IF('Auction Parameters'!$I12="T-bills",12/Instruments!$M12,1) -> 696.2202269 | AM31: =(SUM('M1.MTDS'!$E25:$P25)-SUM('M1.MTDS'!$E103:$P103))/'M1.MTDS'!$C$93 -> 0.1 | AN31: =Instruments!$E12 -> 0.1 | AP31: ='Auction Parameters'!$I$12 -> Bonds
K32: ='Auction Parameters'!$B$13 -> 7yr | L32: =IF(L9="Yes",'Auction Parameters'!$O13," ") -> 174.0550567 | M32: =IF(M9="Yes",'Auction Parameters'!$O13," ") ->  | N32: =IF(N9="Yes",'Auction Parameters'!$O13," ") ->  | O32: =IF(O9="Yes",'Auction Parameters'!$O13," ") ->  | P32: =IF(P9="Yes",'Auction Parameters'!$O13," ") -> 174.0550567 | Q32: =IF(Q9="Yes",'Auction Parameters'!$O13," ") ->  | R32: =IF(R9="Yes",'Auction Parameters'!$O13," ") ->  | S32: =IF(S9="Yes",'Auction Parameters'!$O13," ") ->  | T32: =IF(T9="Yes",'Auction Parameters'!$O13," ") ->  | U32: =IF(U9="Yes",'Auction Parameters'!$O13," ") -> 174.0550567 | V32: =IF(V9="Yes",'Auction Parameters'!$O13," ") ->  | W32: =IF(W9="Yes",'Auction Parameters'!$O13," ") -> 174.0550567 | X32: =IF(X9="Yes",'Auction Parameters'!$P13," ") -> 135.659634 | Y32: =IF(Y9="Yes",'Auction Parameters'!$P13," ") ->  | Z32: =IF(Z9="Yes",'Auction Parameters'!$P13," ") ->  | AA32: =IF(AA9="Yes",'Auction Parameters'!$P13," ") ->  | AB32: =IF(AB9="Yes",'Auction Parameters'!$P13," ") -> 135.659634 | AC32: =IF(AC9="Yes",'Auction Parameters'!$P13," ") ->  | AD32: =IF(AD9="Yes",'Auction Parameters'!$P13," ") ->  | AE32: =IF(AE9="Yes",'Auction Parameters'!$P13," ") ->  | AF32: =IF(AF9="Yes",'Auction Parameters'!$P13," ") ->  | AG32: =IF(AG9="Yes",'Auction Parameters'!$P13," ") -> 135.659634 | AH32: =IF(AH9="Yes",'Auction Parameters'!$P13," ") ->  | AI32: =IF(AI9="Yes",'Auction Parameters'!$P13," ") -> 135.659634 | AK32: 696.2202269 | AL32: =Instruments!$G13*IF('Auction Parameters'!$I13="T-bills",12/Instruments!$M13,1) -> 696.2202269 | AM32: =(SUM('M1.MTDS'!$E26:$P26)-SUM('M1.MTDS'!$E104:$P104))/Input_3!$E$141 -> 0.1 | AN32: =Instruments!$E13 -> 0.1 | AP32: ='Auction Parameters'!$I$13 -> Bonds
K33: ='Auction Parameters'!$B$14 -> 10yr | L33: =IF(L10="Yes",'Auction Parameters'!$O14," ") ->  | M33: =IF(M10="Yes",'Auction Parameters'!$O14," ") -> 348.1101134 | N33: =IF(N10="Yes",'Auction Parameters'!$O14," ") ->  | O33: =IF(O10="Yes",'Auction Parameters'!$O14," ") ->  | P33: =IF(P10="Yes",'Auction Parameters'!$O14," ") ->  | Q33: =IF(Q10="Yes",'Auction Parameters'!$O14," ") -> 348.1101134 | R33: =IF(R10="Yes",'Auction Parameters'!$O14," ") ->  | S33: =IF(S10="Yes",'Auction Parameters'!$O14," ") -> 348.1101134 | T33: =IF(T10="Yes",'Auction Parameters'!$O14," ") ->  | U33: =IF(U10="Yes",'Auction Parameters'!$O14," ") ->  | V33: =IF(V10="Yes",'Auction Parameters'!$O14," ") -> 348.1101134 | W33: =IF(W10="Yes",'Auction Parameters'!$O14," ") ->  | X33: =IF(X10="Yes",'Auction Parameters'!$P14," ") ->  | Y33: =IF(Y10="Yes",'Auction Parameters'!$P14," ") -> 271.3192679 | Z33: =IF(Z10="Yes",'Auction Parameters'!$P14," ") ->  | AA33: =IF(AA10="Yes",'Auction Parameters'!$P14," ") ->  | AB33: =IF(AB10="Yes",'Auction Parameters'!$P14," ") ->  | AC33: =IF(AC10="Yes",'Auction Parameters'!$P14," ") -> 271.3192679 | AD33: =IF(AD10="Yes",'Auction Parameters'!$P14," ") ->  | AE33: =IF(AE10="Yes",'Auction Parameters'!$P14," ") -> 271.3192679 | AF33: =IF(AF10="Yes",'Auction Parameters'!$P14," ") ->  | AG33: =IF(AG10="Yes",'Auction Parameters'!$P14," ") ->  | AH33: =IF(AH10="Yes",'Auction Parameters'!$P14," ") -> 271.3192679 | AI33: =IF(AI10="Yes",'Auction Parameters'!$P14," ") ->  | AK33: 1392.440454 | AL33: =Instruments!$G14*IF('Auction Parameters'!$I14="T-bills",12/Instruments!$M14,1) -> 1392.440454 | AM33: =(SUM('M1.MTDS'!$E27:$P27)-SUM('M1.MTDS'!$E105:$P105))/Input_3!$E$141 -> 0.2 | AN33: =Instruments!$E14 -> 0.2 | AP33: ='Auction Parameters'!$I$14 -> Bonds
K34: ='Auction Parameters'!$B$15 -> 0 | L34: =IF(L11="Yes",'Auction Parameters'!$O15," ") ->  | M34: =IF(M11="Yes",'Auction Parameters'!$O15," ") ->  | N34: =IF(N11="Yes",'Auction Parameters'!$O15," ") ->  | O34: =IF(O11="Yes",'Auction Parameters'!$O15," ") ->  | P34: =IF(P11="Yes",'Auction Parameters'!$O15," ") ->  | Q34: =IF(Q11="Yes",'Auction Parameters'!$O15," ") ->  | R34: =IF(R11="Yes",'Auction Parameters'!$O15," ") ->  | S34: =IF(S11="Yes",'Auction Parameters'!$O15," ") ->  | T34: =IF(T11="Yes",'Auction Parameters'!$O15," ") ->  | U34: =IF(U11="Yes",'Auction Parameters'!$O15," ") ->  | V34: =IF(V11="Yes",'Auction Parameters'!$O15," ") ->  | W34: =IF(W11="Yes",'Auction Parameters'!$O15," ") ->  | X34: =IF(X11="Yes",'Auction Parameters'!$P15," ") ->  | Y34: =IF(Y11="Yes",'Auction Parameters'!$P15," ") ->  | Z34: =IF(Z11="Yes",'Auction Parameters'!$P15," ") ->  | AA34: =IF(AA11="Yes",'Auction Parameters'!$P15," ") ->  | AB34: =IF(AB11="Yes",'Auction Parameters'!$P15," ") ->  | AC34: =IF(AC11="Yes",'Auction Parameters'!$P15," ") ->  | AD34: =IF(AD11="Yes",'Auction Parameters'!$P15," ") ->  | AE34: =IF(AE11="Yes",'Auction Parameters'!$P15," ") ->  | AF34: =IF(AF11="Yes",'Auction Parameters'!$P15," ") ->  | AG34: =IF(AG11="Yes",'Auction Parameters'!$P15," ") ->  | AH34: =IF(AH11="Yes",'Auction Parameters'!$P15," ") ->  | AI34: =IF(AI11="Yes",'Auction Parameters'!$P15," ") ->  | AK34: 0 | AL34: =Instruments!$G15*IF('Auction Parameters'!$I15="T-bills",12/Instruments!$M15,1) -> 0 | AM34: =(SUM('M1.MTDS'!$E28:$P28)-SUM('M1.MTDS'!$E106:$P106))/Input_3!$E$141 -> 0 | AN34: =Instruments!$E15 -> 0 | AP34: ='Auction Parameters'!$I$15 -> 0
K35: ='Auction Parameters'!$B$16 -> 0 | L35: =IF(L12="Yes",'Auction Parameters'!$O16," ") ->  | M35: =IF(M12="Yes",'Auction Parameters'!$O16," ") ->  | N35: =IF(N12="Yes",'Auction Parameters'!$O16," ") ->  | O35: =IF(O12="Yes",'Auction Parameters'!$O16," ") ->  | P35: =IF(P12="Yes",'Auction Parameters'!$O16," ") ->  | Q35: =IF(Q12="Yes",'Auction Parameters'!$O16," ") ->  | R35: =IF(R12="Yes",'Auction Parameters'!$O16," ") ->  | S35: =IF(S12="Yes",'Auction Parameters'!$O16," ") ->  | T35: =IF(T12="Yes",'Auction Parameters'!$O16," ") ->  | U35: =IF(U12="Yes",'Auction Parameters'!$O16," ") ->  | V35: =IF(V12="Yes",'Auction Parameters'!$O16," ") ->  | W35: =IF(W12="Yes",'Auction Parameters'!$O16," ") ->  | X35: =IF(X12="Yes",'Auction Parameters'!$P16," ") ->  | Y35: =IF(Y12="Yes",'Auction Parameters'!$P16," ") ->  | Z35: =IF(Z12="Yes",'Auction Parameters'!$P16," ") ->  | AA35: =IF(AA12="Yes",'Auction Parameters'!$P16," ") ->  | AB35: =IF(AB12="Yes",'Auction Parameters'!$P16," ") ->  | AC35: =IF(AC12="Yes",'Auction Parameters'!$P16," ") ->  | AD35: =IF(AD12="Yes",'Auction Parameters'!$P16," ") ->  | AE35: =IF(AE12="Yes",'Auction Parameters'!$P16," ") ->  | AF35: =IF(AF12="Yes",'Auction Parameters'!$P16," ") ->  | AG35: =IF(AG12="Yes",'Auction Parameters'!$P16," ") ->  | AH35: =IF(AH12="Yes",'Auction Parameters'!$P16," ") ->  | AI35: =IF(AI12="Yes",'Auction Parameters'!$P16," ") ->  | AK35: =SUM(L35:W35) -> 0 | AL35: =Instruments!$G16*IF('Auction Parameters'!$I16="T-bills",12/Instruments!$M16,1) -> 0 | AM35: =(SUM('M1.MTDS'!$E29:$P29)-SUM('M1.MTDS'!$E107:$P107))/Input_3!$E$141 -> 0 | AN35: =Instruments!$E16 -> 0 | AP35: ='Auction Parameters'!$I$16 -> 0
K36: ='Auction Parameters'!$B$17 -> 0 | L36: =IF(L13="Yes",'Auction Parameters'!$O17," ") ->  | M36: =IF(M13="Yes",'Auction Parameters'!$O17," ") ->  | N36: =IF(N13="Yes",'Auction Parameters'!$O17," ") ->  | O36: =IF(O13="Yes",'Auction Parameters'!$O17," ") ->  | P36: =IF(P13="Yes",'Auction Parameters'!$O17," ") ->  | Q36: =IF(Q13="Yes",'Auction Parameters'!$O17," ") ->  | R36: =IF(R13="Yes",'Auction Parameters'!$O17," ") ->  | S36: =IF(S13="Yes",'Auction Parameters'!$O17," ") ->  | T36: =IF(T13="Yes",'Auction Parameters'!$O17," ") ->  | U36: =IF(U13="Yes",'Auction Parameters'!$O17," ") ->  | V36: =IF(V13="Yes",'Auction Parameters'!$O17," ") ->  | W36: =IF(W13="Yes",'Auction Parameters'!$O17," ") ->  | X36: =IF(X13="Yes",'Auction Parameters'!$P17," ") ->  | Y36: =IF(Y13="Yes",'Auction Parameters'!$P17," ") ->  | Z36: =IF(Z13="Yes",'Auction Parameters'!$P17," ") ->  | AA36: =IF(AA13="Yes",'Auction Parameters'!$P17," ") ->  | AB36: =IF(AB13="Yes",'Auction Parameters'!$P17," ") ->  | AC36: =IF(AC13="Yes",'Auction Parameters'!$P17," ") ->  | AD36: =IF(AD13="Yes",'Auction Parameters'!$P17," ") ->  | AE36: =IF(AE13="Yes",'Auction Parameters'!$P17," ") ->  | AF36: =IF(AF13="Yes",'Auction Parameters'!$P17," ") ->  | AG36: =IF(AG13="Yes",'Auction Parameters'!$P17," ") ->  | AH36: =IF(AH13="Yes",'Auction Parameters'!$P17," ") ->  | AI36: =IF(AI13="Yes",'Auction Parameters'!$P17," ") ->  | AK36: 0 | AL36: =Instruments!$G17*IF('Auction Parameters'!$I17="T-bills",12/Instruments!$M17,1) -> 0 | AM36: =(SUM('M1.MTDS'!$E30:$P30)-SUM('M1.MTDS'!$E108:$P108))/Input_3!$E$141 -> 0 | AN36: =Instruments!$E17 -> 0 | AP36: ='Auction Parameters'!$I$17 -> 0
K37: ='Auction Parameters'!$B$18 -> 0 | L37: =IF(L14="Yes",'Auction Parameters'!$O18," ") ->  | M37: =IF(M14="Yes",'Auction Parameters'!$O18," ") ->  | N37: =IF(N14="Yes",'Auction Parameters'!$O18," ") ->  | O37: =IF(O14="Yes",'Auction Parameters'!$O18," ") ->  | P37: =IF(P14="Yes",'Auction Parameters'!$O18," ") ->  | Q37: =IF(Q14="Yes",'Auction Parameters'!$O18," ") ->  | R37: =IF(R14="Yes",'Auction Parameters'!$O18," ") ->  | S37: =IF(S14="Yes",'Auction Parameters'!$O18," ") ->  | T37: =IF(T14="Yes",'Auction Parameters'!$O18," ") ->  | U37: =IF(U14="Yes",'Auction Parameters'!$O18," ") ->  | V37: =IF(V14="Yes",'Auction Parameters'!$O18," ") ->  | W37: =IF(W14="Yes",'Auction Parameters'!$O18," ") ->  | X37: =IF(X14="Yes",'Auction Parameters'!$P18," ") ->  | Y37: =IF(Y14="Yes",'Auction Parameters'!$P18," ") ->  | Z37: =IF(Z14="Yes",'Auction Parameters'!$P18," ") ->  | AA37: =IF(AA14="Yes",'Auction Parameters'!$P18," ") ->  | AB37: =IF(AB14="Yes",'Auction Parameters'!$P18," ") ->  | AC37: =IF(AC14="Yes",'Auction Parameters'!$P18," ") ->  | AD37: =IF(AD14="Yes",'Auction Parameters'!$P18," ") ->  | AE37: =IF(AE14="Yes",'Auction Parameters'!$P18," ") ->  | AF37: =IF(AF14="Yes",'Auction Parameters'!$P18," ") ->  | AG37: =IF(AG14="Yes",'Auction Parameters'!$P18," ") ->  | AH37: =IF(AH14="Yes",'Auction Parameters'!$P18," ") ->  | AI37: =IF(AI14="Yes",'Auction Parameters'!$P18," ") ->  | AK37: 0 | AL37: =Instruments!$G18*IF('Auction Parameters'!$I18="T-bills",12/Instruments!$M18,1) -> 0 | AM37: =(SUM('M1.MTDS'!$E31:$P31)-SUM('M1.MTDS'!$E109:$P109))/Input_3!$E$141 -> 0 | AN37: =Instruments!$E18 -> 0 | AP37: ='Auction Parameters'!$I$18 -> 0
K38: ='Auction Parameters'!$B$19 -> 0 | L38: =IF(L15="Yes",'Auction Parameters'!$O19," ") ->  | M38: =IF(M15="Yes",'Auction Parameters'!$O19," ") ->  | N38: =IF(N15="Yes",'Auction Parameters'!$O19," ") ->  | O38: =IF(O15="Yes",'Auction Parameters'!$O19," ") ->  | P38: =IF(P15="Yes",'Auction Parameters'!$O19," ") ->  | Q38: =IF(Q15="Yes",'Auction Parameters'!$O19," ") ->  | R38: =IF(R15="Yes",'Auction Parameters'!$O19," ") ->  | S38: =IF(S15="Yes",'Auction Parameters'!$O19," ") ->  | T38: =IF(T15="Yes",'Auction Parameters'!$O19," ") ->  | U38: =IF(U15="Yes",'Auction Parameters'!$O19," ") ->  | V38: =IF(V15="Yes",'Auction Parameters'!$O19," ") ->  | W38: =IF(W15="Yes",'Auction Parameters'!$O19," ") ->  | X38: =IF(X15="Yes",'Auction Parameters'!$P19," ") ->  | Y38: =IF(Y15="Yes",'Auction Parameters'!$P19," ") ->  | Z38: =IF(Z15="Yes",'Auction Parameters'!$P19," ") ->  | AA38: =IF(AA15="Yes",'Auction Parameters'!$P19," ") ->  | AB38: =IF(AB15="Yes",'Auction Parameters'!$P19," ") ->  | AC38: =IF(AC15="Yes",'Auction Parameters'!$P19," ") ->  | AD38: =IF(AD15="Yes",'Auction Parameters'!$P19," ") ->  | AE38: =IF(AE15="Yes",'Auction Parameters'!$P19," ") ->  | AF38: =IF(AF15="Yes",'Auction Parameters'!$P19," ") ->  | AG38: =IF(AG15="Yes",'Auction Parameters'!$P19," ") ->  | AH38: =IF(AH15="Yes",'Auction Parameters'!$P19," ") ->  | AI38: =IF(AI15="Yes",'Auction Parameters'!$P19," ") ->  | AK38: 0 | AL38: =Instruments!$G19*IF('Auction Parameters'!$I19="T-bills",12/Instruments!$M19,1) -> 0 | AM38: =(SUM('M1.MTDS'!$E32:$P32)-SUM('M1.MTDS'!$E110:$P110))/Input_3!$E$141 -> 0 | AN38: =Instruments!$E19 -> 0 | AP38: ='Auction Parameters'!$I$19 -> 0
K39: ='Auction Parameters'!$B$20 -> 0 | L39: =IF(L16="Yes",'Auction Parameters'!$O20," ") ->  | M39: =IF(M16="Yes",'Auction Parameters'!$O20," ") ->  | N39: =IF(N16="Yes",'Auction Parameters'!$O20," ") ->  | O39: =IF(O16="Yes",'Auction Parameters'!$O20," ") ->  | P39: =IF(P16="Yes",'Auction Parameters'!$O20," ") ->  | Q39: =IF(Q16="Yes",'Auction Parameters'!$O20," ") ->  | R39: =IF(R16="Yes",'Auction Parameters'!$O20," ") ->  | S39: =IF(S16="Yes",'Auction Parameters'!$O20," ") ->  | T39: =IF(T16="Yes",'Auction Parameters'!$O20," ") ->  | U39: =IF(U16="Yes",'Auction Parameters'!$O20," ") ->  | V39: =IF(V16="Yes",'Auction Parameters'!$O20," ") ->  | W39: =IF(W16="Yes",'Auction Parameters'!$O20," ") ->  | X39: =IF(X16="Yes",'Auction Parameters'!$P20," ") ->  | Y39: =IF(Y16="Yes",'Auction Parameters'!$P20," ") ->  | Z39: =IF(Z16="Yes",'Auction Parameters'!$P20," ") ->  | AA39: =IF(AA16="Yes",'Auction Parameters'!$P20," ") ->  | AB39: =IF(AB16="Yes",'Auction Parameters'!$P20," ") ->  | AC39: =IF(AC16="Yes",'Auction Parameters'!$P20," ") ->  | AD39: =IF(AD16="Yes",'Auction Parameters'!$P20," ") ->  | AE39: =IF(AE16="Yes",'Auction Parameters'!$P20," ") ->  | AF39: =IF(AF16="Yes",'Auction Parameters'!$P20," ") ->  | AG39: =IF(AG16="Yes",'Auction Parameters'!$P20," ") ->  | AH39: =IF(AH16="Yes",'Auction Parameters'!$P20," ") ->  | AI39: =IF(AI16="Yes",'Auction Parameters'!$P20," ") ->  | AK39: 0 | AL39: =Instruments!$G20*IF('Auction Parameters'!$I20="T-bills",12/Instruments!$M20,1) -> 0 | AM39: =(SUM('M1.MTDS'!$E33:$P33)-SUM('M1.MTDS'!$E111:$P111))/Input_3!$E$141 -> 0 | AN39: =Instruments!$E20 -> 0 | AP39: ='Auction Parameters'!$I$20 -> 0
K40: ='Auction Parameters'!$B$21 -> 0 | L40: =IF(L17="Yes",'Auction Parameters'!$O21," ") ->  | M40: =IF(M17="Yes",'Auction Parameters'!$O21," ") ->  | N40: =IF(N17="Yes",'Auction Parameters'!$O21," ") ->  | O40: =IF(O17="Yes",'Auction Parameters'!$O21," ") ->  | P40: =IF(P17="Yes",'Auction Parameters'!$O21," ") ->  | Q40: =IF(Q17="Yes",'Auction Parameters'!$O21," ") ->  | R40: =IF(R17="Yes",'Auction Parameters'!$O21," ") ->  | S40: =IF(S17="Yes",'Auction Parameters'!$O21," ") ->  | T40: =IF(T17="Yes",'Auction Parameters'!$O21," ") ->  | U40: =IF(U17="Yes",'Auction Parameters'!$O21," ") ->  | V40: =IF(V17="Yes",'Auction Parameters'!$O21," ") ->  | W40: =IF(W17="Yes",'Auction Parameters'!$O21," ") ->  | X40: =IF(X17="Yes",'Auction Parameters'!$P21," ") ->  | Y40: =IF(Y17="Yes",'Auction Parameters'!$P21," ") ->  | Z40: =IF(Z17="Yes",'Auction Parameters'!$P21," ") ->  | AA40: =IF(AA17="Yes",'Auction Parameters'!$P21," ") ->  | AB40: =IF(AB17="Yes",'Auction Parameters'!$P21," ") ->  | AC40: =IF(AC17="Yes",'Auction Parameters'!$P21," ") ->  | AD40: =IF(AD17="Yes",'Auction Parameters'!$P21," ") ->  | AE40: =IF(AE17="Yes",'Auction Parameters'!$P21," ") ->  | AF40: =IF(AF17="Yes",'Auction Parameters'!$P21," ") ->  | AG40: =IF(AG17="Yes",'Auction Parameters'!$P21," ") ->  | AH40: =IF(AH17="Yes",'Auction Parameters'!$P21," ") ->  | AI40: =IF(AI17="Yes",'Auction Parameters'!$P21," ") ->  | AK40: 0 | AL40: =Instruments!$G21*IF('Auction Parameters'!$I21="T-bills",12/Instruments!$M21,1) -> 0 | AM40: =(SUM('M1.MTDS'!$E34:$P34)-SUM('M1.MTDS'!$E112:$P112))/Input_3!$E$141 -> 0 | AN40: =Instruments!$E21 -> 0 | AP40: ='Auction Parameters'!$I$21 -> 0
K41: ='Auction Parameters'!$B$22 -> 0 | L41: =IF(L18="Yes",'Auction Parameters'!$O22," ") ->  | M41: =IF(M18="Yes",'Auction Parameters'!$O22," ") ->  | N41: =IF(N18="Yes",'Auction Parameters'!$O22," ") ->  | O41: =IF(O18="Yes",'Auction Parameters'!$O22," ") ->  | P41: =IF(P18="Yes",'Auction Parameters'!$O22," ") ->  | Q41: =IF(Q18="Yes",'Auction Parameters'!$O22," ") ->  | R41: =IF(R18="Yes",'Auction Parameters'!$O22," ") ->  | S41: =IF(S18="Yes",'Auction Parameters'!$O22," ") ->  | T41: =IF(T18="Yes",'Auction Parameters'!$O22," ") ->  | U41: =IF(U18="Yes",'Auction Parameters'!$O22," ") ->  | V41: =IF(V18="Yes",'Auction Parameters'!$O22," ") ->  | W41: =IF(W18="Yes",'Auction Parameters'!$O22," ") ->  | X41: =IF(X18="Yes",'Auction Parameters'!$P22," ") ->  | Y41: =IF(Y18="Yes",'Auction Parameters'!$P22," ") ->  | Z41: =IF(Z18="Yes",'Auction Parameters'!$P22," ") ->  | AA41: =IF(AA18="Yes",'Auction Parameters'!$P22," ") ->  | AB41: =IF(AB18="Yes",'Auction Parameters'!$P22," ") ->  | AC41: =IF(AC18="Yes",'Auction Parameters'!$P22," ") ->  | AD41: =IF(AD18="Yes",'Auction Parameters'!$P22," ") ->  | AE41: =IF(AE18="Yes",'Auction Parameters'!$P22," ") ->  | AF41: =IF(AF18="Yes",'Auction Parameters'!$P22," ") ->  | AG41: =IF(AG18="Yes",'Auction Parameters'!$P22," ") ->  | AH41: =IF(AH18="Yes",'Auction Parameters'!$P22," ") ->  | AI41: =IF(AI18="Yes",'Auction Parameters'!$P22," ") ->  | AK41: 0 | AL41: =Instruments!$G22*IF('Auction Parameters'!$I22="T-bills",12/Instruments!$M22,1) -> 0 | AM41: =(SUM('M1.MTDS'!$E35:$P35)-SUM('M1.MTDS'!$E113:$P113))/Input_3!$E$141 -> 0 | AN41: =Instruments!$E22 -> 0 | AP41: ='Auction Parameters'!$I$22 -> 0
K42: ='Auction Parameters'!$B$23 -> 0 | L42: =IF(L19="Yes",'Auction Parameters'!$O23," ") ->  | M42: =IF(M19="Yes",'Auction Parameters'!$O23," ") ->  | N42: =IF(N19="Yes",'Auction Parameters'!$O23," ") ->  | O42: =IF(O19="Yes",'Auction Parameters'!$O23," ") ->  | P42: =IF(P19="Yes",'Auction Parameters'!$O23," ") ->  | Q42: =IF(Q19="Yes",'Auction Parameters'!$O23," ") ->  | R42: =IF(R19="Yes",'Auction Parameters'!$O23," ") ->  | S42: =IF(S19="Yes",'Auction Parameters'!$O23," ") ->  | T42: =IF(T19="Yes",'Auction Parameters'!$O23," ") ->  | U42: =IF(U19="Yes",'Auction Parameters'!$O23," ") ->  | V42: =IF(V19="Yes",'Auction Parameters'!$O23," ") ->  | W42: =IF(W19="Yes",'Auction Parameters'!$O23," ") ->  | X42: =IF(X19="Yes",'Auction Parameters'!$P23," ") ->  | Y42: =IF(Y19="Yes",'Auction Parameters'!$P23," ") ->  | Z42: =IF(Z19="Yes",'Auction Parameters'!$P23," ") ->  | AA42: =IF(AA19="Yes",'Auction Parameters'!$P23," ") ->  | AB42: =IF(AB19="Yes",'Auction Parameters'!$P23," ") ->  | AC42: =IF(AC19="Yes",'Auction Parameters'!$P23," ") ->  | AD42: =IF(AD19="Yes",'Auction Parameters'!$P23," ") ->  | AE42: =IF(AE19="Yes",'Auction Parameters'!$P23," ") ->  | AF42: =IF(AF19="Yes",'Auction Parameters'!$P23," ") ->  | AG42: =IF(AG19="Yes",'Auction Parameters'!$P23," ") ->  | AH42: =IF(AH19="Yes",'Auction Parameters'!$P23," ") ->  | AI42: =IF(AI19="Yes",'Auction Parameters'!$P23," ") ->  | AK42: 0 | AL42: =Instruments!$G23*IF('Auction Parameters'!$I23="T-bills",12/Instruments!$M23,1) -> 0 | AM42: =(SUM('M1.MTDS'!$E36:$P36)-SUM('M1.MTDS'!$E114:$P114))/Input_3!$E$141 -> 0 | AN42: =Instruments!$E23 -> 0 | AP42: ='Auction Parameters'!$I$23 -> 0
K43: ='Auction Parameters'!$B$24 -> 0 | L43: =IF(L20="Yes",'Auction Parameters'!$O24," ") ->  | M43: =IF(M20="Yes",'Auction Parameters'!$O24," ") ->  | N43: =IF(N20="Yes",'Auction Parameters'!$O24," ") ->  | O43: =IF(O20="Yes",'Auction Parameters'!$O24," ") ->  | P43: =IF(P20="Yes",'Auction Parameters'!$O24," ") ->  | Q43: =IF(Q20="Yes",'Auction Parameters'!$O24," ") ->  | R43: =IF(R20="Yes",'Auction Parameters'!$O24," ") ->  | S43: =IF(S20="Yes",'Auction Parameters'!$O24," ") ->  | T43: =IF(T20="Yes",'Auction Parameters'!$O24," ") ->  | U43: =IF(U20="Yes",'Auction Parameters'!$O24," ") ->  | V43: =IF(V20="Yes",'Auction Parameters'!$O24," ") ->  | W43: =IF(W20="Yes",'Auction Parameters'!$O24," ") ->  | X43: =IF(X20="Yes",'Auction Parameters'!$P24," ") ->  | Y43: =IF(Y20="Yes",'Auction Parameters'!$P24," ") ->  | Z43: =IF(Z20="Yes",'Auction Parameters'!$P24," ") ->  | AA43: =IF(AA20="Yes",'Auction Parameters'!$P24," ") ->  | AB43: =IF(AB20="Yes",'Auction Parameters'!$P24," ") ->  | AC43: =IF(AC20="Yes",'Auction Parameters'!$P24," ") ->  | AD43: =IF(AD20="Yes",'Auction Parameters'!$P24," ") ->  | AE43: =IF(AE20="Yes",'Auction Parameters'!$P24," ") ->  | AF43: =IF(AF20="Yes",'Auction Parameters'!$P24," ") ->  | AG43: =IF(AG20="Yes",'Auction Parameters'!$P24," ") ->  | AH43: =IF(AH20="Yes",'Auction Parameters'!$P24," ") ->  | AI43: =IF(AI20="Yes",'Auction Parameters'!$P24," ") ->  | AK43: 0 | AL43: =Instruments!$G24*IF('Auction Parameters'!$I24="T-bills",12/Instruments!$M24,1) -> 0 | AM43: =(SUM('M1.MTDS'!$E37:$P37)-SUM('M1.MTDS'!$E115:$P115))/Input_3!$E$141 -> 0 | AN43: =Instruments!$E24 -> 0 | AP43: ='Auction Parameters'!$I$24 -> 0
K44: ='Auction Parameters'!$B$25 -> 0 | L44: =IF(L21="Yes",'Auction Parameters'!$O25," ") ->  | M44: =IF(M21="Yes",'Auction Parameters'!$O25," ") ->  | N44: =IF(N21="Yes",'Auction Parameters'!$O25," ") ->  | O44: =IF(O21="Yes",'Auction Parameters'!$O25," ") ->  | P44: =IF(P21="Yes",'Auction Parameters'!$O25," ") ->  | Q44: =IF(Q21="Yes",'Auction Parameters'!$O25," ") ->  | R44: =IF(R21="Yes",'Auction Parameters'!$O25," ") ->  | S44: =IF(S21="Yes",'Auction Parameters'!$O25," ") ->  | T44: =IF(T21="Yes",'Auction Parameters'!$O25," ") ->  | U44: =IF(U21="Yes",'Auction Parameters'!$O25," ") ->  | V44: =IF(V21="Yes",'Auction Parameters'!$O25," ") ->  | W44: =IF(W21="Yes",'Auction Parameters'!$O25," ") ->  | X44: =IF(X21="Yes",'Auction Parameters'!$P25," ") ->  | Y44: =IF(Y21="Yes",'Auction Parameters'!$P25," ") ->  | Z44: =IF(Z21="Yes",'Auction Parameters'!$P25," ") ->  | AA44: =IF(AA21="Yes",'Auction Parameters'!$P25," ") ->  | AB44: =IF(AB21="Yes",'Auction Parameters'!$P25," ") ->  | AC44: =IF(AC21="Yes",'Auction Parameters'!$P25," ") ->  | AD44: =IF(AD21="Yes",'Auction Parameters'!$P25," ") ->  | AE44: =IF(AE21="Yes",'Auction Parameters'!$P25," ") ->  | AF44: =IF(AF21="Yes",'Auction Parameters'!$P25," ") ->  | AG44: =IF(AG21="Yes",'Auction Parameters'!$P25," ") ->  | AH44: =IF(AH21="Yes",'Auction Parameters'!$P25," ") ->  | AI44: =IF(AI21="Yes",'Auction Parameters'!$P25," ") ->  | AK44: 0 | AL44: =Instruments!$G25*IF('Auction Parameters'!$I25="T-bills",12/Instruments!$M25,1) -> 0 | AM44: =(SUM('M1.MTDS'!$E38:$P38)-SUM('M1.MTDS'!$E116:$P116))/Input_3!$E$141 -> 0 | AN44: =Instruments!$E25 -> 0 | AP44: ='Auction Parameters'!$I$25 -> 0
K45: ='Auction Parameters'!$B$26 -> 0 | L45: =IF(L22="Yes",'Auction Parameters'!$O26," ") ->  | M45: =IF(M22="Yes",'Auction Parameters'!$O26," ") ->  | N45: =IF(N22="Yes",'Auction Parameters'!$O26," ") ->  | O45: =IF(O22="Yes",'Auction Parameters'!$O26," ") ->  | P45: =IF(P22="Yes",'Auction Parameters'!$O26," ") ->  | Q45: =IF(Q22="Yes",'Auction Parameters'!$O26," ") ->  | R45: =IF(R22="Yes",'Auction Parameters'!$O26," ") ->  | S45: =IF(S22="Yes",'Auction Parameters'!$O26," ") ->  | T45: =IF(T22="Yes",'Auction Parameters'!$O26," ") ->  | U45: =IF(U22="Yes",'Auction Parameters'!$O26," ") ->  | V45: =IF(V22="Yes",'Auction Parameters'!$O26," ") ->  | W45: =IF(W22="Yes",'Auction Parameters'!$O26," ") ->  | X45: =IF(X22="Yes",'Auction Parameters'!$P26," ") ->  | Y45: =IF(Y22="Yes",'Auction Parameters'!$P26," ") ->  | Z45: =IF(Z22="Yes",'Auction Parameters'!$P26," ") ->  | AA45: =IF(AA22="Yes",'Auction Parameters'!$P26," ") ->  | AB45: =IF(AB22="Yes",'Auction Parameters'!$P26," ") ->  | AC45: =IF(AC22="Yes",'Auction Parameters'!$P26," ") ->  | AD45: =IF(AD22="Yes",'Auction Parameters'!$P26," ") ->  | AE45: =IF(AE22="Yes",'Auction Parameters'!$P26," ") ->  | AF45: =IF(AF22="Yes",'Auction Parameters'!$P26," ") ->  | AG45: =IF(AG22="Yes",'Auction Parameters'!$P26," ") ->  | AH45: =IF(AH22="Yes",'Auction Parameters'!$P26," ") ->  | AI45: =IF(AI22="Yes",'Auction Parameters'!$P26," ") ->  | AK45: 0 | AL45: =Instruments!$G26*IF('Auction Parameters'!$I26="T-bills",12/Instruments!$M26,1) -> 0 | AM45: =(SUM('M1.MTDS'!$E39:$P39)-SUM('M1.MTDS'!$E117:$P117))/Input_3!$E$141 -> 0 | AN45: =Instruments!$E26 -> 0 | AP45: ='Auction Parameters'!$I$26 -> 0
K47: Cash Opening Balance | L47: =GFN!$J$31 -> 100 | M47: =L56 -> 263.4841183 | N47: =M56 -> 775.0783499 | O47: 764.5074115 | P47: 693.7366307 | Q47: 623.1079949 | R47: 900.4473276 | S47: 529.9740456 | T47: 656.7238442 | U47: 293.8219572 | V47: 95.57035196 | W47: =V56 -> 71.16783833 | X47: =W56 -> -152.3739666 | Y47: -227.6285255 | Z47: -89.07740905 | AA47: -292.4782253 | AB47: -325.5272408 | AC47: -376.5414265 | AD47: -163.5613738 | AE47: -307.0919493 | AF47: -120.5663546 | AG47: -250.4886814 | AH47: -267.0864687 | AI47: -166.1932817 | AK47: =SUM(AK26:AK45) -> 9747.083176 | AL47: =SUM(AL26:AL45) -> 9747.083176 | AM47: =SUM(AM26:AM45) -> 1 | AN47: =SUM(AN26:AN45) -> 1 | AO47: Total
K48: Cash Minimum Balance | L48: =GFN!$J$32 -> 50 | M48: =GFN!$J$32 -> 50 | N48: =GFN!$J$32 -> 50 | O48: =GFN!$J$32 -> 50 | P48: =GFN!$J$32 -> 50 | Q48: =GFN!$J$32 -> 50 | R48: =GFN!$J$32 -> 50 | S48: =GFN!$J$32 -> 50 | T48: =GFN!$J$32 -> 50 | U48: =GFN!$J$32 -> 50 | V48: =GFN!$J$32 -> 50 | W48: =GFN!$J$32 -> 50 | X48: =GFN!$J$32 -> 50 | Y48: =GFN!$J$32 -> 50 | Z48: =GFN!$J$32 -> 50 | AA48: =GFN!$J$32 -> 50 | AB48: =GFN!$J$32 -> 50 | AC48: =GFN!$J$32 -> 50 | AD48: =GFN!$J$32 -> 50 | AE48: =GFN!$J$32 -> 50 | AF48: =GFN!$J$32 -> 50 | AG48: =GFN!$J$32 -> 50 | AH48: =GFN!$J$32 -> 50 | AI48: =GFN!$J$32 -> 50
K49: Cash Balance Control | L49: =IF(L56<L48,"ERROR","OK") -> OK | M49: =IF(M56<M48,"ERROR","OK") -> OK | N49: OK | O49: OK | P49: OK | Q49: OK | R49: OK | S49: OK | T49: OK | U49: OK | V49: OK | W49: =IF(W56<W48,"ERROR","OK") -> ERROR | X49: =IF(X56<X48,"ERROR","OK") -> ERROR | Y49: =IF(Y56<Y48,"ERROR","OK") -> ERROR | Z49: ERROR | AA49: ERROR | AB49: ERROR | AC49: ERROR | AD49: ERROR | AE49: ERROR | AF49: ERROR | AG49: ERROR | AH49: ERROR | AI49: ERROR
K51: Local Currency Financing requirement | L51: ='M1.MTDS'!E$6 -> -580.1835224 | M51: ='M1.MTDS'!F$6 -> -580.1835224 | N51: ='M1.MTDS'!G$6 -> -580.1835224 | O51: ='M1.MTDS'!H$6 -> -580.1835224 | P51: ='M1.MTDS'!I$6 -> -580.1835224 | Q51: ='M1.MTDS'!J$6 -> -580.1835224 | R51: ='M1.MTDS'!K$6 -> -580.1835224 | S51: ='M1.MTDS'!L$6 -> -580.1835224 | T51: ='M1.MTDS'!M$6 -> -580.1835224 | U51: ='M1.MTDS'!N$6 -> -580.1835224 | V51: ='M1.MTDS'!O$6 -> -580.1835224 | W51: ='M1.MTDS'!P$6 -> -580.1835224 | X51: ='M1.MTDS'!Q$6 -> -174.5132778 | Y51: ='M1.MTDS'!R$6 -> -174.5132778 | Z51: ='M1.MTDS'!S$6 -> -174.5132778 | AA51: ='M1.MTDS'!T$6 -> -174.5132778 | AB51: ='M1.MTDS'!U$6 -> -174.5132778 | AC51: ='M1.MTDS'!V$6 -> -174.5132778 | AD51: ='M1.MTDS'!W$6 -> -174.5132778 | AE51: ='M1.MTDS'!X$6 -> -174.5132778 | AF51: ='M1.MTDS'!Y$6 -> -174.5132778 | AG51: ='M1.MTDS'!Z$6 -> -174.5132778 | AH51: ='M1.MTDS'!AA$6 -> -174.5132778 | AI51: ='M1.MTDS'!AB$6 -> -174.5132778
K52: Monthly Issuance (Face Value) | L52: =SUM(L$26:L$45) -> 754.2385791 | M52: =SUM(M$26:M$45) -> 1102.348693 | N52: 580.1835224 | O52: 754.2385791 | P52: 754.2385791 | Q52: 1102.348693 | R52: 580.1835224 | S52: 1102.348693 | T52: 580.1835224 | U52: 754.2385791 | V52: 928.2936358 | W52: =SUM(W$26:W$45) -> 754.2385791 | X52: 587.8584139 | Y52: 859.1776818 | Z52: 452.1987799 | AA52: 587.8584139 | AB52: 587.8584139 | AC52: 859.1776818 | AD52: 452.1987799 | AE52: 859.1776818 | AF52: 452.1987799 | AG52: 587.8584139 | AH52: 723.5180478 | AI52: 587.8584139
K53: Net Proceeds | L53: ='M1.MTDS'!E$11 -> 743.6676406 | M53: ='M1.MTDS'!F$11 -> 1091.777754 | N53: ='M1.MTDS'!G$11 -> 569.6125839 | O53: ='M1.MTDS'!H$11 -> 509.4127416 | P53: ='M1.MTDS'!I$11 -> 509.5548866 | Q53: ='M1.MTDS'!J$11 -> 857.5228551 | R53: ='M1.MTDS'!K$11 -> 209.7102404 | S53: ='M1.MTDS'!L$11 -> 706.9333209 | T53: ='M1.MTDS'!M$11 -> 217.2816354 | U53: ='M1.MTDS'!N$11 -> 381.9319172 | V53: ='M1.MTDS'!O$11 -> 555.7810088 | W53: ='M1.MTDS'!P$11 -> 356.6417174 | X53: ='M1.MTDS'!Q$11 -> 99.25871894 | Y53: ='M1.MTDS'!R$11 -> 313.0643943 | Z53: ='M1.MTDS'!S$11 -> -28.88753841 | AA53: ='M1.MTDS'!T$11 -> 141.4642623 | AB53: ='M1.MTDS'!U$11 -> 123.4990922 | AC53: ='M1.MTDS'!V$11 -> 387.4933305 | AD53: ='M1.MTDS'!W$11 -> 30.98270234 | AE53: ='M1.MTDS'!X$11 -> 361.0388726 | AF53: ='M1.MTDS'!Y$11 -> 44.59095102 | AG53: ='M1.MTDS'!Z$11 -> 157.9154905 | AH53: ='M1.MTDS'!AA$11 -> 275.4064649 | AI53: ='M1.MTDS'!AB$11 -> 112.9546438
K54: Monthly Gap | L54: =L$51+L$53 -> 163.4841183 | M54: =M$51+M$53 -> 511.5942317 | N54: =N$51+N$53 -> -10.57093846 | O54: =O$51+O$53 -> -70.77078075 | P54: -70.62863578 | Q54: 277.3393327 | R54: -370.473282 | S54: 126.7497985 | T54: -362.901887 | U54: -198.2516052 | V54: =V$51+V$53 -> -24.40251364 | W54: =W$51+W$53 -> -223.5418049 | X54: =X$51+X$53 -> -75.2545589 | Y54: 138.5511165 | Z54: -203.4008163 | AA54: -33.0490155 | AB54: -51.01418567 | AC54: 212.9800527 | AD54: -143.5305755 | AE54: 186.5255947 | AF54: -129.9223268 | AG54: -16.59778733 | AH54: 100.893187 | AI54: -61.558634 | AK54: =MIN(L54:W54) -> -370.473282 | AO54: Monthly Maximum Gap
K55: Cumulative Gap (Securities Financing) | L55: =L54 -> 163.4841183 | M55: =L55+M54 -> 675.0783499 | N55: =M55+N54 -> 664.5074115 | O55: 593.7366307 | P55: 523.1079949 | Q55: 800.4473276 | R55: 429.9740456 | S55: 556.7238442 | T55: 193.8219572 | U55: -4.429648038 | V55: =U55+V54 -> -28.83216167 | W55: =V55+W54 -> -252.3739666 | X55: =W55+X54 -> -327.6285255 | Y55: -189.077409 | Z55: -392.4782253 | AA55: -425.5272408 | AB55: -476.5414265 | AC55: -263.5613738 | AD55: -407.0919493 | AE55: -220.5663546 | AF55: -350.4886814 | AG55: -367.0864687 | AH55: -266.1932817 | AI55: -327.7519157 | AK55: =MIN(L55:W55) -> -252.3739666 | AO55: Cumulative Maxium Gap
K56: Closing cash balance | L56: =L47+L54 -> 263.4841183 | M56: =M47+M54 -> 775.0783499 | N56: =N47+N54 -> 764.5074115 | O56: 693.7366307 | P56: 623.1079949 | Q56: 900.4473276 | R56: 529.9740456 | S56: 656.7238442 | T56: 293.8219572 | U56: 95.57035196 | V56: =V47+V54 -> 71.16783833 | W56: =W47+W54 -> -152.3739666 | X56: =X47+X54 -> -227.6285255 | Y56: -89.07740905 | Z56: -292.4782253 | AA56: -325.5272408 | AB56: -376.5414265 | AC56: -163.5613738 | AD56: -307.0919493 | AE56: -120.5663546 | AF56: -250.4886814 | AG56: -267.0864687 | AH56: -166.1932817 | AI56: -227.7519157 | AO56: Cumulative Gap Explained by:
AK57: =SUMIFS('M1.MTDS'!$C$20:$C$39,'M1.MTDS'!$A$20:$A$39,"T-bills")-SUMIFS('M1.MTDS'!$C$46:$C$65,'M1.MTDS'!$A$46:$A$65,"T-bills") -> 126.8512615 | AO57: T-bills: Face Value - Cash Proceeds
AK58: =-SUM('M1.MTDS'!$E$10:$P$10) -> 125.5227051 | AO58: Bonds: Coupon payments from new issuance
AK59: =-GFN!AI29 -> 0 | AO59: Difference in GDF between MTDS and ABP
AK60: =AK57+AK58+AK59 -> 252.3739666

Sheet Auction Design
I3: Baseline | J3: =GFN!J$6 -> Jan-25 | K3: =GFN!K$6 -> Feb-25 | L3: =GFN!L$6 -> Mar-25 | M3: =GFN!M$6 -> Apr-25 | N3: =GFN!N$6 -> May-25 | O3: =GFN!O$6 -> Jun-25 | P3: =GFN!P$6 -> Jul-25 | Q3: =GFN!Q$6 -> Aug-25 | R3: =GFN!R$6 -> Sep-25 | S3: =GFN!S$6 -> Oct-25 | T3: =GFN!T$6 -> Nov-25 | U3: =GFN!U$6 -> Dec-25 | V3: =GFN!V$6 -> Jan-26 | W3: =GFN!W$6 -> Feb-26 | X3: =GFN!X$6 -> Mar-26 | Y3: =GFN!Y$6 -> Apr-26 | Z3: =GFN!Z$6 -> May-26 | AA3: =GFN!AA$6 -> Jun-26 | AB3: =GFN!AB$6 -> Jul-26 | AC3: =GFN!AC$6 -> Aug-26 | AD3: =GFN!AD$6 -> Sep-26 | AE3: =GFN!AE$6 -> Oct-26 | AF3: =GFN!AF$6 -> Nov-26 | AG3: =GFN!AG$6 -> Dec-26 | AH3: # Issuance | AI3: MTDS Target % | AJ3: Baseline % | AK3: MTDS Volume | AL3: Baseline Volume
I4: =Input_2!$E$11&" "&Input_2!$E$12 -> UTP millions
I5: ='Auction Parameters'!$B$7 -> T-bills 3m | J5: ='Default MTDS Based'!L26 -> 232.073409 | K5: ='Default MTDS Based'!M26 -> 232.073409 | L5: ='Default MTDS Based'!N26 -> 232.073409 | M5: ='Default MTDS Based'!O26 -> 232.073409 | N5: ='Default MTDS Based'!P26 -> 232.073409 | O5: ='Default MTDS Based'!Q26 -> 232.073409 | P5: ='Default MTDS Based'!R26 -> 232.073409 | Q5: ='Default MTDS Based'!S26 -> 232.073409 | R5: ='Default MTDS Based'!T26 -> 232.073409 | S5: ='Default MTDS Based'!U26 -> 232.073409 | T5: ='Default MTDS Based'!V26 -> 232.073409 | U5: ='Default MTDS Based'!W26 -> 232.073409 | V5: ='Default MTDS Based'!X26 -> 180.879512 | W5: ='Default MTDS Based'!Y26 -> 180.879512 | X5: ='Default MTDS Based'!Z26 -> 180.879512 | Y5: ='Default MTDS Based'!AA26 -> 180.879512 | Z5: ='Default MTDS Based'!AB26 -> 180.879512 | AA5: ='Default MTDS Based'!AC26 -> 180.879512 | AB5: ='Default MTDS Based'!AD26 -> 180.879512 | AC5: ='Default MTDS Based'!AE26 -> 180.879512 | AD5: ='Default MTDS Based'!AF26 -> 180.879512 | AE5: ='Default MTDS Based'!AG26 -> 180.879512 | AF5: ='Default MTDS Based'!AH26 -> 180.879512 | AG5: ='Default MTDS Based'!AI26 -> 180.879512 | AH5: =COUNTIF($J5:$U5,">0") -> 12 | AI5: ='Auction Parameters'!$G$7 -> 0.1 | AJ5: =SUM('M2.Baseline'!E72:P72)/'M2.Baseline'!$C$92 -> 0.09882288456 | AK5: ='Default MTDS Based'!$AL26 -> 2784.880907 | AL5: =SUM(J5:U5) -> 2784.880907 | AN5: ='Auction Parameters'!$I$7 -> T-bills
I6: ='Auction Parameters'!$B$8 -> T-bills 6m | J6: ='Default MTDS Based'!L27 -> 116.0367045 | K6: ='Default MTDS Based'!M27 -> 116.0367045 | L6: ='Default MTDS Based'!N27 -> 116.0367045 | M6: ='Default MTDS Based'!O27 -> 116.0367045 | N6: ='Default MTDS Based'!P27 -> 116.0367045 | O6: ='Default MTDS Based'!Q27 -> 116.0367045 | P6: ='Default MTDS Based'!R27 -> 116.0367045 | Q6: ='Default MTDS Based'!S27 -> 116.0367045 | R6: ='Default MTDS Based'!T27 -> 116.0367045 | S6: ='Default MTDS Based'!U27 -> 116.0367045 | T6: ='Default MTDS Based'!V27 -> 116.0367045 | U6: ='Default MTDS Based'!W27 -> 116.0367045 | V6: ='Default MTDS Based'!X27 -> 90.43975598 | W6: ='Default MTDS Based'!Y27 -> 90.43975598 | X6: ='Default MTDS Based'!Z27 -> 90.43975598 | Y6: ='Default MTDS Based'!AA27 -> 90.43975598 | Z6: ='Default MTDS Based'!AB27 -> 90.43975598 | AA6: ='Default MTDS Based'!AC27 -> 90.43975598 | AB6: ='Default MTDS Based'!AD27 -> 90.43975598 | AC6: ='Default MTDS Based'!AE27 -> 90.43975598 | AD6: ='Default MTDS Based'!AF27 -> 90.43975598 | AE6: ='Default MTDS Based'!AG27 -> 90.43975598 | AF6: ='Default MTDS Based'!AH27 -> 90.43975598 | AG6: ='Default MTDS Based'!AI27 -> 90.43975598 | AH6: =COUNTIF($J6:$U6,">0") -> 12 | AI6: ='Auction Parameters'!$G$8 -> 0.1 | AJ6: =SUM('M2.Baseline'!E73:P73)/'M2.Baseline'!$C$92 -> 0.09786146639 | AK6: ='Default MTDS Based'!$AL27 -> 1392.440454 | AL6: 1392.440454 | AN6: ='Auction Parameters'!$I$8 -> T-bills
I7: ='Auction Parameters'!$B$9 -> T-bills 12m | J7: ='Default MTDS Based'!L28 -> 116.0367045 | K7: ='Default MTDS Based'!M28 -> 116.0367045 | L7: ='Default MTDS Based'!N28 -> 116.0367045 | M7: ='Default MTDS Based'!O28 -> 116.0367045 | N7: ='Default MTDS Based'!P28 -> 116.0367045 | O7: ='Default MTDS Based'!Q28 -> 116.0367045 | P7: ='Default MTDS Based'!R28 -> 116.0367045 | Q7: ='Default MTDS Based'!S28 -> 116.0367045 | R7: ='Default MTDS Based'!T28 -> 116.0367045 | S7: ='Default MTDS Based'!U28 -> 116.0367045 | T7: ='Default MTDS Based'!V28 -> 116.0367045 | U7: ='Default MTDS Based'!W28 -> 116.0367045 | V7: ='Default MTDS Based'!X28 -> 90.43975598 | W7: ='Default MTDS Based'!Y28 -> 90.43975598 | X7: ='Default MTDS Based'!Z28 -> 90.43975598 | Y7: ='Default MTDS Based'!AA28 -> 90.43975598 | Z7: ='Default MTDS Based'!AB28 -> 90.43975598 | AA7: ='Default MTDS Based'!AC28 -> 90.43975598 | AB7: ='Default MTDS Based'!AD28 -> 90.43975598 | AC7: ='Default MTDS Based'!AE28 -> 90.43975598 | AD7: ='Default MTDS Based'!AF28 -> 90.43975598 | AE7: ='Default MTDS Based'!AG28 -> 90.43975598 | AF7: ='Default MTDS Based'!AH28 -> 90.43975598 | AG7: ='Default MTDS Based'!AI28 -> 90.43975598 | AH7: 12 | AI7: ='Auction Parameters'!$G$9 -> 0.2 | AJ7: =SUM('M2.Baseline'!E74:P74)/'M2.Baseline'!$C$92 -> 0.1921807773 | AK7: ='Default MTDS Based'!$AL28 -> 1392.440454 | AL7: 1392.440454 | AN7: ='Auction Parameters'!$I$9 -> T-bills
I8: ='Auction Parameters'!$B$10 -> 2yr | J8: ='Default MTDS Based'!L29 ->  | K8: ='Default MTDS Based'!M29 -> 116.0367045 | L8: ='Default MTDS Based'!N29 ->  | M8: ='Default MTDS Based'!O29 -> 116.0367045 | N8: ='Default MTDS Based'!P29 ->  | O8: ='Default MTDS Based'!Q29 -> 116.0367045 | P8: ='Default MTDS Based'!R29 ->  | Q8: ='Default MTDS Based'!S29 -> 116.0367045 | R8: ='Default MTDS Based'!T29 ->  | S8: ='Default MTDS Based'!U29 -> 116.0367045 | T8: ='Default MTDS Based'!V29 ->  | U8: ='Default MTDS Based'!W29 -> 116.0367045 | V8: ='Default MTDS Based'!X29 ->  | W8: ='Default MTDS Based'!Y29 -> 90.43975598 | X8: ='Default MTDS Based'!Z29 ->  | Y8: ='Default MTDS Based'!AA29 -> 90.43975598 | Z8: ='Default MTDS Based'!AB29 ->  | AA8: ='Default MTDS Based'!AC29 -> 90.43975598 | AB8: ='Default MTDS Based'!AD29 ->  | AC8: ='Default MTDS Based'!AE29 -> 90.43975598 | AD8: ='Default MTDS Based'!AF29 ->  | AE8: ='Default MTDS Based'!AG29 -> 90.43975598 | AF8: ='Default MTDS Based'!AH29 ->  | AG8: ='Default MTDS Based'!AI29 -> 90.43975598 | AH8: 6 | AI8: ='Auction Parameters'!$G$10 -> 0.1 | AJ8: =SUM('M2.Baseline'!E75:P75)/'M2.Baseline'!$C$92 -> 0.101855812 | AK8: ='Default MTDS Based'!$AL29 -> 696.2202269 | AL8: 696.2202269 | AN8: ='Auction Parameters'!$I$10 -> Bonds
I9: ='Auction Parameters'!$B$11 -> 3yr | J9: ='Default MTDS Based'!L30 -> 116.0367045 | K9: ='Default MTDS Based'!M30 ->  | L9: ='Default MTDS Based'!N30 -> 116.0367045 | M9: ='Default MTDS Based'!O30 ->  | N9: ='Default MTDS Based'!P30 -> 116.0367045 | O9: ='Default MTDS Based'!Q30 ->  | P9: ='Default MTDS Based'!R30 -> 116.0367045 | Q9: ='Default MTDS Based'!S30 ->  | R9: ='Default MTDS Based'!T30 -> 116.0367045 | S9: ='Default MTDS Based'!U30 ->  | T9: ='Default MTDS Based'!V30 -> 116.0367045 | U9: ='Default MTDS Based'!W30 ->  | V9: ='Default MTDS Based'!X30 -> 90.43975598 | W9: ='Default MTDS Based'!Y30 ->  | X9: ='Default MTDS Based'!Z30 -> 90.43975598 | Y9: ='Default MTDS Based'!AA30 ->  | Z9: ='Default MTDS Based'!AB30 -> 90.43975598 | AA9: ='Default MTDS Based'!AC30 ->  | AB9: ='Default MTDS Based'!AD30 -> 90.43975598 | AC9: ='Default MTDS Based'!AE30 ->  | AD9: ='Default MTDS Based'!AF30 -> 90.43975598 | AE9: ='Default MTDS Based'!AG30 ->  | AF9: ='Default MTDS Based'!AH30 -> 90.43975598 | AG9: ='Default MTDS Based'!AI30 ->  | AH9: 6 | AI9: ='Auction Parameters'!$G$11 -> 0.1 | AJ9: =SUM('M2.Baseline'!E76:P76)/'M2.Baseline'!$C$92 -> 0.101855812 | AK9: ='Default MTDS Based'!$AL30 -> 696.2202269 | AL9: 696.2202269 | AN9: ='Auction Parameters'!$I$11 -> Bonds
I10: ='Auction Parameters'!$B$12 -> 5yr | J10: ='Default MTDS Based'!L31 ->  | K10: ='Default MTDS Based'!M31 -> 174.0550567 | L10: ='Default MTDS Based'!N31 ->  | M10: ='Default MTDS Based'!O31 -> 174.0550567 | N10: ='Default MTDS Based'!P31 ->  | O10: ='Default MTDS Based'!Q31 -> 174.0550567 | P10: ='Default MTDS Based'!R31 ->  | Q10: ='Default MTDS Based'!S31 -> 174.0550567 | R10: ='Default MTDS Based'!T31 ->  | S10: ='Default MTDS Based'!U31 ->  | T10: ='Default MTDS Based'!V31 ->  | U10: ='Default MTDS Based'!W31 ->  | V10: ='Default MTDS Based'!X31 ->  | W10: ='Default MTDS Based'!Y31 -> 135.659634 | X10: ='Default MTDS Based'!Z31 ->  | Y10: ='Default MTDS Based'!AA31 -> 135.659634 | Z10: ='Default MTDS Based'!AB31 ->  | AA10: ='Default MTDS Based'!AC31 -> 135.659634 | AB10: ='Default MTDS Based'!AD31 ->  | AC10: ='Default MTDS Based'!AE31 -> 135.659634 | AD10: ='Default MTDS Based'!AF31 ->  | AE10: ='Default MTDS Based'!AG31 ->  | AF10: ='Default MTDS Based'!AH31 ->  | AG10: ='Default MTDS Based'!AI31 ->  | AH10: 4 | AI10: ='Auction Parameters'!$G$12 -> 0.1 | AJ10: =SUM('M2.Baseline'!E77:P77)/'M2.Baseline'!$C$92 -> 0.101855812 | AK10: ='Default MTDS Based'!$AL31 -> 696.2202269 | AL10: 696.2202269 | AN10: ='Auction Parameters'!$I$12 -> Bonds
I11: ='Auction Parameters'!$B$13 -> 7yr | J11: ='Default MTDS Based'!L32 -> 174.0550567 | K11: ='Default MTDS Based'!M32 ->  | L11: ='Default MTDS Based'!N32 ->  | M11: ='Default MTDS Based'!O32 ->  | N11: ='Default MTDS Based'!P32 -> 174.0550567 | O11: ='Default MTDS Based'!Q32 ->  | P11: ='Default MTDS Based'!R32 ->  | Q11: ='Default MTDS Based'!S32 ->  | R11: ='Default MTDS Based'!T32 ->  | S11: ='Default MTDS Based'!U32 -> 174.0550567 | T11: ='Default MTDS Based'!V32 ->  | U11: ='Default MTDS Based'!W32 -> 174.0550567 | V11: ='Default MTDS Based'!X32 -> 135.659634 | W11: ='Default MTDS Based'!Y32 ->  | X11: ='Default MTDS Based'!Z32 ->  | Y11: ='Default MTDS Based'!AA32 ->  | Z11: ='Default MTDS Based'!AB32 -> 135.659634 | AA11: ='Default MTDS Based'!AC32 ->  | AB11: ='Default MTDS Based'!AD32 ->  | AC11: ='Default MTDS Based'!AE32 ->  | AD11: ='Default MTDS Based'!AF32 ->  | AE11: ='Default MTDS Based'!AG32 -> 135.659634 | AF11: ='Default MTDS Based'!AH32 ->  | AG11: ='Default MTDS Based'!AI32 -> 135.659634 | AH11: 4 | AI11: ='Auction Parameters'!$G$13 -> 0.1 | AJ11: =SUM('M2.Baseline'!E78:P78)/'M2.Baseline'!$C$92 -> 0.101855812 | AK11: ='Default MTDS Based'!$AL32 -> 696.2202269 | AL11: 696.2202269 | AN11: ='Auction Parameters'!$I$13 -> Bonds
I12: ='Auction Parameters'!$B$14 -> 10yr | J12: ='Default MTDS Based'!L33 ->  | K12: ='Default MTDS Based'!M33 -> 348.1101134 | L12: ='Default MTDS Based'!N33 ->  | M12: ='Default MTDS Based'!O33 ->  | N12: ='Default MTDS Based'!P33 ->  | O12: ='Default MTDS Based'!Q33 -> 348.1101134 | P12: ='Default MTDS Based'!R33 ->  | Q12: ='Default MTDS Based'!S33 -> 348.1101134 | R12: ='Default MTDS Based'!T33 ->  | S12: ='Default MTDS Based'!U33 ->  | T12: ='Default MTDS Based'!V33 -> 348.1101134 | U12: ='Default MTDS Based'!W33 ->  | V12: ='Default MTDS Based'!X33 ->  | W12: ='Default MTDS Based'!Y33 -> 271.3192679 | X12: ='Default MTDS Based'!Z33 ->  | Y12: ='Default MTDS Based'!AA33 ->  | Z12: ='Default MTDS Based'!AB33 ->  | AA12: ='Default MTDS Based'!AC33 -> 271.3192679 | AB12: ='Default MTDS Based'!AD33 ->  | AC12: ='Default MTDS Based'!AE33 -> 271.3192679 | AD12: ='Default MTDS Based'!AF33 ->  | AE12: ='Default MTDS Based'!AG33 ->  | AF12: ='Default MTDS Based'!AH33 -> 271.3192679 | AG12: ='Default MTDS Based'!AI33 ->  | AH12: 4 | AI12: ='Auction Parameters'!$G$14 -> 0.2 | AJ12: =SUM('M2.Baseline'!E79:P79)/'M2.Baseline'!$C$92 -> 0.2037116239 | AK12: ='Default MTDS Based'!$AL33 -> 1392.440454 | AL12: 1392.440454 | AN12: ='Auction Parameters'!$I$14 -> Bonds
I13: ='Auction Parameters'!$B$15 -> 0 | J13: ='Default MTDS Based'!L34 ->  | K13: ='Default MTDS Based'!M34 ->  | L13: ='Default MTDS Based'!N34 ->  | M13: ='Default MTDS Based'!O34 ->  | N13: ='Default MTDS Based'!P34 ->  | O13: ='Default MTDS Based'!Q34 ->  | P13: ='Default MTDS Based'!R34 ->  | Q13: ='Default MTDS Based'!S34 ->  | R13: ='Default MTDS Based'!T34 ->  | S13: ='Default MTDS Based'!U34 ->  | T13: ='Default MTDS Based'!V34 ->  | U13: ='Default MTDS Based'!W34 ->  | V13: ='Default MTDS Based'!X34 ->  | W13: ='Default MTDS Based'!Y34 ->  | X13: ='Default MTDS Based'!Z34 ->  | Y13: ='Default MTDS Based'!AA34 ->  | Z13: ='Default MTDS Based'!AB34 ->  | AA13: ='Default MTDS Based'!AC34 ->  | AB13: ='Default MTDS Based'!AD34 ->  | AC13: ='Default MTDS Based'!AE34 ->  | AD13: ='Default MTDS Based'!AF34 ->  | AE13: ='Default MTDS Based'!AG34 ->  | AF13: ='Default MTDS Based'!AH34 ->  | AG13: ='Default MTDS Based'!AI34 ->  | AH13: 0 | AI13: ='Auction Parameters'!$G$15 -> 0 | AJ13: =SUM('M2.Baseline'!E80:P80)/'M2.Baseline'!$C$92 -> 0 | AK13: ='Default MTDS Based'!$AL34 -> 0 | AL13: 0 | AN13: ='Auction Parameters'!$I$15 -> 0
I14: ='Auction Parameters'!$B$16 -> 0 | J14: ='Default MTDS Based'!L35 ->  | K14: ='Default MTDS Based'!M35 ->  | L14: ='Default MTDS Based'!N35 ->  | M14: ='Default MTDS Based'!O35 ->  | N14: ='Default MTDS Based'!P35 ->  | O14: ='Default MTDS Based'!Q35 ->  | P14: ='Default MTDS Based'!R35 ->  | Q14: ='Default MTDS Based'!S35 ->  | R14: ='Default MTDS Based'!T35 ->  | S14: ='Default MTDS Based'!U35 ->  | T14: ='Default MTDS Based'!V35 ->  | U14: ='Default MTDS Based'!W35 ->  | V14: ='Default MTDS Based'!X35 ->  | W14: ='Default MTDS Based'!Y35 ->  | X14: ='Default MTDS Based'!Z35 ->  | Y14: ='Default MTDS Based'!AA35 ->  | Z14: ='Default MTDS Based'!AB35 ->  | AA14: ='Default MTDS Based'!AC35 ->  | AB14: ='Default MTDS Based'!AD35 ->  | AC14: ='Default MTDS Based'!AE35 ->  | AD14: ='Default MTDS Based'!AF35 ->  | AE14: ='Default MTDS Based'!AG35 ->  | AF14: ='Default MTDS Based'!AH35 ->  | AG14: ='Default MTDS Based'!AI35 ->  | AH14: 0 | AI14: ='Auction Parameters'!$G$16 -> 0 | AJ14: =SUM('M2.Baseline'!E81:P81)/'M2.Baseline'!$C$92 -> 0 | AK14: ='Default MTDS Based'!$AL35 -> 0 | AL14: 0 | AN14: ='Auction Parameters'!$I$16 -> 0
I15: ='Auction Parameters'!$B$17 -> 0 | J15: ='Default MTDS Based'!L36 ->  | K15: ='Default MTDS Based'!M36 ->  | L15: ='Default MTDS Based'!N36 ->  | M15: ='Default MTDS Based'!O36 ->  | N15: ='Default MTDS Based'!P36 ->  | O15: ='Default MTDS Based'!Q36 ->  | P15: ='Default MTDS Based'!R36 ->  | Q15: ='Default MTDS Based'!S36 ->  | R15: ='Default MTDS Based'!T36 ->  | S15: ='Default MTDS Based'!U36 ->  | T15: ='Default MTDS Based'!V36 ->  | U15: ='Default MTDS Based'!W36 ->  | V15: ='Default MTDS Based'!X36 ->  | W15: ='Default MTDS Based'!Y36 ->  | X15: ='Default MTDS Based'!Z36 ->  | Y15: ='Default MTDS Based'!AA36 ->  | Z15: ='Default MTDS Based'!AB36 ->  | AA15: ='Default MTDS Based'!AC36 ->  | AB15: ='Default MTDS Based'!AD36 ->  | AC15: ='Default MTDS Based'!AE36 ->  | AD15: ='Default MTDS Based'!AF36 ->  | AE15: ='Default MTDS Based'!AG36 ->  | AF15: ='Default MTDS Based'!AH36 ->  | AG15: ='Default MTDS Based'!AI36 ->  | AH15: 0 | AI15: ='Auction Parameters'!$G$17 -> 0 | AJ15: =SUM('M2.Baseline'!E82:P82)/'M2.Baseline'!$C$92 -> 0 | AK15: ='Default MTDS Based'!$AL36 -> 0 | AL15: 0 | AN15: ='Auction Parameters'!$I$17 -> 0
I16: ='Auction Parameters'!$B$18 -> 0 | J16: ='Default MTDS Based'!L37 ->  | K16: ='Default MTDS Based'!M37 ->  | L16: ='Default MTDS Based'!N37 ->  | M16: ='Default MTDS Based'!O37 ->  | N16: ='Default MTDS Based'!P37 ->  | O16: ='Default MTDS Based'!Q37 ->  | P16: ='Default MTDS Based'!R37 ->  | Q16: ='Default MTDS Based'!S37 ->  | R16: ='Default MTDS Based'!T37 ->  | S16: ='Default MTDS Based'!U37 ->  | T16: ='Default MTDS Based'!V37 ->  | U16: ='Default MTDS Based'!W37 ->  | V16: ='Default MTDS Based'!X37 ->  | W16: ='Default MTDS Based'!Y37 ->  | X16: ='Default MTDS Based'!Z37 ->  | Y16: ='Default MTDS Based'!AA37 ->  | Z16: ='Default MTDS Based'!AB37 ->  | AA16: ='Default MTDS Based'!AC37 ->  | AB16: ='Default MTDS Based'!AD37 ->  | AC16: ='Default MTDS Based'!AE37 ->  | AD16: ='Default MTDS Based'!AF37 ->  | AE16: ='Default MTDS Based'!AG37 ->  | AF16: ='Default MTDS Based'!AH37 ->  | AG16: ='Default MTDS Based'!AI37 ->  | AH16: 0 | AI16: ='Auction Parameters'!$G$18 -> 0 | AJ16: =SUM('M2.Baseline'!E83:P83)/'M2.Baseline'!$C$92 -> 0 | AK16: ='Default MTDS Based'!$AL37 -> 0 | AL16: 0 | AN16: ='Auction Parameters'!$I$18 -> 0
I17: ='Auction Parameters'!$B$19 -> 0 | J17: ='Default MTDS Based'!L38 ->  | K17: ='Default MTDS Based'!M38 ->  | L17: ='Default MTDS Based'!N38 ->  | M17: ='Default MTDS Based'!O38 ->  | N17: ='Default MTDS Based'!P38 ->  | O17: ='Default MTDS Based'!Q38 ->  | P17: ='Default MTDS Based'!R38 ->  | Q17: ='Default MTDS Based'!S38 ->  | R17: ='Default MTDS Based'!T38 ->  | S17: ='Default MTDS Based'!U38 ->  | T17: ='Default MTDS Based'!V38 ->  | U17: ='Default MTDS Based'!W38 ->  | V17: ='Default MTDS Based'!X38 ->  | W17: ='Default MTDS Based'!Y38 ->  | X17: ='Default MTDS Based'!Z38 ->  | Y17: ='Default MTDS Based'!AA38 ->  | Z17: ='Default MTDS Based'!AB38 ->  | AA17: ='Default MTDS Based'!AC38 ->  | AB17: ='Default MTDS Based'!AD38 ->  | AC17: ='Default MTDS Based'!AE38 ->  | AD17: ='Default MTDS Based'!AF38 ->  | AE17: ='Default MTDS Based'!AG38 ->  | AF17: ='Default MTDS Based'!AH38 ->  | AG17: ='Default MTDS Based'!AI38 ->  | AH17: 0 | AI17: ='Auction Parameters'!$G$19 -> 0 | AJ17: =SUM('M2.Baseline'!E84:P84)/'M2.Baseline'!$C$92 -> 0 | AK17: ='Default MTDS Based'!$AL38 -> 0 | AL17: 0 | AN17: ='Auction Parameters'!$I$19 -> 0
I18: ='Auction Parameters'!$B$20 -> 0 | J18: ='Default MTDS Based'!L39 ->  | K18: ='Default MTDS Based'!M39 ->  | L18: ='Default MTDS Based'!N39 ->  | M18: ='Default MTDS Based'!O39 ->  | N18: ='Default MTDS Based'!P39 ->  | O18: ='Default MTDS Based'!Q39 ->  | P18: ='Default MTDS Based'!R39 ->  | Q18: ='Default MTDS Based'!S39 ->  | R18: ='Default MTDS Based'!T39 ->  | S18: ='Default MTDS Based'!U39 ->  | T18: ='Default MTDS Based'!V39 ->  | U18: ='Default MTDS Based'!W39 ->  | V18: ='Default MTDS Based'!X39 ->  | W18: ='Default MTDS Based'!Y39 ->  | X18: ='Default MTDS Based'!Z39 ->  | Y18: ='Default MTDS Based'!AA39 ->  | Z18: ='Default MTDS Based'!AB39 ->  | AA18: ='Default MTDS Based'!AC39 ->  | AB18: ='Default MTDS Based'!AD39 ->  | AC18: ='Default MTDS Based'!AE39 ->  | AD18: ='Default MTDS Based'!AF39 ->  | AE18: ='Default MTDS Based'!AG39 ->  | AF18: ='Default MTDS Based'!AH39 ->  | AG18: ='Default MTDS Based'!AI39 ->  | AH18: 0 | AI18: ='Auction Parameters'!$G$20 -> 0 | AJ18: =SUM('M2.Baseline'!E85:P85)/'M2.Baseline'!$C$92 -> 0 | AK18: ='Default MTDS Based'!$AL39 -> 0 | AL18: 0 | AN18: ='Auction Parameters'!$I$20 -> 0
I19: ='Auction Parameters'!$B$21 -> 0 | J19: ='Default MTDS Based'!L40 ->  | K19: ='Default MTDS Based'!M40 ->  | L19: ='Default MTDS Based'!N40 ->  | M19: ='Default MTDS Based'!O40 ->  | N19: ='Default MTDS Based'!P40 ->  | O19: ='Default MTDS Based'!Q40 ->  | P19: ='Default MTDS Based'!R40 ->  | Q19: ='Default MTDS Based'!S40 ->  | R19: ='Default MTDS Based'!T40 ->  | S19: ='Default MTDS Based'!U40 ->  | T19: ='Default MTDS Based'!V40 ->  | U19: ='Default MTDS Based'!W40 ->  | V19: ='Default MTDS Based'!X40 ->  | W19: ='Default MTDS Based'!Y40 ->  | X19: ='Default MTDS Based'!Z40 ->  | Y19: ='Default MTDS Based'!AA40 ->  | Z19: ='Default MTDS Based'!AB40 ->  | AA19: ='Default MTDS Based'!AC40 ->  | AB19: ='Default MTDS Based'!AD40 ->  | AC19: ='Default MTDS Based'!AE40 ->  | AD19: ='Default MTDS Based'!AF40 ->  | AE19: ='Default MTDS Based'!AG40 ->  | AF19: ='Default MTDS Based'!AH40 ->  | AG19: ='Default MTDS Based'!AI40 ->  | AH19: 0 | AI19: ='Auction Parameters'!$G$21 -> 0 | AJ19: =SUM('M2.Baseline'!E86:P86)/'M2.Baseline'!$C$92 -> 0 | AK19: ='Default MTDS Based'!$AL40 -> 0 | AL19: 0 | AN19: ='Auction Parameters'!$I$21 -> 0
I20: ='Auction Parameters'!$B$22 -> 0 | J20: ='Default MTDS Based'!L41 ->  | K20: ='Default MTDS Based'!M41 ->  | L20: ='Default MTDS Based'!N41 ->  | M20: ='Default MTDS Based'!O41 ->  | N20: ='Default MTDS Based'!P41 ->  | O20: ='Default MTDS Based'!Q41 ->  | P20: ='Default MTDS Based'!R41 ->  | Q20: ='Default MTDS Based'!S41 ->  | R20: ='Default MTDS Based'!T41 ->  | S20: ='Default MTDS Based'!U41 ->  | T20: ='Default MTDS Based'!V41 ->  | U20: ='Default MTDS Based'!W41 ->  | V20: ='Default MTDS Based'!X41 ->  | W20: ='Default MTDS Based'!Y41 ->  | X20: ='Default MTDS Based'!Z41 ->  | Y20: ='Default MTDS Based'!AA41 ->  | Z20: ='Default MTDS Based'!AB41 ->  | AA20: ='Default MTDS Based'!AC41 ->  | AB20: ='Default MTDS Based'!AD41 ->  | AC20: ='Default MTDS Based'!AE41 ->  | AD20: ='Default MTDS Based'!AF41 ->  | AE20: ='Default MTDS Based'!AG41 ->  | AF20: ='Default MTDS Based'!AH41 ->  | AG20: ='Default MTDS Based'!AI41 ->  | AH20: 0 | AI20: ='Auction Parameters'!$G$22 -> 0 | AJ20: =SUM('M2.Baseline'!E87:P87)/'M2.Baseline'!$C$92 -> 0 | AK20: ='Default MTDS Based'!$AL41 -> 0 | AL20: 0 | AN20: ='Auction Parameters'!$I$22 -> 0
I21: ='Auction Parameters'!$B$23 -> 0 | J21: ='Default MTDS Based'!L42 ->  | K21: ='Default MTDS Based'!M42 ->  | L21: ='Default MTDS Based'!N42 ->  | M21: ='Default MTDS Based'!O42 ->  | N21: ='Default MTDS Based'!P42 ->  | O21: ='Default MTDS Based'!Q42 ->  | P21: ='Default MTDS Based'!R42 ->  | Q21: ='Default MTDS Based'!S42 ->  | R21: ='Default MTDS Based'!T42 ->  | S21: ='Default MTDS Based'!U42 ->  | T21: ='Default MTDS Based'!V42 ->  | U21: ='Default MTDS Based'!W42 ->  | V21: ='Default MTDS Based'!X42 ->  | W21: ='Default MTDS Based'!Y42 ->  | X21: ='Default MTDS Based'!Z42 ->  | Y21: ='Default MTDS Based'!AA42 ->  | Z21: ='Default MTDS Based'!AB42 ->  | AA21: ='Default MTDS Based'!AC42 ->  | AB21: ='Default MTDS Based'!AD42 ->  | AC21: ='Default MTDS Based'!AE42 ->  | AD21: ='Default MTDS Based'!AF42 ->  | AE21: ='Default MTDS Based'!AG42 ->  | AF21: ='Default MTDS Based'!AH42 ->  | AG21: ='Default MTDS Based'!AI42 ->  | AH21: 0 | AI21: ='Auction Parameters'!$G$23 -> 0 | AJ21: =SUM('M2.Baseline'!E88:P88)/'M2.Baseline'!$C$92 -> 0 | AK21: ='Default MTDS Based'!$AL42 -> 0 | AL21: 0 | AN21: ='Auction Parameters'!$I$23 -> 0
I22: ='Auction Parameters'!$B$24 -> 0 | J22: ='Default MTDS Based'!L43 ->  | K22: ='Default MTDS Based'!M43 ->  | L22: ='Default MTDS Based'!N43 ->  | M22: ='Default MTDS Based'!O43 ->  | N22: ='Default MTDS Based'!P43 ->  | O22: ='Default MTDS Based'!Q43 ->  | P22: ='Default MTDS Based'!R43 ->  | Q22: ='Default MTDS Based'!S43 ->  | R22: ='Default MTDS Based'!T43 ->  | S22: ='Default MTDS Based'!U43 ->  | T22: ='Default MTDS Based'!V43 ->  | U22: ='Default MTDS Based'!W43 ->  | V22: ='Default MTDS Based'!X43 ->  | W22: ='Default MTDS Based'!Y43 ->  | X22: ='Default MTDS Based'!Z43 ->  | Y22: ='Default MTDS Based'!AA43 ->  | Z22: ='Default MTDS Based'!AB43 ->  | AA22: ='Default MTDS Based'!AC43 ->  | AB22: ='Default MTDS Based'!AD43 ->  | AC22: ='Default MTDS Based'!AE43 ->  | AD22: ='Default MTDS Based'!AF43 ->  | AE22: ='Default MTDS Based'!AG43 ->  | AF22: ='Default MTDS Based'!AH43 ->  | AG22: ='Default MTDS Based'!AI43 ->  | AH22: 0 | AI22: ='Auction Parameters'!$G$24 -> 0 | AJ22: =SUM('M2.Baseline'!E89:P89)/'M2.Baseline'!$C$92 -> 0 | AK22: ='Default MTDS Based'!$AL43 -> 0 | AL22: 0 | AN22: ='Auction Parameters'!$I$24 -> 0
I23: ='Auction Parameters'!$B$25 -> 0 | J23: ='Default MTDS Based'!L44 ->  | K23: ='Default MTDS Based'!M44 ->  | L23: ='Default MTDS Based'!N44 ->  | M23: ='Default MTDS Based'!O44 ->  | N23: ='Default MTDS Based'!P44 ->  | O23: ='Default MTDS Based'!Q44 ->  | P23: ='Default MTDS Based'!R44 ->  | Q23: ='Default MTDS Based'!S44 ->  | R23: ='Default MTDS Based'!T44 ->  | S23: ='Default MTDS Based'!U44 ->  | T23: ='Default MTDS Based'!V44 ->  | U23: ='Default MTDS Based'!W44 ->  | V23: ='Default MTDS Based'!X44 ->  | W23: ='Default MTDS Based'!Y44 ->  | X23: ='Default MTDS Based'!Z44 ->  | Y23: ='Default MTDS Based'!AA44 ->  | Z23: ='Default MTDS Based'!AB44 ->  | AA23: ='Default MTDS Based'!AC44 ->  | AB23: ='Default MTDS Based'!AD44 ->  | AC23: ='Default MTDS Based'!AE44 ->  | AD23: ='Default MTDS Based'!AF44 ->  | AE23: ='Default MTDS Based'!AG44 ->  | AF23: ='Default MTDS Based'!AH44 ->  | AG23: ='Default MTDS Based'!AI44 ->  | AH23: 0 | AI23: ='Auction Parameters'!$G$25 -> 0 | AJ23: =SUM('M2.Baseline'!E90:P90)/'M2.Baseline'!$C$92 -> 0 | AK23: ='Default MTDS Based'!$AL44 -> 0 | AL23: 0 | AN23: ='Auction Parameters'!$I$25 -> 0
I24: ='Auction Parameters'!$B$26 -> 0 | J24: ='Default MTDS Based'!L45 ->  | K24: ='Default MTDS Based'!M45 ->  | L24: ='Default MTDS Based'!N45 ->  | M24: ='Default MTDS Based'!O45 ->  | N24: ='Default MTDS Based'!P45 ->  | O24: ='Default MTDS Based'!Q45 ->  | P24: ='Default MTDS Based'!R45 ->  | Q24: ='Default MTDS Based'!S45 ->  | R24: ='Default MTDS Based'!T45 ->  | S24: ='Default MTDS Based'!U45 ->  | T24: ='Default MTDS Based'!V45 ->  | U24: ='Default MTDS Based'!W45 ->  | V24: ='Default MTDS Based'!X45 ->  | W24: ='Default MTDS Based'!Y45 ->  | X24: ='Default MTDS Based'!Z45 ->  | Y24: ='Default MTDS Based'!AA45 ->  | Z24: ='Default MTDS Based'!AB45 ->  | AA24: ='Default MTDS Based'!AC45 ->  | AB24: ='Default MTDS Based'!AD45 ->  | AC24: ='Default MTDS Based'!AE45 ->  | AD24: ='Default MTDS Based'!AF45 ->  | AE24: ='Default MTDS Based'!AG45 ->  | AF24: ='Default MTDS Based'!AH45 ->  | AG24: ='Default MTDS Based'!AI45 ->  | AH24: 0 | AI24: ='Auction Parameters'!$G$26 -> 0 | AJ24: =SUM('M2.Baseline'!E91:P91)/'M2.Baseline'!$C$92 -> 0 | AK24: ='Default MTDS Based'!$AL45 -> 0 | AL24: 0 | AN24: ='Auction Parameters'!$I$26 -> 0
I26: Cash Opening Balance | J26: =GFN!$J$31 -> 100 | K26: =J35 -> 263.4841183 | L26: 775.0783499 | M26: 764.5074115 | N26: 693.7366307 | O26: 623.1079949 | P26: 900.4473276 | Q26: 529.9740456 | R26: 656.7238442 | S26: 293.8219572 | T26: 95.57035196 | U26: 71.16783833 | V26: -152.3739666 | W26: =V35 -> -227.6285255 | X26: =W35 -> -89.07740905 | Y26: =X35 -> -292.4782253 | Z26: =Y35 -> -325.5272408 | AA26: =Z35 -> -376.5414265 | AB26: =AA35 -> -163.5613738 | AC26: =AB35 -> -307.0919493 | AD26: =AC35 -> -120.5663546 | AE26: =AD35 -> -250.4886814 | AF26: =AE35 -> -267.0864687 | AG26: =AF35 -> -166.1932817 | AK26: =SUM(AL5:AL24) -> 9747.083176 | AL26: =SUM(AK5:AK24) -> 9747.083176
I27: Cash Minimum Balance | J27: =GFN!$J$32 -> 50 | K27: =GFN!$J$32 -> 50 | L27: =GFN!$J$32 -> 50 | M27: =GFN!$J$32 -> 50 | N27: =GFN!$J$32 -> 50 | O27: =GFN!$J$32 -> 50 | P27: =GFN!$J$32 -> 50 | Q27: =GFN!$J$32 -> 50 | R27: =GFN!$J$32 -> 50 | S27: =GFN!$J$32 -> 50 | T27: =GFN!$J$32 -> 50 | U27: =GFN!$J$32 -> 50 | V27: =GFN!$J$32 -> 50 | W27: =GFN!$J$32 -> 50 | X27: =GFN!$J$32 -> 50 | Y27: =GFN!$J$32 -> 50 | Z27: =GFN!$J$32 -> 50 | AA27: =GFN!$J$32 -> 50 | AB27: =GFN!$J$32 -> 50 | AC27: =GFN!$J$32 -> 50 | AD27: =GFN!$J$32 -> 50 | AE27: =GFN!$J$32 -> 50 | AF27: =GFN!$J$32 -> 50 | AG27: =GFN!$J$32 -> 50
I28: Cash Balance Control | J28: =IF(J35<J27,"ERROR","OK") -> OK | K28: OK | L28: OK | M28: OK | N28: OK | O28: OK | P28: OK | Q28: OK | R28: OK | S28: OK | T28: OK | U28: ERROR | V28: =IF(V26<V27,"ERROR","OK") -> ERROR | W28: =IF(W26<W27,"ERROR","OK") -> ERROR | X28: =IF(X26<X27,"ERROR","OK") -> ERROR | Y28: ERROR | Z28: ERROR | AA28: ERROR | AB28: ERROR | AC28: ERROR | AD28: ERROR | AE28: ERROR | AF28: ERROR | AG28: ERROR
I30: Local Currency Financing requirement | J30: ='M2.Baseline'!E$6 -> -580.1835224 | K30: ='M2.Baseline'!F$6 -> -580.1835224 | L30: ='M2.Baseline'!G$6 -> -580.1835224 | M30: ='M2.Baseline'!H$6 -> -580.1835224 | N30: ='M2.Baseline'!I$6 -> -580.1835224 | O30: ='M2.Baseline'!J$6 -> -580.1835224 | P30: ='M2.Baseline'!K$6 -> -580.1835224 | Q30: ='M2.Baseline'!L$6 -> -580.1835224 | R30: ='M2.Baseline'!M$6 -> -580.1835224 | S30: ='M2.Baseline'!N$6 -> -580.1835224 | T30: ='M2.Baseline'!O$6 -> -580.1835224 | U30: ='M2.Baseline'!P$6 -> -580.1835224 | V30: ='M2.Baseline'!Q$6 -> -174.5132778 | W30: ='M2.Baseline'!R$6 -> -174.5132778 | X30: ='M2.Baseline'!S$6 -> -174.5132778 | Y30: ='M2.Baseline'!T$6 -> -174.5132778 | Z30: ='M2.Baseline'!U$6 -> -174.5132778 | AA30: ='M2.Baseline'!V$6 -> -174.5132778 | AB30: ='M2.Baseline'!W$6 -> -174.5132778 | AC30: ='M2.Baseline'!X$6 -> -174.5132778 | AD30: ='M2.Baseline'!Y$6 -> -174.5132778 | AE30: ='M2.Baseline'!Z$6 -> -174.5132778 | AF30: ='M2.Baseline'!AA$6 -> -174.5132778 | AG30: ='M2.Baseline'!AB$6 -> -174.5132778
I31: Monthly Issuance (Face Value) | J31: =SUM(J$5:J$24) -> 754.2385791 | K31: =SUM(K$5:K$24) -> 1102.348693 | L31: 580.1835224 | M31: 754.2385791 | N31: 754.2385791 | O31: 1102.348693 | P31: 580.1835224 | Q31: 1102.348693 | R31: 580.1835224 | S31: 754.2385791 | T31: 928.2936358 | U31: 754.2385791 | V31: =SUM($J$5:V24) -> 10334.94159 | W31: =SUM($J$5:W24) -> 11194.11927 | X31: =SUM($J$5:X24) -> 11646.31805 | Y31: =SUM($J$5:Y24) -> 12234.17647 | Z31: =SUM($J$5:Z24) -> 12822.03488 | AA31: =SUM($J$5:AA24) -> 13681.21256 | AB31: =SUM($J$5:AB24) -> 14133.41134 | AC31: =SUM($J$5:AC24) -> 14992.58902 | AD31: =SUM($J$5:AD24) -> 15444.7878 | AE31: =SUM($J$5:AE24) -> 16032.64622 | AF31: =SUM($J$5:AF24) -> 16756.16426 | AG31: =SUM($J$5:AG24) -> 17344.02268
I32: Net Proceeds | J32: ='M2.Baseline'!E$11 -> 743.6676406 | K32: ='M2.Baseline'!F$11 -> 1091.777754 | L32: ='M2.Baseline'!G$11 -> 569.6125839 | M32: ='M2.Baseline'!H$11 -> 509.4127416 | N32: ='M2.Baseline'!I$11 -> 509.5548866 | O32: ='M2.Baseline'!J$11 -> 857.5228551 | P32: ='M2.Baseline'!K$11 -> 209.7102404 | Q32: ='M2.Baseline'!L$11 -> 706.9333209 | R32: ='M2.Baseline'!M$11 -> 217.2816354 | S32: ='M2.Baseline'!N$11 -> 381.9319172 | T32: ='M2.Baseline'!O$11 -> 555.7810088 | U32: ='M2.Baseline'!P$11 -> 356.6417174 | V32: ='M2.Baseline'!Q$11 -> 99.25871894 | W32: ='M2.Baseline'!R$11 -> 313.0643943 | X32: ='M2.Baseline'!S$11 -> -28.88753841 | Y32: ='M2.Baseline'!T$11 -> 141.4642623 | Z32: ='M2.Baseline'!U$11 -> 123.4990922 | AA32: ='M2.Baseline'!V$11 -> 387.4933305 | AB32: ='M2.Baseline'!W$11 -> 30.98270234 | AC32: ='M2.Baseline'!X$11 -> 361.0388726 | AD32: ='M2.Baseline'!Y$11 -> 44.59095102 | AE32: ='M2.Baseline'!Z$11 -> 157.9154905 | AF32: ='M2.Baseline'!AA$11 -> 275.4064649 | AG32: ='M2.Baseline'!AB$11 -> 112.9546438
I33: Monthly Gap | J33: =J$30+J$32 -> 163.4841183 | K33: 511.5942317 | L33: -10.57093846 | M33: -70.77078075 | N33: -70.62863578 | O33: 277.3393327 | P33: -370.473282 | Q33: 126.7497985 | R33: -362.901887 | S33: -198.2516052 | T33: -24.40251364 | U33: -223.5418049 | V33: -75.2545589 | W33: 138.5511165 | X33: -203.4008163 | Y33: -33.0490155 | Z33: -51.01418567 | AA33: 212.9800527 | AB33: -143.5305755 | AC33: 186.5255947 | AD33: -129.9223268 | AE33: -16.59778733 | AF33: 100.893187 | AG33: -61.558634 | AI33: =MIN(J33:U33) -> -370.473282 | AL33: Monthly Maximum Gap
I34: Cumulative Gap (Securities Financing) | J34: =J33 -> 163.4841183 | K34: =J34+K33 -> 675.0783499 | L34: =K34+L33 -> 664.5074115 | M34: 593.7366307 | N34: 523.1079949 | O34: 800.4473276 | P34: 429.9740456 | Q34: 556.7238442 | R34: 193.8219572 | S34: -4.429648038 | T34: -28.83216167 | U34: -252.3739666 | V34: -327.6285255 | W34: -189.077409 | X34: -392.4782253 | Y34: -425.5272408 | Z34: -476.5414265 | AA34: -263.5613738 | AB34: -407.0919493 | AC34: -220.5663546 | AD34: -350.4886814 | AE34: -367.0864687 | AF34: -266.1932817 | AG34: -327.7519157 | AI34: =MIN(J34:U34) -> -252.3739666 | AL34: Cumulative Maxium Gap
